Workbook

Sheet 使い方
C3: ①はじめに
C4: 本ソフトは給与賞与の「源泉所得税」「雇用保険料」「社会保険料」を自動計算するためのものです。
C5: 本ソフトは、細心の注意を払って作成しておりますが、計算の正確さを保証するものではありません。使用する際は、自己の責任の下でのご使用をご了承ください。
C7: ②使い方
C8: ・「基本情報シート」に基本的情報を入力後、「給与計算シート」もしくは「賞与計算シート」の白い部分に必要事項を入力してください。
C9: ・保護されている部分は解除が可能です。
C11: ③賞与に対する社会保険料の計算についての注意事項
C13: ・健康保険の標準賞与額の一人当たりの上限は年度（4月1日から来年の3月31日まで）の賞与累計額540万円までです。今年度賞与累計額が540万円にさしかかる人がいる場合は適宜健康保険の額を修正してください。
C15: ・厚生年金の標準賞与額の一人あたりの上限は１ヶ月に１５０万円までです。１ヶ月に2回賞与を支給して合計が１５０万円を超える場合は適宜厚生年金の額を修正してください。１回の賞与が１５０万円を超える場合は自動で１５０万円の標準賞与額として厚生年金が計算されます。
H17: 酒井会計事務所
H18: http://sakai-ac.com/

Sheet 基本情報
B2: 年月 | D2: ○○年○○月 | F2: ※シートの保護は解除できます。
B3: 営業所の場所 | D3: 13東京
B4: 事業の種類 | D4: 一般の事業
L5: 社会保険標準報酬月額 参考表
B6: NO. | C6: 名前 | D6: 甲・乙区分 | E6: 扶養人数 | F6: 雇用保険 加入○× | G6: 社会保険区分 | J6: 交通費 手当 （非課税分）
G7: 標準報酬月額 | H7: 健康保険 | I7: 厚生年金 | L7: 標準報酬月額 | M7: 円以上 | N7: ～ | O7: 円未満
B8: 1 | C8: 給与一郎 | D8: 甲欄 | E8: 2 | F8: × | G8: 560000 | H8: 介護保険あり | I8: 一般の被保険者 | J8: 13500 | L8: =リスト表!D4 -> 58000 | M8: =INDIRECT(' 基本情報 '!$D$3&"!C12") -> 0 | N8: ～ | O8: =INDIRECT(' 基本情報 '!$D$3&"!E12") -> 63000
B9: 2 | C9: 給与二郎 | D9: 甲欄 | E9: 1 | F9: ○ | G9: 300000 | H9: 介護保険なし | I9: 一般の被保険者 | J9: 12000 | L9: =リスト表!D5 -> 68000 | M9: =INDIRECT(' 基本情報 '!$D$3&"!C13") -> 63000 | N9: ～ | O9: =INDIRECT(' 基本情報 '!$D$3&"!E13") -> 73000
B10: 3 | C10: 給与三郎 | D10: 乙欄 | E10: 0 | J10: 5000 | L10: =リスト表!D6 -> 78000 | M10: =INDIRECT(' 基本情報 '!$D$3&"!C14") -> 73000 | N10: ～ | O10: =INDIRECT(' 基本情報 '!$D$3&"!E14") -> 83000
B11: 4 | L11: =リスト表!D7 -> 88000 | M11: =INDIRECT(' 基本情報 '!$D$3&"!C15") -> 83000 | N11: ～ | O11: =INDIRECT(' 基本情報 '!$D$3&"!E15") -> 93000
B12: 5 | L12: =リスト表!D8 -> 98000 | M12: =INDIRECT(' 基本情報 '!$D$3&"!C16") -> 93000 | N12: ～ | O12: =INDIRECT(' 基本情報 '!$D$3&"!E16") -> 101000
B13: 6 | L13: =リスト表!D9 -> 104000 | M13: =INDIRECT(' 基本情報 '!$D$3&"!C17") -> 101000 | N13: ～ | O13: =INDIRECT(' 基本情報 '!$D$3&"!E17") -> 107000
B14: 7 | L14: =リスト表!D10 -> 110000 | M14: =INDIRECT(' 基本情報 '!$D$3&"!C18") -> 107000 | N14: ～ | O14: =INDIRECT(' 基本情報 '!$D$3&"!E18") -> 114000
B15: 8 | L15: =リスト表!D11 -> 118000 | M15: =INDIRECT(' 基本情報 '!$D$3&"!C19") -> 114000 | N15: ～ | O15: =INDIRECT(' 基本情報 '!$D$3&"!E19") -> 122000
B16: 9 | L16: =リスト表!D12 -> 126000 | M16: =INDIRECT(' 基本情報 '!$D$3&"!C20") -> 122000 | N16: ～ | O16: =INDIRECT(' 基本情報 '!$D$3&"!E20") -> 130000
B17: 10 | L17: =リスト表!D13 -> 134000 | M17: =INDIRECT(' 基本情報 '!$D$3&"!C21") -> 130000 | N17: ～ | O17: =INDIRECT(' 基本情報 '!$D$3&"!E21") -> 138000
B18: 11 | L18: =リスト表!D14 -> 142000 | M18: =INDIRECT(' 基本情報 '!$D$3&"!C22") -> 138000 | N18: ～ | O18: =INDIRECT(' 基本情報 '!$D$3&"!E22") -> 146000
B19: 12 | L19: =リスト表!D15 -> 150000 | M19: =INDIRECT(' 基本情報 '!$D$3&"!C23") -> 146000 | N19: ～ | O19: =INDIRECT(' 基本情報 '!$D$3&"!E23") -> 155000
B20: 13 | L20: =リスト表!D16 -> 160000 | M20: =INDIRECT(' 基本情報 '!$D$3&"!C24") -> 155000 | N20: ～ | O20: =INDIRECT(' 基本情報 '!$D$3&"!E24") -> 165000
B21: 14 | L21: =リスト表!D17 -> 170000 | M21: =INDIRECT(' 基本情報 '!$D$3&"!C25") -> 165000 | N21: ～ | O21: =INDIRECT(' 基本情報 '!$D$3&"!E25") -> 175000
B22: 15 | L22: =リスト表!D18 -> 180000 | M22: =INDIRECT(' 基本情報 '!$D$3&"!C26") -> 175000 | N22: ～ | O22: =INDIRECT(' 基本情報 '!$D$3&"!E26") -> 185000
B23: 16 | L23: =リスト表!D19 -> 190000 | M23: =INDIRECT(' 基本情報 '!$D$3&"!C27") -> 185000 | N23: ～ | O23: =INDIRECT(' 基本情報 '!$D$3&"!E27") -> 195000
B24: 17 | L24: =リスト表!D20 -> 200000 | M24: =INDIRECT(' 基本情報 '!$D$3&"!C28") -> 195000 | N24: ～ | O24: =INDIRECT(' 基本情報 '!$D$3&"!E28") -> 210000
B25: 18 | L25: =リスト表!D21 -> 220000 | M25: =INDIRECT(' 基本情報 '!$D$3&"!C29") -> 210000 | N25: ～ | O25: =INDIRECT(' 基本情報 '!$D$3&"!E29") -> 230000
B26: 19 | L26: =リスト表!D22 -> 240000 | M26: =INDIRECT(' 基本情報 '!$D$3&"!C30") -> 230000 | N26: ～ | O26: =INDIRECT(' 基本情報 '!$D$3&"!E30") -> 250000
B27: 20 | L27: =リスト表!D23 -> 260000 | M27: =INDIRECT(' 基本情報 '!$D$3&"!C31") -> 250000 | N27: ～ | O27: =INDIRECT(' 基本情報 '!$D$3&"!E31") -> 270000
B28: 21 | L28: =リスト表!D24 -> 280000 | M28: =INDIRECT(' 基本情報 '!$D$3&"!C32") -> 270000 | N28: ～ | O28: =INDIRECT(' 基本情報 '!$D$3&"!E32") -> 290000
B29: 22 | L29: =リスト表!D25 -> 300000 | M29: =INDIRECT(' 基本情報 '!$D$3&"!C33") -> 290000 | N29: ～ | O29: =INDIRECT(' 基本情報 '!$D$3&"!E33") -> 310000
B30: 23 | L30: =リスト表!D26 -> 320000 | M30: =INDIRECT(' 基本情報 '!$D$3&"!C34") -> 310000 | N30: ～ | O30: =INDIRECT(' 基本情報 '!$D$3&"!E34") -> 330000
B31: 24 | L31: =リスト表!D27 -> 340000 | M31: =INDIRECT(' 基本情報 '!$D$3&"!C35") -> 330000 | N31: ～ | O31: =INDIRECT(' 基本情報 '!$D$3&"!E35") -> 350000
B32: 25 | L32: =リスト表!D28 -> 360000 | M32: =INDIRECT(' 基本情報 '!$D$3&"!C36") -> 350000 | N32: ～ | O32: =INDIRECT(' 基本情報 '!$D$3&"!E36") -> 370000
B33: 26 | L33: =リスト表!D29 -> 380000 | M33: =INDIRECT(' 基本情報 '!$D$3&"!C37") -> 370000 | N33: ～ | O33: =INDIRECT(' 基本情報 '!$D$3&"!E37") -> 395000
B34: 27 | L34: =リスト表!D30 -> 410000 | M34: =INDIRECT(' 基本情報 '!$D$3&"!C38") -> 395000 | N34: ～ | O34: =INDIRECT(' 基本情報 '!$D$3&"!E38") -> 425000
B35: 28 | L35: =リスト表!D31 -> 440000 | M35: =INDIRECT(' 基本情報 '!$D$3&"!C39") -> 425000 | N35: ～ | O35: =INDIRECT(' 基本情報 '!$D$3&"!E39") -> 455000
B36: 29 | L36: =リスト表!D32 -> 470000 | M36: =INDIRECT(' 基本情報 '!$D$3&"!C40") -> 455000 | N36: ～ | O36: =INDIRECT(' 基本情報 '!$D$3&"!E40") -> 485000
B37: 30 | L37: =リスト表!D33 -> 500000 | M37: =INDIRECT(' 基本情報 '!$D$3&"!C41") -> 485000 | N37: ～ | O37: =INDIRECT(' 基本情報 '!$D$3&"!E41") -> 515000
L38: =リスト表!D34 -> 530000 | M38: =INDIRECT(' 基本情報 '!$D$3&"!C42") -> 515000 | N38: ～ | O38: =INDIRECT(' 基本情報 '!$D$3&"!E42") -> 545000
L39: =リスト表!D35 -> 560000 | M39: =INDIRECT(' 基本情報 '!$D$3&"!C43") -> 545000 | N39: ～ | O39: =INDIRECT(' 基本情報 '!$D$3&"!E43") -> 575000
L40: =リスト表!D36 -> 590000 | M40: =INDIRECT(' 基本情報 '!$D$3&"!C44") -> 575000 | N40: ～ | O40: =INDIRECT(' 基本情報 '!$D$3&"!E44") -> 605000
L41: =リスト表!D37 -> 620000 | M41: =INDIRECT(' 基本情報 '!$D$3&"!C45") -> 605000 | N41: ～ | O41: =INDIRECT(' 基本情報 '!$D$3&"!E45") -> 635000
L42: =リスト表!D38 -> 650000 | M42: =INDIRECT(' 基本情報 '!$D$3&"!C46") -> 635000 | N42: ～ | O42: =INDIRECT(' 基本情報 '!$D$3&"!E46") -> 665000
L43: =リスト表!D39 -> 680000 | M43: =INDIRECT(' 基本情報 '!$D$3&"!C47") -> 665000 | N43: ～ | O43: =INDIRECT(' 基本情報 '!$D$3&"!E47") -> 695000
L44: =リスト表!D40 -> 710000 | M44: =INDIRECT(' 基本情報 '!$D$3&"!C48") -> 695000 | N44: ～ | O44: =INDIRECT(' 基本情報 '!$D$3&"!E48") -> 730000
L45: =リスト表!D41 -> 750000 | M45: =INDIRECT(' 基本情報 '!$D$3&"!C49") -> 730000 | N45: ～ | O45: =INDIRECT(' 基本情報 '!$D$3&"!E49") -> 770000
L46: =リスト表!D42 -> 790000 | M46: =INDIRECT(' 基本情報 '!$D$3&"!C50") -> 770000 | N46: ～ | O46: =INDIRECT(' 基本情報 '!$D$3&"!E50") -> 810000
L47: =リスト表!D43 -> 830000 | M47: =INDIRECT(' 基本情報 '!$D$3&"!C51") -> 810000 | N47: ～ | O47: =INDIRECT(' 基本情報 '!$D$3&"!E51") -> 855000
L48: =リスト表!D44 -> 880000 | M48: =INDIRECT(' 基本情報 '!$D$3&"!C52") -> 855000 | N48: ～ | O48: =INDIRECT(' 基本情報 '!$D$3&"!E52") -> 905000
L49: =リスト表!D45 -> 930000 | M49: =INDIRECT(' 基本情報 '!$D$3&"!C53") -> 905000 | N49: ～ | O49: =INDIRECT(' 基本情報 '!$D$3&"!E53") -> 955000
L50: =リスト表!D46 -> 980000 | M50: =INDIRECT(' 基本情報 '!$D$3&"!C54") -> 955000 | N50: ～ | O50: =INDIRECT(' 基本情報 '!$D$3&"!E54") -> 1005000
L51: =リスト表!D47 -> 1030000 | M51: =INDIRECT(' 基本情報 '!$D$3&"!C55") -> 1005000 | N51: ～ | O51: =INDIRECT(' 基本情報 '!$D$3&"!E55") -> 1055000
L52: =リスト表!D48 -> 1090000 | M52: =INDIRECT(' 基本情報 '!$D$3&"!C56") -> 1055000 | N52: ～ | O52: =INDIRECT(' 基本情報 '!$D$3&"!E56") -> 1115000
L53: =リスト表!D49 -> 1150000 | M53: =INDIRECT(' 基本情報 '!$D$3&"!C57") -> 1115000 | N53: ～ | O53: =INDIRECT(' 基本情報 '!$D$3&"!E57") -> 1175000
L54: =リスト表!D50 -> 1210000 | M54: =INDIRECT(' 基本情報 '!$D$3&"!C58") -> 1175000 | N54: ～ | O54: =INDIRECT(' 基本情報 '!$D$3&"!E58") -> 1235000
L55: =リスト表!D51 -> 1270000 | M55: =INDIRECT(' 基本情報 '!$D$3&"!C59") -> 1235000 | N55: ～ | O55: =INDIRECT(' 基本情報 '!$D$3&"!E59") -> 1295000
L56: =リスト表!D52 -> 1330000 | M56: =INDIRECT(' 基本情報 '!$D$3&"!C60") -> 1295000 | N56: ～ | O56: =INDIRECT(' 基本情報 '!$D$3&"!E60") -> 1355000
L57: =リスト表!D53 -> 1390000 | M57: =INDIRECT(' 基本情報 '!$D$3&"!C61") -> 1355000 | N57: ～ | O57: =INDIRECT(' 基本情報 '!$D$3&"!E61") -> 0

Sheet 給与計算
B2: =' 基本情報 '!D2 -> ○○年○○月 | D2: 給与計算 | G2: ※シートの保護は解除できます。
B3: 合計 | D3: =D6 -> 本給 | E3: =E6 -> 他手当1 （課税） | F3: =F6 -> 他手当2 （課税） | G3: =G6 -> 総支給額 | H3: =H7 -> 雇用保険 | I3: =I7 -> 健康保険 | J3: =J7 -> 厚生年金 | K3: 社会保険料控除後の総支給額 | L3: 源泉所得税 | M3: =M6 -> 交通費 手当 （非課税） | N3: =N6 -> その他 調整項目１ （ﾏｲﾅｽ分） | O3: =O6 -> その他 調整項目２ （ﾏｲﾅｽ分） | P3: 差引支給額
D4: =SUM(D8:D37) -> 950000 | E4: =SUM(E8:E37) -> 50000 | F4: 0 | G4: 1000000 | H4: 1560 | I4: 47252 | J4: 76660 | K4: 874528 | L4: 29510 | M4: 30500 | N4: =SUM(N8:N37) -> 0 | O4: =SUM(O8:O37) -> 0 | P4: 875518
B6: NO. | C6: 名前 | D6: 本給 | E6: 他手当1 （課税） | F6: 他手当2 （課税） | G6: 総支給額 | H6: 社会保険 | K6: 社会保険料控除後の総支給額 | L6: 源泉所得税 | M6: 交通費 手当 （非課税） | N6: その他 調整項目１ （ﾏｲﾅｽ分） | O6: その他 調整項目２ （ﾏｲﾅｽ分） | P6: 差引支給額 | Q6: 備考
H7: 雇用保険 | I7: 健康保険 | J7: 厚生年金
B8: 1 | C8: =IF(' 基本情報 '!C8="","",' 基本情報 '!C8) -> 給与一郎 | D8: 500000 | E8: 50000 | G8: =SUM(D8:F8) -> 550000 | H8: =MAX(IF(' 基本情報 '!F8="○",ROUND((G8+M8)*IF(' 基本情報 '!$D$4="",0,VLOOKUP(' 基本情報 '!$D$4,雇用保険料率!$C:$D,2,0))-0.5,0),0),0) -> 0 | I8: =IF(OR(' 基本情報 '!$D$3="",' 基本情報 '!H8=""),0,HLOOKUP(' 基本情報 '!H8,計算シート!$W$4:$Y$34,ROW(計算シート!W5)-3,0)) -> 32312 | J8: =IF(OR(' 基本情報 '!$D$3="",' 基本情報 '!I8=""),0,HLOOKUP(' 基本情報 '!I8,計算シート!$Z$4:$AB$34,ROW(計算シート!W5)-3,0)) -> 49918 | K8: =MAX(G8-H8-I8-J8,0) -> 467770 | L8: =IF(' 基本情報 '!D8="","",HLOOKUP(' 基本情報 '!D8,計算シート!$E$4:$G$34,ROW(計算シート!E5)-3,0)) -> 15670 | M8: =IF(ISNUMBER(' 基本情報 '!J8),' 基本情報 '!J8,0) -> 13500 | P8: =K8-IF(L8="",0,L8)+M8-N8-O8 -> 465600
B9: 2 | C9: =IF(' 基本情報 '!C9="","",' 基本情報 '!C9) -> 給与二郎 | D9: 300000 | G9: 300000 | H9: =MAX(IF(' 基本情報 '!F9="○",ROUND((G9+M9)*IF(' 基本情報 '!$D$4="",0,VLOOKUP(' 基本情報 '!$D$4,雇用保険料率!$C:$D,2,0))-0.5,0),0),0) -> 1560 | I9: =IF(OR(' 基本情報 '!$D$3="",' 基本情報 '!H9=""),0,HLOOKUP(' 基本情報 '!H9,計算シート!$W$4:$Y$34,ROW(計算シート!W6)-3,0)) -> 14940 | J9: =IF(OR(' 基本情報 '!$D$3="",' 基本情報 '!I9=""),0,HLOOKUP(' 基本情報 '!I9,計算シート!$Z$4:$AB$34,ROW(計算シート!W6)-3,0)) -> 26742 | K9: =MAX(G9-H9-I9-J9,0) -> 256758 | L9: =IF(' 基本情報 '!D9="","",HLOOKUP(' 基本情報 '!D9,計算シート!$E$4:$G$34,ROW(計算シート!E6)-3,0)) -> 5140 | M9: =IF(ISNUMBER(' 基本情報 '!J9),' 基本情報 '!J9,0) -> 12000 | P9: =K9-IF(L9="",0,L9)+M9+N9+O9 -> 263618
B10: 3 | C10: =IF(' 基本情報 '!C10="","",' 基本情報 '!C10) -> 給与三郎 | D10: 150000 | G10: 150000 | H10: =MAX(IF(' 基本情報 '!F10="○",ROUND((G10+M10)*IF(' 基本情報 '!$D$4="",0,VLOOKUP(' 基本情報 '!$D$4,雇用保険料率!$C:$D,2,0))-0.5,0),0),0) -> 0 | I10: =IF(OR(' 基本情報 '!$D$3="",' 基本情報 '!H10=""),0,HLOOKUP(' 基本情報 '!H10,計算シート!$W$4:$Y$34,ROW(計算シート!W7)-3,0)) -> 0 | J10: =IF(OR(' 基本情報 '!$D$3="",' 基本情報 '!I10=""),0,HLOOKUP(' 基本情報 '!I10,計算シート!$Z$4:$AB$34,ROW(計算シート!W7)-3,0)) -> 0 | K10: 150000 | L10: =IF(' 基本情報 '!D10="","",HLOOKUP(' 基本情報 '!D10,計算シート!$E$4:$G$34,ROW(計算シート!E7)-3,0)) -> 8700 | M10: =IF(ISNUMBER(' 基本情報 '!J10),' 基本情報 '!J10,0) -> 5000 | P10: 146300
B11: 4 | C11: =IF(' 基本情報 '!C11="","",' 基本情報 '!C11) ->  | G11: 0 | H11: =MAX(IF(' 基本情報 '!F11="○",ROUND((G11+M11)*IF(' 基本情報 '!$D$4="",0,VLOOKUP(' 基本情報 '!$D$4,雇用保険料率!$C:$D,2,0))-0.5,0),0),0) -> 0 | I11: =IF(OR(' 基本情報 '!$D$3="",' 基本情報 '!H11=""),0,HLOOKUP(' 基本情報 '!H11,計算シート!$W$4:$Y$34,ROW(計算シート!W8)-3,0)) -> 0 | J11: =IF(OR(' 基本情報 '!$D$3="",' 基本情報 '!I11=""),0,HLOOKUP(' 基本情報 '!I11,計算シート!$Z$4:$AB$34,ROW(計算シート!W8)-3,0)) -> 0 | K11: 0 | L11: =IF(' 基本情報 '!D11="","",HLOOKUP(' 基本情報 '!D11,計算シート!$E$4:$G$34,ROW(計算シート!E8)-3,0)) ->  | M11: =IF(ISNUMBER(' 基本情報 '!J11),' 基本情報 '!J11,0) -> 0 | P11: 0
B12: 5 | C12: =IF(' 基本情報 '!C12="","",' 基本情報 '!C12) ->  | G12: 0 | H12: =MAX(IF(' 基本情報 '!F12="○",ROUND((G12+M12)*IF(' 基本情報 '!$D$4="",0,VLOOKUP(' 基本情報 '!$D$4,雇用保険料率!$C:$D,2,0))-0.5,0),0),0) -> 0 | I12: =IF(OR(' 基本情報 '!$D$3="",' 基本情報 '!H12=""),0,HLOOKUP(' 基本情報 '!H12,計算シート!$W$4:$Y$34,ROW(計算シート!W9)-3,0)) -> 0 | J12: =IF(OR(' 基本情報 '!$D$3="",' 基本情報 '!I12=""),0,HLOOKUP(' 基本情報 '!I12,計算シート!$Z$4:$AB$34,ROW(計算シート!W9)-3,0)) -> 0 | K12: 0 | L12: =IF(' 基本情報 '!D12="","",HLOOKUP(' 基本情報 '!D12,計算シート!$E$4:$G$34,ROW(計算シート!E9)-3,0)) ->  | M12: =IF(ISNUMBER(' 基本情報 '!J12),' 基本情報 '!J12,0) -> 0 | P12: 0
B13: 6 | C13: =IF(' 基本情報 '!C13="","",' 基本情報 '!C13) ->  | G13: 0 | H13: =MAX(IF(' 基本情報 '!F13="○",ROUND((G13+M13)*IF(' 基本情報 '!$D$4="",0,VLOOKUP(' 基本情報 '!$D$4,雇用保険料率!$C:$D,2,0))-0.5,0),0),0) -> 0 | I13: =IF(OR(' 基本情報 '!$D$3="",' 基本情報 '!H13=""),0,HLOOKUP(' 基本情報 '!H13,計算シート!$W$4:$Y$34,ROW(計算シート!W10)-3,0)) -> 0 | J13: =IF(OR(' 基本情報 '!$D$3="",' 基本情報 '!I13=""),0,HLOOKUP(' 基本情報 '!I13,計算シート!$Z$4:$AB$34,ROW(計算シート!W10)-3,0)) -> 0 | K13: 0 | L13: =IF(' 基本情報 '!D13="","",HLOOKUP(' 基本情報 '!D13,計算シート!$E$4:$G$34,ROW(計算シート!E10)-3,0)) ->  | M13: =IF(ISNUMBER(' 基本情報 '!J13),' 基本情報 '!J13,0) -> 0 | P13: 0
B14: 7 | C14: =IF(' 基本情報 '!C14="","",' 基本情報 '!C14) ->  | G14: 0 | H14: =MAX(IF(' 基本情報 '!F14="○",ROUND((G14+M14)*IF(' 基本情報 '!$D$4="",0,VLOOKUP(' 基本情報 '!$D$4,雇用保険料率!$C:$D,2,0))-0.5,0),0),0) -> 0 | I14: =IF(OR(' 基本情報 '!$D$3="",' 基本情報 '!H14=""),0,HLOOKUP(' 基本情報 '!H14,計算シート!$W$4:$Y$34,ROW(計算シート!W11)-3,0)) -> 0 | J14: =IF(OR(' 基本情報 '!$D$3="",' 基本情報 '!I14=""),0,HLOOKUP(' 基本情報 '!I14,計算シート!$Z$4:$AB$34,ROW(計算シート!W11)-3,0)) -> 0 | K14: 0 | L14: =IF(' 基本情報 '!D14="","",HLOOKUP(' 基本情報 '!D14,計算シート!$E$4:$G$34,ROW(計算シート!E11)-3,0)) ->  | M14: =IF(ISNUMBER(' 基本情報 '!J14),' 基本情報 '!J14,0) -> 0 | P14: 0
B15: 8 | C15: =IF(' 基本情報 '!C15="","",' 基本情報 '!C15) ->  | G15: 0 | H15: =MAX(IF(' 基本情報 '!F15="○",ROUND((G15+M15)*IF(' 基本情報 '!$D$4="",0,VLOOKUP(' 基本情報 '!$D$4,雇用保険料率!$C:$D,2,0))-0.5,0),0),0) -> 0 | I15: =IF(OR(' 基本情報 '!$D$3="",' 基本情報 '!H15=""),0,HLOOKUP(' 基本情報 '!H15,計算シート!$W$4:$Y$34,ROW(計算シート!W12)-3,0)) -> 0 | J15: =IF(OR(' 基本情報 '!$D$3="",' 基本情報 '!I15=""),0,HLOOKUP(' 基本情報 '!I15,計算シート!$Z$4:$AB$34,ROW(計算シート!W12)-3,0)) -> 0 | K15: 0 | L15: =IF(' 基本情報 '!D15="","",HLOOKUP(' 基本情報 '!D15,計算シート!$E$4:$G$34,ROW(計算シート!E12)-3,0)) ->  | M15: =IF(ISNUMBER(' 基本情報 '!J15),' 基本情報 '!J15,0) -> 0 | P15: 0
B16: 9 | C16: =IF(' 基本情報 '!C16="","",' 基本情報 '!C16) ->  | G16: 0 | H16: =MAX(IF(' 基本情報 '!F16="○",ROUND((G16+M16)*IF(' 基本情報 '!$D$4="",0,VLOOKUP(' 基本情報 '!$D$4,雇用保険料率!$C:$D,2,0))-0.5,0),0),0) -> 0 | I16: =IF(OR(' 基本情報 '!$D$3="",' 基本情報 '!H16=""),0,HLOOKUP(' 基本情報 '!H16,計算シート!$W$4:$Y$34,ROW(計算シート!W13)-3,0)) -> 0 | J16: =IF(OR(' 基本情報 '!$D$3="",' 基本情報 '!I16=""),0,HLOOKUP(' 基本情報 '!I16,計算シート!$Z$4:$AB$34,ROW(計算シート!W13)-3,0)) -> 0 | K16: 0 | L16: =IF(' 基本情報 '!D16="","",HLOOKUP(' 基本情報 '!D16,計算シート!$E$4:$G$34,ROW(計算シート!E13)-3,0)) ->  | M16: =IF(ISNUMBER(' 基本情報 '!J16),' 基本情報 '!J16,0) -> 0 | P16: 0
B17: 10 | C17: =IF(' 基本情報 '!C17="","",' 基本情報 '!C17) ->  | G17: 0 | H17: =MAX(IF(' 基本情報 '!F17="○",ROUND((G17+M17)*IF(' 基本情報 '!$D$4="",0,VLOOKUP(' 基本情報 '!$D$4,雇用保険料率!$C:$D,2,0))-0.5,0),0),0) -> 0 | I17: =IF(OR(' 基本情報 '!$D$3="",' 基本情報 '!H17=""),0,HLOOKUP(' 基本情報 '!H17,計算シート!$W$4:$Y$34,ROW(計算シート!W14)-3,0)) -> 0 | J17: =IF(OR(' 基本情報 '!$D$3="",' 基本情報 '!I17=""),0,HLOOKUP(' 基本情報 '!I17,計算シート!$Z$4:$AB$34,ROW(計算シート!W14)-3,0)) -> 0 | K17: 0 | L17: =IF(' 基本情報 '!D17="","",HLOOKUP(' 基本情報 '!D17,計算シート!$E$4:$G$34,ROW(計算シート!E14)-3,0)) ->  | M17: =IF(ISNUMBER(' 基本情報 '!J17),' 基本情報 '!J17,0) -> 0 | P17: 0
B18: 11 | C18: =IF(' 基本情報 '!C18="","",' 基本情報 '!C18) ->  | G18: 0 | H18: =MAX(IF(' 基本情報 '!F18="○",ROUND((G18+M18)*IF(' 基本情報 '!$D$4="",0,VLOOKUP(' 基本情報 '!$D$4,雇用保険料率!$C:$D,2,0))-0.5,0),0),0) -> 0 | I18: =IF(OR(' 基本情報 '!$D$3="",' 基本情報 '!H18=""),0,HLOOKUP(' 基本情報 '!H18,計算シート!$W$4:$Y$34,ROW(計算シート!W15)-3,0)) -> 0 | J18: =IF(OR(' 基本情報 '!$D$3="",' 基本情報 '!I18=""),0,HLOOKUP(' 基本情報 '!I18,計算シート!$Z$4:$AB$34,ROW(計算シート!W15)-3,0)) -> 0 | K18: 0 | L18: =IF(' 基本情報 '!D18="","",HLOOKUP(' 基本情報 '!D18,計算シート!$E$4:$G$34,ROW(計算シート!E15)-3,0)) ->  | M18: =IF(ISNUMBER(' 基本情報 '!J18),' 基本情報 '!J18,0) -> 0 | P18: 0
B19: 12 | C19: =IF(' 基本情報 '!C19="","",' 基本情報 '!C19) ->  | G19: 0 | H19: =MAX(IF(' 基本情報 '!F19="○",ROUND((G19+M19)*IF(' 基本情報 '!$D$4="",0,VLOOKUP(' 基本情報 '!$D$4,雇用保険料率!$C:$D,2,0))-0.5,0),0),0) -> 0 | I19: =IF(OR(' 基本情報 '!$D$3="",' 基本情報 '!H19=""),0,HLOOKUP(' 基本情報 '!H19,計算シート!$W$4:$Y$34,ROW(計算シート!W16)-3,0)) -> 0 | J19: =IF(OR(' 基本情報 '!$D$3="",' 基本情報 '!I19=""),0,HLOOKUP(' 基本情報 '!I19,計算シート!$Z$4:$AB$34,ROW(計算シート!W16)-3,0)) -> 0 | K19: 0 | L19: =IF(' 基本情報 '!D19="","",HLOOKUP(' 基本情報 '!D19,計算シート!$E$4:$G$34,ROW(計算シート!E16)-3,0)) ->  | M19: =IF(ISNUMBER(' 基本情報 '!J19),' 基本情報 '!J19,0) -> 0 | P19: 0
B20: 13 | C20: =IF(' 基本情報 '!C20="","",' 基本情報 '!C20) ->  | G20: 0 | H20: =MAX(IF(' 基本情報 '!F20="○",ROUND((G20+M20)*IF(' 基本情報 '!$D$4="",0,VLOOKUP(' 基本情報 '!$D$4,雇用保険料率!$C:$D,2,0))-0.5,0),0),0) -> 0 | I20: =IF(OR(' 基本情報 '!$D$3="",' 基本情報 '!H20=""),0,HLOOKUP(' 基本情報 '!H20,計算シート!$W$4:$Y$34,ROW(計算シート!W17)-3,0)) -> 0 | J20: =IF(OR(' 基本情報 '!$D$3="",' 基本情報 '!I20=""),0,HLOOKUP(' 基本情報 '!I20,計算シート!$Z$4:$AB$34,ROW(計算シート!W17)-3,0)) -> 0 | K20: 0 | L20: =IF(' 基本情報 '!D20="","",HLOOKUP(' 基本情報 '!D20,計算シート!$E$4:$G$34,ROW(計算シート!E17)-3,0)) ->  | M20: =IF(ISNUMBER(' 基本情報 '!J20),' 基本情報 '!J20,0) -> 0 | P20: 0
B21: 14 | C21: =IF(' 基本情報 '!C21="","",' 基本情報 '!C21) ->  | G21: 0 | H21: =MAX(IF(' 基本情報 '!F21="○",ROUND((G21+M21)*IF(' 基本情報 '!$D$4="",0,VLOOKUP(' 基本情報 '!$D$4,雇用保険料率!$C:$D,2,0))-0.5,0),0),0) -> 0 | I21: =IF(OR(' 基本情報 '!$D$3="",' 基本情報 '!H21=""),0,HLOOKUP(' 基本情報 '!H21,計算シート!$W$4:$Y$34,ROW(計算シート!W18)-3,0)) -> 0 | J21: =IF(OR(' 基本情報 '!$D$3="",' 基本情報 '!I21=""),0,HLOOKUP(' 基本情報 '!I21,計算シート!$Z$4:$AB$34,ROW(計算シート!W18)-3,0)) -> 0 | K21: 0 | L21: =IF(' 基本情報 '!D21="","",HLOOKUP(' 基本情報 '!D21,計算シート!$E$4:$G$34,ROW(計算シート!E18)-3,0)) ->  | M21: =IF(ISNUMBER(' 基本情報 '!J21),' 基本情報 '!J21,0) -> 0 | P21: 0
B22: 15 | C22: =IF(' 基本情報 '!C22="","",' 基本情報 '!C22) ->  | G22: 0 | H22: =MAX(IF(' 基本情報 '!F22="○",ROUND((G22+M22)*IF(' 基本情報 '!$D$4="",0,VLOOKUP(' 基本情報 '!$D$4,雇用保険料率!$C:$D,2,0))-0.5,0),0),0) -> 0 | I22: =IF(OR(' 基本情報 '!$D$3="",' 基本情報 '!H22=""),0,HLOOKUP(' 基本情報 '!H22,計算シート!$W$4:$Y$34,ROW(計算シート!W19)-3,0)) -> 0 | J22: =IF(OR(' 基本情報 '!$D$3="",' 基本情報 '!I22=""),0,HLOOKUP(' 基本情報 '!I22,計算シート!$Z$4:$AB$34,ROW(計算シート!W19)-3,0)) -> 0 | K22: 0 | L22: =IF(' 基本情報 '!D22="","",HLOOKUP(' 基本情報 '!D22,計算シート!$E$4:$G$34,ROW(計算シート!E19)-3,0)) ->  | M22: =IF(ISNUMBER(' 基本情報 '!J22),' 基本情報 '!J22,0) -> 0 | P22: 0
B23: 16 | C23: =IF(' 基本情報 '!C23="","",' 基本情報 '!C23) ->  | G23: 0 | H23: =MAX(IF(' 基本情報 '!F23="○",ROUND((G23+M23)*IF(' 基本情報 '!$D$4="",0,VLOOKUP(' 基本情報 '!$D$4,雇用保険料率!$C:$D,2,0))-0.5,0),0),0) -> 0 | I23: =IF(OR(' 基本情報 '!$D$3="",' 基本情報 '!H23=""),0,HLOOKUP(' 基本情報 '!H23,計算シート!$W$4:$Y$34,ROW(計算シート!W20)-3,0)) -> 0 | J23: =IF(OR(' 基本情報 '!$D$3="",' 基本情報 '!I23=""),0,HLOOKUP(' 基本情報 '!I23,計算シート!$Z$4:$AB$34,ROW(計算シート!W20)-3,0)) -> 0 | K23: 0 | L23: =IF(' 基本情報 '!D23="","",HLOOKUP(' 基本情報 '!D23,計算シート!$E$4:$G$34,ROW(計算シート!E20)-3,0)) ->  | M23: =IF(ISNUMBER(' 基本情報 '!J23),' 基本情報 '!J23,0) -> 0 | P23: 0
B24: 17 | C24: =IF(' 基本情報 '!C24="","",' 基本情報 '!C24) ->  | G24: 0 | H24: =MAX(IF(' 基本情報 '!F24="○",ROUND((G24+M24)*IF(' 基本情報 '!$D$4="",0,VLOOKUP(' 基本情報 '!$D$4,雇用保険料率!$C:$D,2,0))-0.5,0),0),0) -> 0 | I24: =IF(OR(' 基本情報 '!$D$3="",' 基本情報 '!H24=""),0,HLOOKUP(' 基本情報 '!H24,計算シート!$W$4:$Y$34,ROW(計算シート!W21)-3,0)) -> 0 | J24: =IF(OR(' 基本情報 '!$D$3="",' 基本情報 '!I24=""),0,HLOOKUP(' 基本情報 '!I24,計算シート!$Z$4:$AB$34,ROW(計算シート!W21)-3,0)) -> 0 | K24: 0 | L24: =IF(' 基本情報 '!D24="","",HLOOKUP(' 基本情報 '!D24,計算シート!$E$4:$G$34,ROW(計算シート!E21)-3,0)) ->  | M24: =IF(ISNUMBER(' 基本情報 '!J24),' 基本情報 '!J24,0) -> 0 | P24: 0
B25: 18 | C25: =IF(' 基本情報 '!C25="","",' 基本情報 '!C25) ->  | G25: 0 | H25: =MAX(IF(' 基本情報 '!F25="○",ROUND((G25+M25)*IF(' 基本情報 '!$D$4="",0,VLOOKUP(' 基本情報 '!$D$4,雇用保険料率!$C:$D,2,0))-0.5,0),0),0) -> 0 | I25: =IF(OR(' 基本情報 '!$D$3="",' 基本情報 '!H25=""),0,HLOOKUP(' 基本情報 '!H25,計算シート!$W$4:$Y$34,ROW(計算シート!W22)-3,0)) -> 0 | J25: =IF(OR(' 基本情報 '!$D$3="",' 基本情報 '!I25=""),0,HLOOKUP(' 基本情報 '!I25,計算シート!$Z$4:$AB$34,ROW(計算シート!W22)-3,0)) -> 0 | K25: 0 | L25: =IF(' 基本情報 '!D25="","",HLOOKUP(' 基本情報 '!D25,計算シート!$E$4:$G$34,ROW(計算シート!E22)-3,0)) ->  | M25: =IF(ISNUMBER(' 基本情報 '!J25),' 基本情報 '!J25,0) -> 0 | P25: 0
B26: 19 | C26: =IF(' 基本情報 '!C26="","",' 基本情報 '!C26) ->  | G26: 0 | H26: =MAX(IF(' 基本情報 '!F26="○",ROUND((G26+M26)*IF(' 基本情報 '!$D$4="",0,VLOOKUP(' 基本情報 '!$D$4,雇用保険料率!$C:$D,2,0))-0.5,0),0),0) -> 0 | I26: =IF(OR(' 基本情報 '!$D$3="",' 基本情報 '!H26=""),0,HLOOKUP(' 基本情報 '!H26,計算シート!$W$4:$Y$34,ROW(計算シート!W23)-3,0)) -> 0 | J26: =IF(OR(' 基本情報 '!$D$3="",' 基本情報 '!I26=""),0,HLOOKUP(' 基本情報 '!I26,計算シート!$Z$4:$AB$34,ROW(計算シート!W23)-3,0)) -> 0 | K26: 0 | L26: =IF(' 基本情報 '!D26="","",HLOOKUP(' 基本情報 '!D26,計算シート!$E$4:$G$34,ROW(計算シート!E23)-3,0)) ->  | M26: =IF(ISNUMBER(' 基本情報 '!J26),' 基本情報 '!J26,0) -> 0 | P26: 0
B27: 20 | C27: =IF(' 基本情報 '!C27="","",' 基本情報 '!C27) ->  | G27: 0 | H27: =MAX(IF(' 基本情報 '!F27="○",ROUND((G27+M27)*IF(' 基本情報 '!$D$4="",0,VLOOKUP(' 基本情報 '!$D$4,雇用保険料率!$C:$D,2,0))-0.5,0),0),0) -> 0 | I27: =IF(OR(' 基本情報 '!$D$3="",' 基本情報 '!H27=""),0,HLOOKUP(' 基本情報 '!H27,計算シート!$W$4:$Y$34,ROW(計算シート!W24)-3,0)) -> 0 | J27: =IF(OR(' 基本情報 '!$D$3="",' 基本情報 '!I27=""),0,HLOOKUP(' 基本情報 '!I27,計算シート!$Z$4:$AB$34,ROW(計算シート!W24)-3,0)) -> 0 | K27: 0 | L27: =IF(' 基本情報 '!D27="","",HLOOKUP(' 基本情報 '!D27,計算シート!$E$4:$G$34,ROW(計算シート!E24)-3,0)) ->  | M27: =IF(ISNUMBER(' 基本情報 '!J27),' 基本情報 '!J27,0) -> 0 | P27: 0
B28: 21 | C28: =IF(' 基本情報 '!C28="","",' 基本情報 '!C28) ->  | G28: 0 | H28: =MAX(IF(' 基本情報 '!F28="○",ROUND((G28+M28)*IF(' 基本情報 '!$D$4="",0,VLOOKUP(' 基本情報 '!$D$4,雇用保険料率!$C:$D,2,0))-0.5,0),0),0) -> 0 | I28: =IF(OR(' 基本情報 '!$D$3="",' 基本情報 '!H28=""),0,HLOOKUP(' 基本情報 '!H28,計算シート!$W$4:$Y$34,ROW(計算シート!W25)-3,0)) -> 0 | J28: =IF(OR(' 基本情報 '!$D$3="",' 基本情報 '!I28=""),0,HLOOKUP(' 基本情報 '!I28,計算シート!$Z$4:$AB$34,ROW(計算シート!W25)-3,0)) -> 0 | K28: 0 | L28: =IF(' 基本情報 '!D28="","",HLOOKUP(' 基本情報 '!D28,計算シート!$E$4:$G$34,ROW(計算シート!E25)-3,0)) ->  | M28: =IF(ISNUMBER(' 基本情報 '!J28),' 基本情報 '!J28,0) -> 0 | P28: 0
B29: 22 | C29: =IF(' 基本情報 '!C29="","",' 基本情報 '!C29) ->  | G29: 0 | H29: =MAX(IF(' 基本情報 '!F29="○",ROUND((G29+M29)*IF(' 基本情報 '!$D$4="",0,VLOOKUP(' 基本情報 '!$D$4,雇用保険料率!$C:$D,2,0))-0.5,0),0),0) -> 0 | I29: =IF(OR(' 基本情報 '!$D$3="",' 基本情報 '!H29=""),0,HLOOKUP(' 基本情報 '!H29,計算シート!$W$4:$Y$34,ROW(計算シート!W26)-3,0)) -> 0 | J29: =IF(OR(' 基本情報 '!$D$3="",' 基本情報 '!I29=""),0,HLOOKUP(' 基本情報 '!I29,計算シート!$Z$4:$AB$34,ROW(計算シート!W26)-3,0)) -> 0 | K29: 0 | L29: =IF(' 基本情報 '!D29="","",HLOOKUP(' 基本情報 '!D29,計算シート!$E$4:$G$34,ROW(計算シート!E26)-3,0)) ->  | M29: =IF(ISNUMBER(' 基本情報 '!J29),' 基本情報 '!J29,0) -> 0 | P29: 0
B30: 23 | C30: =IF(' 基本情報 '!C30="","",' 基本情報 '!C30) ->  | G30: 0 | H30: =MAX(IF(' 基本情報 '!F30="○",ROUND((G30+M30)*IF(' 基本情報 '!$D$4="",0,VLOOKUP(' 基本情報 '!$D$4,雇用保険料率!$C:$D,2,0))-0.5,0),0),0) -> 0 | I30: =IF(OR(' 基本情報 '!$D$3="",' 基本情報 '!H30=""),0,HLOOKUP(' 基本情報 '!H30,計算シート!$W$4:$Y$34,ROW(計算シート!W27)-3,0)) -> 0 | J30: =IF(OR(' 基本情報 '!$D$3="",' 基本情報 '!I30=""),0,HLOOKUP(' 基本情報 '!I30,計算シート!$Z$4:$AB$34,ROW(計算シート!W27)-3,0)) -> 0 | K30: 0 | L30: =IF(' 基本情報 '!D30="","",HLOOKUP(' 基本情報 '!D30,計算シート!$E$4:$G$34,ROW(計算シート!E27)-3,0)) ->  | M30: =IF(ISNUMBER(' 基本情報 '!J30),' 基本情報 '!J30,0) -> 0 | P30: 0
B31: 24 | C31: =IF(' 基本情報 '!C31="","",' 基本情報 '!C31) ->  | G31: 0 | H31: =MAX(IF(' 基本情報 '!F31="○",ROUND((G31+M31)*IF(' 基本情報 '!$D$4="",0,VLOOKUP(' 基本情報 '!$D$4,雇用保険料率!$C:$D,2,0))-0.5,0),0),0) -> 0 | I31: =IF(OR(' 基本情報 '!$D$3="",' 基本情報 '!H31=""),0,HLOOKUP(' 基本情報 '!H31,計算シート!$W$4:$Y$34,ROW(計算シート!W28)-3,0)) -> 0 | J31: =IF(OR(' 基本情報 '!$D$3="",' 基本情報 '!I31=""),0,HLOOKUP(' 基本情報 '!I31,計算シート!$Z$4:$AB$34,ROW(計算シート!W28)-3,0)) -> 0 | K31: 0 | L31: =IF(' 基本情報 '!D31="","",HLOOKUP(' 基本情報 '!D31,計算シート!$E$4:$G$34,ROW(計算シート!E28)-3,0)) ->  | M31: =IF(ISNUMBER(' 基本情報 '!J31),' 基本情報 '!J31,0) -> 0 | P31: 0
B32: 25 | C32: =IF(' 基本情報 '!C32="","",' 基本情報 '!C32) ->  | G32: 0 | H32: =MAX(IF(' 基本情報 '!F32="○",ROUND((G32+M32)*IF(' 基本情報 '!$D$4="",0,VLOOKUP(' 基本情報 '!$D$4,雇用保険料率!$C:$D,2,0))-0.5,0),0),0) -> 0 | I32: =IF(OR(' 基本情報 '!$D$3="",' 基本情報 '!H32=""),0,HLOOKUP(' 基本情報 '!H32,計算シート!$W$4:$Y$34,ROW(計算シート!W29)-3,0)) -> 0 | J32: =IF(OR(' 基本情報 '!$D$3="",' 基本情報 '!I32=""),0,HLOOKUP(' 基本情報 '!I32,計算シート!$Z$4:$AB$34,ROW(計算シート!W29)-3,0)) -> 0 | K32: 0 | L32: =IF(' 基本情報 '!D32="","",HLOOKUP(' 基本情報 '!D32,計算シート!$E$4:$G$34,ROW(計算シート!E29)-3,0)) ->  | M32: =IF(ISNUMBER(' 基本情報 '!J32),' 基本情報 '!J32,0) -> 0 | P32: 0
B33: 26 | C33: =IF(' 基本情報 '!C33="","",' 基本情報 '!C33) ->  | G33: 0 | H33: =MAX(IF(' 基本情報 '!F33="○",ROUND((G33+M33)*IF(' 基本情報 '!$D$4="",0,VLOOKUP(' 基本情報 '!$D$4,雇用保険料率!$C:$D,2,0))-0.5,0),0),0) -> 0 | I33: =IF(OR(' 基本情報 '!$D$3="",' 基本情報 '!H33=""),0,HLOOKUP(' 基本情報 '!H33,計算シート!$W$4:$Y$34,ROW(計算シート!W30)-3,0)) -> 0 | J33: =IF(OR(' 基本情報 '!$D$3="",' 基本情報 '!I33=""),0,HLOOKUP(' 基本情報 '!I33,計算シート!$Z$4:$AB$34,ROW(計算シート!W30)-3,0)) -> 0 | K33: 0 | L33: =IF(' 基本情報 '!D33="","",HLOOKUP(' 基本情報 '!D33,計算シート!$E$4:$G$34,ROW(計算シート!E30)-3,0)) ->  | M33: =IF(ISNUMBER(' 基本情報 '!J33),' 基本情報 '!J33,0) -> 0 | P33: 0
B34: 27 | C34: =IF(' 基本情報 '!C34="","",' 基本情報 '!C34) ->  | G34: 0 | H34: =MAX(IF(' 基本情報 '!F34="○",ROUND((G34+M34)*IF(' 基本情報 '!$D$4="",0,VLOOKUP(' 基本情報 '!$D$4,雇用保険料率!$C:$D,2,0))-0.5,0),0),0) -> 0 | I34: =IF(OR(' 基本情報 '!$D$3="",' 基本情報 '!H34=""),0,HLOOKUP(' 基本情報 '!H34,計算シート!$W$4:$Y$34,ROW(計算シート!W31)-3,0)) -> 0 | J34: =IF(OR(' 基本情報 '!$D$3="",' 基本情報 '!I34=""),0,HLOOKUP(' 基本情報 '!I34,計算シート!$Z$4:$AB$34,ROW(計算シート!W31)-3,0)) -> 0 | K34: 0 | L34: =IF(' 基本情報 '!D34="","",HLOOKUP(' 基本情報 '!D34,計算シート!$E$4:$G$34,ROW(計算シート!E31)-3,0)) ->  | M34: =IF(ISNUMBER(' 基本情報 '!J34),' 基本情報 '!J34,0) -> 0 | P34: 0
B35: 28 | C35: =IF(' 基本情報 '!C35="","",' 基本情報 '!C35) ->  | G35: 0 | H35: =MAX(IF(' 基本情報 '!F35="○",ROUND((G35+M35)*IF(' 基本情報 '!$D$4="",0,VLOOKUP(' 基本情報 '!$D$4,雇用保険料率!$C:$D,2,0))-0.5,0),0),0) -> 0 | I35: =IF(OR(' 基本情報 '!$D$3="",' 基本情報 '!H35=""),0,HLOOKUP(' 基本情報 '!H35,計算シート!$W$4:$Y$34,ROW(計算シート!W32)-3,0)) -> 0 | J35: =IF(OR(' 基本情報 '!$D$3="",' 基本情報 '!I35=""),0,HLOOKUP(' 基本情報 '!I35,計算シート!$Z$4:$AB$34,ROW(計算シート!W32)-3,0)) -> 0 | K35: 0 | L35: =IF(' 基本情報 '!D35="","",HLOOKUP(' 基本情報 '!D35,計算シート!$E$4:$G$34,ROW(計算シート!E32)-3,0)) ->  | M35: =IF(ISNUMBER(' 基本情報 '!J35),' 基本情報 '!J35,0) -> 0 | P35: 0
B36: 29 | C36: =IF(' 基本情報 '!C36="","",' 基本情報 '!C36) ->  | G36: 0 | H36: =MAX(IF(' 基本情報 '!F36="○",ROUND((G36+M36)*IF(' 基本情報 '!$D$4="",0,VLOOKUP(' 基本情報 '!$D$4,雇用保険料率!$C:$D,2,0))-0.5,0),0),0) -> 0 | I36: =IF(OR(' 基本情報 '!$D$3="",' 基本情報 '!H36=""),0,HLOOKUP(' 基本情報 '!H36,計算シート!$W$4:$Y$34,ROW(計算シート!W33)-3,0)) -> 0 | J36: =IF(OR(' 基本情報 '!$D$3="",' 基本情報 '!I36=""),0,HLOOKUP(' 基本情報 '!I36,計算シート!$Z$4:$AB$34,ROW(計算シート!W33)-3,0)) -> 0 | K36: 0 | L36: =IF(' 基本情報 '!D36="","",HLOOKUP(' 基本情報 '!D36,計算シート!$E$4:$G$34,ROW(計算シート!E33)-3,0)) ->  | M36: =IF(ISNUMBER(' 基本情報 '!J36),' 基本情報 '!J36,0) -> 0 | P36: 0
B37: 30 | C37: =IF(' 基本情報 '!C37="","",' 基本情報 '!C37) ->  | G37: 0 | H37: =MAX(IF(' 基本情報 '!F37="○",ROUND((G37+M37)*IF(' 基本情報 '!$D$4="",0,VLOOKUP(' 基本情報 '!$D$4,雇用保険料率!$C:$D,2,0))-0.5,0),0),0) -> 0 | I37: =IF(OR(' 基本情報 '!$D$3="",' 基本情報 '!H37=""),0,HLOOKUP(' 基本情報 '!H37,計算シート!$W$4:$Y$34,ROW(計算シート!W34)-3,0)) -> 0 | J37: =IF(OR(' 基本情報 '!$D$3="",' 基本情報 '!I37=""),0,HLOOKUP(' 基本情報 '!I37,計算シート!$Z$4:$AB$34,ROW(計算シート!W34)-3,0)) -> 0 | K37: 0 | L37: =IF(' 基本情報 '!D37="","",HLOOKUP(' 基本情報 '!D37,計算シート!$E$4:$G$34,ROW(計算シート!E34)-3,0)) ->  | M37: =IF(ISNUMBER(' 基本情報 '!J37),' 基本情報 '!J37,0) -> 0 | P37: 0

Sheet 賞与計算
B2: =' 基本情報 '!D2 -> ○○年○○月 | E2: ※シートの保護は解除できます。
B3: 賞与計算 | E3: 合計 | F3: =F6 -> 賞与金額 | G3: =G7 -> 雇用保険 | H3: =H7 -> 健康保険 | I3: =I7 -> 厚生年金 | J3: =J6 -> 社会保険料控除後の総支給額 | K3: =K6 -> 源泉所得税 | L3: =L6 -> 差引支給額
F4: =SUM(F8:F37) -> 950000 | G4: =SUM(G8:G37) -> 1750 | H4: 46280 | I4: 75769 | J4: 826201 | K4: 83421 | L4: 742780
B6: NO. | C6: 名前 | D6: 前月の社会保険料控除後の給与 | E6: 税率 | F6: 賞与金額 | G6: 社会保険 | J6: 社会保険料控除後の総支給額 | K6: 源泉所得税 | L6: 差引支給額 | M6: 備考
G7: 雇用保険 | H7: 健康保険 | I7: 厚生年金
B8: 1 | C8: =IF(' 基本情報 '!C8="","",' 基本情報 '!C8) -> 給与一郎 | D8: 465916 | E8: =IF(D8="",0,IF(' 基本情報 '!D8="",0,IF(' 基本情報 '!D8="甲欄",IF(' 基本情報 '!E8>7,計算シート!U5,HLOOKUP(' 基本情報 '!E8,計算シート!$N$4:$V$34,ROW(計算シート!N5)-3,0))&"%",計算シート!V5&"%"))) -> 14.294% | F8: 500000 | G8: =MAX(IF(' 基本情報 '!F8="○",ROUND((F8)*IF(' 基本情報 '!$D$4="",0,VLOOKUP(' 基本情報 '!$D$4,雇用保険料率!$C:$D,2,0))-0.5,0),0),0) -> 0 | H8: =IF(OR(' 基本情報 '!$D$3="",' 基本情報 '!H8=""),0,HLOOKUP(' 基本情報 '!H8,計算シート!$AE$4:$AG$34,ROW(計算シート!AE5)-3,0)) -> 28850 | I8: =IF(OR(' 基本情報 '!$D$3="",' 基本情報 '!I8=""),0,HLOOKUP(' 基本情報 '!I8,計算シート!$AH$4:$AJ$34,ROW(計算シート!AE5)-3,0)) -> 44570 | J8: =F8-G8-H8-I8 -> 426580 | K8: =IF(D8="","",ROUNDDOWN(E8*J8,0)) -> 60975 | L8: =J8-IF(K8="",0,K8) -> 365605
B9: 2 | C9: =IF(' 基本情報 '!C9="","",' 基本情報 '!C9) -> 給与二郎 | D9: 257274 | E9: =IF(D9="",0,IF(' 基本情報 '!D9="",0,IF(' 基本情報 '!D9="甲欄",IF(' 基本情報 '!E9>7,計算シート!U6,HLOOKUP(' 基本情報 '!E9,計算シート!$N$4:$V$34,ROW(計算シート!N6)-3,0))&"%",計算シート!V6&"%"))) -> 4.084% | F9: 350000 | G9: =MAX(IF(' 基本情報 '!F9="○",ROUND((F9)*IF(' 基本情報 '!$D$4="",0,VLOOKUP(' 基本情報 '!$D$4,雇用保険料率!$C:$D,2,0))-0.5,0),0),0) -> 1750 | H9: =IF(OR(' 基本情報 '!$D$3="",' 基本情報 '!H9=""),0,HLOOKUP(' 基本情報 '!H9,計算シート!$AE$4:$AG$34,ROW(計算シート!AE6)-3,0)) -> 17430 | I9: =IF(OR(' 基本情報 '!$D$3="",' 基本情報 '!I9=""),0,HLOOKUP(' 基本情報 '!I9,計算シート!$AH$4:$AJ$34,ROW(計算シート!AE6)-3,0)) -> 31199 | J9: 299621 | K9: 12236 | L9: =J9-IF(K9="",0,K9) -> 287385
B10: 3 | C10: =IF(' 基本情報 '!C10="","",' 基本情報 '!C10) -> 給与三郎 | D10: 150000 | E10: =IF(D10="",0,IF(' 基本情報 '!D10="",0,IF(' 基本情報 '!D10="甲欄",IF(' 基本情報 '!E10>7,計算シート!U7,HLOOKUP(' 基本情報 '!E10,計算シート!$N$4:$V$34,ROW(計算シート!N7)-3,0))&"%",計算シート!V7&"%"))) -> 10.21% | F10: 100000 | G10: =MAX(IF(' 基本情報 '!F10="○",ROUND((F10)*IF(' 基本情報 '!$D$4="",0,VLOOKUP(' 基本情報 '!$D$4,雇用保険料率!$C:$D,2,0))-0.5,0),0),0) -> 0 | H10: =IF(OR(' 基本情報 '!$D$3="",' 基本情報 '!H10=""),0,HLOOKUP(' 基本情報 '!H10,計算シート!$AE$4:$AG$34,ROW(計算シート!AE7)-3,0)) -> 0 | I10: =IF(OR(' 基本情報 '!$D$3="",' 基本情報 '!I10=""),0,HLOOKUP(' 基本情報 '!I10,計算シート!$AH$4:$AJ$34,ROW(計算シート!AE7)-3,0)) -> 0 | J10: 100000 | K10: 10210 | L10: 89790
B11: 4 | C11: =IF(' 基本情報 '!C11="","",' 基本情報 '!C11) ->  | E11: =IF(D11="",0,IF(' 基本情報 '!D11="",0,IF(' 基本情報 '!D11="甲欄",IF(' 基本情報 '!E11>7,計算シート!U8,HLOOKUP(' 基本情報 '!E11,計算シート!$N$4:$V$34,ROW(計算シート!N8)-3,0))&"%",計算シート!V8&"%"))) -> 0 | G11: =MAX(IF(' 基本情報 '!F11="○",ROUND((F11)*IF(' 基本情報 '!$D$4="",0,VLOOKUP(' 基本情報 '!$D$4,雇用保険料率!$C:$D,2,0))-0.5,0),0),0) -> 0 | H11: =IF(OR(' 基本情報 '!$D$3="",' 基本情報 '!H11=""),0,HLOOKUP(' 基本情報 '!H11,計算シート!$AE$4:$AG$34,ROW(計算シート!AE8)-3,0)) -> 0 | I11: =IF(OR(' 基本情報 '!$D$3="",' 基本情報 '!I11=""),0,HLOOKUP(' 基本情報 '!I11,計算シート!$AH$4:$AJ$34,ROW(計算シート!AE8)-3,0)) -> 0 | J11: 0 | L11: 0
B12: 5 | C12: =IF(' 基本情報 '!C12="","",' 基本情報 '!C12) ->  | E12: =IF(D12="",0,IF(' 基本情報 '!D12="",0,IF(' 基本情報 '!D12="甲欄",IF(' 基本情報 '!E12>7,計算シート!U9,HLOOKUP(' 基本情報 '!E12,計算シート!$N$4:$V$34,ROW(計算シート!N9)-3,0))&"%",計算シート!V9&"%"))) -> 0 | G12: =MAX(IF(' 基本情報 '!F12="○",ROUND((F12)*IF(' 基本情報 '!$D$4="",0,VLOOKUP(' 基本情報 '!$D$4,雇用保険料率!$C:$D,2,0))-0.5,0),0),0) -> 0 | H12: =IF(OR(' 基本情報 '!$D$3="",' 基本情報 '!H12=""),0,HLOOKUP(' 基本情報 '!H12,計算シート!$AE$4:$AG$34,ROW(計算シート!AE9)-3,0)) -> 0 | I12: =IF(OR(' 基本情報 '!$D$3="",' 基本情報 '!I12=""),0,HLOOKUP(' 基本情報 '!I12,計算シート!$AH$4:$AJ$34,ROW(計算シート!AE9)-3,0)) -> 0 | J12: 0 | L12: 0
B13: 6 | C13: =IF(' 基本情報 '!C13="","",' 基本情報 '!C13) ->  | E13: =IF(D13="",0,IF(' 基本情報 '!D13="",0,IF(' 基本情報 '!D13="甲欄",IF(' 基本情報 '!E13>7,計算シート!U10,HLOOKUP(' 基本情報 '!E13,計算シート!$N$4:$V$34,ROW(計算シート!N10)-3,0))&"%",計算シート!V10&"%"))) -> 0 | G13: =MAX(IF(' 基本情報 '!F13="○",ROUND((F13)*IF(' 基本情報 '!$D$4="",0,VLOOKUP(' 基本情報 '!$D$4,雇用保険料率!$C:$D,2,0))-0.5,0),0),0) -> 0 | H13: =IF(OR(' 基本情報 '!$D$3="",' 基本情報 '!H13=""),0,HLOOKUP(' 基本情報 '!H13,計算シート!$AE$4:$AG$34,ROW(計算シート!AE10)-3,0)) -> 0 | I13: =IF(OR(' 基本情報 '!$D$3="",' 基本情報 '!I13=""),0,HLOOKUP(' 基本情報 '!I13,計算シート!$AH$4:$AJ$34,ROW(計算シート!AE10)-3,0)) -> 0 | J13: 0 | L13: 0
B14: 7 | C14: =IF(' 基本情報 '!C14="","",' 基本情報 '!C14) ->  | E14: =IF(D14="",0,IF(' 基本情報 '!D14="",0,IF(' 基本情報 '!D14="甲欄",IF(' 基本情報 '!E14>7,計算シート!U11,HLOOKUP(' 基本情報 '!E14,計算シート!$N$4:$V$34,ROW(計算シート!N11)-3,0))&"%",計算シート!V11&"%"))) -> 0 | G14: =MAX(IF(' 基本情報 '!F14="○",ROUND((F14)*IF(' 基本情報 '!$D$4="",0,VLOOKUP(' 基本情報 '!$D$4,雇用保険料率!$C:$D,2,0))-0.5,0),0),0) -> 0 | H14: =IF(OR(' 基本情報 '!$D$3="",' 基本情報 '!H14=""),0,HLOOKUP(' 基本情報 '!H14,計算シート!$AE$4:$AG$34,ROW(計算シート!AE11)-3,0)) -> 0 | I14: =IF(OR(' 基本情報 '!$D$3="",' 基本情報 '!I14=""),0,HLOOKUP(' 基本情報 '!I14,計算シート!$AH$4:$AJ$34,ROW(計算シート!AE11)-3,0)) -> 0 | J14: 0 | L14: 0
B15: 8 | C15: =IF(' 基本情報 '!C15="","",' 基本情報 '!C15) ->  | E15: =IF(D15="",0,IF(' 基本情報 '!D15="",0,IF(' 基本情報 '!D15="甲欄",IF(' 基本情報 '!E15>7,計算シート!U12,HLOOKUP(' 基本情報 '!E15,計算シート!$N$4:$V$34,ROW(計算シート!N12)-3,0))&"%",計算シート!V12&"%"))) -> 0 | G15: =MAX(IF(' 基本情報 '!F15="○",ROUND((F15)*IF(' 基本情報 '!$D$4="",0,VLOOKUP(' 基本情報 '!$D$4,雇用保険料率!$C:$D,2,0))-0.5,0),0),0) -> 0 | H15: =IF(OR(' 基本情報 '!$D$3="",' 基本情報 '!H15=""),0,HLOOKUP(' 基本情報 '!H15,計算シート!$AE$4:$AG$34,ROW(計算シート!AE12)-3,0)) -> 0 | I15: =IF(OR(' 基本情報 '!$D$3="",' 基本情報 '!I15=""),0,HLOOKUP(' 基本情報 '!I15,計算シート!$AH$4:$AJ$34,ROW(計算シート!AE12)-3,0)) -> 0 | J15: 0 | L15: 0
B16: 9 | C16: =IF(' 基本情報 '!C16="","",' 基本情報 '!C16) ->  | E16: =IF(D16="",0,IF(' 基本情報 '!D16="",0,IF(' 基本情報 '!D16="甲欄",IF(' 基本情報 '!E16>7,計算シート!U13,HLOOKUP(' 基本情報 '!E16,計算シート!$N$4:$V$34,ROW(計算シート!N13)-3,0))&"%",計算シート!V13&"%"))) -> 0 | G16: =MAX(IF(' 基本情報 '!F16="○",ROUND((F16)*IF(' 基本情報 '!$D$4="",0,VLOOKUP(' 基本情報 '!$D$4,雇用保険料率!$C:$D,2,0))-0.5,0),0),0) -> 0 | H16: =IF(OR(' 基本情報 '!$D$3="",' 基本情報 '!H16=""),0,HLOOKUP(' 基本情報 '!H16,計算シート!$AE$4:$AG$34,ROW(計算シート!AE13)-3,0)) -> 0 | I16: =IF(OR(' 基本情報 '!$D$3="",' 基本情報 '!I16=""),0,HLOOKUP(' 基本情報 '!I16,計算シート!$AH$4:$AJ$34,ROW(計算シート!AE13)-3,0)) -> 0 | J16: 0 | L16: 0
B17: 10 | C17: =IF(' 基本情報 '!C17="","",' 基本情報 '!C17) ->  | E17: =IF(D17="",0,IF(' 基本情報 '!D17="",0,IF(' 基本情報 '!D17="甲欄",IF(' 基本情報 '!E17>7,計算シート!U14,HLOOKUP(' 基本情報 '!E17,計算シート!$N$4:$V$34,ROW(計算シート!N14)-3,0))&"%",計算シート!V14&"%"))) -> 0 | G17: =MAX(IF(' 基本情報 '!F17="○",ROUND((F17)*IF(' 基本情報 '!$D$4="",0,VLOOKUP(' 基本情報 '!$D$4,雇用保険料率!$C:$D,2,0))-0.5,0),0),0) -> 0 | H17: =IF(OR(' 基本情報 '!$D$3="",' 基本情報 '!H17=""),0,HLOOKUP(' 基本情報 '!H17,計算シート!$AE$4:$AG$34,ROW(計算シート!AE14)-3,0)) -> 0 | I17: =IF(OR(' 基本情報 '!$D$3="",' 基本情報 '!I17=""),0,HLOOKUP(' 基本情報 '!I17,計算シート!$AH$4:$AJ$34,ROW(計算シート!AE14)-3,0)) -> 0 | J17: 0 | L17: 0
B18: 11 | C18: =IF(' 基本情報 '!C18="","",' 基本情報 '!C18) ->  | E18: =IF(D18="",0,IF(' 基本情報 '!D18="",0,IF(' 基本情報 '!D18="甲欄",IF(' 基本情報 '!E18>7,計算シート!U15,HLOOKUP(' 基本情報 '!E18,計算シート!$N$4:$V$34,ROW(計算シート!N15)-3,0))&"%",計算シート!V15&"%"))) -> 0 | G18: =MAX(IF(' 基本情報 '!F18="○",ROUND((F18)*IF(' 基本情報 '!$D$4="",0,VLOOKUP(' 基本情報 '!$D$4,雇用保険料率!$C:$D,2,0))-0.5,0),0),0) -> 0 | H18: =IF(OR(' 基本情報 '!$D$3="",' 基本情報 '!H18=""),0,HLOOKUP(' 基本情報 '!H18,計算シート!$AE$4:$AG$34,ROW(計算シート!AE15)-3,0)) -> 0 | I18: =IF(OR(' 基本情報 '!$D$3="",' 基本情報 '!I18=""),0,HLOOKUP(' 基本情報 '!I18,計算シート!$AH$4:$AJ$34,ROW(計算シート!AE15)-3,0)) -> 0 | J18: 0 | L18: 0
B19: 12 | C19: =IF(' 基本情報 '!C19="","",' 基本情報 '!C19) ->  | E19: =IF(D19="",0,IF(' 基本情報 '!D19="",0,IF(' 基本情報 '!D19="甲欄",IF(' 基本情報 '!E19>7,計算シート!U16,HLOOKUP(' 基本情報 '!E19,計算シート!$N$4:$V$34,ROW(計算シート!N16)-3,0))&"%",計算シート!V16&"%"))) -> 0 | G19: =MAX(IF(' 基本情報 '!F19="○",ROUND((F19)*IF(' 基本情報 '!$D$4="",0,VLOOKUP(' 基本情報 '!$D$4,雇用保険料率!$C:$D,2,0))-0.5,0),0),0) -> 0 | H19: =IF(OR(' 基本情報 '!$D$3="",' 基本情報 '!H19=""),0,HLOOKUP(' 基本情報 '!H19,計算シート!$AE$4:$AG$34,ROW(計算シート!AE16)-3,0)) -> 0 | I19: =IF(OR(' 基本情報 '!$D$3="",' 基本情報 '!I19=""),0,HLOOKUP(' 基本情報 '!I19,計算シート!$AH$4:$AJ$34,ROW(計算シート!AE16)-3,0)) -> 0 | J19: 0 | L19: 0
B20: 13 | C20: =IF(' 基本情報 '!C20="","",' 基本情報 '!C20) ->  | E20: =IF(D20="",0,IF(' 基本情報 '!D20="",0,IF(' 基本情報 '!D20="甲欄",IF(' 基本情報 '!E20>7,計算シート!U17,HLOOKUP(' 基本情報 '!E20,計算シート!$N$4:$V$34,ROW(計算シート!N17)-3,0))&"%",計算シート!V17&"%"))) -> 0 | G20: =MAX(IF(' 基本情報 '!F20="○",ROUND((F20)*IF(' 基本情報 '!$D$4="",0,VLOOKUP(' 基本情報 '!$D$4,雇用保険料率!$C:$D,2,0))-0.5,0),0),0) -> 0 | H20: =IF(OR(' 基本情報 '!$D$3="",' 基本情報 '!H20=""),0,HLOOKUP(' 基本情報 '!H20,計算シート!$AE$4:$AG$34,ROW(計算シート!AE17)-3,0)) -> 0 | I20: =IF(OR(' 基本情報 '!$D$3="",' 基本情報 '!I20=""),0,HLOOKUP(' 基本情報 '!I20,計算シート!$AH$4:$AJ$34,ROW(計算シート!AE17)-3,0)) -> 0 | J20: 0 | L20: 0
B21: 14 | C21: =IF(' 基本情報 '!C21="","",' 基本情報 '!C21) ->  | E21: =IF(D21="",0,IF(' 基本情報 '!D21="",0,IF(' 基本情報 '!D21="甲欄",IF(' 基本情報 '!E21>7,計算シート!U18,HLOOKUP(' 基本情報 '!E21,計算シート!$N$4:$V$34,ROW(計算シート!N18)-3,0))&"%",計算シート!V18&"%"))) -> 0 | G21: =MAX(IF(' 基本情報 '!F21="○",ROUND((F21)*IF(' 基本情報 '!$D$4="",0,VLOOKUP(' 基本情報 '!$D$4,雇用保険料率!$C:$D,2,0))-0.5,0),0),0) -> 0 | H21: =IF(OR(' 基本情報 '!$D$3="",' 基本情報 '!H21=""),0,HLOOKUP(' 基本情報 '!H21,計算シート!$AE$4:$AG$34,ROW(計算シート!AE18)-3,0)) -> 0 | I21: =IF(OR(' 基本情報 '!$D$3="",' 基本情報 '!I21=""),0,HLOOKUP(' 基本情報 '!I21,計算シート!$AH$4:$AJ$34,ROW(計算シート!AE18)-3,0)) -> 0 | J21: 0 | L21: 0
B22: 15 | C22: =IF(' 基本情報 '!C22="","",' 基本情報 '!C22) ->  | E22: =IF(D22="",0,IF(' 基本情報 '!D22="",0,IF(' 基本情報 '!D22="甲欄",IF(' 基本情報 '!E22>7,計算シート!U19,HLOOKUP(' 基本情報 '!E22,計算シート!$N$4:$V$34,ROW(計算シート!N19)-3,0))&"%",計算シート!V19&"%"))) -> 0 | G22: =MAX(IF(' 基本情報 '!F22="○",ROUND((F22)*IF(' 基本情報 '!$D$4="",0,VLOOKUP(' 基本情報 '!$D$4,雇用保険料率!$C:$D,2,0))-0.5,0),0),0) -> 0 | H22: =IF(OR(' 基本情報 '!$D$3="",' 基本情報 '!H22=""),0,HLOOKUP(' 基本情報 '!H22,計算シート!$AE$4:$AG$34,ROW(計算シート!AE19)-3,0)) -> 0 | I22: =IF(OR(' 基本情報 '!$D$3="",' 基本情報 '!I22=""),0,HLOOKUP(' 基本情報 '!I22,計算シート!$AH$4:$AJ$34,ROW(計算シート!AE19)-3,0)) -> 0 | J22: 0 | L22: 0
B23: 16 | C23: =IF(' 基本情報 '!C23="","",' 基本情報 '!C23) ->  | E23: =IF(D23="",0,IF(' 基本情報 '!D23="",0,IF(' 基本情報 '!D23="甲欄",IF(' 基本情報 '!E23>7,計算シート!U20,HLOOKUP(' 基本情報 '!E23,計算シート!$N$4:$V$34,ROW(計算シート!N20)-3,0))&"%",計算シート!V20&"%"))) -> 0 | G23: =MAX(IF(' 基本情報 '!F23="○",ROUND((F23)*IF(' 基本情報 '!$D$4="",0,VLOOKUP(' 基本情報 '!$D$4,雇用保険料率!$C:$D,2,0))-0.5,0),0),0) -> 0 | H23: =IF(OR(' 基本情報 '!$D$3="",' 基本情報 '!H23=""),0,HLOOKUP(' 基本情報 '!H23,計算シート!$AE$4:$AG$34,ROW(計算シート!AE20)-3,0)) -> 0 | I23: =IF(OR(' 基本情報 '!$D$3="",' 基本情報 '!I23=""),0,HLOOKUP(' 基本情報 '!I23,計算シート!$AH$4:$AJ$34,ROW(計算シート!AE20)-3,0)) -> 0 | J23: 0 | L23: 0
B24: 17 | C24: =IF(' 基本情報 '!C24="","",' 基本情報 '!C24) ->  | E24: =IF(D24="",0,IF(' 基本情報 '!D24="",0,IF(' 基本情報 '!D24="甲欄",IF(' 基本情報 '!E24>7,計算シート!U21,HLOOKUP(' 基本情報 '!E24,計算シート!$N$4:$V$34,ROW(計算シート!N21)-3,0))&"%",計算シート!V21&"%"))) -> 0 | G24: =MAX(IF(' 基本情報 '!F24="○",ROUND((F24)*IF(' 基本情報 '!$D$4="",0,VLOOKUP(' 基本情報 '!$D$4,雇用保険料率!$C:$D,2,0))-0.5,0),0),0) -> 0 | H24: =IF(OR(' 基本情報 '!$D$3="",' 基本情報 '!H24=""),0,HLOOKUP(' 基本情報 '!H24,計算シート!$AE$4:$AG$34,ROW(計算シート!AE21)-3,0)) -> 0 | I24: =IF(OR(' 基本情報 '!$D$3="",' 基本情報 '!I24=""),0,HLOOKUP(' 基本情報 '!I24,計算シート!$AH$4:$AJ$34,ROW(計算シート!AE21)-3,0)) -> 0 | J24: 0 | L24: 0
B25: 18 | C25: =IF(' 基本情報 '!C25="","",' 基本情報 '!C25) ->  | E25: =IF(D25="",0,IF(' 基本情報 '!D25="",0,IF(' 基本情報 '!D25="甲欄",IF(' 基本情報 '!E25>7,計算シート!U22,HLOOKUP(' 基本情報 '!E25,計算シート!$N$4:$V$34,ROW(計算シート!N22)-3,0))&"%",計算シート!V22&"%"))) -> 0 | G25: =MAX(IF(' 基本情報 '!F25="○",ROUND((F25)*IF(' 基本情報 '!$D$4="",0,VLOOKUP(' 基本情報 '!$D$4,雇用保険料率!$C:$D,2,0))-0.5,0),0),0) -> 0 | H25: =IF(OR(' 基本情報 '!$D$3="",' 基本情報 '!H25=""),0,HLOOKUP(' 基本情報 '!H25,計算シート!$AE$4:$AG$34,ROW(計算シート!AE22)-3,0)) -> 0 | I25: =IF(OR(' 基本情報 '!$D$3="",' 基本情報 '!I25=""),0,HLOOKUP(' 基本情報 '!I25,計算シート!$AH$4:$AJ$34,ROW(計算シート!AE22)-3,0)) -> 0 | J25: 0 | L25: 0
B26: 19 | C26: =IF(' 基本情報 '!C26="","",' 基本情報 '!C26) ->  | E26: =IF(D26="",0,IF(' 基本情報 '!D26="",0,IF(' 基本情報 '!D26="甲欄",IF(' 基本情報 '!E26>7,計算シート!U23,HLOOKUP(' 基本情報 '!E26,計算シート!$N$4:$V$34,ROW(計算シート!N23)-3,0))&"%",計算シート!V23&"%"))) -> 0 | G26: =MAX(IF(' 基本情報 '!F26="○",ROUND((F26)*IF(' 基本情報 '!$D$4="",0,VLOOKUP(' 基本情報 '!$D$4,雇用保険料率!$C:$D,2,0))-0.5,0),0),0) -> 0 | H26: =IF(OR(' 基本情報 '!$D$3="",' 基本情報 '!H26=""),0,HLOOKUP(' 基本情報 '!H26,計算シート!$AE$4:$AG$34,ROW(計算シート!AE23)-3,0)) -> 0 | I26: =IF(OR(' 基本情報 '!$D$3="",' 基本情報 '!I26=""),0,HLOOKUP(' 基本情報 '!I26,計算シート!$AH$4:$AJ$34,ROW(計算シート!AE23)-3,0)) -> 0 | J26: 0 | L26: 0
B27: 20 | C27: =IF(' 基本情報 '!C27="","",' 基本情報 '!C27) ->  | E27: =IF(D27="",0,IF(' 基本情報 '!D27="",0,IF(' 基本情報 '!D27="甲欄",IF(' 基本情報 '!E27>7,計算シート!U24,HLOOKUP(' 基本情報 '!E27,計算シート!$N$4:$V$34,ROW(計算シート!N24)-3,0))&"%",計算シート!V24&"%"))) -> 0 | G27: =MAX(IF(' 基本情報 '!F27="○",ROUND((F27)*IF(' 基本情報 '!$D$4="",0,VLOOKUP(' 基本情報 '!$D$4,雇用保険料率!$C:$D,2,0))-0.5,0),0),0) -> 0 | H27: =IF(OR(' 基本情報 '!$D$3="",' 基本情報 '!H27=""),0,HLOOKUP(' 基本情報 '!H27,計算シート!$AE$4:$AG$34,ROW(計算シート!AE24)-3,0)) -> 0 | I27: =IF(OR(' 基本情報 '!$D$3="",' 基本情報 '!I27=""),0,HLOOKUP(' 基本情報 '!I27,計算シート!$AH$4:$AJ$34,ROW(計算シート!AE24)-3,0)) -> 0 | J27: 0 | L27: 0
B28: 21 | C28: =IF(' 基本情報 '!C28="","",' 基本情報 '!C28) ->  | E28: =IF(D28="",0,IF(' 基本情報 '!D28="",0,IF(' 基本情報 '!D28="甲欄",IF(' 基本情報 '!E28>7,計算シート!U25,HLOOKUP(' 基本情報 '!E28,計算シート!$N$4:$V$34,ROW(計算シート!N25)-3,0))&"%",計算シート!V25&"%"))) -> 0 | G28: =MAX(IF(' 基本情報 '!F28="○",ROUND((F28)*IF(' 基本情報 '!$D$4="",0,VLOOKUP(' 基本情報 '!$D$4,雇用保険料率!$C:$D,2,0))-0.5,0),0),0) -> 0 | H28: =IF(OR(' 基本情報 '!$D$3="",' 基本情報 '!H28=""),0,HLOOKUP(' 基本情報 '!H28,計算シート!$AE$4:$AG$34,ROW(計算シート!AE25)-3,0)) -> 0 | I28: =IF(OR(' 基本情報 '!$D$3="",' 基本情報 '!I28=""),0,HLOOKUP(' 基本情報 '!I28,計算シート!$AH$4:$AJ$34,ROW(計算シート!AE25)-3,0)) -> 0 | J28: 0 | L28: 0
B29: 22 | C29: =IF(' 基本情報 '!C29="","",' 基本情報 '!C29) ->  | E29: =IF(D29="",0,IF(' 基本情報 '!D29="",0,IF(' 基本情報 '!D29="甲欄",IF(' 基本情報 '!E29>7,計算シート!U26,HLOOKUP(' 基本情報 '!E29,計算シート!$N$4:$V$34,ROW(計算シート!N26)-3,0))&"%",計算シート!V26&"%"))) -> 0 | G29: =MAX(IF(' 基本情報 '!F29="○",ROUND((F29)*IF(' 基本情報 '!$D$4="",0,VLOOKUP(' 基本情報 '!$D$4,雇用保険料率!$C:$D,2,0))-0.5,0),0),0) -> 0 | H29: =IF(OR(' 基本情報 '!$D$3="",' 基本情報 '!H29=""),0,HLOOKUP(' 基本情報 '!H29,計算シート!$AE$4:$AG$34,ROW(計算シート!AE26)-3,0)) -> 0 | I29: =IF(OR(' 基本情報 '!$D$3="",' 基本情報 '!I29=""),0,HLOOKUP(' 基本情報 '!I29,計算シート!$AH$4:$AJ$34,ROW(計算シート!AE26)-3,0)) -> 0 | J29: 0 | L29: 0
B30: 23 | C30: =IF(' 基本情報 '!C30="","",' 基本情報 '!C30) ->  | E30: =IF(D30="",0,IF(' 基本情報 '!D30="",0,IF(' 基本情報 '!D30="甲欄",IF(' 基本情報 '!E30>7,計算シート!U27,HLOOKUP(' 基本情報 '!E30,計算シート!$N$4:$V$34,ROW(計算シート!N27)-3,0))&"%",計算シート!V27&"%"))) -> 0 | G30: =MAX(IF(' 基本情報 '!F30="○",ROUND((F30)*IF(' 基本情報 '!$D$4="",0,VLOOKUP(' 基本情報 '!$D$4,雇用保険料率!$C:$D,2,0))-0.5,0),0),0) -> 0 | H30: =IF(OR(' 基本情報 '!$D$3="",' 基本情報 '!H30=""),0,HLOOKUP(' 基本情報 '!H30,計算シート!$AE$4:$AG$34,ROW(計算シート!AE27)-3,0)) -> 0 | I30: =IF(OR(' 基本情報 '!$D$3="",' 基本情報 '!I30=""),0,HLOOKUP(' 基本情報 '!I30,計算シート!$AH$4:$AJ$34,ROW(計算シート!AE27)-3,0)) -> 0 | J30: 0 | L30: 0
B31: 24 | C31: =IF(' 基本情報 '!C31="","",' 基本情報 '!C31) ->  | E31: =IF(D31="",0,IF(' 基本情報 '!D31="",0,IF(' 基本情報 '!D31="甲欄",IF(' 基本情報 '!E31>7,計算シート!U28,HLOOKUP(' 基本情報 '!E31,計算シート!$N$4:$V$34,ROW(計算シート!N28)-3,0))&"%",計算シート!V28&"%"))) -> 0 | G31: =MAX(IF(' 基本情報 '!F31="○",ROUND((F31)*IF(' 基本情報 '!$D$4="",0,VLOOKUP(' 基本情報 '!$D$4,雇用保険料率!$C:$D,2,0))-0.5,0),0),0) -> 0 | H31: =IF(OR(' 基本情報 '!$D$3="",' 基本情報 '!H31=""),0,HLOOKUP(' 基本情報 '!H31,計算シート!$AE$4:$AG$34,ROW(計算シート!AE28)-3,0)) -> 0 | I31: =IF(OR(' 基本情報 '!$D$3="",' 基本情報 '!I31=""),0,HLOOKUP(' 基本情報 '!I31,計算シート!$AH$4:$AJ$34,ROW(計算シート!AE28)-3,0)) -> 0 | J31: 0 | L31: 0
B32: 25 | C32: =IF(' 基本情報 '!C32="","",' 基本情報 '!C32) ->  | E32: =IF(D32="",0,IF(' 基本情報 '!D32="",0,IF(' 基本情報 '!D32="甲欄",IF(' 基本情報 '!E32>7,計算シート!U29,HLOOKUP(' 基本情報 '!E32,計算シート!$N$4:$V$34,ROW(計算シート!N29)-3,0))&"%",計算シート!V29&"%"))) -> 0 | G32: =MAX(IF(' 基本情報 '!F32="○",ROUND((F32)*IF(' 基本情報 '!$D$4="",0,VLOOKUP(' 基本情報 '!$D$4,雇用保険料率!$C:$D,2,0))-0.5,0),0),0) -> 0 | H32: =IF(OR(' 基本情報 '!$D$3="",' 基本情報 '!H32=""),0,HLOOKUP(' 基本情報 '!H32,計算シート!$AE$4:$AG$34,ROW(計算シート!AE29)-3,0)) -> 0 | I32: =IF(OR(' 基本情報 '!$D$3="",' 基本情報 '!I32=""),0,HLOOKUP(' 基本情報 '!I32,計算シート!$AH$4:$AJ$34,ROW(計算シート!AE29)-3,0)) -> 0 | J32: 0 | L32: 0
B33: 26 | C33: =IF(' 基本情報 '!C33="","",' 基本情報 '!C33) ->  | E33: =IF(D33="",0,IF(' 基本情報 '!D33="",0,IF(' 基本情報 '!D33="甲欄",IF(' 基本情報 '!E33>7,計算シート!U30,HLOOKUP(' 基本情報 '!E33,計算シート!$N$4:$V$34,ROW(計算シート!N30)-3,0))&"%",計算シート!V30&"%"))) -> 0 | G33: =MAX(IF(' 基本情報 '!F33="○",ROUND((F33)*IF(' 基本情報 '!$D$4="",0,VLOOKUP(' 基本情報 '!$D$4,雇用保険料率!$C:$D,2,0))-0.5,0),0),0) -> 0 | H33: =IF(OR(' 基本情報 '!$D$3="",' 基本情報 '!H33=""),0,HLOOKUP(' 基本情報 '!H33,計算シート!$AE$4:$AG$34,ROW(計算シート!AE30)-3,0)) -> 0 | I33: =IF(OR(' 基本情報 '!$D$3="",' 基本情報 '!I33=""),0,HLOOKUP(' 基本情報 '!I33,計算シート!$AH$4:$AJ$34,ROW(計算シート!AE30)-3,0)) -> 0 | J33: 0 | L33: 0
B34: 27 | C34: =IF(' 基本情報 '!C34="","",' 基本情報 '!C34) ->  | E34: =IF(D34="",0,IF(' 基本情報 '!D34="",0,IF(' 基本情報 '!D34="甲欄",IF(' 基本情報 '!E34>7,計算シート!U31,HLOOKUP(' 基本情報 '!E34,計算シート!$N$4:$V$34,ROW(計算シート!N31)-3,0))&"%",計算シート!V31&"%"))) -> 0 | G34: =MAX(IF(' 基本情報 '!F34="○",ROUND((F34)*IF(' 基本情報 '!$D$4="",0,VLOOKUP(' 基本情報 '!$D$4,雇用保険料率!$C:$D,2,0))-0.5,0),0),0) -> 0 | H34: =IF(OR(' 基本情報 '!$D$3="",' 基本情報 '!H34=""),0,HLOOKUP(' 基本情報 '!H34,計算シート!$AE$4:$AG$34,ROW(計算シート!AE31)-3,0)) -> 0 | I34: =IF(OR(' 基本情報 '!$D$3="",' 基本情報 '!I34=""),0,HLOOKUP(' 基本情報 '!I34,計算シート!$AH$4:$AJ$34,ROW(計算シート!AE31)-3,0)) -> 0 | J34: 0 | L34: 0
B35: 28 | C35: =IF(' 基本情報 '!C35="","",' 基本情報 '!C35) ->  | E35: =IF(D35="",0,IF(' 基本情報 '!D35="",0,IF(' 基本情報 '!D35="甲欄",IF(' 基本情報 '!E35>7,計算シート!U32,HLOOKUP(' 基本情報 '!E35,計算シート!$N$4:$V$34,ROW(計算シート!N32)-3,0))&"%",計算シート!V32&"%"))) -> 0 | G35: =MAX(IF(' 基本情報 '!F35="○",ROUND((F35)*IF(' 基本情報 '!$D$4="",0,VLOOKUP(' 基本情報 '!$D$4,雇用保険料率!$C:$D,2,0))-0.5,0),0),0) -> 0 | H35: =IF(OR(' 基本情報 '!$D$3="",' 基本情報 '!H35=""),0,HLOOKUP(' 基本情報 '!H35,計算シート!$AE$4:$AG$34,ROW(計算シート!AE32)-3,0)) -> 0 | I35: =IF(OR(' 基本情報 '!$D$3="",' 基本情報 '!I35=""),0,HLOOKUP(' 基本情報 '!I35,計算シート!$AH$4:$AJ$34,ROW(計算シート!AE32)-3,0)) -> 0 | J35: 0 | L35: 0
B36: 29 | C36: =IF(' 基本情報 '!C36="","",' 基本情報 '!C36) ->  | E36: =IF(D36="",0,IF(' 基本情報 '!D36="",0,IF(' 基本情報 '!D36="甲欄",IF(' 基本情報 '!E36>7,計算シート!U33,HLOOKUP(' 基本情報 '!E36,計算シート!$N$4:$V$34,ROW(計算シート!N33)-3,0))&"%",計算シート!V33&"%"))) -> 0 | G36: =MAX(IF(' 基本情報 '!F36="○",ROUND((F36)*IF(' 基本情報 '!$D$4="",0,VLOOKUP(' 基本情報 '!$D$4,雇用保険料率!$C:$D,2,0))-0.5,0),0),0) -> 0 | H36: =IF(OR(' 基本情報 '!$D$3="",' 基本情報 '!H36=""),0,HLOOKUP(' 基本情報 '!H36,計算シート!$AE$4:$AG$34,ROW(計算シート!AE33)-3,0)) -> 0 | I36: =IF(OR(' 基本情報 '!$D$3="",' 基本情報 '!I36=""),0,HLOOKUP(' 基本情報 '!I36,計算シート!$AH$4:$AJ$34,ROW(計算シート!AE33)-3,0)) -> 0 | J36: 0 | L36: 0
B37: 30 | C37: =IF(' 基本情報 '!C37="","",' 基本情報 '!C37) ->  | E37: =IF(D37="",0,IF(' 基本情報 '!D37="",0,IF(' 基本情報 '!D37="甲欄",IF(' 基本情報 '!E37>7,計算シート!U34,HLOOKUP(' 基本情報 '!E37,計算シート!$N$4:$V$34,ROW(計算シート!N34)-3,0))&"%",計算シート!V34&"%"))) -> 0 | G37: =MAX(IF(' 基本情報 '!F37="○",ROUND((F37)*IF(' 基本情報 '!$D$4="",0,VLOOKUP(' 基本情報 '!$D$4,雇用保険料率!$C:$D,2,0))-0.5,0),0),0) -> 0 | H37: =IF(OR(' 基本情報 '!$D$3="",' 基本情報 '!H37=""),0,HLOOKUP(' 基本情報 '!H37,計算シート!$AE$4:$AG$34,ROW(計算シート!AE34)-3,0)) -> 0 | I37: =IF(OR(' 基本情報 '!$D$3="",' 基本情報 '!I37=""),0,HLOOKUP(' 基本情報 '!I37,計算シート!$AH$4:$AJ$34,ROW(計算シート!AE34)-3,0)) -> 0 | J37: 0 | L37: 0

Sheet 計算シート (hidden)
C3: NO. | D3: 名前 | E3: 源泉徴収税額 | H3: 月額101万円超えた場合の源泉徴収税額（甲欄） | L3: 月額101万円超えた場合の税額表（乙欄) | N3: 賞与税率 | W3: 給与：社会保険（健康保険） | Z3: 給与：社会保険（厚生年金） | AE3: 賞与：社会保険（健康保険) | AH3: 賞与：社会保険（厚生年金）
E4: 甲欄 | F4: 乙欄 | G4: 乙欄（従たる給与についての扶養控除等申告書提出あり） | H4: =税額基本情報!C6 -> 1,010,000円以上 1,720,000円未満 | I4: =税額基本情報!C7 -> 1,720,000円以上 3,560,000円未満 | J4: =税額基本情報!C8 -> 3,560,000円以上 | K4: =税額基本情報!C9 -> 0 | L4: =税額基本情報!C13 -> 1,010,000円以上 1,720,000円未満 | M4: =税額基本情報!C14 -> 1,720,000円以上 | N4: 0 | O4: 1 | P4: 2 | Q4: 3 | R4: 4 | S4: 5 | T4: 6 | U4: 7 | V4: 乙 | W4: =リスト表!E4 -> 無し | X4: =リスト表!E5 -> 介護保険なし | Y4: =リスト表!E6 -> 介護保険あり | Z4: =リスト表!F4 -> 無し | AA4: =リスト表!F5 -> 一般の被保険者 | AB4: =リスト表!F6 -> 坑内員・船員 | AC4: ＜一般の被保険者＞標準報酬月額98,000円未満、650,000円以上の場合 | AD4: ＜坑内員・船員＞標準報酬月額98,000円未満、650,000円以上の場合 | AE4: =リスト表!E4 -> 無し | AF4: =リスト表!E5 -> 介護保険なし | AG4: =リスト表!E6 -> 介護保険あり | AH4: =リスト表!F4 -> 無し | AI4: =リスト表!F5 -> 一般の被保険者 | AJ4: =リスト表!F6 -> 坑内員・船員
C5: 1 | D5: =' 給与計算 '!C8 -> 給与一郎 | E5: =MAX(IF(' 給与計算 '!K8>=税額基本情報!$D$6,MAX(計算シート!H5:K5),IF(' 給与計算 '!K8<源泉月額表!$B$8,0,VLOOKUP(' 給与計算 '!K8,源泉月額表!$B:$K,IF(' 基本情報 '!E8>=8,10,' 基本情報 '!E8+3),1)))-IF(' 基本情報 '!E8>=8,(' 基本情報 '!E8-7)*税額基本情報!$D$17,0),0) -> 15670 | F5: =IF(' 給与計算 '!K8<源泉月額表!$B$8,ROUNDDOWN(' 給与計算 '!K8*税額基本情報!$D$23,0),IF(' 給与計算 '!K8=0,0,IF(' 給与計算 '!K8>=税額基本情報!$D$13,MAX(L5:M5),VLOOKUP(' 給与計算 '!K8,源泉月額表!$B:$L,11,1)))) -> 121900 | G5: =MAX(IF(' 給与計算 '!K8<源泉月額表!$B$8,ROUNDDOWN(' 給与計算 '!K8*3.063%,0),IF(' 給与計算 '!K8=0,0,IF(' 給与計算 '!K8>=税額基本情報!$D$13,MAX(L5:M5),VLOOKUP(' 給与計算 '!K8,源泉月額表!$B:$L,11,1))))-' 基本情報 '!E8*税額基本情報!$D$20,0) -> 118680 | H5: =IF(AND(' 給与計算 '!K8>=税額基本情報!$D$6,' 給与計算 '!K8<税額基本情報!$D$7),VLOOKUP(' 給与計算 '!K8,税額基本情報!$D$6:$M$9,IF(' 基本情報 '!E8>=8,10,' 基本情報 '!E8+3),1)+ROUNDDOWN((' 給与計算 '!K8-税額基本情報!$D$6)*税額基本情報!$E$6,0),0) -> 0 | I5: =IF(AND(' 給与計算 '!K8>=税額基本情報!$D$7,' 給与計算 '!K8<税額基本情報!$D$8),VLOOKUP(' 給与計算 '!K8,税額基本情報!$D$6:$M$9,IF(' 基本情報 '!E8>=8,10,' 基本情報 '!E8+3),1)+ROUNDDOWN((' 給与計算 '!K8-税額基本情報!$D$7)*税額基本情報!$E$7,0),0) -> 0 | J5: =IF(' 給与計算 '!K8>=税額基本情報!$D$8,VLOOKUP(' 給与計算 '!K8,税額基本情報!$D$6:$M$9,IF(' 基本情報 '!E8>=8,10,' 基本情報 '!E8+3),1)+ROUNDDOWN((' 給与計算 '!K8-税額基本情報!$D$8)*税額基本情報!$E$8,0),0) -> 0 | L5: =IF(AND(' 給与計算 '!K8>=税額基本情報!$D$13,' 給与計算 '!K8<税額基本情報!$D$14),税額基本情報!$F$13+ROUNDDOWN((' 給与計算 '!K8-税額基本情報!$D$13)*税額基本情報!$E$13,0),0) -> 0 | M5: =IF(' 給与計算 '!K8>=税額基本情報!$D$14,税額基本情報!$F$14+ROUNDDOWN((' 給与計算 '!K8-税額基本情報!$D$14)*税額基本情報!$E$14,0),0) -> 0 | N5: =IF(' 賞与計算 '!D8<源泉賞与表!$D$10*1000,0,INDEX(源泉賞与表!$B:$B,MATCH(' 賞与計算 '!D8/1000,源泉賞与表!$D:$D,1))) -> 16.336 | O5: =IF(' 賞与計算 '!D8<源泉賞与表!$F$10*1000,0,INDEX(源泉賞与表!$B:$B,MATCH(' 賞与計算 '!D8/1000,源泉賞与表!$F:$F,1))) -> 16.336 | P5: =IF(' 賞与計算 '!D8<源泉賞与表!$H$10*1000,0,INDEX(源泉賞与表!$B:$B,MATCH(' 賞与計算 '!D8/1000,源泉賞与表!$H:$H,1))) -> 14.294 | Q5: =IF(' 賞与計算 '!D8<源泉賞与表!$J$10*1000,0,INDEX(源泉賞与表!$B:$B,MATCH(' 賞与計算 '!D8/1000,源泉賞与表!$J:$J,1))) -> 12.252 | R5: =IF(' 賞与計算 '!D8<源泉賞与表!$L$10*1000,0,INDEX(源泉賞与表!$B:$B,MATCH(' 賞与計算 '!D8/1000,源泉賞与表!$L:$L,1))) -> 10.21 | S5: =IF(' 賞与計算 '!D8<源泉賞与表!$N$10*1000,0,INDEX(源泉賞与表!$B:$B,MATCH(' 賞与計算 '!D8/1000,源泉賞与表!$N:$N,1))) -> 8.168 | T5: =IF(' 賞与計算 '!D8<源泉賞与表!$P$10*1000,0,INDEX(源泉賞与表!$B:$B,MATCH(' 賞与計算 '!D8/1000,源泉賞与表!$P:$P,1))) -> 6.126 | U5: =IF(' 賞与計算 '!D8<源泉賞与表!$R$10*1000,0,INDEX(源泉賞与表!$B:$B,MATCH(' 賞与計算 '!D8/1000,源泉賞与表!$R:$R,1))) -> 6.126 | V5: =IF(' 賞与計算 '!D8="","",IF(' 賞与計算 '!D8<源泉賞与表!$T$22*1000,10.21,INDEX(源泉賞与表!$B:$B,MATCH(' 賞与計算 '!D8/1000,源泉賞与表!$T:$T,1)))) -> 30.63 | W5: 0 | X5: =IF(' 基本情報 '!G8="",0,ROUND(VLOOKUP(' 基本情報 '!G8,INDIRECT(' 基本情報 '!$D$3&"!$B$12:$I$61"),6,0)-0.1,0)) -> 27888 | Y5: =IF(' 基本情報 '!G8="",0,ROUND(VLOOKUP(' 基本情報 '!G8,INDIRECT(' 基本情報 '!$D$3&"!$B$12:$I$61"),8,0)-0.1,0)) -> 32312 | Z5: =W5 -> 0 | AA5: =IF(' 基本情報 '!G8="",0,ROUND(IF(OR(' 基本情報 '!G8<税額基本情報!$E$26,' 基本情報 '!G8>税額基本情報!$E$27),AC5,VLOOKUP(' 基本情報 '!G8,INDIRECT(' 基本情報 '!$D$3&"!$B$16:$M$45"),10,0))-0.1,0)) -> 49918 | AB5: =IF(' 基本情報 '!G8="",0,ROUND(IF(OR(' 基本情報 '!G8<税額基本情報!$E$26,' 基本情報 '!G8>税額基本情報!$E$27),AD5,VLOOKUP(' 基本情報 '!G8,INDIRECT(' 基本情報 '!$D$3&"!$B$16:$M$45"),12,0))-0.1,0)) -> 50221 | AC5: =IF(' 基本情報 '!G8="",0,IF(' 基本情報 '!G8<税額基本情報!$E$26,税額基本情報!$F$26,IF(' 基本情報 '!G8>税額基本情報!$E$27,税額基本情報!$F$27,0))) -> 0 | AD5: =IF(' 基本情報 '!G8="",0,IF(' 基本情報 '!G8<税額基本情報!$E$26,税額基本情報!$G$26,IF(' 基本情報 '!G8>税額基本情報!$E$27,税額基本情報!$G$27,0))) -> 0 | AE5: =W5 -> 0 | AF5: =ROUND(IF(' 賞与計算 '!F8>税額基本情報!$D$33,税額基本情報!$D$33,ROUNDDOWN(' 賞与計算 '!F8,-3))*INDIRECT(' 基本情報 '!$D$3&"!$F$9")*0.5-0.1,0) -> 24900 | AG5: =ROUND(IF(' 賞与計算 '!F8>税額基本情報!$D$33,税額基本情報!$D$33,ROUNDDOWN(' 賞与計算 '!F8,-3))*INDIRECT(' 基本情報 '!$D$3&"!$H$9")/2-0.1,0) -> 28850 | AH5: =W5 -> 0 | AI5: =ROUND(IF(' 賞与計算 '!F8>税額基本情報!$D$30,税額基本情報!$D$30,ROUNDDOWN(' 賞与計算 '!F8,-3))*INDIRECT(' 基本情報 '!$D$3&"!$J$9")/2-0.1,0) -> 44570 | AJ5: =ROUND(IF(' 賞与計算 '!F8>税額基本情報!$D$30,税額基本情報!$D$30,ROUNDDOWN(' 賞与計算 '!F8,-3))*INDIRECT(' 基本情報 '!$D$3&"!$L$9")/2-0.1,0) -> 44840
C6: 2 | D6: =' 給与計算 '!C9 -> 給与二郎 | E6: =MAX(IF(' 給与計算 '!K9>=税額基本情報!$D$6,MAX(計算シート!H6:K6),IF(' 給与計算 '!K9<源泉月額表!$B$8,0,VLOOKUP(' 給与計算 '!K9,源泉月額表!$B:$K,IF(' 基本情報 '!E9>=8,10,' 基本情報 '!E9+3),1)))-IF(' 基本情報 '!E9>=8,(' 基本情報 '!E9-7)*税額基本情報!$D$17,0),0) -> 5140 | F6: =IF(' 給与計算 '!K9<源泉月額表!$B$8,ROUNDDOWN(' 給与計算 '!K9*税額基本情報!$D$23,0),IF(' 給与計算 '!K9=0,0,IF(' 給与計算 '!K9>=税額基本情報!$D$13,MAX(L6:M6),VLOOKUP(' 給与計算 '!K9,源泉月額表!$B:$L,11,1)))) -> 38500 | G6: =MAX(IF(' 給与計算 '!K9<源泉月額表!$B$8,ROUNDDOWN(' 給与計算 '!K9*3.063%,0),IF(' 給与計算 '!K9=0,0,IF(' 給与計算 '!K9>=税額基本情報!$D$13,MAX(L6:M6),VLOOKUP(' 給与計算 '!K9,源泉月額表!$B:$L,11,1))))-' 基本情報 '!E9*税額基本情報!$D$20,0) -> 36890 | H6: =IF(AND(' 給与計算 '!K9>=税額基本情報!$D$6,' 給与計算 '!K9<税額基本情報!$D$7),VLOOKUP(' 給与計算 '!K9,税額基本情報!$D$6:$M$9,IF(' 基本情報 '!E9>=8,10,' 基本情報 '!E9+3),1)+ROUNDDOWN((' 給与計算 '!K9-税額基本情報!$D$6)*税額基本情報!$E$6,0),0) -> 0 | I6: =IF(AND(' 給与計算 '!K9>=税額基本情報!$D$7,' 給与計算 '!K9<税額基本情報!$D$8),VLOOKUP(' 給与計算 '!K9,税額基本情報!$D$6:$M$9,IF(' 基本情報 '!E9>=8,10,' 基本情報 '!E9+3),1)+ROUNDDOWN((' 給与計算 '!K9-税額基本情報!$D$7)*税額基本情報!$E$7,0),0) -> 0 | J6: =IF(' 給与計算 '!K9>=税額基本情報!$D$8,VLOOKUP(' 給与計算 '!K9,税額基本情報!$D$6:$M$9,IF(' 基本情報 '!E9>=8,10,' 基本情報 '!E9+3),1)+ROUNDDOWN((' 給与計算 '!K9-税額基本情報!$D$8)*税額基本情報!$E$8,0),0) -> 0 | L6: =IF(AND(' 給与計算 '!K9>=税額基本情報!$D$13,' 給与計算 '!K9<税額基本情報!$D$14),税額基本情報!$F$13+ROUNDDOWN((' 給与計算 '!K9-税額基本情報!$D$13)*税額基本情報!$E$13,0),0) -> 0 | M6: =IF(' 給与計算 '!K9>=税額基本情報!$D$14,税額基本情報!$F$14+ROUNDDOWN((' 給与計算 '!K9-税額基本情報!$D$14)*税額基本情報!$E$14,0),0) -> 0 | N6: =IF(' 賞与計算 '!D9<源泉賞与表!$D$10*1000,0,INDEX(源泉賞与表!$B:$B,MATCH(' 賞与計算 '!D9/1000,源泉賞与表!$D:$D,1))) -> 6.126 | O6: =IF(' 賞与計算 '!D9<源泉賞与表!$F$10*1000,0,INDEX(源泉賞与表!$B:$B,MATCH(' 賞与計算 '!D9/1000,源泉賞与表!$F:$F,1))) -> 4.084 | P6: =IF(' 賞与計算 '!D9<源泉賞与表!$H$10*1000,0,INDEX(源泉賞与表!$B:$B,MATCH(' 賞与計算 '!D9/1000,源泉賞与表!$H:$H,1))) -> 2.042 | Q6: =IF(' 賞与計算 '!D9<源泉賞与表!$J$10*1000,0,INDEX(源泉賞与表!$B:$B,MATCH(' 賞与計算 '!D9/1000,源泉賞与表!$J:$J,1))) -> 2.042 | R6: =IF(' 賞与計算 '!D9<源泉賞与表!$L$10*1000,0,INDEX(源泉賞与表!$B:$B,MATCH(' 賞与計算 '!D9/1000,源泉賞与表!$L:$L,1))) -> 2.042 | S6: =IF(' 賞与計算 '!D9<源泉賞与表!$N$10*1000,0,INDEX(源泉賞与表!$B:$B,MATCH(' 賞与計算 '!D9/1000,源泉賞与表!$N:$N,1))) -> 2.042 | T6: =IF(' 賞与計算 '!D9<源泉賞与表!$P$10*1000,0,INDEX(源泉賞与表!$B:$B,MATCH(' 賞与計算 '!D9/1000,源泉賞与表!$P:$P,1))) -> 0 | U6: =IF(' 賞与計算 '!D9<源泉賞与表!$R$10*1000,0,INDEX(源泉賞与表!$B:$B,MATCH(' 賞与計算 '!D9/1000,源泉賞与表!$R:$R,1))) -> 0 | V6: =IF(' 賞与計算 '!D9="","",IF(' 賞与計算 '!D9<源泉賞与表!$T$22*1000,10.21,INDEX(源泉賞与表!$B:$B,MATCH(' 賞与計算 '!D9/1000,源泉賞与表!$T:$T,1)))) -> 20.42 | W6: 0 | X6: =IF(' 基本情報 '!G9="",0,ROUND(VLOOKUP(' 基本情報 '!G9,INDIRECT(' 基本情報 '!$D$3&"!$B$12:$I$61"),6,0)-0.1,0)) -> 14940 | Y6: =IF(' 基本情報 '!G9="",0,ROUND(VLOOKUP(' 基本情報 '!G9,INDIRECT(' 基本情報 '!$D$3&"!$B$12:$I$61"),8,0)-0.1,0)) -> 17310 | Z6: =W6 -> 0 | AA6: =IF(' 基本情報 '!G9="",0,ROUND(IF(OR(' 基本情報 '!G9<税額基本情報!$E$26,' 基本情報 '!G9>税額基本情報!$E$27),AC6,VLOOKUP(' 基本情報 '!G9,INDIRECT(' 基本情報 '!$D$3&"!$B$16:$M$45"),10,0))-0.1,0)) -> 26742 | AB6: =IF(' 基本情報 '!G9="",0,ROUND(IF(OR(' 基本情報 '!G9<税額基本情報!$E$26,' 基本情報 '!G9>税額基本情報!$E$27),AD6,VLOOKUP(' 基本情報 '!G9,INDIRECT(' 基本情報 '!$D$3&"!$B$16:$M$45"),12,0))-0.1,0)) -> 26904 | AC6: =IF(' 基本情報 '!G9="",0,IF(' 基本情報 '!G9<税額基本情報!$E$26,税額基本情報!$F$26,IF(' 基本情報 '!G9>税額基本情報!$E$27,税額基本情報!$F$27,0))) -> 0 | AD6: =IF(' 基本情報 '!G9="",0,IF(' 基本情報 '!G9<税額基本情報!$E$26,税額基本情報!$G$26,IF(' 基本情報 '!G9>税額基本情報!$E$27,税額基本情報!$G$27,0))) -> 0 | AE6: =W6 -> 0 | AF6: =ROUND(IF(' 賞与計算 '!F9>税額基本情報!$D$33,税額基本情報!$D$33,ROUNDDOWN(' 賞与計算 '!F9,-3))*INDIRECT(' 基本情報 '!$D$3&"!$F$9")*0.5-0.1,0) -> 17430 | AG6: =ROUND(IF(' 賞与計算 '!F9>税額基本情報!$D$33,税額基本情報!$D$33,ROUNDDOWN(' 賞与計算 '!F9,-3))*INDIRECT(' 基本情報 '!$D$3&"!$H$9")/2-0.1,0) -> 20195 | AH6: =W6 -> 0 | AI6: =ROUND(IF(' 賞与計算 '!F9>税額基本情報!$D$30,税額基本情報!$D$30,ROUNDDOWN(' 賞与計算 '!F9,-3))*INDIRECT(' 基本情報 '!$D$3&"!$J$9")/2-0.1,0) -> 31199 | AJ6: =ROUND(IF(' 賞与計算 '!F9>税額基本情報!$D$30,税額基本情報!$D$30,ROUNDDOWN(' 賞与計算 '!F9,-3))*INDIRECT(' 基本情報 '!$D$3&"!$L$9")/2-0.1,0) -> 31388
C7: 3 | D7: =' 給与計算 '!C10 -> 給与三郎 | E7: =MAX(IF(' 給与計算 '!K10>=税額基本情報!$D$6,MAX(計算シート!H7:K7),IF(' 給与計算 '!K10<源泉月額表!$B$8,0,VLOOKUP(' 給与計算 '!K10,源泉月額表!$B:$K,IF(' 基本情報 '!E10>=8,10,' 基本情報 '!E10+3),1)))-IF(' 基本情報 '!E10>=8,(' 基本情報 '!E10-7)*税額基本情報!$D$17,0),0) -> 2980 | F7: =IF(' 給与計算 '!K10<源泉月額表!$B$8,ROUNDDOWN(' 給与計算 '!K10*税額基本情報!$D$23,0),IF(' 給与計算 '!K10=0,0,IF(' 給与計算 '!K10>=税額基本情報!$D$13,MAX(L7:M7),VLOOKUP(' 給与計算 '!K10,源泉月額表!$B:$L,11,1)))) -> 8700 | G7: =MAX(IF(' 給与計算 '!K10<源泉月額表!$B$8,ROUNDDOWN(' 給与計算 '!K10*3.063%,0),IF(' 給与計算 '!K10=0,0,IF(' 給与計算 '!K10>=税額基本情報!$D$13,MAX(L7:M7),VLOOKUP(' 給与計算 '!K10,源泉月額表!$B:$L,11,1))))-' 基本情報 '!E10*税額基本情報!$D$20,0) -> 8700 | H7: =IF(AND(' 給与計算 '!K10>=税額基本情報!$D$6,' 給与計算 '!K10<税額基本情報!$D$7),VLOOKUP(' 給与計算 '!K10,税額基本情報!$D$6:$M$9,IF(' 基本情報 '!E10>=8,10,' 基本情報 '!E10+3),1)+ROUNDDOWN((' 給与計算 '!K10-税額基本情報!$D$6)*税額基本情報!$E$6,0),0) -> 0 | I7: =IF(AND(' 給与計算 '!K10>=税額基本情報!$D$7,' 給与計算 '!K10<税額基本情報!$D$8),VLOOKUP(' 給与計算 '!K10,税額基本情報!$D$6:$M$9,IF(' 基本情報 '!E10>=8,10,' 基本情報 '!E10+3),1)+ROUNDDOWN((' 給与計算 '!K10-税額基本情報!$D$7)*税額基本情報!$E$7,0),0) -> 0 | J7: =IF(' 給与計算 '!K10>=税額基本情報!$D$8,VLOOKUP(' 給与計算 '!K10,税額基本情報!$D$6:$M$9,IF(' 基本情報 '!E10>=8,10,' 基本情報 '!E10+3),1)+ROUNDDOWN((' 給与計算 '!K10-税額基本情報!$D$8)*税額基本情報!$E$8,0),0) -> 0 | L7: =IF(AND(' 給与計算 '!K10>=税額基本情報!$D$13,' 給与計算 '!K10<税額基本情報!$D$14),税額基本情報!$F$13+ROUNDDOWN((' 給与計算 '!K10-税額基本情報!$D$13)*税額基本情報!$E$13,0),0) -> 0 | M7: =IF(' 給与計算 '!K10>=税額基本情報!$D$14,税額基本情報!$F$14+ROUNDDOWN((' 給与計算 '!K10-税額基本情報!$D$14)*税額基本情報!$E$14,0),0) -> 0 | N7: =IF(' 賞与計算 '!D10<源泉賞与表!$D$10*1000,0,INDEX(源泉賞与表!$B:$B,MATCH(' 賞与計算 '!D10/1000,源泉賞与表!$D:$D,1))) -> 4.084 | O7: =IF(' 賞与計算 '!D10<源泉賞与表!$F$10*1000,0,INDEX(源泉賞与表!$B:$B,MATCH(' 賞与計算 '!D10/1000,源泉賞与表!$F:$F,1))) -> 2.042 | P7: =IF(' 賞与計算 '!D10<源泉賞与表!$H$10*1000,0,INDEX(源泉賞与表!$B:$B,MATCH(' 賞与計算 '!D10/1000,源泉賞与表!$H:$H,1))) -> 2.042 | Q7: =IF(' 賞与計算 '!D10<源泉賞与表!$J$10*1000,0,INDEX(源泉賞与表!$B:$B,MATCH(' 賞与計算 '!D10/1000,源泉賞与表!$J:$J,1))) -> 0 | R7: =IF(' 賞与計算 '!D10<源泉賞与表!$L$10*1000,0,INDEX(源泉賞与表!$B:$B,MATCH(' 賞与計算 '!D10/1000,源泉賞与表!$L:$L,1))) -> 0 | S7: =IF(' 賞与計算 '!D10<源泉賞与表!$N$10*1000,0,INDEX(源泉賞与表!$B:$B,MATCH(' 賞与計算 '!D10/1000,源泉賞与表!$N:$N,1))) -> 0 | T7: =IF(' 賞与計算 '!D10<源泉賞与表!$P$10*1000,0,INDEX(源泉賞与表!$B:$B,MATCH(' 賞与計算 '!D10/1000,源泉賞与表!$P:$P,1))) -> 0 | U7: =IF(' 賞与計算 '!D10<源泉賞与表!$R$10*1000,0,INDEX(源泉賞与表!$B:$B,MATCH(' 賞与計算 '!D10/1000,源泉賞与表!$R:$R,1))) -> 0 | V7: =IF(' 賞与計算 '!D10="","",IF(' 賞与計算 '!D10<源泉賞与表!$T$22*1000,10.21,INDEX(源泉賞与表!$B:$B,MATCH(' 賞与計算 '!D10/1000,源泉賞与表!$T:$T,1)))) -> 10.21 | W7: 0 | X7: =IF(' 基本情報 '!G10="",0,ROUND(VLOOKUP(' 基本情報 '!G10,INDIRECT(' 基本情報 '!$D$3&"!$B$12:$I$61"),6,0)-0.1,0)) -> 0 | Y7: =IF(' 基本情報 '!G10="",0,ROUND(VLOOKUP(' 基本情報 '!G10,INDIRECT(' 基本情報 '!$D$3&"!$B$12:$I$61"),8,0)-0.1,0)) -> 0 | Z7: 0 | AA7: =IF(' 基本情報 '!G10="",0,ROUND(IF(OR(' 基本情報 '!G10<税額基本情報!$E$26,' 基本情報 '!G10>税額基本情報!$E$27),AC7,VLOOKUP(' 基本情報 '!G10,INDIRECT(' 基本情報 '!$D$3&"!$B$16:$M$45"),10,0))-0.1,0)) -> 0 | AB7: =IF(' 基本情報 '!G10="",0,ROUND(IF(OR(' 基本情報 '!G10<税額基本情報!$E$26,' 基本情報 '!G10>税額基本情報!$E$27),AD7,VLOOKUP(' 基本情報 '!G10,INDIRECT(' 基本情報 '!$D$3&"!$B$16:$M$45"),12,0))-0.1,0)) -> 0 | AC7: =IF(' 基本情報 '!G10="",0,IF(' 基本情報 '!G10<税額基本情報!$E$26,税額基本情報!$F$26,IF(' 基本情報 '!G10>税額基本情報!$E$27,税額基本情報!$F$27,0))) -> 0 | AD7: =IF(' 基本情報 '!G10="",0,IF(' 基本情報 '!G10<税額基本情報!$E$26,税額基本情報!$G$26,IF(' 基本情報 '!G10>税額基本情報!$E$27,税額基本情報!$G$27,0))) -> 0 | AE7: 0 | AF7: =ROUND(IF(' 賞与計算 '!F10>税額基本情報!$D$33,税額基本情報!$D$33,ROUNDDOWN(' 賞与計算 '!F10,-3))*INDIRECT(' 基本情報 '!$D$3&"!$F$9")*0.5-0.1,0) -> 4980 | AG7: =ROUND(IF(' 賞与計算 '!F10>税額基本情報!$D$33,税額基本情報!$D$33,ROUNDDOWN(' 賞与計算 '!F10,-3))*INDIRECT(' 基本情報 '!$D$3&"!$H$9")/2-0.1,0) -> 5770 | AH7: 0 | AI7: =ROUND(IF(' 賞与計算 '!F10>税額基本情報!$D$30,税額基本情報!$D$30,ROUNDDOWN(' 賞与計算 '!F10,-3))*INDIRECT(' 基本情報 '!$D$3&"!$J$9")/2-0.1,0) -> 8914 | AJ7: =ROUND(IF(' 賞与計算 '!F10>税額基本情報!$D$30,税額基本情報!$D$30,ROUNDDOWN(' 賞与計算 '!F10,-3))*INDIRECT(' 基本情報 '!$D$3&"!$L$9")/2-0.1,0) -> 8968
C8: 4 | D8: =' 給与計算 '!C11 ->  | E8: =MAX(IF(' 給与計算 '!K11>=税額基本情報!$D$6,MAX(計算シート!H8:K8),IF(' 給与計算 '!K11<源泉月額表!$B$8,0,VLOOKUP(' 給与計算 '!K11,源泉月額表!$B:$K,IF(' 基本情報 '!E11>=8,10,' 基本情報 '!E11+3),1)))-IF(' 基本情報 '!E11>=8,(' 基本情報 '!E11-7)*税額基本情報!$D$17,0),0) -> 0 | F8: =IF(' 給与計算 '!K11<源泉月額表!$B$8,ROUNDDOWN(' 給与計算 '!K11*税額基本情報!$D$23,0),IF(' 給与計算 '!K11=0,0,IF(' 給与計算 '!K11>=税額基本情報!$D$13,MAX(L8:M8),VLOOKUP(' 給与計算 '!K11,源泉月額表!$B:$L,11,1)))) -> 0 | G8: =MAX(IF(' 給与計算 '!K11<源泉月額表!$B$8,ROUNDDOWN(' 給与計算 '!K11*3.063%,0),IF(' 給与計算 '!K11=0,0,IF(' 給与計算 '!K11>=税額基本情報!$D$13,MAX(L8:M8),VLOOKUP(' 給与計算 '!K11,源泉月額表!$B:$L,11,1))))-' 基本情報 '!E11*税額基本情報!$D$20,0) -> 0 | H8: =IF(AND(' 給与計算 '!K11>=税額基本情報!$D$6,' 給与計算 '!K11<税額基本情報!$D$7),VLOOKUP(' 給与計算 '!K11,税額基本情報!$D$6:$M$9,IF(' 基本情報 '!E11>=8,10,' 基本情報 '!E11+3),1)+ROUNDDOWN((' 給与計算 '!K11-税額基本情報!$D$6)*税額基本情報!$E$6,0),0) -> 0 | I8: =IF(AND(' 給与計算 '!K11>=税額基本情報!$D$7,' 給与計算 '!K11<税額基本情報!$D$8),VLOOKUP(' 給与計算 '!K11,税額基本情報!$D$6:$M$9,IF(' 基本情報 '!E11>=8,10,' 基本情報 '!E11+3),1)+ROUNDDOWN((' 給与計算 '!K11-税額基本情報!$D$7)*税額基本情報!$E$7,0),0) -> 0 | J8: =IF(' 給与計算 '!K11>=税額基本情報!$D$8,VLOOKUP(' 給与計算 '!K11,税額基本情報!$D$6:$M$9,IF(' 基本情報 '!E11>=8,10,' 基本情報 '!E11+3),1)+ROUNDDOWN((' 給与計算 '!K11-税額基本情報!$D$8)*税額基本情報!$E$8,0),0) -> 0 | L8: =IF(AND(' 給与計算 '!K11>=税額基本情報!$D$13,' 給与計算 '!K11<税額基本情報!$D$14),税額基本情報!$F$13+ROUNDDOWN((' 給与計算 '!K11-税額基本情報!$D$13)*税額基本情報!$E$13,0),0) -> 0 | M8: =IF(' 給与計算 '!K11>=税額基本情報!$D$14,税額基本情報!$F$14+ROUNDDOWN((' 給与計算 '!K11-税額基本情報!$D$14)*税額基本情報!$E$14,0),0) -> 0 | N8: =IF(' 賞与計算 '!D11<源泉賞与表!$D$10*1000,0,INDEX(源泉賞与表!$B:$B,MATCH(' 賞与計算 '!D11/1000,源泉賞与表!$D:$D,1))) -> 0 | O8: =IF(' 賞与計算 '!D11<源泉賞与表!$F$10*1000,0,INDEX(源泉賞与表!$B:$B,MATCH(' 賞与計算 '!D11/1000,源泉賞与表!$F:$F,1))) -> 0 | P8: =IF(' 賞与計算 '!D11<源泉賞与表!$H$10*1000,0,INDEX(源泉賞与表!$B:$B,MATCH(' 賞与計算 '!D11/1000,源泉賞与表!$H:$H,1))) -> 0 | Q8: =IF(' 賞与計算 '!D11<源泉賞与表!$J$10*1000,0,INDEX(源泉賞与表!$B:$B,MATCH(' 賞与計算 '!D11/1000,源泉賞与表!$J:$J,1))) -> 0 | R8: =IF(' 賞与計算 '!D11<源泉賞与表!$L$10*1000,0,INDEX(源泉賞与表!$B:$B,MATCH(' 賞与計算 '!D11/1000,源泉賞与表!$L:$L,1))) -> 0 | S8: =IF(' 賞与計算 '!D11<源泉賞与表!$N$10*1000,0,INDEX(源泉賞与表!$B:$B,MATCH(' 賞与計算 '!D11/1000,源泉賞与表!$N:$N,1))) -> 0 | T8: =IF(' 賞与計算 '!D11<源泉賞与表!$P$10*1000,0,INDEX(源泉賞与表!$B:$B,MATCH(' 賞与計算 '!D11/1000,源泉賞与表!$P:$P,1))) -> 0 | U8: =IF(' 賞与計算 '!D11<源泉賞与表!$R$10*1000,0,INDEX(源泉賞与表!$B:$B,MATCH(' 賞与計算 '!D11/1000,源泉賞与表!$R:$R,1))) -> 0 | V8: =IF(' 賞与計算 '!D11="","",IF(' 賞与計算 '!D11<源泉賞与表!$T$22*1000,10.21,INDEX(源泉賞与表!$B:$B,MATCH(' 賞与計算 '!D11/1000,源泉賞与表!$T:$T,1)))) ->  | W8: 0 | X8: =IF(' 基本情報 '!G11="",0,ROUND(VLOOKUP(' 基本情報 '!G11,INDIRECT(' 基本情報 '!$D$3&"!$B$12:$I$61"),6,0)-0.1,0)) -> 0 | Y8: =IF(' 基本情報 '!G11="",0,ROUND(VLOOKUP(' 基本情報 '!G11,INDIRECT(' 基本情報 '!$D$3&"!$B$12:$I$61"),8,0)-0.1,0)) -> 0 | Z8: 0 | AA8: =IF(' 基本情報 '!G11="",0,ROUND(IF(OR(' 基本情報 '!G11<税額基本情報!$E$26,' 基本情報 '!G11>税額基本情報!$E$27),AC8,VLOOKUP(' 基本情報 '!G11,INDIRECT(' 基本情報 '!$D$3&"!$B$16:$M$45"),10,0))-0.1,0)) -> 0 | AB8: =IF(' 基本情報 '!G11="",0,ROUND(IF(OR(' 基本情報 '!G11<税額基本情報!$E$26,' 基本情報 '!G11>税額基本情報!$E$27),AD8,VLOOKUP(' 基本情報 '!G11,INDIRECT(' 基本情報 '!$D$3&"!$B$16:$M$45"),12,0))-0.1,0)) -> 0 | AC8: =IF(' 基本情報 '!G11="",0,IF(' 基本情報 '!G11<税額基本情報!$E$26,税額基本情報!$F$26,IF(' 基本情報 '!G11>税額基本情報!$E$27,税額基本情報!$F$27,0))) -> 0 | AD8: =IF(' 基本情報 '!G11="",0,IF(' 基本情報 '!G11<税額基本情報!$E$26,税額基本情報!$G$26,IF(' 基本情報 '!G11>税額基本情報!$E$27,税額基本情報!$G$27,0))) -> 0 | AE8: 0 | AF8: =ROUND(IF(' 賞与計算 '!F11>税額基本情報!$D$33,税額基本情報!$D$33,ROUNDDOWN(' 賞与計算 '!F11,-3))*INDIRECT(' 基本情報 '!$D$3&"!$F$9")*0.5-0.1,0) -> 0 | AG8: =ROUND(IF(' 賞与計算 '!F11>税額基本情報!$D$33,税額基本情報!$D$33,ROUNDDOWN(' 賞与計算 '!F11,-3))*INDIRECT(' 基本情報 '!$D$3&"!$H$9")/2-0.1,0) -> 0 | AH8: 0 | AI8: =ROUND(IF(' 賞与計算 '!F11>税額基本情報!$D$30,税額基本情報!$D$30,ROUNDDOWN(' 賞与計算 '!F11,-3))*INDIRECT(' 基本情報 '!$D$3&"!$J$9")/2-0.1,0) -> 0 | AJ8: =ROUND(IF(' 賞与計算 '!F11>税額基本情報!$D$30,税額基本情報!$D$30,ROUNDDOWN(' 賞与計算 '!F11,-3))*INDIRECT(' 基本情報 '!$D$3&"!$L$9")/2-0.1,0) -> 0
C9: 5 | D9: =' 給与計算 '!C12 ->  | E9: =MAX(IF(' 給与計算 '!K12>=税額基本情報!$D$6,MAX(計算シート!H9:K9),IF(' 給与計算 '!K12<源泉月額表!$B$8,0,VLOOKUP(' 給与計算 '!K12,源泉月額表!$B:$K,IF(' 基本情報 '!E12>=8,10,' 基本情報 '!E12+3),1)))-IF(' 基本情報 '!E12>=8,(' 基本情報 '!E12-7)*税額基本情報!$D$17,0),0) -> 0 | F9: =IF(' 給与計算 '!K12<源泉月額表!$B$8,ROUNDDOWN(' 給与計算 '!K12*税額基本情報!$D$23,0),IF(' 給与計算 '!K12=0,0,IF(' 給与計算 '!K12>=税額基本情報!$D$13,MAX(L9:M9),VLOOKUP(' 給与計算 '!K12,源泉月額表!$B:$L,11,1)))) -> 0 | G9: =MAX(IF(' 給与計算 '!K12<源泉月額表!$B$8,ROUNDDOWN(' 給与計算 '!K12*3.063%,0),IF(' 給与計算 '!K12=0,0,IF(' 給与計算 '!K12>=税額基本情報!$D$13,MAX(L9:M9),VLOOKUP(' 給与計算 '!K12,源泉月額表!$B:$L,11,1))))-' 基本情報 '!E12*税額基本情報!$D$20,0) -> 0 | H9: =IF(AND(' 給与計算 '!K12>=税額基本情報!$D$6,' 給与計算 '!K12<税額基本情報!$D$7),VLOOKUP(' 給与計算 '!K12,税額基本情報!$D$6:$M$9,IF(' 基本情報 '!E12>=8,10,' 基本情報 '!E12+3),1)+ROUNDDOWN((' 給与計算 '!K12-税額基本情報!$D$6)*税額基本情報!$E$6,0),0) -> 0 | I9: =IF(AND(' 給与計算 '!K12>=税額基本情報!$D$7,' 給与計算 '!K12<税額基本情報!$D$8),VLOOKUP(' 給与計算 '!K12,税額基本情報!$D$6:$M$9,IF(' 基本情報 '!E12>=8,10,' 基本情報 '!E12+3),1)+ROUNDDOWN((' 給与計算 '!K12-税額基本情報!$D$7)*税額基本情報!$E$7,0),0) -> 0 | J9: =IF(' 給与計算 '!K12>=税額基本情報!$D$8,VLOOKUP(' 給与計算 '!K12,税額基本情報!$D$6:$M$9,IF(' 基本情報 '!E12>=8,10,' 基本情報 '!E12+3),1)+ROUNDDOWN((' 給与計算 '!K12-税額基本情報!$D$8)*税額基本情報!$E$8,0),0) -> 0 | L9: =IF(AND(' 給与計算 '!K12>=税額基本情報!$D$13,' 給与計算 '!K12<税額基本情報!$D$14),税額基本情報!$F$13+ROUNDDOWN((' 給与計算 '!K12-税額基本情報!$D$13)*税額基本情報!$E$13,0),0) -> 0 | M9: =IF(' 給与計算 '!K12>=税額基本情報!$D$14,税額基本情報!$F$14+ROUNDDOWN((' 給与計算 '!K12-税額基本情報!$D$14)*税額基本情報!$E$14,0),0) -> 0 | N9: =IF(' 賞与計算 '!D12<源泉賞与表!$D$10*1000,0,INDEX(源泉賞与表!$B:$B,MATCH(' 賞与計算 '!D12/1000,源泉賞与表!$D:$D,1))) -> 0 | O9: =IF(' 賞与計算 '!D12<源泉賞与表!$F$10*1000,0,INDEX(源泉賞与表!$B:$B,MATCH(' 賞与計算 '!D12/1000,源泉賞与表!$F:$F,1))) -> 0 | P9: =IF(' 賞与計算 '!D12<源泉賞与表!$H$10*1000,0,INDEX(源泉賞与表!$B:$B,MATCH(' 賞与計算 '!D12/1000,源泉賞与表!$H:$H,1))) -> 0 | Q9: =IF(' 賞与計算 '!D12<源泉賞与表!$J$10*1000,0,INDEX(源泉賞与表!$B:$B,MATCH(' 賞与計算 '!D12/1000,源泉賞与表!$J:$J,1))) -> 0 | R9: =IF(' 賞与計算 '!D12<源泉賞与表!$L$10*1000,0,INDEX(源泉賞与表!$B:$B,MATCH(' 賞与計算 '!D12/1000,源泉賞与表!$L:$L,1))) -> 0 | S9: =IF(' 賞与計算 '!D12<源泉賞与表!$N$10*1000,0,INDEX(源泉賞与表!$B:$B,MATCH(' 賞与計算 '!D12/1000,源泉賞与表!$N:$N,1))) -> 0 | T9: =IF(' 賞与計算 '!D12<源泉賞与表!$P$10*1000,0,INDEX(源泉賞与表!$B:$B,MATCH(' 賞与計算 '!D12/1000,源泉賞与表!$P:$P,1))) -> 0 | U9: =IF(' 賞与計算 '!D12<源泉賞与表!$R$10*1000,0,INDEX(源泉賞与表!$B:$B,MATCH(' 賞与計算 '!D12/1000,源泉賞与表!$R:$R,1))) -> 0 | V9: =IF(' 賞与計算 '!D12="","",IF(' 賞与計算 '!D12<源泉賞与表!$T$22*1000,10.21,INDEX(源泉賞与表!$B:$B,MATCH(' 賞与計算 '!D12/1000,源泉賞与表!$T:$T,1)))) ->  | W9: 0 | X9: =IF(' 基本情報 '!G12="",0,ROUND(VLOOKUP(' 基本情報 '!G12,INDIRECT(' 基本情報 '!$D$3&"!$B$12:$I$61"),6,0)-0.1,0)) -> 0 | Y9: =IF(' 基本情報 '!G12="",0,ROUND(VLOOKUP(' 基本情報 '!G12,INDIRECT(' 基本情報 '!$D$3&"!$B$12:$I$61"),8,0)-0.1,0)) -> 0 | Z9: 0 | AA9: =IF(' 基本情報 '!G12="",0,ROUND(IF(OR(' 基本情報 '!G12<税額基本情報!$E$26,' 基本情報 '!G12>税額基本情報!$E$27),AC9,VLOOKUP(' 基本情報 '!G12,INDIRECT(' 基本情報 '!$D$3&"!$B$16:$M$45"),10,0))-0.1,0)) -> 0 | AB9: =IF(' 基本情報 '!G12="",0,ROUND(IF(OR(' 基本情報 '!G12<税額基本情報!$E$26,' 基本情報 '!G12>税額基本情報!$E$27),AD9,VLOOKUP(' 基本情報 '!G12,INDIRECT(' 基本情報 '!$D$3&"!$B$16:$M$45"),12,0))-0.1,0)) -> 0 | AC9: =IF(' 基本情報 '!G12="",0,IF(' 基本情報 '!G12<税額基本情報!$E$26,税額基本情報!$F$26,IF(' 基本情報 '!G12>税額基本情報!$E$27,税額基本情報!$F$27,0))) -> 0 | AD9: =IF(' 基本情報 '!G12="",0,IF(' 基本情報 '!G12<税額基本情報!$E$26,税額基本情報!$G$26,IF(' 基本情報 '!G12>税額基本情報!$E$27,税額基本情報!$G$27,0))) -> 0 | AE9: 0 | AF9: =ROUND(IF(' 賞与計算 '!F12>税額基本情報!$D$33,税額基本情報!$D$33,ROUNDDOWN(' 賞与計算 '!F12,-3))*INDIRECT(' 基本情報 '!$D$3&"!$F$9")*0.5-0.1,0) -> 0 | AG9: =ROUND(IF(' 賞与計算 '!F12>税額基本情報!$D$33,税額基本情報!$D$33,ROUNDDOWN(' 賞与計算 '!F12,-3))*INDIRECT(' 基本情報 '!$D$3&"!$H$9")/2-0.1,0) -> 0 | AH9: 0 | AI9: =ROUND(IF(' 賞与計算 '!F12>税額基本情報!$D$30,税額基本情報!$D$30,ROUNDDOWN(' 賞与計算 '!F12,-3))*INDIRECT(' 基本情報 '!$D$3&"!$J$9")/2-0.1,0) -> 0 | AJ9: =ROUND(IF(' 賞与計算 '!F12>税額基本情報!$D$30,税額基本情報!$D$30,ROUNDDOWN(' 賞与計算 '!F12,-3))*INDIRECT(' 基本情報 '!$D$3&"!$L$9")/2-0.1,0) -> 0
C10: 6 | D10: =' 給与計算 '!C13 ->  | E10: =MAX(IF(' 給与計算 '!K13>=税額基本情報!$D$6,MAX(計算シート!H10:K10),IF(' 給与計算 '!K13<源泉月額表!$B$8,0,VLOOKUP(' 給与計算 '!K13,源泉月額表!$B:$K,IF(' 基本情報 '!E13>=8,10,' 基本情報 '!E13+3),1)))-IF(' 基本情報 '!E13>=8,(' 基本情報 '!E13-7)*税額基本情報!$D$17,0),0) -> 0 | F10: =IF(' 給与計算 '!K13<源泉月額表!$B$8,ROUNDDOWN(' 給与計算 '!K13*税額基本情報!$D$23,0),IF(' 給与計算 '!K13=0,0,IF(' 給与計算 '!K13>=税額基本情報!$D$13,MAX(L10:M10),VLOOKUP(' 給与計算 '!K13,源泉月額表!$B:$L,11,1)))) -> 0 | G10: =MAX(IF(' 給与計算 '!K13<源泉月額表!$B$8,ROUNDDOWN(' 給与計算 '!K13*3.063%,0),IF(' 給与計算 '!K13=0,0,IF(' 給与計算 '!K13>=税額基本情報!$D$13,MAX(L10:M10),VLOOKUP(' 給与計算 '!K13,源泉月額表!$B:$L,11,1))))-' 基本情報 '!E13*税額基本情報!$D$20,0) -> 0 | H10: =IF(AND(' 給与計算 '!K13>=税額基本情報!$D$6,' 給与計算 '!K13<税額基本情報!$D$7),VLOOKUP(' 給与計算 '!K13,税額基本情報!$D$6:$M$9,IF(' 基本情報 '!E13>=8,10,' 基本情報 '!E13+3),1)+ROUNDDOWN((' 給与計算 '!K13-税額基本情報!$D$6)*税額基本情報!$E$6,0),0) -> 0 | I10: =IF(AND(' 給与計算 '!K13>=税額基本情報!$D$7,' 給与計算 '!K13<税額基本情報!$D$8),VLOOKUP(' 給与計算 '!K13,税額基本情報!$D$6:$M$9,IF(' 基本情報 '!E13>=8,10,' 基本情報 '!E13+3),1)+ROUNDDOWN((' 給与計算 '!K13-税額基本情報!$D$7)*税額基本情報!$E$7,0),0) -> 0 | J10: =IF(' 給与計算 '!K13>=税額基本情報!$D$8,VLOOKUP(' 給与計算 '!K13,税額基本情報!$D$6:$M$9,IF(' 基本情報 '!E13>=8,10,' 基本情報 '!E13+3),1)+ROUNDDOWN((' 給与計算 '!K13-税額基本情報!$D$8)*税額基本情報!$E$8,0),0) -> 0 | L10: =IF(AND(' 給与計算 '!K13>=税額基本情報!$D$13,' 給与計算 '!K13<税額基本情報!$D$14),税額基本情報!$F$13+ROUNDDOWN((' 給与計算 '!K13-税額基本情報!$D$13)*税額基本情報!$E$13,0),0) -> 0 | M10: =IF(' 給与計算 '!K13>=税額基本情報!$D$14,税額基本情報!$F$14+ROUNDDOWN((' 給与計算 '!K13-税額基本情報!$D$14)*税額基本情報!$E$14,0),0) -> 0 | N10: =IF(' 賞与計算 '!D13<源泉賞与表!$D$10*1000,0,INDEX(源泉賞与表!$B:$B,MATCH(' 賞与計算 '!D13/1000,源泉賞与表!$D:$D,1))) -> 0 | O10: =IF(' 賞与計算 '!D13<源泉賞与表!$F$10*1000,0,INDEX(源泉賞与表!$B:$B,MATCH(' 賞与計算 '!D13/1000,源泉賞与表!$F:$F,1))) -> 0 | P10: =IF(' 賞与計算 '!D13<源泉賞与表!$H$10*1000,0,INDEX(源泉賞与表!$B:$B,MATCH(' 賞与計算 '!D13/1000,源泉賞与表!$H:$H,1))) -> 0 | Q10: =IF(' 賞与計算 '!D13<源泉賞与表!$J$10*1000,0,INDEX(源泉賞与表!$B:$B,MATCH(' 賞与計算 '!D13/1000,源泉賞与表!$J:$J,1))) -> 0 | R10: =IF(' 賞与計算 '!D13<源泉賞与表!$L$10*1000,0,INDEX(源泉賞与表!$B:$B,MATCH(' 賞与計算 '!D13/1000,源泉賞与表!$L:$L,1))) -> 0 | S10: =IF(' 賞与計算 '!D13<源泉賞与表!$N$10*1000,0,INDEX(源泉賞与表!$B:$B,MATCH(' 賞与計算 '!D13/1000,源泉賞与表!$N:$N,1))) -> 0 | T10: =IF(' 賞与計算 '!D13<源泉賞与表!$P$10*1000,0,INDEX(源泉賞与表!$B:$B,MATCH(' 賞与計算 '!D13/1000,源泉賞与表!$P:$P,1))) -> 0 | U10: =IF(' 賞与計算 '!D13<源泉賞与表!$R$10*1000,0,INDEX(源泉賞与表!$B:$B,MATCH(' 賞与計算 '!D13/1000,源泉賞与表!$R:$R,1))) -> 0 | V10: =IF(' 賞与計算 '!D13="","",IF(' 賞与計算 '!D13<源泉賞与表!$T$22*1000,10.21,INDEX(源泉賞与表!$B:$B,MATCH(' 賞与計算 '!D13/1000,源泉賞与表!$T:$T,1)))) ->  | W10: 0 | X10: =IF(' 基本情報 '!G13="",0,ROUND(VLOOKUP(' 基本情報 '!G13,INDIRECT(' 基本情報 '!$D$3&"!$B$12:$I$61"),6,0)-0.1,0)) -> 0 | Y10: =IF(' 基本情報 '!G13="",0,ROUND(VLOOKUP(' 基本情報 '!G13,INDIRECT(' 基本情報 '!$D$3&"!$B$12:$I$61"),8,0)-0.1,0)) -> 0 | Z10: 0 | AA10: =IF(' 基本情報 '!G13="",0,ROUND(IF(OR(' 基本情報 '!G13<税額基本情報!$E$26,' 基本情報 '!G13>税額基本情報!$E$27),AC10,VLOOKUP(' 基本情報 '!G13,INDIRECT(' 基本情報 '!$D$3&"!$B$16:$M$45"),10,0))-0.1,0)) -> 0 | AB10: =IF(' 基本情報 '!G13="",0,ROUND(IF(OR(' 基本情報 '!G13<税額基本情報!$E$26,' 基本情報 '!G13>税額基本情報!$E$27),AD10,VLOOKUP(' 基本情報 '!G13,INDIRECT(' 基本情報 '!$D$3&"!$B$16:$M$45"),12,0))-0.1,0)) -> 0 | AC10: =IF(' 基本情報 '!G13="",0,IF(' 基本情報 '!G13<税額基本情報!$E$26,税額基本情報!$F$26,IF(' 基本情報 '!G13>税額基本情報!$E$27,税額基本情報!$F$27,0))) -> 0 | AD10: =IF(' 基本情報 '!G13="",0,IF(' 基本情報 '!G13<税額基本情報!$E$26,税額基本情報!$G$26,IF(' 基本情報 '!G13>税額基本情報!$E$27,税額基本情報!$G$27,0))) -> 0 | AE10: 0 | AF10: =ROUND(IF(' 賞与計算 '!F13>税額基本情報!$D$33,税額基本情報!$D$33,ROUNDDOWN(' 賞与計算 '!F13,-3))*INDIRECT(' 基本情報 '!$D$3&"!$F$9")*0.5-0.1,0) -> 0 | AG10: =ROUND(IF(' 賞与計算 '!F13>税額基本情報!$D$33,税額基本情報!$D$33,ROUNDDOWN(' 賞与計算 '!F13,-3))*INDIRECT(' 基本情報 '!$D$3&"!$H$9")/2-0.1,0) -> 0 | AH10: 0 | AI10: =ROUND(IF(' 賞与計算 '!F13>税額基本情報!$D$30,税額基本情報!$D$30,ROUNDDOWN(' 賞与計算 '!F13,-3))*INDIRECT(' 基本情報 '!$D$3&"!$J$9")/2-0.1,0) -> 0 | AJ10: =ROUND(IF(' 賞与計算 '!F13>税額基本情報!$D$30,税額基本情報!$D$30,ROUNDDOWN(' 賞与計算 '!F13,-3))*INDIRECT(' 基本情報 '!$D$3&"!$L$9")/2-0.1,0) -> 0
C11: 7 | D11: =' 給与計算 '!C14 ->  | E11: =MAX(IF(' 給与計算 '!K14>=税額基本情報!$D$6,MAX(計算シート!H11:K11),IF(' 給与計算 '!K14<源泉月額表!$B$8,0,VLOOKUP(' 給与計算 '!K14,源泉月額表!$B:$K,IF(' 基本情報 '!E14>=8,10,' 基本情報 '!E14+3),1)))-IF(' 基本情報 '!E14>=8,(' 基本情報 '!E14-7)*税額基本情報!$D$17,0),0) -> 0 | F11: =IF(' 給与計算 '!K14<源泉月額表!$B$8,ROUNDDOWN(' 給与計算 '!K14*税額基本情報!$D$23,0),IF(' 給与計算 '!K14=0,0,IF(' 給与計算 '!K14>=税額基本情報!$D$13,MAX(L11:M11),VLOOKUP(' 給与計算 '!K14,源泉月額表!$B:$L,11,1)))) -> 0 | G11: =MAX(IF(' 給与計算 '!K14<源泉月額表!$B$8,ROUNDDOWN(' 給与計算 '!K14*3.063%,0),IF(' 給与計算 '!K14=0,0,IF(' 給与計算 '!K14>=税額基本情報!$D$13,MAX(L11:M11),VLOOKUP(' 給与計算 '!K14,源泉月額表!$B:$L,11,1))))-' 基本情報 '!E14*税額基本情報!$D$20,0) -> 0 | H11: =IF(AND(' 給与計算 '!K14>=税額基本情報!$D$6,' 給与計算 '!K14<税額基本情報!$D$7),VLOOKUP(' 給与計算 '!K14,税額基本情報!$D$6:$M$9,IF(' 基本情報 '!E14>=8,10,' 基本情報 '!E14+3),1)+ROUNDDOWN((' 給与計算 '!K14-税額基本情報!$D$6)*税額基本情報!$E$6,0),0) -> 0 | I11: =IF(AND(' 給与計算 '!K14>=税額基本情報!$D$7,' 給与計算 '!K14<税額基本情報!$D$8),VLOOKUP(' 給与計算 '!K14,税額基本情報!$D$6:$M$9,IF(' 基本情報 '!E14>=8,10,' 基本情報 '!E14+3),1)+ROUNDDOWN((' 給与計算 '!K14-税額基本情報!$D$7)*税額基本情報!$E$7,0),0) -> 0 | J11: =IF(' 給与計算 '!K14>=税額基本情報!$D$8,VLOOKUP(' 給与計算 '!K14,税額基本情報!$D$6:$M$9,IF(' 基本情報 '!E14>=8,10,' 基本情報 '!E14+3),1)+ROUNDDOWN((' 給与計算 '!K14-税額基本情報!$D$8)*税額基本情報!$E$8,0),0) -> 0 | L11: =IF(AND(' 給与計算 '!K14>=税額基本情報!$D$13,' 給与計算 '!K14<税額基本情報!$D$14),税額基本情報!$F$13+ROUNDDOWN((' 給与計算 '!K14-税額基本情報!$D$13)*税額基本情報!$E$13,0),0) -> 0 | M11: =IF(' 給与計算 '!K14>=税額基本情報!$D$14,税額基本情報!$F$14+ROUNDDOWN((' 給与計算 '!K14-税額基本情報!$D$14)*税額基本情報!$E$14,0),0) -> 0 | N11: =IF(' 賞与計算 '!D14<源泉賞与表!$D$10*1000,0,INDEX(源泉賞与表!$B:$B,MATCH(' 賞与計算 '!D14/1000,源泉賞与表!$D:$D,1))) -> 0 | O11: =IF(' 賞与計算 '!D14<源泉賞与表!$F$10*1000,0,INDEX(源泉賞与表!$B:$B,MATCH(' 賞与計算 '!D14/1000,源泉賞与表!$F:$F,1))) -> 0 | P11: =IF(' 賞与計算 '!D14<源泉賞与表!$H$10*1000,0,INDEX(源泉賞与表!$B:$B,MATCH(' 賞与計算 '!D14/1000,源泉賞与表!$H:$H,1))) -> 0 | Q11: =IF(' 賞与計算 '!D14<源泉賞与表!$J$10*1000,0,INDEX(源泉賞与表!$B:$B,MATCH(' 賞与計算 '!D14/1000,源泉賞与表!$J:$J,1))) -> 0 | R11: =IF(' 賞与計算 '!D14<源泉賞与表!$L$10*1000,0,INDEX(源泉賞与表!$B:$B,MATCH(' 賞与計算 '!D14/1000,源泉賞与表!$L:$L,1))) -> 0 | S11: =IF(' 賞与計算 '!D14<源泉賞与表!$N$10*1000,0,INDEX(源泉賞与表!$B:$B,MATCH(' 賞与計算 '!D14/1000,源泉賞与表!$N:$N,1))) -> 0 | T11: =IF(' 賞与計算 '!D14<源泉賞与表!$P$10*1000,0,INDEX(源泉賞与表!$B:$B,MATCH(' 賞与計算 '!D14/1000,源泉賞与表!$P:$P,1))) -> 0 | U11: =IF(' 賞与計算 '!D14<源泉賞与表!$R$10*1000,0,INDEX(源泉賞与表!$B:$B,MATCH(' 賞与計算 '!D14/1000,源泉賞与表!$R:$R,1))) -> 0 | V11: =IF(' 賞与計算 '!D14="","",IF(' 賞与計算 '!D14<源泉賞与表!$T$22*1000,10.21,INDEX(源泉賞与表!$B:$B,MATCH(' 賞与計算 '!D14/1000,源泉賞与表!$T:$T,1)))) ->  | W11: 0 | X11: =IF(' 基本情報 '!G14="",0,ROUND(VLOOKUP(' 基本情報 '!G14,INDIRECT(' 基本情報 '!$D$3&"!$B$12:$I$61"),6,0)-0.1,0)) -> 0 | Y11: =IF(' 基本情報 '!G14="",0,ROUND(VLOOKUP(' 基本情報 '!G14,INDIRECT(' 基本情報 '!$D$3&"!$B$12:$I$61"),8,0)-0.1,0)) -> 0 | Z11: 0 | AA11: =IF(' 基本情報 '!G14="",0,ROUND(IF(OR(' 基本情報 '!G14<税額基本情報!$E$26,' 基本情報 '!G14>税額基本情報!$E$27),AC11,VLOOKUP(' 基本情報 '!G14,INDIRECT(' 基本情報 '!$D$3&"!$B$16:$M$45"),10,0))-0.1,0)) -> 0 | AB11: =IF(' 基本情報 '!G14="",0,ROUND(IF(OR(' 基本情報 '!G14<税額基本情報!$E$26,' 基本情報 '!G14>税額基本情報!$E$27),AD11,VLOOKUP(' 基本情報 '!G14,INDIRECT(' 基本情報 '!$D$3&"!$B$16:$M$45"),12,0))-0.1,0)) -> 0 | AC11: =IF(' 基本情報 '!G14="",0,IF(' 基本情報 '!G14<税額基本情報!$E$26,税額基本情報!$F$26,IF(' 基本情報 '!G14>税額基本情報!$E$27,税額基本情報!$F$27,0))) -> 0 | AD11: =IF(' 基本情報 '!G14="",0,IF(' 基本情報 '!G14<税額基本情報!$E$26,税額基本情報!$G$26,IF(' 基本情報 '!G14>税額基本情報!$E$27,税額基本情報!$G$27,0))) -> 0 | AE11: 0 | AF11: =ROUND(IF(' 賞与計算 '!F14>税額基本情報!$D$33,税額基本情報!$D$33,ROUNDDOWN(' 賞与計算 '!F14,-3))*INDIRECT(' 基本情報 '!$D$3&"!$F$9")*0.5-0.1,0) -> 0 | AG11: =ROUND(IF(' 賞与計算 '!F14>税額基本情報!$D$33,税額基本情報!$D$33,ROUNDDOWN(' 賞与計算 '!F14,-3))*INDIRECT(' 基本情報 '!$D$3&"!$H$9")/2-0.1,0) -> 0 | AH11: 0 | AI11: =ROUND(IF(' 賞与計算 '!F14>税額基本情報!$D$30,税額基本情報!$D$30,ROUNDDOWN(' 賞与計算 '!F14,-3))*INDIRECT(' 基本情報 '!$D$3&"!$J$9")/2-0.1,0) -> 0 | AJ11: =ROUND(IF(' 賞与計算 '!F14>税額基本情報!$D$30,税額基本情報!$D$30,ROUNDDOWN(' 賞与計算 '!F14,-3))*INDIRECT(' 基本情報 '!$D$3&"!$L$9")/2-0.1,0) -> 0
C12: 8 | D12: =' 給与計算 '!C15 ->  | E12: =MAX(IF(' 給与計算 '!K15>=税額基本情報!$D$6,MAX(計算シート!H12:K12),IF(' 給与計算 '!K15<源泉月額表!$B$8,0,VLOOKUP(' 給与計算 '!K15,源泉月額表!$B:$K,IF(' 基本情報 '!E15>=8,10,' 基本情報 '!E15+3),1)))-IF(' 基本情報 '!E15>=8,(' 基本情報 '!E15-7)*税額基本情報!$D$17,0),0) -> 0 | F12: =IF(' 給与計算 '!K15<源泉月額表!$B$8,ROUNDDOWN(' 給与計算 '!K15*税額基本情報!$D$23,0),IF(' 給与計算 '!K15=0,0,IF(' 給与計算 '!K15>=税額基本情報!$D$13,MAX(L12:M12),VLOOKUP(' 給与計算 '!K15,源泉月額表!$B:$L,11,1)))) -> 0 | G12: =MAX(IF(' 給与計算 '!K15<源泉月額表!$B$8,ROUNDDOWN(' 給与計算 '!K15*3.063%,0),IF(' 給与計算 '!K15=0,0,IF(' 給与計算 '!K15>=税額基本情報!$D$13,MAX(L12:M12),VLOOKUP(' 給与計算 '!K15,源泉月額表!$B:$L,11,1))))-' 基本情報 '!E15*税額基本情報!$D$20,0) -> 0 | H12: =IF(AND(' 給与計算 '!K15>=税額基本情報!$D$6,' 給与計算 '!K15<税額基本情報!$D$7),VLOOKUP(' 給与計算 '!K15,税額基本情報!$D$6:$M$9,IF(' 基本情報 '!E15>=8,10,' 基本情報 '!E15+3),1)+ROUNDDOWN((' 給与計算 '!K15-税額基本情報!$D$6)*税額基本情報!$E$6,0),0) -> 0 | I12: =IF(AND(' 給与計算 '!K15>=税額基本情報!$D$7,' 給与計算 '!K15<税額基本情報!$D$8),VLOOKUP(' 給与計算 '!K15,税額基本情報!$D$6:$M$9,IF(' 基本情報 '!E15>=8,10,' 基本情報 '!E15+3),1)+ROUNDDOWN((' 給与計算 '!K15-税額基本情報!$D$7)*税額基本情報!$E$7,0),0) -> 0 | J12: =IF(' 給与計算 '!K15>=税額基本情報!$D$8,VLOOKUP(' 給与計算 '!K15,税額基本情報!$D$6:$M$9,IF(' 基本情報 '!E15>=8,10,' 基本情報 '!E15+3),1)+ROUNDDOWN((' 給与計算 '!K15-税額基本情報!$D$8)*税額基本情報!$E$8,0),0) -> 0 | L12: =IF(AND(' 給与計算 '!K15>=税額基本情報!$D$13,' 給与計算 '!K15<税額基本情報!$D$14),税額基本情報!$F$13+ROUNDDOWN((' 給与計算 '!K15-税額基本情報!$D$13)*税額基本情報!$E$13,0),0) -> 0 | M12: =IF(' 給与計算 '!K15>=税額基本情報!$D$14,税額基本情報!$F$14+ROUNDDOWN((' 給与計算 '!K15-税額基本情報!$D$14)*税額基本情報!$E$14,0),0) -> 0 | N12: =IF(' 賞与計算 '!D15<源泉賞与表!$D$10*1000,0,INDEX(源泉賞与表!$B:$B,MATCH(' 賞与計算 '!D15/1000,源泉賞与表!$D:$D,1))) -> 0 | O12: =IF(' 賞与計算 '!D15<源泉賞与表!$F$10*1000,0,INDEX(源泉賞与表!$B:$B,MATCH(' 賞与計算 '!D15/1000,源泉賞与表!$F:$F,1))) -> 0 | P12: =IF(' 賞与計算 '!D15<源泉賞与表!$H$10*1000,0,INDEX(源泉賞与表!$B:$B,MATCH(' 賞与計算 '!D15/1000,源泉賞与表!$H:$H,1))) -> 0 | Q12: =IF(' 賞与計算 '!D15<源泉賞与表!$J$10*1000,0,INDEX(源泉賞与表!$B:$B,MATCH(' 賞与計算 '!D15/1000,源泉賞与表!$J:$J,1))) -> 0 | R12: =IF(' 賞与計算 '!D15<源泉賞与表!$L$10*1000,0,INDEX(源泉賞与表!$B:$B,MATCH(' 賞与計算 '!D15/1000,源泉賞与表!$L:$L,1))) -> 0 | S12: =IF(' 賞与計算 '!D15<源泉賞与表!$N$10*1000,0,INDEX(源泉賞与表!$B:$B,MATCH(' 賞与計算 '!D15/1000,源泉賞与表!$N:$N,1))) -> 0 | T12: =IF(' 賞与計算 '!D15<源泉賞与表!$P$10*1000,0,INDEX(源泉賞与表!$B:$B,MATCH(' 賞与計算 '!D15/1000,源泉賞与表!$P:$P,1))) -> 0 | U12: =IF(' 賞与計算 '!D15<源泉賞与表!$R$10*1000,0,INDEX(源泉賞与表!$B:$B,MATCH(' 賞与計算 '!D15/1000,源泉賞与表!$R:$R,1))) -> 0 | V12: =IF(' 賞与計算 '!D15="","",IF(' 賞与計算 '!D15<源泉賞与表!$T$22*1000,10.21,INDEX(源泉賞与表!$B:$B,MATCH(' 賞与計算 '!D15/1000,源泉賞与表!$T:$T,1)))) ->  | W12: 0 | X12: =IF(' 基本情報 '!G15="",0,ROUND(VLOOKUP(' 基本情報 '!G15,INDIRECT(' 基本情報 '!$D$3&"!$B$12:$I$61"),6,0)-0.1,0)) -> 0 | Y12: =IF(' 基本情報 '!G15="",0,ROUND(VLOOKUP(' 基本情報 '!G15,INDIRECT(' 基本情報 '!$D$3&"!$B$12:$I$61"),8,0)-0.1,0)) -> 0 | Z12: 0 | AA12: =IF(' 基本情報 '!G15="",0,ROUND(IF(OR(' 基本情報 '!G15<税額基本情報!$E$26,' 基本情報 '!G15>税額基本情報!$E$27),AC12,VLOOKUP(' 基本情報 '!G15,INDIRECT(' 基本情報 '!$D$3&"!$B$16:$M$45"),10,0))-0.1,0)) -> 0 | AB12: =IF(' 基本情報 '!G15="",0,ROUND(IF(OR(' 基本情報 '!G15<税額基本情報!$E$26,' 基本情報 '!G15>税額基本情報!$E$27),AD12,VLOOKUP(' 基本情報 '!G15,INDIRECT(' 基本情報 '!$D$3&"!$B$16:$M$45"),12,0))-0.1,0)) -> 0 | AC12: =IF(' 基本情報 '!G15="",0,IF(' 基本情報 '!G15<税額基本情報!$E$26,税額基本情報!$F$26,IF(' 基本情報 '!G15>税額基本情報!$E$27,税額基本情報!$F$27,0))) -> 0 | AD12: =IF(' 基本情報 '!G15="",0,IF(' 基本情報 '!G15<税額基本情報!$E$26,税額基本情報!$G$26,IF(' 基本情報 '!G15>税額基本情報!$E$27,税額基本情報!$G$27,0))) -> 0 | AE12: 0 | AF12: =ROUND(IF(' 賞与計算 '!F15>税額基本情報!$D$33,税額基本情報!$D$33,ROUNDDOWN(' 賞与計算 '!F15,-3))*INDIRECT(' 基本情報 '!$D$3&"!$F$9")*0.5-0.1,0) -> 0 | AG12: =ROUND(IF(' 賞与計算 '!F15>税額基本情報!$D$33,税額基本情報!$D$33,ROUNDDOWN(' 賞与計算 '!F15,-3))*INDIRECT(' 基本情報 '!$D$3&"!$H$9")/2-0.1,0) -> 0 | AH12: 0 | AI12: =ROUND(IF(' 賞与計算 '!F15>税額基本情報!$D$30,税額基本情報!$D$30,ROUNDDOWN(' 賞与計算 '!F15,-3))*INDIRECT(' 基本情報 '!$D$3&"!$J$9")/2-0.1,0) -> 0 | AJ12: =ROUND(IF(' 賞与計算 '!F15>税額基本情報!$D$30,税額基本情報!$D$30,ROUNDDOWN(' 賞与計算 '!F15,-3))*INDIRECT(' 基本情報 '!$D$3&"!$L$9")/2-0.1,0) -> 0
C13: 9 | D13: =' 給与計算 '!C16 ->  | E13: =MAX(IF(' 給与計算 '!K16>=税額基本情報!$D$6,MAX(計算シート!H13:K13),IF(' 給与計算 '!K16<源泉月額表!$B$8,0,VLOOKUP(' 給与計算 '!K16,源泉月額表!$B:$K,IF(' 基本情報 '!E16>=8,10,' 基本情報 '!E16+3),1)))-IF(' 基本情報 '!E16>=8,(' 基本情報 '!E16-7)*税額基本情報!$D$17,0),0) -> 0 | F13: =IF(' 給与計算 '!K16<源泉月額表!$B$8,ROUNDDOWN(' 給与計算 '!K16*税額基本情報!$D$23,0),IF(' 給与計算 '!K16=0,0,IF(' 給与計算 '!K16>=税額基本情報!$D$13,MAX(L13:M13),VLOOKUP(' 給与計算 '!K16,源泉月額表!$B:$L,11,1)))) -> 0 | G13: =MAX(IF(' 給与計算 '!K16<源泉月額表!$B$8,ROUNDDOWN(' 給与計算 '!K16*3.063%,0),IF(' 給与計算 '!K16=0,0,IF(' 給与計算 '!K16>=税額基本情報!$D$13,MAX(L13:M13),VLOOKUP(' 給与計算 '!K16,源泉月額表!$B:$L,11,1))))-' 基本情報 '!E16*税額基本情報!$D$20,0) -> 0 | H13: =IF(AND(' 給与計算 '!K16>=税額基本情報!$D$6,' 給与計算 '!K16<税額基本情報!$D$7),VLOOKUP(' 給与計算 '!K16,税額基本情報!$D$6:$M$9,IF(' 基本情報 '!E16>=8,10,' 基本情報 '!E16+3),1)+ROUNDDOWN((' 給与計算 '!K16-税額基本情報!$D$6)*税額基本情報!$E$6,0),0) -> 0 | I13: =IF(AND(' 給与計算 '!K16>=税額基本情報!$D$7,' 給与計算 '!K16<税額基本情報!$D$8),VLOOKUP(' 給与計算 '!K16,税額基本情報!$D$6:$M$9,IF(' 基本情報 '!E16>=8,10,' 基本情報 '!E16+3),1)+ROUNDDOWN((' 給与計算 '!K16-税額基本情報!$D$7)*税額基本情報!$E$7,0),0) -> 0 | J13: =IF(' 給与計算 '!K16>=税額基本情報!$D$8,VLOOKUP(' 給与計算 '!K16,税額基本情報!$D$6:$M$9,IF(' 基本情報 '!E16>=8,10,' 基本情報 '!E16+3),1)+ROUNDDOWN((' 給与計算 '!K16-税額基本情報!$D$8)*税額基本情報!$E$8,0),0) -> 0 | L13: =IF(AND(' 給与計算 '!K16>=税額基本情報!$D$13,' 給与計算 '!K16<税額基本情報!$D$14),税額基本情報!$F$13+ROUNDDOWN((' 給与計算 '!K16-税額基本情報!$D$13)*税額基本情報!$E$13,0),0) -> 0 | M13: =IF(' 給与計算 '!K16>=税額基本情報!$D$14,税額基本情報!$F$14+ROUNDDOWN((' 給与計算 '!K16-税額基本情報!$D$14)*税額基本情報!$E$14,0),0) -> 0 | N13: =IF(' 賞与計算 '!D16<源泉賞与表!$D$10*1000,0,INDEX(源泉賞与表!$B:$B,MATCH(' 賞与計算 '!D16/1000,源泉賞与表!$D:$D,1))) -> 0 | O13: =IF(' 賞与計算 '!D16<源泉賞与表!$F$10*1000,0,INDEX(源泉賞与表!$B:$B,MATCH(' 賞与計算 '!D16/1000,源泉賞与表!$F:$F,1))) -> 0 | P13: =IF(' 賞与計算 '!D16<源泉賞与表!$H$10*1000,0,INDEX(源泉賞与表!$B:$B,MATCH(' 賞与計算 '!D16/1000,源泉賞与表!$H:$H,1))) -> 0 | Q13: =IF(' 賞与計算 '!D16<源泉賞与表!$J$10*1000,0,INDEX(源泉賞与表!$B:$B,MATCH(' 賞与計算 '!D16/1000,源泉賞与表!$J:$J,1))) -> 0 | R13: =IF(' 賞与計算 '!D16<源泉賞与表!$L$10*1000,0,INDEX(源泉賞与表!$B:$B,MATCH(' 賞与計算 '!D16/1000,源泉賞与表!$L:$L,1))) -> 0 | S13: =IF(' 賞与計算 '!D16<源泉賞与表!$N$10*1000,0,INDEX(源泉賞与表!$B:$B,MATCH(' 賞与計算 '!D16/1000,源泉賞与表!$N:$N,1))) -> 0 | T13: =IF(' 賞与計算 '!D16<源泉賞与表!$P$10*1000,0,INDEX(源泉賞与表!$B:$B,MATCH(' 賞与計算 '!D16/1000,源泉賞与表!$P:$P,1))) -> 0 | U13: =IF(' 賞与計算 '!D16<源泉賞与表!$R$10*1000,0,INDEX(源泉賞与表!$B:$B,MATCH(' 賞与計算 '!D16/1000,源泉賞与表!$R:$R,1))) -> 0 | V13: =IF(' 賞与計算 '!D16="","",IF(' 賞与計算 '!D16<源泉賞与表!$T$22*1000,10.21,INDEX(源泉賞与表!$B:$B,MATCH(' 賞与計算 '!D16/1000,源泉賞与表!$T:$T,1)))) ->  | W13: 0 | X13: =IF(' 基本情報 '!G16="",0,ROUND(VLOOKUP(' 基本情報 '!G16,INDIRECT(' 基本情報 '!$D$3&"!$B$12:$I$61"),6,0)-0.1,0)) -> 0 | Y13: =IF(' 基本情報 '!G16="",0,ROUND(VLOOKUP(' 基本情報 '!G16,INDIRECT(' 基本情報 '!$D$3&"!$B$12:$I$61"),8,0)-0.1,0)) -> 0 | Z13: 0 | AA13: =IF(' 基本情報 '!G16="",0,ROUND(IF(OR(' 基本情報 '!G16<税額基本情報!$E$26,' 基本情報 '!G16>税額基本情報!$E$27),AC13,VLOOKUP(' 基本情報 '!G16,INDIRECT(' 基本情報 '!$D$3&"!$B$16:$M$45"),10,0))-0.1,0)) -> 0 | AB13: =IF(' 基本情報 '!G16="",0,ROUND(IF(OR(' 基本情報 '!G16<税額基本情報!$E$26,' 基本情報 '!G16>税額基本情報!$E$27),AD13,VLOOKUP(' 基本情報 '!G16,INDIRECT(' 基本情報 '!$D$3&"!$B$16:$M$45"),12,0))-0.1,0)) -> 0 | AC13: =IF(' 基本情報 '!G16="",0,IF(' 基本情報 '!G16<税額基本情報!$E$26,税額基本情報!$F$26,IF(' 基本情報 '!G16>税額基本情報!$E$27,税額基本情報!$F$27,0))) -> 0 | AD13: =IF(' 基本情報 '!G16="",0,IF(' 基本情報 '!G16<税額基本情報!$E$26,税額基本情報!$G$26,IF(' 基本情報 '!G16>税額基本情報!$E$27,税額基本情報!$G$27,0))) -> 0 | AE13: 0 | AF13: =ROUND(IF(' 賞与計算 '!F16>税額基本情報!$D$33,税額基本情報!$D$33,ROUNDDOWN(' 賞与計算 '!F16,-3))*INDIRECT(' 基本情報 '!$D$3&"!$F$9")*0.5-0.1,0) -> 0 | AG13: =ROUND(IF(' 賞与計算 '!F16>税額基本情報!$D$33,税額基本情報!$D$33,ROUNDDOWN(' 賞与計算 '!F16,-3))*INDIRECT(' 基本情報 '!$D$3&"!$H$9")/2-0.1,0) -> 0 | AH13: 0 | AI13: =ROUND(IF(' 賞与計算 '!F16>税額基本情報!$D$30,税額基本情報!$D$30,ROUNDDOWN(' 賞与計算 '!F16,-3))*INDIRECT(' 基本情報 '!$D$3&"!$J$9")/2-0.1,0) -> 0 | AJ13: =ROUND(IF(' 賞与計算 '!F16>税額基本情報!$D$30,税額基本情報!$D$30,ROUNDDOWN(' 賞与計算 '!F16,-3))*INDIRECT(' 基本情報 '!$D$3&"!$L$9")/2-0.1,0) -> 0
C14: 10 | D14: =' 給与計算 '!C17 ->  | E14: =MAX(IF(' 給与計算 '!K17>=税額基本情報!$D$6,MAX(計算シート!H14:K14),IF(' 給与計算 '!K17<源泉月額表!$B$8,0,VLOOKUP(' 給与計算 '!K17,源泉月額表!$B:$K,IF(' 基本情報 '!E17>=8,10,' 基本情報 '!E17+3),1)))-IF(' 基本情報 '!E17>=8,(' 基本情報 '!E17-7)*税額基本情報!$D$17,0),0) -> 0 | F14: =IF(' 給与計算 '!K17<源泉月額表!$B$8,ROUNDDOWN(' 給与計算 '!K17*税額基本情報!$D$23,0),IF(' 給与計算 '!K17=0,0,IF(' 給与計算 '!K17>=税額基本情報!$D$13,MAX(L14:M14),VLOOKUP(' 給与計算 '!K17,源泉月額表!$B:$L,11,1)))) -> 0 | G14: =MAX(IF(' 給与計算 '!K17<源泉月額表!$B$8,ROUNDDOWN(' 給与計算 '!K17*3.063%,0),IF(' 給与計算 '!K17=0,0,IF(' 給与計算 '!K17>=税額基本情報!$D$13,MAX(L14:M14),VLOOKUP(' 給与計算 '!K17,源泉月額表!$B:$L,11,1))))-' 基本情報 '!E17*税額基本情報!$D$20,0) -> 0 | H14: =IF(AND(' 給与計算 '!K17>=税額基本情報!$D$6,' 給与計算 '!K17<税額基本情報!$D$7),VLOOKUP(' 給与計算 '!K17,税額基本情報!$D$6:$M$9,IF(' 基本情報 '!E17>=8,10,' 基本情報 '!E17+3),1)+ROUNDDOWN((' 給与計算 '!K17-税額基本情報!$D$6)*税額基本情報!$E$6,0),0) -> 0 | I14: =IF(AND(' 給与計算 '!K17>=税額基本情報!$D$7,' 給与計算 '!K17<税額基本情報!$D$8),VLOOKUP(' 給与計算 '!K17,税額基本情報!$D$6:$M$9,IF(' 基本情報 '!E17>=8,10,' 基本情報 '!E17+3),1)+ROUNDDOWN((' 給与計算 '!K17-税額基本情報!$D$7)*税額基本情報!$E$7,0),0) -> 0 | J14: =IF(' 給与計算 '!K17>=税額基本情報!$D$8,VLOOKUP(' 給与計算 '!K17,税額基本情報!$D$6:$M$9,IF(' 基本情報 '!E17>=8,10,' 基本情報 '!E17+3),1)+ROUNDDOWN((' 給与計算 '!K17-税額基本情報!$D$8)*税額基本情報!$E$8,0),0) -> 0 | L14: =IF(AND(' 給与計算 '!K17>=税額基本情報!$D$13,' 給与計算 '!K17<税額基本情報!$D$14),税額基本情報!$F$13+ROUNDDOWN((' 給与計算 '!K17-税額基本情報!$D$13)*税額基本情報!$E$13,0),0) -> 0 | M14: =IF(' 給与計算 '!K17>=税額基本情報!$D$14,税額基本情報!$F$14+ROUNDDOWN((' 給与計算 '!K17-税額基本情報!$D$14)*税額基本情報!$E$14,0),0) -> 0 | N14: =IF(' 賞与計算 '!D17<源泉賞与表!$D$10*1000,0,INDEX(源泉賞与表!$B:$B,MATCH(' 賞与計算 '!D17/1000,源泉賞与表!$D:$D,1))) -> 0 | O14: =IF(' 賞与計算 '!D17<源泉賞与表!$F$10*1000,0,INDEX(源泉賞与表!$B:$B,MATCH(' 賞与計算 '!D17/1000,源泉賞与表!$F:$F,1))) -> 0 | P14: =IF(' 賞与計算 '!D17<源泉賞与表!$H$10*1000,0,INDEX(源泉賞与表!$B:$B,MATCH(' 賞与計算 '!D17/1000,源泉賞与表!$H:$H,1))) -> 0 | Q14: =IF(' 賞与計算 '!D17<源泉賞与表!$J$10*1000,0,INDEX(源泉賞与表!$B:$B,MATCH(' 賞与計算 '!D17/1000,源泉賞与表!$J:$J,1))) -> 0 | R14: =IF(' 賞与計算 '!D17<源泉賞与表!$L$10*1000,0,INDEX(源泉賞与表!$B:$B,MATCH(' 賞与計算 '!D17/1000,源泉賞与表!$L:$L,1))) -> 0 | S14: =IF(' 賞与計算 '!D17<源泉賞与表!$N$10*1000,0,INDEX(源泉賞与表!$B:$B,MATCH(' 賞与計算 '!D17/1000,源泉賞与表!$N:$N,1))) -> 0 | T14: =IF(' 賞与計算 '!D17<源泉賞与表!$P$10*1000,0,INDEX(源泉賞与表!$B:$B,MATCH(' 賞与計算 '!D17/1000,源泉賞与表!$P:$P,1))) -> 0 | U14: =IF(' 賞与計算 '!D17<源泉賞与表!$R$10*1000,0,INDEX(源泉賞与表!$B:$B,MATCH(' 賞与計算 '!D17/1000,源泉賞与表!$R:$R,1))) -> 0 | V14: =IF(' 賞与計算 '!D17="","",IF(' 賞与計算 '!D17<源泉賞与表!$T$22*1000,10.21,INDEX(源泉賞与表!$B:$B,MATCH(' 賞与計算 '!D17/1000,源泉賞与表!$T:$T,1)))) ->  | W14: 0 | X14: =IF(' 基本情報 '!G17="",0,ROUND(VLOOKUP(' 基本情報 '!G17,INDIRECT(' 基本情報 '!$D$3&"!$B$12:$I$61"),6,0)-0.1,0)) -> 0 | Y14: =IF(' 基本情報 '!G17="",0,ROUND(VLOOKUP(' 基本情報 '!G17,INDIRECT(' 基本情報 '!$D$3&"!$B$12:$I$61"),8,0)-0.1,0)) -> 0 | Z14: 0 | AA14: =IF(' 基本情報 '!G17="",0,ROUND(IF(OR(' 基本情報 '!G17<税額基本情報!$E$26,' 基本情報 '!G17>税額基本情報!$E$27),AC14,VLOOKUP(' 基本情報 '!G17,INDIRECT(' 基本情報 '!$D$3&"!$B$16:$M$45"),10,0))-0.1,0)) -> 0 | AB14: =IF(' 基本情報 '!G17="",0,ROUND(IF(OR(' 基本情報 '!G17<税額基本情報!$E$26,' 基本情報 '!G17>税額基本情報!$E$27),AD14,VLOOKUP(' 基本情報 '!G17,INDIRECT(' 基本情報 '!$D$3&"!$B$16:$M$45"),12,0))-0.1,0)) -> 0 | AC14: =IF(' 基本情報 '!G17="",0,IF(' 基本情報 '!G17<税額基本情報!$E$26,税額基本情報!$F$26,IF(' 基本情報 '!G17>税額基本情報!$E$27,税額基本情報!$F$27,0))) -> 0 | AD14: =IF(' 基本情報 '!G17="",0,IF(' 基本情報 '!G17<税額基本情報!$E$26,税額基本情報!$G$26,IF(' 基本情報 '!G17>税額基本情報!$E$27,税額基本情報!$G$27,0))) -> 0 | AE14: 0 | AF14: =ROUND(IF(' 賞与計算 '!F17>税額基本情報!$D$33,税額基本情報!$D$33,ROUNDDOWN(' 賞与計算 '!F17,-3))*INDIRECT(' 基本情報 '!$D$3&"!$F$9")*0.5-0.1,0) -> 0 | AG14: =ROUND(IF(' 賞与計算 '!F17>税額基本情報!$D$33,税額基本情報!$D$33,ROUNDDOWN(' 賞与計算 '!F17,-3))*INDIRECT(' 基本情報 '!$D$3&"!$H$9")/2-0.1,0) -> 0 | AH14: 0 | AI14: =ROUND(IF(' 賞与計算 '!F17>税額基本情報!$D$30,税額基本情報!$D$30,ROUNDDOWN(' 賞与計算 '!F17,-3))*INDIRECT(' 基本情報 '!$D$3&"!$J$9")/2-0.1,0) -> 0 | AJ14: =ROUND(IF(' 賞与計算 '!F17>税額基本情報!$D$30,税額基本情報!$D$30,ROUNDDOWN(' 賞与計算 '!F17,-3))*INDIRECT(' 基本情報 '!$D$3&"!$L$9")/2-0.1,0) -> 0
C15: 11 | D15: =' 給与計算 '!C18 ->  | E15: =MAX(IF(' 給与計算 '!K18>=税額基本情報!$D$6,MAX(計算シート!H15:K15),IF(' 給与計算 '!K18<源泉月額表!$B$8,0,VLOOKUP(' 給与計算 '!K18,源泉月額表!$B:$K,IF(' 基本情報 '!E18>=8,10,' 基本情報 '!E18+3),1)))-IF(' 基本情報 '!E18>=8,(' 基本情報 '!E18-7)*税額基本情報!$D$17,0),0) -> 0 | F15: =IF(' 給与計算 '!K18<源泉月額表!$B$8,ROUNDDOWN(' 給与計算 '!K18*税額基本情報!$D$23,0),IF(' 給与計算 '!K18=0,0,IF(' 給与計算 '!K18>=税額基本情報!$D$13,MAX(L15:M15),VLOOKUP(' 給与計算 '!K18,源泉月額表!$B:$L,11,1)))) -> 0 | G15: =MAX(IF(' 給与計算 '!K18<源泉月額表!$B$8,ROUNDDOWN(' 給与計算 '!K18*3.063%,0),IF(' 給与計算 '!K18=0,0,IF(' 給与計算 '!K18>=税額基本情報!$D$13,MAX(L15:M15),VLOOKUP(' 給与計算 '!K18,源泉月額表!$B:$L,11,1))))-' 基本情報 '!E18*税額基本情報!$D$20,0) -> 0 | H15: =IF(AND(' 給与計算 '!K18>=税額基本情報!$D$6,' 給与計算 '!K18<税額基本情報!$D$7),VLOOKUP(' 給与計算 '!K18,税額基本情報!$D$6:$M$9,IF(' 基本情報 '!E18>=8,10,' 基本情報 '!E18+3),1)+ROUNDDOWN((' 給与計算 '!K18-税額基本情報!$D$6)*税額基本情報!$E$6,0),0) -> 0 | I15: =IF(AND(' 給与計算 '!K18>=税額基本情報!$D$7,' 給与計算 '!K18<税額基本情報!$D$8),VLOOKUP(' 給与計算 '!K18,税額基本情報!$D$6:$M$9,IF(' 基本情報 '!E18>=8,10,' 基本情報 '!E18+3),1)+ROUNDDOWN((' 給与計算 '!K18-税額基本情報!$D$7)*税額基本情報!$E$7,0),0) -> 0 | J15: =IF(' 給与計算 '!K18>=税額基本情報!$D$8,VLOOKUP(' 給与計算 '!K18,税額基本情報!$D$6:$M$9,IF(' 基本情報 '!E18>=8,10,' 基本情報 '!E18+3),1)+ROUNDDOWN((' 給与計算 '!K18-税額基本情報!$D$8)*税額基本情報!$E$8,0),0) -> 0 | L15: =IF(AND(' 給与計算 '!K18>=税額基本情報!$D$13,' 給与計算 '!K18<税額基本情報!$D$14),税額基本情報!$F$13+ROUNDDOWN((' 給与計算 '!K18-税額基本情報!$D$13)*税額基本情報!$E$13,0),0) -> 0 | M15: =IF(' 給与計算 '!K18>=税額基本情報!$D$14,税額基本情報!$F$14+ROUNDDOWN((' 給与計算 '!K18-税額基本情報!$D$14)*税額基本情報!$E$14,0),0) -> 0 | N15: =IF(' 賞与計算 '!D18<源泉賞与表!$D$10*1000,0,INDEX(源泉賞与表!$B:$B,MATCH(' 賞与計算 '!D18/1000,源泉賞与表!$D:$D,1))) -> 0 | O15: =IF(' 賞与計算 '!D18<源泉賞与表!$F$10*1000,0,INDEX(源泉賞与表!$B:$B,MATCH(' 賞与計算 '!D18/1000,源泉賞与表!$F:$F,1))) -> 0 | P15: =IF(' 賞与計算 '!D18<源泉賞与表!$H$10*1000,0,INDEX(源泉賞与表!$B:$B,MATCH(' 賞与計算 '!D18/1000,源泉賞与表!$H:$H,1))) -> 0 | Q15: =IF(' 賞与計算 '!D18<源泉賞与表!$J$10*1000,0,INDEX(源泉賞与表!$B:$B,MATCH(' 賞与計算 '!D18/1000,源泉賞与表!$J:$J,1))) -> 0 | R15: =IF(' 賞与計算 '!D18<源泉賞与表!$L$10*1000,0,INDEX(源泉賞与表!$B:$B,MATCH(' 賞与計算 '!D18/1000,源泉賞与表!$L:$L,1))) -> 0 | S15: =IF(' 賞与計算 '!D18<源泉賞与表!$N$10*1000,0,INDEX(源泉賞与表!$B:$B,MATCH(' 賞与計算 '!D18/1000,源泉賞与表!$N:$N,1))) -> 0 | T15: =IF(' 賞与計算 '!D18<源泉賞与表!$P$10*1000,0,INDEX(源泉賞与表!$B:$B,MATCH(' 賞与計算 '!D18/1000,源泉賞与表!$P:$P,1))) -> 0 | U15: =IF(' 賞与計算 '!D18<源泉賞与表!$R$10*1000,0,INDEX(源泉賞与表!$B:$B,MATCH(' 賞与計算 '!D18/1000,源泉賞与表!$R:$R,1))) -> 0 | V15: =IF(' 賞与計算 '!D18="","",IF(' 賞与計算 '!D18<源泉賞与表!$T$22*1000,10.21,INDEX(源泉賞与表!$B:$B,MATCH(' 賞与計算 '!D18/1000,源泉賞与表!$T:$T,1)))) ->  | W15: 0 | X15: =IF(' 基本情報 '!G18="",0,ROUND(VLOOKUP(' 基本情報 '!G18,INDIRECT(' 基本情報 '!$D$3&"!$B$12:$I$61"),6,0)-0.1,0)) -> 0 | Y15: =IF(' 基本情報 '!G18="",0,ROUND(VLOOKUP(' 基本情報 '!G18,INDIRECT(' 基本情報 '!$D$3&"!$B$12:$I$61"),8,0)-0.1,0)) -> 0 | Z15: 0 | AA15: =IF(' 基本情報 '!G18="",0,ROUND(IF(OR(' 基本情報 '!G18<税額基本情報!$E$26,' 基本情報 '!G18>税額基本情報!$E$27),AC15,VLOOKUP(' 基本情報 '!G18,INDIRECT(' 基本情報 '!$D$3&"!$B$16:$M$45"),10,0))-0.1,0)) -> 0 | AB15: =IF(' 基本情報 '!G18="",0,ROUND(IF(OR(' 基本情報 '!G18<税額基本情報!$E$26,' 基本情報 '!G18>税額基本情報!$E$27),AD15,VLOOKUP(' 基本情報 '!G18,INDIRECT(' 基本情報 '!$D$3&"!$B$16:$M$45"),12,0))-0.1,0)) -> 0 | AC15: =IF(' 基本情報 '!G18="",0,IF(' 基本情報 '!G18<税額基本情報!$E$26,税額基本情報!$F$26,IF(' 基本情報 '!G18>税額基本情報!$E$27,税額基本情報!$F$27,0))) -> 0 | AD15: =IF(' 基本情報 '!G18="",0,IF(' 基本情報 '!G18<税額基本情報!$E$26,税額基本情報!$G$26,IF(' 基本情報 '!G18>税額基本情報!$E$27,税額基本情報!$G$27,0))) -> 0 | AE15: 0 | AF15: =ROUND(IF(' 賞与計算 '!F18>税額基本情報!$D$33,税額基本情報!$D$33,ROUNDDOWN(' 賞与計算 '!F18,-3))*INDIRECT(' 基本情報 '!$D$3&"!$F$9")*0.5-0.1,0) -> 0 | AG15: =ROUND(IF(' 賞与計算 '!F18>税額基本情報!$D$33,税額基本情報!$D$33,ROUNDDOWN(' 賞与計算 '!F18,-3))*INDIRECT(' 基本情報 '!$D$3&"!$H$9")/2-0.1,0) -> 0 | AH15: 0 | AI15: =ROUND(IF(' 賞与計算 '!F18>税額基本情報!$D$30,税額基本情報!$D$30,ROUNDDOWN(' 賞与計算 '!F18,-3))*INDIRECT(' 基本情報 '!$D$3&"!$J$9")/2-0.1,0) -> 0 | AJ15: =ROUND(IF(' 賞与計算 '!F18>税額基本情報!$D$30,税額基本情報!$D$30,ROUNDDOWN(' 賞与計算 '!F18,-3))*INDIRECT(' 基本情報 '!$D$3&"!$L$9")/2-0.1,0) -> 0
C16: 12 | D16: =' 給与計算 '!C19 ->  | E16: =MAX(IF(' 給与計算 '!K19>=税額基本情報!$D$6,MAX(計算シート!H16:K16),IF(' 給与計算 '!K19<源泉月額表!$B$8,0,VLOOKUP(' 給与計算 '!K19,源泉月額表!$B:$K,IF(' 基本情報 '!E19>=8,10,' 基本情報 '!E19+3),1)))-IF(' 基本情報 '!E19>=8,(' 基本情報 '!E19-7)*税額基本情報!$D$17,0),0) -> 0 | F16: =IF(' 給与計算 '!K19<源泉月額表!$B$8,ROUNDDOWN(' 給与計算 '!K19*税額基本情報!$D$23,0),IF(' 給与計算 '!K19=0,0,IF(' 給与計算 '!K19>=税額基本情報!$D$13,MAX(L16:M16),VLOOKUP(' 給与計算 '!K19,源泉月額表!$B:$L,11,1)))) -> 0 | G16: =MAX(IF(' 給与計算 '!K19<源泉月額表!$B$8,ROUNDDOWN(' 給与計算 '!K19*3.063%,0),IF(' 給与計算 '!K19=0,0,IF(' 給与計算 '!K19>=税額基本情報!$D$13,MAX(L16:M16),VLOOKUP(' 給与計算 '!K19,源泉月額表!$B:$L,11,1))))-' 基本情報 '!E19*税額基本情報!$D$20,0) -> 0 | H16: =IF(AND(' 給与計算 '!K19>=税額基本情報!$D$6,' 給与計算 '!K19<税額基本情報!$D$7),VLOOKUP(' 給与計算 '!K19,税額基本情報!$D$6:$M$9,IF(' 基本情報 '!E19>=8,10,' 基本情報 '!E19+3),1)+ROUNDDOWN((' 給与計算 '!K19-税額基本情報!$D$6)*税額基本情報!$E$6,0),0) -> 0 | I16: =IF(AND(' 給与計算 '!K19>=税額基本情報!$D$7,' 給与計算 '!K19<税額基本情報!$D$8),VLOOKUP(' 給与計算 '!K19,税額基本情報!$D$6:$M$9,IF(' 基本情報 '!E19>=8,10,' 基本情報 '!E19+3),1)+ROUNDDOWN((' 給与計算 '!K19-税額基本情報!$D$7)*税額基本情報!$E$7,0),0) -> 0 | J16: =IF(' 給与計算 '!K19>=税額基本情報!$D$8,VLOOKUP(' 給与計算 '!K19,税額基本情報!$D$6:$M$9,IF(' 基本情報 '!E19>=8,10,' 基本情報 '!E19+3),1)+ROUNDDOWN((' 給与計算 '!K19-税額基本情報!$D$8)*税額基本情報!$E$8,0),0) -> 0 | L16: =IF(AND(' 給与計算 '!K19>=税額基本情報!$D$13,' 給与計算 '!K19<税額基本情報!$D$14),税額基本情報!$F$13+ROUNDDOWN((' 給与計算 '!K19-税額基本情報!$D$13)*税額基本情報!$E$13,0),0) -> 0 | M16: =IF(' 給与計算 '!K19>=税額基本情報!$D$14,税額基本情報!$F$14+ROUNDDOWN((' 給与計算 '!K19-税額基本情報!$D$14)*税額基本情報!$E$14,0),0) -> 0 | N16: =IF(' 賞与計算 '!D19<源泉賞与表!$D$10*1000,0,INDEX(源泉賞与表!$B:$B,MATCH(' 賞与計算 '!D19/1000,源泉賞与表!$D:$D,1))) -> 0 | O16: =IF(' 賞与計算 '!D19<源泉賞与表!$F$10*1000,0,INDEX(源泉賞与表!$B:$B,MATCH(' 賞与計算 '!D19/1000,源泉賞与表!$F:$F,1))) -> 0 | P16: =IF(' 賞与計算 '!D19<源泉賞与表!$H$10*1000,0,INDEX(源泉賞与表!$B:$B,MATCH(' 賞与計算 '!D19/1000,源泉賞与表!$H:$H,1))) -> 0 | Q16: =IF(' 賞与計算 '!D19<源泉賞与表!$J$10*1000,0,INDEX(源泉賞与表!$B:$B,MATCH(' 賞与計算 '!D19/1000,源泉賞与表!$J:$J,1))) -> 0 | R16: =IF(' 賞与計算 '!D19<源泉賞与表!$L$10*1000,0,INDEX(源泉賞与表!$B:$B,MATCH(' 賞与計算 '!D19/1000,源泉賞与表!$L:$L,1))) -> 0 | S16: =IF(' 賞与計算 '!D19<源泉賞与表!$N$10*1000,0,INDEX(源泉賞与表!$B:$B,MATCH(' 賞与計算 '!D19/1000,源泉賞与表!$N:$N,1))) -> 0 | T16: =IF(' 賞与計算 '!D19<源泉賞与表!$P$10*1000,0,INDEX(源泉賞与表!$B:$B,MATCH(' 賞与計算 '!D19/1000,源泉賞与表!$P:$P,1))) -> 0 | U16: =IF(' 賞与計算 '!D19<源泉賞与表!$R$10*1000,0,INDEX(源泉賞与表!$B:$B,MATCH(' 賞与計算 '!D19/1000,源泉賞与表!$R:$R,1))) -> 0 | V16: =IF(' 賞与計算 '!D19="","",IF(' 賞与計算 '!D19<源泉賞与表!$T$22*1000,10.21,INDEX(源泉賞与表!$B:$B,MATCH(' 賞与計算 '!D19/1000,源泉賞与表!$T:$T,1)))) ->  | W16: 0 | X16: =IF(' 基本情報 '!G19="",0,ROUND(VLOOKUP(' 基本情報 '!G19,INDIRECT(' 基本情報 '!$D$3&"!$B$12:$I$61"),6,0)-0.1,0)) -> 0 | Y16: =IF(' 基本情報 '!G19="",0,ROUND(VLOOKUP(' 基本情報 '!G19,INDIRECT(' 基本情報 '!$D$3&"!$B$12:$I$61"),8,0)-0.1,0)) -> 0 | Z16: 0 | AA16: =IF(' 基本情報 '!G19="",0,ROUND(IF(OR(' 基本情報 '!G19<税額基本情報!$E$26,' 基本情報 '!G19>税額基本情報!$E$27),AC16,VLOOKUP(' 基本情報 '!G19,INDIRECT(' 基本情報 '!$D$3&"!$B$16:$M$45"),10,0))-0.1,0)) -> 0 | AB16: =IF(' 基本情報 '!G19="",0,ROUND(IF(OR(' 基本情報 '!G19<税額基本情報!$E$26,' 基本情報 '!G19>税額基本情報!$E$27),AD16,VLOOKUP(' 基本情報 '!G19,INDIRECT(' 基本情報 '!$D$3&"!$B$16:$M$45"),12,0))-0.1,0)) -> 0 | AC16: =IF(' 基本情報 '!G19="",0,IF(' 基本情報 '!G19<税額基本情報!$E$26,税額基本情報!$F$26,IF(' 基本情報 '!G19>税額基本情報!$E$27,税額基本情報!$F$27,0))) -> 0 | AD16: =IF(' 基本情報 '!G19="",0,IF(' 基本情報 '!G19<税額基本情報!$E$26,税額基本情報!$G$26,IF(' 基本情報 '!G19>税額基本情報!$E$27,税額基本情報!$G$27,0))) -> 0 | AE16: 0 | AF16: =ROUND(IF(' 賞与計算 '!F19>税額基本情報!$D$33,税額基本情報!$D$33,ROUNDDOWN(' 賞与計算 '!F19,-3))*INDIRECT(' 基本情報 '!$D$3&"!$F$9")*0.5-0.1,0) -> 0 | AG16: =ROUND(IF(' 賞与計算 '!F19>税額基本情報!$D$33,税額基本情報!$D$33,ROUNDDOWN(' 賞与計算 '!F19,-3))*INDIRECT(' 基本情報 '!$D$3&"!$H$9")/2-0.1,0) -> 0 | AH16: 0 | AI16: =ROUND(IF(' 賞与計算 '!F19>税額基本情報!$D$30,税額基本情報!$D$30,ROUNDDOWN(' 賞与計算 '!F19,-3))*INDIRECT(' 基本情報 '!$D$3&"!$J$9")/2-0.1,0) -> 0 | AJ16: =ROUND(IF(' 賞与計算 '!F19>税額基本情報!$D$30,税額基本情報!$D$30,ROUNDDOWN(' 賞与計算 '!F19,-3))*INDIRECT(' 基本情報 '!$D$3&"!$L$9")/2-0.1,0) -> 0
C17: 13 | D17: =' 給与計算 '!C20 ->  | E17: =MAX(IF(' 給与計算 '!K20>=税額基本情報!$D$6,MAX(計算シート!H17:K17),IF(' 給与計算 '!K20<源泉月額表!$B$8,0,VLOOKUP(' 給与計算 '!K20,源泉月額表!$B:$K,IF(' 基本情報 '!E20>=8,10,' 基本情報 '!E20+3),1)))-IF(' 基本情報 '!E20>=8,(' 基本情報 '!E20-7)*税額基本情報!$D$17,0),0) -> 0 | F17: =IF(' 給与計算 '!K20<源泉月額表!$B$8,ROUNDDOWN(' 給与計算 '!K20*税額基本情報!$D$23,0),IF(' 給与計算 '!K20=0,0,IF(' 給与計算 '!K20>=税額基本情報!$D$13,MAX(L17:M17),VLOOKUP(' 給与計算 '!K20,源泉月額表!$B:$L,11,1)))) -> 0 | G17: =MAX(IF(' 給与計算 '!K20<源泉月額表!$B$8,ROUNDDOWN(' 給与計算 '!K20*3.063%,0),IF(' 給与計算 '!K20=0,0,IF(' 給与計算 '!K20>=税額基本情報!$D$13,MAX(L17:M17),VLOOKUP(' 給与計算 '!K20,源泉月額表!$B:$L,11,1))))-' 基本情報 '!E20*税額基本情報!$D$20,0) -> 0 | H17: =IF(AND(' 給与計算 '!K20>=税額基本情報!$D$6,' 給与計算 '!K20<税額基本情報!$D$7),VLOOKUP(' 給与計算 '!K20,税額基本情報!$D$6:$M$9,IF(' 基本情報 '!E20>=8,10,' 基本情報 '!E20+3),1)+ROUNDDOWN((' 給与計算 '!K20-税額基本情報!$D$6)*税額基本情報!$E$6,0),0) -> 0 | I17: =IF(AND(' 給与計算 '!K20>=税額基本情報!$D$7,' 給与計算 '!K20<税額基本情報!$D$8),VLOOKUP(' 給与計算 '!K20,税額基本情報!$D$6:$M$9,IF(' 基本情報 '!E20>=8,10,' 基本情報 '!E20+3),1)+ROUNDDOWN((' 給与計算 '!K20-税額基本情報!$D$7)*税額基本情報!$E$7,0),0) -> 0 | J17: =IF(' 給与計算 '!K20>=税額基本情報!$D$8,VLOOKUP(' 給与計算 '!K20,税額基本情報!$D$6:$M$9,IF(' 基本情報 '!E20>=8,10,' 基本情報 '!E20+3),1)+ROUNDDOWN((' 給与計算 '!K20-税額基本情報!$D$8)*税額基本情報!$E$8,0),0) -> 0 | L17: =IF(AND(' 給与計算 '!K20>=税額基本情報!$D$13,' 給与計算 '!K20<税額基本情報!$D$14),税額基本情報!$F$13+ROUNDDOWN((' 給与計算 '!K20-税額基本情報!$D$13)*税額基本情報!$E$13,0),0) -> 0 | M17: =IF(' 給与計算 '!K20>=税額基本情報!$D$14,税額基本情報!$F$14+ROUNDDOWN((' 給与計算 '!K20-税額基本情報!$D$14)*税額基本情報!$E$14,0),0) -> 0 | N17: =IF(' 賞与計算 '!D20<源泉賞与表!$D$10*1000,0,INDEX(源泉賞与表!$B:$B,MATCH(' 賞与計算 '!D20/1000,源泉賞与表!$D:$D,1))) -> 0 | O17: =IF(' 賞与計算 '!D20<源泉賞与表!$F$10*1000,0,INDEX(源泉賞与表!$B:$B,MATCH(' 賞与計算 '!D20/1000,源泉賞与表!$F:$F,1))) -> 0 | P17: =IF(' 賞与計算 '!D20<源泉賞与表!$H$10*1000,0,INDEX(源泉賞与表!$B:$B,MATCH(' 賞与計算 '!D20/1000,源泉賞与表!$H:$H,1))) -> 0 | Q17: =IF(' 賞与計算 '!D20<源泉賞与表!$J$10*1000,0,INDEX(源泉賞与表!$B:$B,MATCH(' 賞与計算 '!D20/1000,源泉賞与表!$J:$J,1))) -> 0 | R17: =IF(' 賞与計算 '!D20<源泉賞与表!$L$10*1000,0,INDEX(源泉賞与表!$B:$B,MATCH(' 賞与計算 '!D20/1000,源泉賞与表!$L:$L,1))) -> 0 | S17: =IF(' 賞与計算 '!D20<源泉賞与表!$N$10*1000,0,INDEX(源泉賞与表!$B:$B,MATCH(' 賞与計算 '!D20/1000,源泉賞与表!$N:$N,1))) -> 0 | T17: =IF(' 賞与計算 '!D20<源泉賞与表!$P$10*1000,0,INDEX(源泉賞与表!$B:$B,MATCH(' 賞与計算 '!D20/1000,源泉賞与表!$P:$P,1))) -> 0 | U17: =IF(' 賞与計算 '!D20<源泉賞与表!$R$10*1000,0,INDEX(源泉賞与表!$B:$B,MATCH(' 賞与計算 '!D20/1000,源泉賞与表!$R:$R,1))) -> 0 | V17: =IF(' 賞与計算 '!D20="","",IF(' 賞与計算 '!D20<源泉賞与表!$T$22*1000,10.21,INDEX(源泉賞与表!$B:$B,MATCH(' 賞与計算 '!D20/1000,源泉賞与表!$T:$T,1)))) ->  | W17: 0 | X17: =IF(' 基本情報 '!G20="",0,ROUND(VLOOKUP(' 基本情報 '!G20,INDIRECT(' 基本情報 '!$D$3&"!$B$12:$I$61"),6,0)-0.1,0)) -> 0 | Y17: =IF(' 基本情報 '!G20="",0,ROUND(VLOOKUP(' 基本情報 '!G20,INDIRECT(' 基本情報 '!$D$3&"!$B$12:$I$61"),8,0)-0.1,0)) -> 0 | Z17: 0 | AA17: =IF(' 基本情報 '!G20="",0,ROUND(IF(OR(' 基本情報 '!G20<税額基本情報!$E$26,' 基本情報 '!G20>税額基本情報!$E$27),AC17,VLOOKUP(' 基本情報 '!G20,INDIRECT(' 基本情報 '!$D$3&"!$B$16:$M$45"),10,0))-0.1,0)) -> 0 | AB17: =IF(' 基本情報 '!G20="",0,ROUND(IF(OR(' 基本情報 '!G20<税額基本情報!$E$26,' 基本情報 '!G20>税額基本情報!$E$27),AD17,VLOOKUP(' 基本情報 '!G20,INDIRECT(' 基本情報 '!$D$3&"!$B$16:$M$45"),12,0))-0.1,0)) -> 0 | AC17: =IF(' 基本情報 '!G20="",0,IF(' 基本情報 '!G20<税額基本情報!$E$26,税額基本情報!$F$26,IF(' 基本情報 '!G20>税額基本情報!$E$27,税額基本情報!$F$27,0))) -> 0 | AD17: =IF(' 基本情報 '!G20="",0,IF(' 基本情報 '!G20<税額基本情報!$E$26,税額基本情報!$G$26,IF(' 基本情報 '!G20>税額基本情報!$E$27,税額基本情報!$G$27,0))) -> 0 | AE17: 0 | AF17: =ROUND(IF(' 賞与計算 '!F20>税額基本情報!$D$33,税額基本情報!$D$33,ROUNDDOWN(' 賞与計算 '!F20,-3))*INDIRECT(' 基本情報 '!$D$3&"!$F$9")*0.5-0.1,0) -> 0 | AG17: =ROUND(IF(' 賞与計算 '!F20>税額基本情報!$D$33,税額基本情報!$D$33,ROUNDDOWN(' 賞与計算 '!F20,-3))*INDIRECT(' 基本情報 '!$D$3&"!$H$9")/2-0.1,0) -> 0 | AH17: 0 | AI17: =ROUND(IF(' 賞与計算 '!F20>税額基本情報!$D$30,税額基本情報!$D$30,ROUNDDOWN(' 賞与計算 '!F20,-3))*INDIRECT(' 基本情報 '!$D$3&"!$J$9")/2-0.1,0) -> 0 | AJ17: =ROUND(IF(' 賞与計算 '!F20>税額基本情報!$D$30,税額基本情報!$D$30,ROUNDDOWN(' 賞与計算 '!F20,-3))*INDIRECT(' 基本情報 '!$D$3&"!$L$9")/2-0.1,0) -> 0
C18: 14 | D18: =' 給与計算 '!C21 ->  | E18: =MAX(IF(' 給与計算 '!K21>=税額基本情報!$D$6,MAX(計算シート!H18:K18),IF(' 給与計算 '!K21<源泉月額表!$B$8,0,VLOOKUP(' 給与計算 '!K21,源泉月額表!$B:$K,IF(' 基本情報 '!E21>=8,10,' 基本情報 '!E21+3),1)))-IF(' 基本情報 '!E21>=8,(' 基本情報 '!E21-7)*税額基本情報!$D$17,0),0) -> 0 | F18: =IF(' 給与計算 '!K21<源泉月額表!$B$8,ROUNDDOWN(' 給与計算 '!K21*税額基本情報!$D$23,0),IF(' 給与計算 '!K21=0,0,IF(' 給与計算 '!K21>=税額基本情報!$D$13,MAX(L18:M18),VLOOKUP(' 給与計算 '!K21,源泉月額表!$B:$L,11,1)))) -> 0 | G18: =MAX(IF(' 給与計算 '!K21<源泉月額表!$B$8,ROUNDDOWN(' 給与計算 '!K21*3.063%,0),IF(' 給与計算 '!K21=0,0,IF(' 給与計算 '!K21>=税額基本情報!$D$13,MAX(L18:M18),VLOOKUP(' 給与計算 '!K21,源泉月額表!$B:$L,11,1))))-' 基本情報 '!E21*税額基本情報!$D$20,0) -> 0 | H18: =IF(AND(' 給与計算 '!K21>=税額基本情報!$D$6,' 給与計算 '!K21<税額基本情報!$D$7),VLOOKUP(' 給与計算 '!K21,税額基本情報!$D$6:$M$9,IF(' 基本情報 '!E21>=8,10,' 基本情報 '!E21+3),1)+ROUNDDOWN((' 給与計算 '!K21-税額基本情報!$D$6)*税額基本情報!$E$6,0),0) -> 0 | I18: =IF(AND(' 給与計算 '!K21>=税額基本情報!$D$7,' 給与計算 '!K21<税額基本情報!$D$8),VLOOKUP(' 給与計算 '!K21,税額基本情報!$D$6:$M$9,IF(' 基本情報 '!E21>=8,10,' 基本情報 '!E21+3),1)+ROUNDDOWN((' 給与計算 '!K21-税額基本情報!$D$7)*税額基本情報!$E$7,0),0) -> 0 | J18: =IF(' 給与計算 '!K21>=税額基本情報!$D$8,VLOOKUP(' 給与計算 '!K21,税額基本情報!$D$6:$M$9,IF(' 基本情報 '!E21>=8,10,' 基本情報 '!E21+3),1)+ROUNDDOWN((' 給与計算 '!K21-税額基本情報!$D$8)*税額基本情報!$E$8,0),0) -> 0 | L18: =IF(AND(' 給与計算 '!K21>=税額基本情報!$D$13,' 給与計算 '!K21<税額基本情報!$D$14),税額基本情報!$F$13+ROUNDDOWN((' 給与計算 '!K21-税額基本情報!$D$13)*税額基本情報!$E$13,0),0) -> 0 | M18: =IF(' 給与計算 '!K21>=税額基本情報!$D$14,税額基本情報!$F$14+ROUNDDOWN((' 給与計算 '!K21-税額基本情報!$D$14)*税額基本情報!$E$14,0),0) -> 0 | N18: =IF(' 賞与計算 '!D21<源泉賞与表!$D$10*1000,0,INDEX(源泉賞与表!$B:$B,MATCH(' 賞与計算 '!D21/1000,源泉賞与表!$D:$D,1))) -> 0 | O18: =IF(' 賞与計算 '!D21<源泉賞与表!$F$10*1000,0,INDEX(源泉賞与表!$B:$B,MATCH(' 賞与計算 '!D21/1000,源泉賞与表!$F:$F,1))) -> 0 | P18: =IF(' 賞与計算 '!D21<源泉賞与表!$H$10*1000,0,INDEX(源泉賞与表!$B:$B,MATCH(' 賞与計算 '!D21/1000,源泉賞与表!$H:$H,1))) -> 0 | Q18: =IF(' 賞与計算 '!D21<源泉賞与表!$J$10*1000,0,INDEX(源泉賞与表!$B:$B,MATCH(' 賞与計算 '!D21/1000,源泉賞与表!$J:$J,1))) -> 0 | R18: =IF(' 賞与計算 '!D21<源泉賞与表!$L$10*1000,0,INDEX(源泉賞与表!$B:$B,MATCH(' 賞与計算 '!D21/1000,源泉賞与表!$L:$L,1))) -> 0 | S18: =IF(' 賞与計算 '!D21<源泉賞与表!$N$10*1000,0,INDEX(源泉賞与表!$B:$B,MATCH(' 賞与計算 '!D21/1000,源泉賞与表!$N:$N,1))) -> 0 | T18: =IF(' 賞与計算 '!D21<源泉賞与表!$P$10*1000,0,INDEX(源泉賞与表!$B:$B,MATCH(' 賞与計算 '!D21/1000,源泉賞与表!$P:$P,1))) -> 0 | U18: =IF(' 賞与計算 '!D21<源泉賞与表!$R$10*1000,0,INDEX(源泉賞与表!$B:$B,MATCH(' 賞与計算 '!D21/1000,源泉賞与表!$R:$R,1))) -> 0 | V18: =IF(' 賞与計算 '!D21="","",IF(' 賞与計算 '!D21<源泉賞与表!$T$22*1000,10.21,INDEX(源泉賞与表!$B:$B,MATCH(' 賞与計算 '!D21/1000,源泉賞与表!$T:$T,1)))) ->  | W18: 0 | X18: =IF(' 基本情報 '!G21="",0,ROUND(VLOOKUP(' 基本情報 '!G21,INDIRECT(' 基本情報 '!$D$3&"!$B$12:$I$61"),6,0)-0.1,0)) -> 0 | Y18: =IF(' 基本情報 '!G21="",0,ROUND(VLOOKUP(' 基本情報 '!G21,INDIRECT(' 基本情報 '!$D$3&"!$B$12:$I$61"),8,0)-0.1,0)) -> 0 | Z18: 0 | AA18: =IF(' 基本情報 '!G21="",0,ROUND(IF(OR(' 基本情報 '!G21<税額基本情報!$E$26,' 基本情報 '!G21>税額基本情報!$E$27),AC18,VLOOKUP(' 基本情報 '!G21,INDIRECT(' 基本情報 '!$D$3&"!$B$16:$M$45"),10,0))-0.1,0)) -> 0 | AB18: =IF(' 基本情報 '!G21="",0,ROUND(IF(OR(' 基本情報 '!G21<税額基本情報!$E$26,' 基本情報 '!G21>税額基本情報!$E$27),AD18,VLOOKUP(' 基本情報 '!G21,INDIRECT(' 基本情報 '!$D$3&"!$B$16:$M$45"),12,0))-0.1,0)) -> 0 | AC18: =IF(' 基本情報 '!G21="",0,IF(' 基本情報 '!G21<税額基本情報!$E$26,税額基本情報!$F$26,IF(' 基本情報 '!G21>税額基本情報!$E$27,税額基本情報!$F$27,0))) -> 0 | AD18: =IF(' 基本情報 '!G21="",0,IF(' 基本情報 '!G21<税額基本情報!$E$26,税額基本情報!$G$26,IF(' 基本情報 '!G21>税額基本情報!$E$27,税額基本情報!$G$27,0))) -> 0 | AE18: 0 | AF18: =ROUND(IF(' 賞与計算 '!F21>税額基本情報!$D$33,税額基本情報!$D$33,ROUNDDOWN(' 賞与計算 '!F21,-3))*INDIRECT(' 基本情報 '!$D$3&"!$F$9")*0.5-0.1,0) -> 0 | AG18: =ROUND(IF(' 賞与計算 '!F21>税額基本情報!$D$33,税額基本情報!$D$33,ROUNDDOWN(' 賞与計算 '!F21,-3))*INDIRECT(' 基本情報 '!$D$3&"!$H$9")/2-0.1,0) -> 0 | AH18: 0 | AI18: =ROUND(IF(' 賞与計算 '!F21>税額基本情報!$D$30,税額基本情報!$D$30,ROUNDDOWN(' 賞与計算 '!F21,-3))*INDIRECT(' 基本情報 '!$D$3&"!$J$9")/2-0.1,0) -> 0 | AJ18: =ROUND(IF(' 賞与計算 '!F21>税額基本情報!$D$30,税額基本情報!$D$30,ROUNDDOWN(' 賞与計算 '!F21,-3))*INDIRECT(' 基本情報 '!$D$3&"!$L$9")/2-0.1,0) -> 0
C19: 15 | D19: =' 給与計算 '!C22 ->  | E19: =MAX(IF(' 給与計算 '!K22>=税額基本情報!$D$6,MAX(計算シート!H19:K19),IF(' 給与計算 '!K22<源泉月額表!$B$8,0,VLOOKUP(' 給与計算 '!K22,源泉月額表!$B:$K,IF(' 基本情報 '!E22>=8,10,' 基本情報 '!E22+3),1)))-IF(' 基本情報 '!E22>=8,(' 基本情報 '!E22-7)*税額基本情報!$D$17,0),0) -> 0 | F19: =IF(' 給与計算 '!K22<源泉月額表!$B$8,ROUNDDOWN(' 給与計算 '!K22*税額基本情報!$D$23,0),IF(' 給与計算 '!K22=0,0,IF(' 給与計算 '!K22>=税額基本情報!$D$13,MAX(L19:M19),VLOOKUP(' 給与計算 '!K22,源泉月額表!$B:$L,11,1)))) -> 0 | G19: =MAX(IF(' 給与計算 '!K22<源泉月額表!$B$8,ROUNDDOWN(' 給与計算 '!K22*3.063%,0),IF(' 給与計算 '!K22=0,0,IF(' 給与計算 '!K22>=税額基本情報!$D$13,MAX(L19:M19),VLOOKUP(' 給与計算 '!K22,源泉月額表!$B:$L,11,1))))-' 基本情報 '!E22*税額基本情報!$D$20,0) -> 0 | H19: =IF(AND(' 給与計算 '!K22>=税額基本情報!$D$6,' 給与計算 '!K22<税額基本情報!$D$7),VLOOKUP(' 給与計算 '!K22,税額基本情報!$D$6:$M$9,IF(' 基本情報 '!E22>=8,10,' 基本情報 '!E22+3),1)+ROUNDDOWN((' 給与計算 '!K22-税額基本情報!$D$6)*税額基本情報!$E$6,0),0) -> 0 | I19: =IF(AND(' 給与計算 '!K22>=税額基本情報!$D$7,' 給与計算 '!K22<税額基本情報!$D$8),VLOOKUP(' 給与計算 '!K22,税額基本情報!$D$6:$M$9,IF(' 基本情報 '!E22>=8,10,' 基本情報 '!E22+3),1)+ROUNDDOWN((' 給与計算 '!K22-税額基本情報!$D$7)*税額基本情報!$E$7,0),0) -> 0 | J19: =IF(' 給与計算 '!K22>=税額基本情報!$D$8,VLOOKUP(' 給与計算 '!K22,税額基本情報!$D$6:$M$9,IF(' 基本情報 '!E22>=8,10,' 基本情報 '!E22+3),1)+ROUNDDOWN((' 給与計算 '!K22-税額基本情報!$D$8)*税額基本情報!$E$8,0),0) -> 0 | L19: =IF(AND(' 給与計算 '!K22>=税額基本情報!$D$13,' 給与計算 '!K22<税額基本情報!$D$14),税額基本情報!$F$13+ROUNDDOWN((' 給与計算 '!K22-税額基本情報!$D$13)*税額基本情報!$E$13,0),0) -> 0 | M19: =IF(' 給与計算 '!K22>=税額基本情報!$D$14,税額基本情報!$F$14+ROUNDDOWN((' 給与計算 '!K22-税額基本情報!$D$14)*税額基本情報!$E$14,0),0) -> 0 | N19: =IF(' 賞与計算 '!D22<源泉賞与表!$D$10*1000,0,INDEX(源泉賞与表!$B:$B,MATCH(' 賞与計算 '!D22/1000,源泉賞与表!$D:$D,1))) -> 0 | O19: =IF(' 賞与計算 '!D22<源泉賞与表!$F$10*1000,0,INDEX(源泉賞与表!$B:$B,MATCH(' 賞与計算 '!D22/1000,源泉賞与表!$F:$F,1))) -> 0 | P19: =IF(' 賞与計算 '!D22<源泉賞与表!$H$10*1000,0,INDEX(源泉賞与表!$B:$B,MATCH(' 賞与計算 '!D22/1000,源泉賞与表!$H:$H,1))) -> 0 | Q19: =IF(' 賞与計算 '!D22<源泉賞与表!$J$10*1000,0,INDEX(源泉賞与表!$B:$B,MATCH(' 賞与計算 '!D22/1000,源泉賞与表!$J:$J,1))) -> 0 | R19: =IF(' 賞与計算 '!D22<源泉賞与表!$L$10*1000,0,INDEX(源泉賞与表!$B:$B,MATCH(' 賞与計算 '!D22/1000,源泉賞与表!$L:$L,1))) -> 0 | S19: =IF(' 賞与計算 '!D22<源泉賞与表!$N$10*1000,0,INDEX(源泉賞与表!$B:$B,MATCH(' 賞与計算 '!D22/1000,源泉賞与表!$N:$N,1))) -> 0 | T19: =IF(' 賞与計算 '!D22<源泉賞与表!$P$10*1000,0,INDEX(源泉賞与表!$B:$B,MATCH(' 賞与計算 '!D22/1000,源泉賞与表!$P:$P,1))) -> 0 | U19: =IF(' 賞与計算 '!D22<源泉賞与表!$R$10*1000,0,INDEX(源泉賞与表!$B:$B,MATCH(' 賞与計算 '!D22/1000,源泉賞与表!$R:$R,1))) -> 0 | V19: =IF(' 賞与計算 '!D22="","",IF(' 賞与計算 '!D22<源泉賞与表!$T$22*1000,10.21,INDEX(源泉賞与表!$B:$B,MATCH(' 賞与計算 '!D22/1000,源泉賞与表!$T:$T,1)))) ->  | W19: 0 | X19: =IF(' 基本情報 '!G22="",0,ROUND(VLOOKUP(' 基本情報 '!G22,INDIRECT(' 基本情報 '!$D$3&"!$B$12:$I$61"),6,0)-0.1,0)) -> 0 | Y19: =IF(' 基本情報 '!G22="",0,ROUND(VLOOKUP(' 基本情報 '!G22,INDIRECT(' 基本情報 '!$D$3&"!$B$12:$I$61"),8,0)-0.1,0)) -> 0 | Z19: 0 | AA19: =IF(' 基本情報 '!G22="",0,ROUND(IF(OR(' 基本情報 '!G22<税額基本情報!$E$26,' 基本情報 '!G22>税額基本情報!$E$27),AC19,VLOOKUP(' 基本情報 '!G22,INDIRECT(' 基本情報 '!$D$3&"!$B$16:$M$45"),10,0))-0.1,0)) -> 0 | AB19: =IF(' 基本情報 '!G22="",0,ROUND(IF(OR(' 基本情報 '!G22<税額基本情報!$E$26,' 基本情報 '!G22>税額基本情報!$E$27),AD19,VLOOKUP(' 基本情報 '!G22,INDIRECT(' 基本情報 '!$D$3&"!$B$16:$M$45"),12,0))-0.1,0)) -> 0 | AC19: =IF(' 基本情報 '!G22="",0,IF(' 基本情報 '!G22<税額基本情報!$E$26,税額基本情報!$F$26,IF(' 基本情報 '!G22>税額基本情報!$E$27,税額基本情報!$F$27,0))) -> 0 | AD19: =IF(' 基本情報 '!G22="",0,IF(' 基本情報 '!G22<税額基本情報!$E$26,税額基本情報!$G$26,IF(' 基本情報 '!G22>税額基本情報!$E$27,税額基本情報!$G$27,0))) -> 0 | AE19: 0 | AF19: =ROUND(IF(' 賞与計算 '!F22>税額基本情報!$D$33,税額基本情報!$D$33,ROUNDDOWN(' 賞与計算 '!F22,-3))*INDIRECT(' 基本情報 '!$D$3&"!$F$9")*0.5-0.1,0) -> 0 | AG19: =ROUND(IF(' 賞与計算 '!F22>税額基本情報!$D$33,税額基本情報!$D$33,ROUNDDOWN(' 賞与計算 '!F22,-3))*INDIRECT(' 基本情報 '!$D$3&"!$H$9")/2-0.1,0) -> 0 | AH19: 0 | AI19: =ROUND(IF(' 賞与計算 '!F22>税額基本情報!$D$30,税額基本情報!$D$30,ROUNDDOWN(' 賞与計算 '!F22,-3))*INDIRECT(' 基本情報 '!$D$3&"!$J$9")/2-0.1,0) -> 0 | AJ19: =ROUND(IF(' 賞与計算 '!F22>税額基本情報!$D$30,税額基本情報!$D$30,ROUNDDOWN(' 賞与計算 '!F22,-3))*INDIRECT(' 基本情報 '!$D$3&"!$L$9")/2-0.1,0) -> 0
C20: 16 | D20: =' 給与計算 '!C23 ->  | E20: =MAX(IF(' 給与計算 '!K23>=税額基本情報!$D$6,MAX(計算シート!H20:K20),IF(' 給与計算 '!K23<源泉月額表!$B$8,0,VLOOKUP(' 給与計算 '!K23,源泉月額表!$B:$K,IF(' 基本情報 '!E23>=8,10,' 基本情報 '!E23+3),1)))-IF(' 基本情報 '!E23>=8,(' 基本情報 '!E23-7)*税額基本情報!$D$17,0),0) -> 0 | F20: =IF(' 給与計算 '!K23<源泉月額表!$B$8,ROUNDDOWN(' 給与計算 '!K23*税額基本情報!$D$23,0),IF(' 給与計算 '!K23=0,0,IF(' 給与計算 '!K23>=税額基本情報!$D$13,MAX(L20:M20),VLOOKUP(' 給与計算 '!K23,源泉月額表!$B:$L,11,1)))) -> 0 | G20: =MAX(IF(' 給与計算 '!K23<源泉月額表!$B$8,ROUNDDOWN(' 給与計算 '!K23*3.063%,0),IF(' 給与計算 '!K23=0,0,IF(' 給与計算 '!K23>=税額基本情報!$D$13,MAX(L20:M20),VLOOKUP(' 給与計算 '!K23,源泉月額表!$B:$L,11,1))))-' 基本情報 '!E23*税額基本情報!$D$20,0) -> 0 | H20: =IF(AND(' 給与計算 '!K23>=税額基本情報!$D$6,' 給与計算 '!K23<税額基本情報!$D$7),VLOOKUP(' 給与計算 '!K23,税額基本情報!$D$6:$M$9,IF(' 基本情報 '!E23>=8,10,' 基本情報 '!E23+3),1)+ROUNDDOWN((' 給与計算 '!K23-税額基本情報!$D$6)*税額基本情報!$E$6,0),0) -> 0 | I20: =IF(AND(' 給与計算 '!K23>=税額基本情報!$D$7,' 給与計算 '!K23<税額基本情報!$D$8),VLOOKUP(' 給与計算 '!K23,税額基本情報!$D$6:$M$9,IF(' 基本情報 '!E23>=8,10,' 基本情報 '!E23+3),1)+ROUNDDOWN((' 給与計算 '!K23-税額基本情報!$D$7)*税額基本情報!$E$7,0),0) -> 0 | J20: =IF(' 給与計算 '!K23>=税額基本情報!$D$8,VLOOKUP(' 給与計算 '!K23,税額基本情報!$D$6:$M$9,IF(' 基本情報 '!E23>=8,10,' 基本情報 '!E23+3),1)+ROUNDDOWN((' 給与計算 '!K23-税額基本情報!$D$8)*税額基本情報!$E$8,0),0) -> 0 | L20: =IF(AND(' 給与計算 '!K23>=税額基本情報!$D$13,' 給与計算 '!K23<税額基本情報!$D$14),税額基本情報!$F$13+ROUNDDOWN((' 給与計算 '!K23-税額基本情報!$D$13)*税額基本情報!$E$13,0),0) -> 0 | M20: =IF(' 給与計算 '!K23>=税額基本情報!$D$14,税額基本情報!$F$14+ROUNDDOWN((' 給与計算 '!K23-税額基本情報!$D$14)*税額基本情報!$E$14,0),0) -> 0 | N20: =IF(' 賞与計算 '!D23<源泉賞与表!$D$10*1000,0,INDEX(源泉賞与表!$B:$B,MATCH(' 賞与計算 '!D23/1000,源泉賞与表!$D:$D,1))) -> 0 | O20: =IF(' 賞与計算 '!D23<源泉賞与表!$F$10*1000,0,INDEX(源泉賞与表!$B:$B,MATCH(' 賞与計算 '!D23/1000,源泉賞与表!$F:$F,1))) -> 0 | P20: =IF(' 賞与計算 '!D23<源泉賞与表!$H$10*1000,0,INDEX(源泉賞与表!$B:$B,MATCH(' 賞与計算 '!D23/1000,源泉賞与表!$H:$H,1))) -> 0 | Q20: =IF(' 賞与計算 '!D23<源泉賞与表!$J$10*1000,0,INDEX(源泉賞与表!$B:$B,MATCH(' 賞与計算 '!D23/1000,源泉賞与表!$J:$J,1))) -> 0 | R20: =IF(' 賞与計算 '!D23<源泉賞与表!$L$10*1000,0,INDEX(源泉賞与表!$B:$B,MATCH(' 賞与計算 '!D23/1000,源泉賞与表!$L:$L,1))) -> 0 | S20: =IF(' 賞与計算 '!D23<源泉賞与表!$N$10*1000,0,INDEX(源泉賞与表!$B:$B,MATCH(' 賞与計算 '!D23/1000,源泉賞与表!$N:$N,1))) -> 0 | T20: =IF(' 賞与計算 '!D23<源泉賞与表!$P$10*1000,0,INDEX(源泉賞与表!$B:$B,MATCH(' 賞与計算 '!D23/1000,源泉賞与表!$P:$P,1))) -> 0 | U20: =IF(' 賞与計算 '!D23<源泉賞与表!$R$10*1000,0,INDEX(源泉賞与表!$B:$B,MATCH(' 賞与計算 '!D23/1000,源泉賞与表!$R:$R,1))) -> 0 | V20: =IF(' 賞与計算 '!D23="","",IF(' 賞与計算 '!D23<源泉賞与表!$T$22*1000,10.21,INDEX(源泉賞与表!$B:$B,MATCH(' 賞与計算 '!D23/1000,源泉賞与表!$T:$T,1)))) ->  | W20: 0 | X20: =IF(' 基本情報 '!G23="",0,ROUND(VLOOKUP(' 基本情報 '!G23,INDIRECT(' 基本情報 '!$D$3&"!$B$12:$I$61"),6,0)-0.1,0)) -> 0 | Y20: =IF(' 基本情報 '!G23="",0,ROUND(VLOOKUP(' 基本情報 '!G23,INDIRECT(' 基本情報 '!$D$3&"!$B$12:$I$61"),8,0)-0.1,0)) -> 0 | Z20: 0 | AA20: =IF(' 基本情報 '!G23="",0,ROUND(IF(OR(' 基本情報 '!G23<税額基本情報!$E$26,' 基本情報 '!G23>税額基本情報!$E$27),AC20,VLOOKUP(' 基本情報 '!G23,INDIRECT(' 基本情報 '!$D$3&"!$B$16:$M$45"),10,0))-0.1,0)) -> 0 | AB20: =IF(' 基本情報 '!G23="",0,ROUND(IF(OR(' 基本情報 '!G23<税額基本情報!$E$26,' 基本情報 '!G23>税額基本情報!$E$27),AD20,VLOOKUP(' 基本情報 '!G23,INDIRECT(' 基本情報 '!$D$3&"!$B$16:$M$45"),12,0))-0.1,0)) -> 0 | AC20: =IF(' 基本情報 '!G23="",0,IF(' 基本情報 '!G23<税額基本情報!$E$26,税額基本情報!$F$26,IF(' 基本情報 '!G23>税額基本情報!$E$27,税額基本情報!$F$27,0))) -> 0 | AD20: =IF(' 基本情報 '!G23="",0,IF(' 基本情報 '!G23<税額基本情報!$E$26,税額基本情報!$G$26,IF(' 基本情報 '!G23>税額基本情報!$E$27,税額基本情報!$G$27,0))) -> 0 | AE20: 0 | AF20: =ROUND(IF(' 賞与計算 '!F23>税額基本情報!$D$33,税額基本情報!$D$33,ROUNDDOWN(' 賞与計算 '!F23,-3))*INDIRECT(' 基本情報 '!$D$3&"!$F$9")*0.5-0.1,0) -> 0 | AG20: =ROUND(IF(' 賞与計算 '!F23>税額基本情報!$D$33,税額基本情報!$D$33,ROUNDDOWN(' 賞与計算 '!F23,-3))*INDIRECT(' 基本情報 '!$D$3&"!$H$9")/2-0.1,0) -> 0 | AH20: 0 | AI20: =ROUND(IF(' 賞与計算 '!F23>税額基本情報!$D$30,税額基本情報!$D$30,ROUNDDOWN(' 賞与計算 '!F23,-3))*INDIRECT(' 基本情報 '!$D$3&"!$J$9")/2-0.1,0) -> 0 | AJ20: =ROUND(IF(' 賞与計算 '!F23>税額基本情報!$D$30,税額基本情報!$D$30,ROUNDDOWN(' 賞与計算 '!F23,-3))*INDIRECT(' 基本情報 '!$D$3&"!$L$9")/2-0.1,0) -> 0
C21: 17 | D21: =' 給与計算 '!C24 ->  | E21: =MAX(IF(' 給与計算 '!K24>=税額基本情報!$D$6,MAX(計算シート!H21:K21),IF(' 給与計算 '!K24<源泉月額表!$B$8,0,VLOOKUP(' 給与計算 '!K24,源泉月額表!$B:$K,IF(' 基本情報 '!E24>=8,10,' 基本情報 '!E24+3),1)))-IF(' 基本情報 '!E24>=8,(' 基本情報 '!E24-7)*税額基本情報!$D$17,0),0) -> 0 | F21: =IF(' 給与計算 '!K24<源泉月額表!$B$8,ROUNDDOWN(' 給与計算 '!K24*税額基本情報!$D$23,0),IF(' 給与計算 '!K24=0,0,IF(' 給与計算 '!K24>=税額基本情報!$D$13,MAX(L21:M21),VLOOKUP(' 給与計算 '!K24,源泉月額表!$B:$L,11,1)))) -> 0 | G21: =MAX(IF(' 給与計算 '!K24<源泉月額表!$B$8,ROUNDDOWN(' 給与計算 '!K24*3.063%,0),IF(' 給与計算 '!K24=0,0,IF(' 給与計算 '!K24>=税額基本情報!$D$13,MAX(L21:M21),VLOOKUP(' 給与計算 '!K24,源泉月額表!$B:$L,11,1))))-' 基本情報 '!E24*税額基本情報!$D$20,0) -> 0 | H21: =IF(AND(' 給与計算 '!K24>=税額基本情報!$D$6,' 給与計算 '!K24<税額基本情報!$D$7),VLOOKUP(' 給与計算 '!K24,税額基本情報!$D$6:$M$9,IF(' 基本情報 '!E24>=8,10,' 基本情報 '!E24+3),1)+ROUNDDOWN((' 給与計算 '!K24-税額基本情報!$D$6)*税額基本情報!$E$6,0),0) -> 0 | I21: =IF(AND(' 給与計算 '!K24>=税額基本情報!$D$7,' 給与計算 '!K24<税額基本情報!$D$8),VLOOKUP(' 給与計算 '!K24,税額基本情報!$D$6:$M$9,IF(' 基本情報 '!E24>=8,10,' 基本情報 '!E24+3),1)+ROUNDDOWN((' 給与計算 '!K24-税額基本情報!$D$7)*税額基本情報!$E$7,0),0) -> 0 | J21: =IF(' 給与計算 '!K24>=税額基本情報!$D$8,VLOOKUP(' 給与計算 '!K24,税額基本情報!$D$6:$M$9,IF(' 基本情報 '!E24>=8,10,' 基本情報 '!E24+3),1)+ROUNDDOWN((' 給与計算 '!K24-税額基本情報!$D$8)*税額基本情報!$E$8,0),0) -> 0 | L21: =IF(AND(' 給与計算 '!K24>=税額基本情報!$D$13,' 給与計算 '!K24<税額基本情報!$D$14),税額基本情報!$F$13+ROUNDDOWN((' 給与計算 '!K24-税額基本情報!$D$13)*税額基本情報!$E$13,0),0) -> 0 | M21: =IF(' 給与計算 '!K24>=税額基本情報!$D$14,税額基本情報!$F$14+ROUNDDOWN((' 給与計算 '!K24-税額基本情報!$D$14)*税額基本情報!$E$14,0),0) -> 0 | N21: =IF(' 賞与計算 '!D24<源泉賞与表!$D$10*1000,0,INDEX(源泉賞与表!$B:$B,MATCH(' 賞与計算 '!D24/1000,源泉賞与表!$D:$D,1))) -> 0 | O21: =IF(' 賞与計算 '!D24<源泉賞与表!$F$10*1000,0,INDEX(源泉賞与表!$B:$B,MATCH(' 賞与計算 '!D24/1000,源泉賞与表!$F:$F,1))) -> 0 | P21: =IF(' 賞与計算 '!D24<源泉賞与表!$H$10*1000,0,INDEX(源泉賞与表!$B:$B,MATCH(' 賞与計算 '!D24/1000,源泉賞与表!$H:$H,1))) -> 0 | Q21: =IF(' 賞与計算 '!D24<源泉賞与表!$J$10*1000,0,INDEX(源泉賞与表!$B:$B,MATCH(' 賞与計算 '!D24/1000,源泉賞与表!$J:$J,1))) -> 0 | R21: =IF(' 賞与計算 '!D24<源泉賞与表!$L$10*1000,0,INDEX(源泉賞与表!$B:$B,MATCH(' 賞与計算 '!D24/1000,源泉賞与表!$L:$L,1))) -> 0 | S21: =IF(' 賞与計算 '!D24<源泉賞与表!$N$10*1000,0,INDEX(源泉賞与表!$B:$B,MATCH(' 賞与計算 '!D24/1000,源泉賞与表!$N:$N,1))) -> 0 | T21: =IF(' 賞与計算 '!D24<源泉賞与表!$P$10*1000,0,INDEX(源泉賞与表!$B:$B,MATCH(' 賞与計算 '!D24/1000,源泉賞与表!$P:$P,1))) -> 0 | U21: =IF(' 賞与計算 '!D24<源泉賞与表!$R$10*1000,0,INDEX(源泉賞与表!$B:$B,MATCH(' 賞与計算 '!D24/1000,源泉賞与表!$R:$R,1))) -> 0 | V21: =IF(' 賞与計算 '!D24="","",IF(' 賞与計算 '!D24<源泉賞与表!$T$22*1000,10.21,INDEX(源泉賞与表!$B:$B,MATCH(' 賞与計算 '!D24/1000,源泉賞与表!$T:$T,1)))) ->  | W21: 0 | X21: =IF(' 基本情報 '!G24="",0,ROUND(VLOOKUP(' 基本情報 '!G24,INDIRECT(' 基本情報 '!$D$3&"!$B$12:$I$61"),6,0)-0.1,0)) -> 0 | Y21: =IF(' 基本情報 '!G24="",0,ROUND(VLOOKUP(' 基本情報 '!G24,INDIRECT(' 基本情報 '!$D$3&"!$B$12:$I$61"),8,0)-0.1,0)) -> 0 | Z21: 0 | AA21: =IF(' 基本情報 '!G24="",0,ROUND(IF(OR(' 基本情報 '!G24<税額基本情報!$E$26,' 基本情報 '!G24>税額基本情報!$E$27),AC21,VLOOKUP(' 基本情報 '!G24,INDIRECT(' 基本情報 '!$D$3&"!$B$16:$M$45"),10,0))-0.1,0)) -> 0 | AB21: =IF(' 基本情報 '!G24="",0,ROUND(IF(OR(' 基本情報 '!G24<税額基本情報!$E$26,' 基本情報 '!G24>税額基本情報!$E$27),AD21,VLOOKUP(' 基本情報 '!G24,INDIRECT(' 基本情報 '!$D$3&"!$B$16:$M$45"),12,0))-0.1,0)) -> 0 | AC21: =IF(' 基本情報 '!G24="",0,IF(' 基本情報 '!G24<税額基本情報!$E$26,税額基本情報!$F$26,IF(' 基本情報 '!G24>税額基本情報!$E$27,税額基本情報!$F$27,0))) -> 0 | AD21: =IF(' 基本情報 '!G24="",0,IF(' 基本情報 '!G24<税額基本情報!$E$26,税額基本情報!$G$26,IF(' 基本情報 '!G24>税額基本情報!$E$27,税額基本情報!$G$27,0))) -> 0 | AE21: 0 | AF21: =ROUND(IF(' 賞与計算 '!F24>税額基本情報!$D$33,税額基本情報!$D$33,ROUNDDOWN(' 賞与計算 '!F24,-3))*INDIRECT(' 基本情報 '!$D$3&"!$F$9")*0.5-0.1,0) -> 0 | AG21: =ROUND(IF(' 賞与計算 '!F24>税額基本情報!$D$33,税額基本情報!$D$33,ROUNDDOWN(' 賞与計算 '!F24,-3))*INDIRECT(' 基本情報 '!$D$3&"!$H$9")/2-0.1,0) -> 0 | AH21: 0 | AI21: =ROUND(IF(' 賞与計算 '!F24>税額基本情報!$D$30,税額基本情報!$D$30,ROUNDDOWN(' 賞与計算 '!F24,-3))*INDIRECT(' 基本情報 '!$D$3&"!$J$9")/2-0.1,0) -> 0 | AJ21: =ROUND(IF(' 賞与計算 '!F24>税額基本情報!$D$30,税額基本情報!$D$30,ROUNDDOWN(' 賞与計算 '!F24,-3))*INDIRECT(' 基本情報 '!$D$3&"!$L$9")/2-0.1,0) -> 0
C22: 18 | D22: =' 給与計算 '!C25 ->  | E22: =MAX(IF(' 給与計算 '!K25>=税額基本情報!$D$6,MAX(計算シート!H22:K22),IF(' 給与計算 '!K25<源泉月額表!$B$8,0,VLOOKUP(' 給与計算 '!K25,源泉月額表!$B:$K,IF(' 基本情報 '!E25>=8,10,' 基本情報 '!E25+3),1)))-IF(' 基本情報 '!E25>=8,(' 基本情報 '!E25-7)*税額基本情報!$D$17,0),0) -> 0 | F22: =IF(' 給与計算 '!K25<源泉月額表!$B$8,ROUNDDOWN(' 給与計算 '!K25*税額基本情報!$D$23,0),IF(' 給与計算 '!K25=0,0,IF(' 給与計算 '!K25>=税額基本情報!$D$13,MAX(L22:M22),VLOOKUP(' 給与計算 '!K25,源泉月額表!$B:$L,11,1)))) -> 0 | G22: =MAX(IF(' 給与計算 '!K25<源泉月額表!$B$8,ROUNDDOWN(' 給与計算 '!K25*3.063%,0),IF(' 給与計算 '!K25=0,0,IF(' 給与計算 '!K25>=税額基本情報!$D$13,MAX(L22:M22),VLOOKUP(' 給与計算 '!K25,源泉月額表!$B:$L,11,1))))-' 基本情報 '!E25*税額基本情報!$D$20,0) -> 0 | H22: =IF(AND(' 給与計算 '!K25>=税額基本情報!$D$6,' 給与計算 '!K25<税額基本情報!$D$7),VLOOKUP(' 給与計算 '!K25,税額基本情報!$D$6:$M$9,IF(' 基本情報 '!E25>=8,10,' 基本情報 '!E25+3),1)+ROUNDDOWN((' 給与計算 '!K25-税額基本情報!$D$6)*税額基本情報!$E$6,0),0) -> 0 | I22: =IF(AND(' 給与計算 '!K25>=税額基本情報!$D$7,' 給与計算 '!K25<税額基本情報!$D$8),VLOOKUP(' 給与計算 '!K25,税額基本情報!$D$6:$M$9,IF(' 基本情報 '!E25>=8,10,' 基本情報 '!E25+3),1)+ROUNDDOWN((' 給与計算 '!K25-税額基本情報!$D$7)*税額基本情報!$E$7,0),0) -> 0 | J22: =IF(' 給与計算 '!K25>=税額基本情報!$D$8,VLOOKUP(' 給与計算 '!K25,税額基本情報!$D$6:$M$9,IF(' 基本情報 '!E25>=8,10,' 基本情報 '!E25+3),1)+ROUNDDOWN((' 給与計算 '!K25-税額基本情報!$D$8)*税額基本情報!$E$8,0),0) -> 0 | L22: =IF(AND(' 給与計算 '!K25>=税額基本情報!$D$13,' 給与計算 '!K25<税額基本情報!$D$14),税額基本情報!$F$13+ROUNDDOWN((' 給与計算 '!K25-税額基本情報!$D$13)*税額基本情報!$E$13,0),0) -> 0 | M22: =IF(' 給与計算 '!K25>=税額基本情報!$D$14,税額基本情報!$F$14+ROUNDDOWN((' 給与計算 '!K25-税額基本情報!$D$14)*税額基本情報!$E$14,0),0) -> 0 | N22: =IF(' 賞与計算 '!D25<源泉賞与表!$D$10*1000,0,INDEX(源泉賞与表!$B:$B,MATCH(' 賞与計算 '!D25/1000,源泉賞与表!$D:$D,1))) -> 0 | O22: =IF(' 賞与計算 '!D25<源泉賞与表!$F$10*1000,0,INDEX(源泉賞与表!$B:$B,MATCH(' 賞与計算 '!D25/1000,源泉賞与表!$F:$F,1))) -> 0 | P22: =IF(' 賞与計算 '!D25<源泉賞与表!$H$10*1000,0,INDEX(源泉賞与表!$B:$B,MATCH(' 賞与計算 '!D25/1000,源泉賞与表!$H:$H,1))) -> 0 | Q22: =IF(' 賞与計算 '!D25<源泉賞与表!$J$10*1000,0,INDEX(源泉賞与表!$B:$B,MATCH(' 賞与計算 '!D25/1000,源泉賞与表!$J:$J,1))) -> 0 | R22: =IF(' 賞与計算 '!D25<源泉賞与表!$L$10*1000,0,INDEX(源泉賞与表!$B:$B,MATCH(' 賞与計算 '!D25/1000,源泉賞与表!$L:$L,1))) -> 0 | S22: =IF(' 賞与計算 '!D25<源泉賞与表!$N$10*1000,0,INDEX(源泉賞与表!$B:$B,MATCH(' 賞与計算 '!D25/1000,源泉賞与表!$N:$N,1))) -> 0 | T22: =IF(' 賞与計算 '!D25<源泉賞与表!$P$10*1000,0,INDEX(源泉賞与表!$B:$B,MATCH(' 賞与計算 '!D25/1000,源泉賞与表!$P:$P,1))) -> 0 | U22: =IF(' 賞与計算 '!D25<源泉賞与表!$R$10*1000,0,INDEX(源泉賞与表!$B:$B,MATCH(' 賞与計算 '!D25/1000,源泉賞与表!$R:$R,1))) -> 0 | V22: =IF(' 賞与計算 '!D25="","",IF(' 賞与計算 '!D25<源泉賞与表!$T$22*1000,10.21,INDEX(源泉賞与表!$B:$B,MATCH(' 賞与計算 '!D25/1000,源泉賞与表!$T:$T,1)))) ->  | W22: 0 | X22: =IF(' 基本情報 '!G25="",0,ROUND(VLOOKUP(' 基本情報 '!G25,INDIRECT(' 基本情報 '!$D$3&"!$B$12:$I$61"),6,0)-0.1,0)) -> 0 | Y22: =IF(' 基本情報 '!G25="",0,ROUND(VLOOKUP(' 基本情報 '!G25,INDIRECT(' 基本情報 '!$D$3&"!$B$12:$I$61"),8,0)-0.1,0)) -> 0 | Z22: 0 | AA22: =IF(' 基本情報 '!G25="",0,ROUND(IF(OR(' 基本情報 '!G25<税額基本情報!$E$26,' 基本情報 '!G25>税額基本情報!$E$27),AC22,VLOOKUP(' 基本情報 '!G25,INDIRECT(' 基本情報 '!$D$3&"!$B$16:$M$45"),10,0))-0.1,0)) -> 0 | AB22: =IF(' 基本情報 '!G25="",0,ROUND(IF(OR(' 基本情報 '!G25<税額基本情報!$E$26,' 基本情報 '!G25>税額基本情報!$E$27),AD22,VLOOKUP(' 基本情報 '!G25,INDIRECT(' 基本情報 '!$D$3&"!$B$16:$M$45"),12,0))-0.1,0)) -> 0 | AC22: =IF(' 基本情報 '!G25="",0,IF(' 基本情報 '!G25<税額基本情報!$E$26,税額基本情報!$F$26,IF(' 基本情報 '!G25>税額基本情報!$E$27,税額基本情報!$F$27,0))) -> 0 | AD22: =IF(' 基本情報 '!G25="",0,IF(' 基本情報 '!G25<税額基本情報!$E$26,税額基本情報!$G$26,IF(' 基本情報 '!G25>税額基本情報!$E$27,税額基本情報!$G$27,0))) -> 0 | AE22: 0 | AF22: =ROUND(IF(' 賞与計算 '!F25>税額基本情報!$D$33,税額基本情報!$D$33,ROUNDDOWN(' 賞与計算 '!F25,-3))*INDIRECT(' 基本情報 '!$D$3&"!$F$9")*0.5-0.1,0) -> 0 | AG22: =ROUND(IF(' 賞与計算 '!F25>税額基本情報!$D$33,税額基本情報!$D$33,ROUNDDOWN(' 賞与計算 '!F25,-3))*INDIRECT(' 基本情報 '!$D$3&"!$H$9")/2-0.1,0) -> 0 | AH22: 0 | AI22: =ROUND(IF(' 賞与計算 '!F25>税額基本情報!$D$30,税額基本情報!$D$30,ROUNDDOWN(' 賞与計算 '!F25,-3))*INDIRECT(' 基本情報 '!$D$3&"!$J$9")/2-0.1,0) -> 0 | AJ22: =ROUND(IF(' 賞与計算 '!F25>税額基本情報!$D$30,税額基本情報!$D$30,ROUNDDOWN(' 賞与計算 '!F25,-3))*INDIRECT(' 基本情報 '!$D$3&"!$L$9")/2-0.1,0) -> 0
C23: 19 | D23: =' 給与計算 '!C26 ->  | E23: =MAX(IF(' 給与計算 '!K26>=税額基本情報!$D$6,MAX(計算シート!H23:K23),IF(' 給与計算 '!K26<源泉月額表!$B$8,0,VLOOKUP(' 給与計算 '!K26,源泉月額表!$B:$K,IF(' 基本情報 '!E26>=8,10,' 基本情報 '!E26+3),1)))-IF(' 基本情報 '!E26>=8,(' 基本情報 '!E26-7)*税額基本情報!$D$17,0),0) -> 0 | F23: =IF(' 給与計算 '!K26<源泉月額表!$B$8,ROUNDDOWN(' 給与計算 '!K26*税額基本情報!$D$23,0),IF(' 給与計算 '!K26=0,0,IF(' 給与計算 '!K26>=税額基本情報!$D$13,MAX(L23:M23),VLOOKUP(' 給与計算 '!K26,源泉月額表!$B:$L,11,1)))) -> 0 | G23: =MAX(IF(' 給与計算 '!K26<源泉月額表!$B$8,ROUNDDOWN(' 給与計算 '!K26*3.063%,0),IF(' 給与計算 '!K26=0,0,IF(' 給与計算 '!K26>=税額基本情報!$D$13,MAX(L23:M23),VLOOKUP(' 給与計算 '!K26,源泉月額表!$B:$L,11,1))))-' 基本情報 '!E26*税額基本情報!$D$20,0) -> 0 | H23: =IF(AND(' 給与計算 '!K26>=税額基本情報!$D$6,' 給与計算 '!K26<税額基本情報!$D$7),VLOOKUP(' 給与計算 '!K26,税額基本情報!$D$6:$M$9,IF(' 基本情報 '!E26>=8,10,' 基本情報 '!E26+3),1)+ROUNDDOWN((' 給与計算 '!K26-税額基本情報!$D$6)*税額基本情報!$E$6,0),0) -> 0 | I23: =IF(AND(' 給与計算 '!K26>=税額基本情報!$D$7,' 給与計算 '!K26<税額基本情報!$D$8),VLOOKUP(' 給与計算 '!K26,税額基本情報!$D$6:$M$9,IF(' 基本情報 '!E26>=8,10,' 基本情報 '!E26+3),1)+ROUNDDOWN((' 給与計算 '!K26-税額基本情報!$D$7)*税額基本情報!$E$7,0),0) -> 0 | J23: =IF(' 給与計算 '!K26>=税額基本情報!$D$8,VLOOKUP(' 給与計算 '!K26,税額基本情報!$D$6:$M$9,IF(' 基本情報 '!E26>=8,10,' 基本情報 '!E26+3),1)+ROUNDDOWN((' 給与計算 '!K26-税額基本情報!$D$8)*税額基本情報!$E$8,0),0) -> 0 | L23: =IF(AND(' 給与計算 '!K26>=税額基本情報!$D$13,' 給与計算 '!K26<税額基本情報!$D$14),税額基本情報!$F$13+ROUNDDOWN((' 給与計算 '!K26-税額基本情報!$D$13)*税額基本情報!$E$13,0),0) -> 0 | M23: =IF(' 給与計算 '!K26>=税額基本情報!$D$14,税額基本情報!$F$14+ROUNDDOWN((' 給与計算 '!K26-税額基本情報!$D$14)*税額基本情報!$E$14,0),0) -> 0 | N23: =IF(' 賞与計算 '!D26<源泉賞与表!$D$10*1000,0,INDEX(源泉賞与表!$B:$B,MATCH(' 賞与計算 '!D26/1000,源泉賞与表!$D:$D,1))) -> 0 | O23: =IF(' 賞与計算 '!D26<源泉賞与表!$F$10*1000,0,INDEX(源泉賞与表!$B:$B,MATCH(' 賞与計算 '!D26/1000,源泉賞与表!$F:$F,1))) -> 0 | P23: =IF(' 賞与計算 '!D26<源泉賞与表!$H$10*1000,0,INDEX(源泉賞与表!$B:$B,MATCH(' 賞与計算 '!D26/1000,源泉賞与表!$H:$H,1))) -> 0 | Q23: =IF(' 賞与計算 '!D26<源泉賞与表!$J$10*1000,0,INDEX(源泉賞与表!$B:$B,MATCH(' 賞与計算 '!D26/1000,源泉賞与表!$J:$J,1))) -> 0 | R23: =IF(' 賞与計算 '!D26<源泉賞与表!$L$10*1000,0,INDEX(源泉賞与表!$B:$B,MATCH(' 賞与計算 '!D26/1000,源泉賞与表!$L:$L,1))) -> 0 | S23: =IF(' 賞与計算 '!D26<源泉賞与表!$N$10*1000,0,INDEX(源泉賞与表!$B:$B,MATCH(' 賞与計算 '!D26/1000,源泉賞与表!$N:$N,1))) -> 0 | T23: =IF(' 賞与計算 '!D26<源泉賞与表!$P$10*1000,0,INDEX(源泉賞与表!$B:$B,MATCH(' 賞与計算 '!D26/1000,源泉賞与表!$P:$P,1))) -> 0 | U23: =IF(' 賞与計算 '!D26<源泉賞与表!$R$10*1000,0,INDEX(源泉賞与表!$B:$B,MATCH(' 賞与計算 '!D26/1000,源泉賞与表!$R:$R,1))) -> 0 | V23: =IF(' 賞与計算 '!D26="","",IF(' 賞与計算 '!D26<源泉賞与表!$T$22*1000,10.21,INDEX(源泉賞与表!$B:$B,MATCH(' 賞与計算 '!D26/1000,源泉賞与表!$T:$T,1)))) ->  | W23: 0 | X23: =IF(' 基本情報 '!G26="",0,ROUND(VLOOKUP(' 基本情報 '!G26,INDIRECT(' 基本情報 '!$D$3&"!$B$12:$I$61"),6,0)-0.1,0)) -> 0 | Y23: =IF(' 基本情報 '!G26="",0,ROUND(VLOOKUP(' 基本情報 '!G26,INDIRECT(' 基本情報 '!$D$3&"!$B$12:$I$61"),8,0)-0.1,0)) -> 0 | Z23: 0 | AA23: =IF(' 基本情報 '!G26="",0,ROUND(IF(OR(' 基本情報 '!G26<税額基本情報!$E$26,' 基本情報 '!G26>税額基本情報!$E$27),AC23,VLOOKUP(' 基本情報 '!G26,INDIRECT(' 基本情報 '!$D$3&"!$B$16:$M$45"),10,0))-0.1,0)) -> 0 | AB23: =IF(' 基本情報 '!G26="",0,ROUND(IF(OR(' 基本情報 '!G26<税額基本情報!$E$26,' 基本情報 '!G26>税額基本情報!$E$27),AD23,VLOOKUP(' 基本情報 '!G26,INDIRECT(' 基本情報 '!$D$3&"!$B$16:$M$45"),12,0))-0.1,0)) -> 0 | AC23: =IF(' 基本情報 '!G26="",0,IF(' 基本情報 '!G26<税額基本情報!$E$26,税額基本情報!$F$26,IF(' 基本情報 '!G26>税額基本情報!$E$27,税額基本情報!$F$27,0))) -> 0 | AD23: =IF(' 基本情報 '!G26="",0,IF(' 基本情報 '!G26<税額基本情報!$E$26,税額基本情報!$G$26,IF(' 基本情報 '!G26>税額基本情報!$E$27,税額基本情報!$G$27,0))) -> 0 | AE23: 0 | AF23: =ROUND(IF(' 賞与計算 '!F26>税額基本情報!$D$33,税額基本情報!$D$33,ROUNDDOWN(' 賞与計算 '!F26,-3))*INDIRECT(' 基本情報 '!$D$3&"!$F$9")*0.5-0.1,0) -> 0 | AG23: =ROUND(IF(' 賞与計算 '!F26>税額基本情報!$D$33,税額基本情報!$D$33,ROUNDDOWN(' 賞与計算 '!F26,-3))*INDIRECT(' 基本情報 '!$D$3&"!$H$9")/2-0.1,0) -> 0 | AH23: 0 | AI23: =ROUND(IF(' 賞与計算 '!F26>税額基本情報!$D$30,税額基本情報!$D$30,ROUNDDOWN(' 賞与計算 '!F26,-3))*INDIRECT(' 基本情報 '!$D$3&"!$J$9")/2-0.1,0) -> 0 | AJ23: =ROUND(IF(' 賞与計算 '!F26>税額基本情報!$D$30,税額基本情報!$D$30,ROUNDDOWN(' 賞与計算 '!F26,-3))*INDIRECT(' 基本情報 '!$D$3&"!$L$9")/2-0.1,0) -> 0
C24: 20 | D24: =' 給与計算 '!C27 ->  | E24: =MAX(IF(' 給与計算 '!K27>=税額基本情報!$D$6,MAX(計算シート!H24:K24),IF(' 給与計算 '!K27<源泉月額表!$B$8,0,VLOOKUP(' 給与計算 '!K27,源泉月額表!$B:$K,IF(' 基本情報 '!E27>=8,10,' 基本情報 '!E27+3),1)))-IF(' 基本情報 '!E27>=8,(' 基本情報 '!E27-7)*税額基本情報!$D$17,0),0) -> 0 | F24: =IF(' 給与計算 '!K27<源泉月額表!$B$8,ROUNDDOWN(' 給与計算 '!K27*税額基本情報!$D$23,0),IF(' 給与計算 '!K27=0,0,IF(' 給与計算 '!K27>=税額基本情報!$D$13,MAX(L24:M24),VLOOKUP(' 給与計算 '!K27,源泉月額表!$B:$L,11,1)))) -> 0 | G24: =MAX(IF(' 給与計算 '!K27<源泉月額表!$B$8,ROUNDDOWN(' 給与計算 '!K27*3.063%,0),IF(' 給与計算 '!K27=0,0,IF(' 給与計算 '!K27>=税額基本情報!$D$13,MAX(L24:M24),VLOOKUP(' 給与計算 '!K27,源泉月額表!$B:$L,11,1))))-' 基本情報 '!E27*税額基本情報!$D$20,0) -> 0 | H24: =IF(AND(' 給与計算 '!K27>=税額基本情報!$D$6,' 給与計算 '!K27<税額基本情報!$D$7),VLOOKUP(' 給与計算 '!K27,税額基本情報!$D$6:$M$9,IF(' 基本情報 '!E27>=8,10,' 基本情報 '!E27+3),1)+ROUNDDOWN((' 給与計算 '!K27-税額基本情報!$D$6)*税額基本情報!$E$6,0),0) -> 0 | I24: =IF(AND(' 給与計算 '!K27>=税額基本情報!$D$7,' 給与計算 '!K27<税額基本情報!$D$8),VLOOKUP(' 給与計算 '!K27,税額基本情報!$D$6:$M$9,IF(' 基本情報 '!E27>=8,10,' 基本情報 '!E27+3),1)+ROUNDDOWN((' 給与計算 '!K27-税額基本情報!$D$7)*税額基本情報!$E$7,0),0) -> 0 | J24: =IF(' 給与計算 '!K27>=税額基本情報!$D$8,VLOOKUP(' 給与計算 '!K27,税額基本情報!$D$6:$M$9,IF(' 基本情報 '!E27>=8,10,' 基本情報 '!E27+3),1)+ROUNDDOWN((' 給与計算 '!K27-税額基本情報!$D$8)*税額基本情報!$E$8,0),0) -> 0 | L24: =IF(AND(' 給与計算 '!K27>=税額基本情報!$D$13,' 給与計算 '!K27<税額基本情報!$D$14),税額基本情報!$F$13+ROUNDDOWN((' 給与計算 '!K27-税額基本情報!$D$13)*税額基本情報!$E$13,0),0) -> 0 | M24: =IF(' 給与計算 '!K27>=税額基本情報!$D$14,税額基本情報!$F$14+ROUNDDOWN((' 給与計算 '!K27-税額基本情報!$D$14)*税額基本情報!$E$14,0),0) -> 0 | N24: =IF(' 賞与計算 '!D27<源泉賞与表!$D$10*1000,0,INDEX(源泉賞与表!$B:$B,MATCH(' 賞与計算 '!D27/1000,源泉賞与表!$D:$D,1))) -> 0 | O24: =IF(' 賞与計算 '!D27<源泉賞与表!$F$10*1000,0,INDEX(源泉賞与表!$B:$B,MATCH(' 賞与計算 '!D27/1000,源泉賞与表!$F:$F,1))) -> 0 | P24: =IF(' 賞与計算 '!D27<源泉賞与表!$H$10*1000,0,INDEX(源泉賞与表!$B:$B,MATCH(' 賞与計算 '!D27/1000,源泉賞与表!$H:$H,1))) -> 0 | Q24: =IF(' 賞与計算 '!D27<源泉賞与表!$J$10*1000,0,INDEX(源泉賞与表!$B:$B,MATCH(' 賞与計算 '!D27/1000,源泉賞与表!$J:$J,1))) -> 0 | R24: =IF(' 賞与計算 '!D27<源泉賞与表!$L$10*1000,0,INDEX(源泉賞与表!$B:$B,MATCH(' 賞与計算 '!D27/1000,源泉賞与表!$L:$L,1))) -> 0 | S24: =IF(' 賞与計算 '!D27<源泉賞与表!$N$10*1000,0,INDEX(源泉賞与表!$B:$B,MATCH(' 賞与計算 '!D27/1000,源泉賞与表!$N:$N,1))) -> 0 | T24: =IF(' 賞与計算 '!D27<源泉賞与表!$P$10*1000,0,INDEX(源泉賞与表!$B:$B,MATCH(' 賞与計算 '!D27/1000,源泉賞与表!$P:$P,1))) -> 0 | U24: =IF(' 賞与計算 '!D27<源泉賞与表!$R$10*1000,0,INDEX(源泉賞与表!$B:$B,MATCH(' 賞与計算 '!D27/1000,源泉賞与表!$R:$R,1))) -> 0 | V24: =IF(' 賞与計算 '!D27="","",IF(' 賞与計算 '!D27<源泉賞与表!$T$22*1000,10.21,INDEX(源泉賞与表!$B:$B,MATCH(' 賞与計算 '!D27/1000,源泉賞与表!$T:$T,1)))) ->  | W24: 0 | X24: =IF(' 基本情報 '!G27="",0,ROUND(VLOOKUP(' 基本情報 '!G27,INDIRECT(' 基本情報 '!$D$3&"!$B$12:$I$61"),6,0)-0.1,0)) -> 0 | Y24: =IF(' 基本情報 '!G27="",0,ROUND(VLOOKUP(' 基本情報 '!G27,INDIRECT(' 基本情報 '!$D$3&"!$B$12:$I$61"),8,0)-0.1,0)) -> 0 | Z24: 0 | AA24: =IF(' 基本情報 '!G27="",0,ROUND(IF(OR(' 基本情報 '!G27<税額基本情報!$E$26,' 基本情報 '!G27>税額基本情報!$E$27),AC24,VLOOKUP(' 基本情報 '!G27,INDIRECT(' 基本情報 '!$D$3&"!$B$16:$M$45"),10,0))-0.1,0)) -> 0 | AB24: =IF(' 基本情報 '!G27="",0,ROUND(IF(OR(' 基本情報 '!G27<税額基本情報!$E$26,' 基本情報 '!G27>税額基本情報!$E$27),AD24,VLOOKUP(' 基本情報 '!G27,INDIRECT(' 基本情報 '!$D$3&"!$B$16:$M$45"),12,0))-0.1,0)) -> 0 | AC24: =IF(' 基本情報 '!G27="",0,IF(' 基本情報 '!G27<税額基本情報!$E$26,税額基本情報!$F$26,IF(' 基本情報 '!G27>税額基本情報!$E$27,税額基本情報!$F$27,0))) -> 0 | AD24: =IF(' 基本情報 '!G27="",0,IF(' 基本情報 '!G27<税額基本情報!$E$26,税額基本情報!$G$26,IF(' 基本情報 '!G27>税額基本情報!$E$27,税額基本情報!$G$27,0))) -> 0 | AE24: 0 | AF24: =ROUND(IF(' 賞与計算 '!F27>税額基本情報!$D$33,税額基本情報!$D$33,ROUNDDOWN(' 賞与計算 '!F27,-3))*INDIRECT(' 基本情報 '!$D$3&"!$F$9")*0.5-0.1,0) -> 0 | AG24: =ROUND(IF(' 賞与計算 '!F27>税額基本情報!$D$33,税額基本情報!$D$33,ROUNDDOWN(' 賞与計算 '!F27,-3))*INDIRECT(' 基本情報 '!$D$3&"!$H$9")/2-0.1,0) -> 0 | AH24: 0 | AI24: =ROUND(IF(' 賞与計算 '!F27>税額基本情報!$D$30,税額基本情報!$D$30,ROUNDDOWN(' 賞与計算 '!F27,-3))*INDIRECT(' 基本情報 '!$D$3&"!$J$9")/2-0.1,0) -> 0 | AJ24: =ROUND(IF(' 賞与計算 '!F27>税額基本情報!$D$30,税額基本情報!$D$30,ROUNDDOWN(' 賞与計算 '!F27,-3))*INDIRECT(' 基本情報 '!$D$3&"!$L$9")/2-0.1,0) -> 0
C25: 21 | D25: =' 給与計算 '!C28 ->  | E25: =MAX(IF(' 給与計算 '!K28>=税額基本情報!$D$6,MAX(計算シート!H25:K25),IF(' 給与計算 '!K28<源泉月額表!$B$8,0,VLOOKUP(' 給与計算 '!K28,源泉月額表!$B:$K,IF(' 基本情報 '!E28>=8,10,' 基本情報 '!E28+3),1)))-IF(' 基本情報 '!E28>=8,(' 基本情報 '!E28-7)*税額基本情報!$D$17,0),0) -> 0 | F25: =IF(' 給与計算 '!K28<源泉月額表!$B$8,ROUNDDOWN(' 給与計算 '!K28*税額基本情報!$D$23,0),IF(' 給与計算 '!K28=0,0,IF(' 給与計算 '!K28>=税額基本情報!$D$13,MAX(L25:M25),VLOOKUP(' 給与計算 '!K28,源泉月額表!$B:$L,11,1)))) -> 0 | G25: =MAX(IF(' 給与計算 '!K28<源泉月額表!$B$8,ROUNDDOWN(' 給与計算 '!K28*3.063%,0),IF(' 給与計算 '!K28=0,0,IF(' 給与計算 '!K28>=税額基本情報!$D$13,MAX(L25:M25),VLOOKUP(' 給与計算 '!K28,源泉月額表!$B:$L,11,1))))-' 基本情報 '!E28*税額基本情報!$D$20,0) -> 0 | H25: =IF(AND(' 給与計算 '!K28>=税額基本情報!$D$6,' 給与計算 '!K28<税額基本情報!$D$7),VLOOKUP(' 給与計算 '!K28,税額基本情報!$D$6:$M$9,IF(' 基本情報 '!E28>=8,10,' 基本情報 '!E28+3),1)+ROUNDDOWN((' 給与計算 '!K28-税額基本情報!$D$6)*税額基本情報!$E$6,0),0) -> 0 | I25: =IF(AND(' 給与計算 '!K28>=税額基本情報!$D$7,' 給与計算 '!K28<税額基本情報!$D$8),VLOOKUP(' 給与計算 '!K28,税額基本情報!$D$6:$M$9,IF(' 基本情報 '!E28>=8,10,' 基本情報 '!E28+3),1)+ROUNDDOWN((' 給与計算 '!K28-税額基本情報!$D$7)*税額基本情報!$E$7,0),0) -> 0 | J25: =IF(' 給与計算 '!K28>=税額基本情報!$D$8,VLOOKUP(' 給与計算 '!K28,税額基本情報!$D$6:$M$9,IF(' 基本情報 '!E28>=8,10,' 基本情報 '!E28+3),1)+ROUNDDOWN((' 給与計算 '!K28-税額基本情報!$D$8)*税額基本情報!$E$8,0),0) -> 0 | L25: =IF(AND(' 給与計算 '!K28>=税額基本情報!$D$13,' 給与計算 '!K28<税額基本情報!$D$14),税額基本情報!$F$13+ROUNDDOWN((' 給与計算 '!K28-税額基本情報!$D$13)*税額基本情報!$E$13,0),0) -> 0 | M25: =IF(' 給与計算 '!K28>=税額基本情報!$D$14,税額基本情報!$F$14+ROUNDDOWN((' 給与計算 '!K28-税額基本情報!$D$14)*税額基本情報!$E$14,0),0) -> 0 | N25: =IF(' 賞与計算 '!D28<源泉賞与表!$D$10*1000,0,INDEX(源泉賞与表!$B:$B,MATCH(' 賞与計算 '!D28/1000,源泉賞与表!$D:$D,1))) -> 0 | O25: =IF(' 賞与計算 '!D28<源泉賞与表!$F$10*1000,0,INDEX(源泉賞与表!$B:$B,MATCH(' 賞与計算 '!D28/1000,源泉賞与表!$F:$F,1))) -> 0 | P25: =IF(' 賞与計算 '!D28<源泉賞与表!$H$10*1000,0,INDEX(源泉賞与表!$B:$B,MATCH(' 賞与計算 '!D28/1000,源泉賞与表!$H:$H,1))) -> 0 | Q25: =IF(' 賞与計算 '!D28<源泉賞与表!$J$10*1000,0,INDEX(源泉賞与表!$B:$B,MATCH(' 賞与計算 '!D28/1000,源泉賞与表!$J:$J,1))) -> 0 | R25: =IF(' 賞与計算 '!D28<源泉賞与表!$L$10*1000,0,INDEX(源泉賞与表!$B:$B,MATCH(' 賞与計算 '!D28/1000,源泉賞与表!$L:$L,1))) -> 0 | S25: =IF(' 賞与計算 '!D28<源泉賞与表!$N$10*1000,0,INDEX(源泉賞与表!$B:$B,MATCH(' 賞与計算 '!D28/1000,源泉賞与表!$N:$N,1))) -> 0 | T25: =IF(' 賞与計算 '!D28<源泉賞与表!$P$10*1000,0,INDEX(源泉賞与表!$B:$B,MATCH(' 賞与計算 '!D28/1000,源泉賞与表!$P:$P,1))) -> 0 | U25: =IF(' 賞与計算 '!D28<源泉賞与表!$R$10*1000,0,INDEX(源泉賞与表!$B:$B,MATCH(' 賞与計算 '!D28/1000,源泉賞与表!$R:$R,1))) -> 0 | V25: =IF(' 賞与計算 '!D28="","",IF(' 賞与計算 '!D28<源泉賞与表!$T$22*1000,10.21,INDEX(源泉賞与表!$B:$B,MATCH(' 賞与計算 '!D28/1000,源泉賞与表!$T:$T,1)))) ->  | W25: 0 | X25: =IF(' 基本情報 '!G28="",0,ROUND(VLOOKUP(' 基本情報 '!G28,INDIRECT(' 基本情報 '!$D$3&"!$B$12:$I$61"),6,0)-0.1,0)) -> 0 | Y25: =IF(' 基本情報 '!G28="",0,ROUND(VLOOKUP(' 基本情報 '!G28,INDIRECT(' 基本情報 '!$D$3&"!$B$12:$I$61"),8,0)-0.1,0)) -> 0 | Z25: 0 | AA25: =IF(' 基本情報 '!G28="",0,ROUND(IF(OR(' 基本情報 '!G28<税額基本情報!$E$26,' 基本情報 '!G28>税額基本情報!$E$27),AC25,VLOOKUP(' 基本情報 '!G28,INDIRECT(' 基本情報 '!$D$3&"!$B$16:$M$45"),10,0))-0.1,0)) -> 0 | AB25: =IF(' 基本情報 '!G28="",0,ROUND(IF(OR(' 基本情報 '!G28<税額基本情報!$E$26,' 基本情報 '!G28>税額基本情報!$E$27),AD25,VLOOKUP(' 基本情報 '!G28,INDIRECT(' 基本情報 '!$D$3&"!$B$16:$M$45"),12,0))-0.1,0)) -> 0 | AC25: =IF(' 基本情報 '!G28="",0,IF(' 基本情報 '!G28<税額基本情報!$E$26,税額基本情報!$F$26,IF(' 基本情報 '!G28>税額基本情報!$E$27,税額基本情報!$F$27,0))) -> 0 | AD25: =IF(' 基本情報 '!G28="",0,IF(' 基本情報 '!G28<税額基本情報!$E$26,税額基本情報!$G$26,IF(' 基本情報 '!G28>税額基本情報!$E$27,税額基本情報!$G$27,0))) -> 0 | AE25: 0 | AF25: =ROUND(IF(' 賞与計算 '!F28>税額基本情報!$D$33,税額基本情報!$D$33,ROUNDDOWN(' 賞与計算 '!F28,-3))*INDIRECT(' 基本情報 '!$D$3&"!$F$9")*0.5-0.1,0) -> 0 | AG25: =ROUND(IF(' 賞与計算 '!F28>税額基本情報!$D$33,税額基本情報!$D$33,ROUNDDOWN(' 賞与計算 '!F28,-3))*INDIRECT(' 基本情報 '!$D$3&"!$H$9")/2-0.1,0) -> 0 | AH25: 0 | AI25: =ROUND(IF(' 賞与計算 '!F28>税額基本情報!$D$30,税額基本情報!$D$30,ROUNDDOWN(' 賞与計算 '!F28,-3))*INDIRECT(' 基本情報 '!$D$3&"!$J$9")/2-0.1,0) -> 0 | AJ25: =ROUND(IF(' 賞与計算 '!F28>税額基本情報!$D$30,税額基本情報!$D$30,ROUNDDOWN(' 賞与計算 '!F28,-3))*INDIRECT(' 基本情報 '!$D$3&"!$L$9")/2-0.1,0) -> 0
C26: 22 | D26: =' 給与計算 '!C29 ->  | E26: =MAX(IF(' 給与計算 '!K29>=税額基本情報!$D$6,MAX(計算シート!H26:K26),IF(' 給与計算 '!K29<源泉月額表!$B$8,0,VLOOKUP(' 給与計算 '!K29,源泉月額表!$B:$K,IF(' 基本情報 '!E29>=8,10,' 基本情報 '!E29+3),1)))-IF(' 基本情報 '!E29>=8,(' 基本情報 '!E29-7)*税額基本情報!$D$17,0),0) -> 0 | F26: =IF(' 給与計算 '!K29<源泉月額表!$B$8,ROUNDDOWN(' 給与計算 '!K29*税額基本情報!$D$23,0),IF(' 給与計算 '!K29=0,0,IF(' 給与計算 '!K29>=税額基本情報!$D$13,MAX(L26:M26),VLOOKUP(' 給与計算 '!K29,源泉月額表!$B:$L,11,1)))) -> 0 | G26: =MAX(IF(' 給与計算 '!K29<源泉月額表!$B$8,ROUNDDOWN(' 給与計算 '!K29*3.063%,0),IF(' 給与計算 '!K29=0,0,IF(' 給与計算 '!K29>=税額基本情報!$D$13,MAX(L26:M26),VLOOKUP(' 給与計算 '!K29,源泉月額表!$B:$L,11,1))))-' 基本情報 '!E29*税額基本情報!$D$20,0) -> 0 | H26: =IF(AND(' 給与計算 '!K29>=税額基本情報!$D$6,' 給与計算 '!K29<税額基本情報!$D$7),VLOOKUP(' 給与計算 '!K29,税額基本情報!$D$6:$M$9,IF(' 基本情報 '!E29>=8,10,' 基本情報 '!E29+3),1)+ROUNDDOWN((' 給与計算 '!K29-税額基本情報!$D$6)*税額基本情報!$E$6,0),0) -> 0 | I26: =IF(AND(' 給与計算 '!K29>=税額基本情報!$D$7,' 給与計算 '!K29<税額基本情報!$D$8),VLOOKUP(' 給与計算 '!K29,税額基本情報!$D$6:$M$9,IF(' 基本情報 '!E29>=8,10,' 基本情報 '!E29+3),1)+ROUNDDOWN((' 給与計算 '!K29-税額基本情報!$D$7)*税額基本情報!$E$7,0),0) -> 0 | J26: =IF(' 給与計算 '!K29>=税額基本情報!$D$8,VLOOKUP(' 給与計算 '!K29,税額基本情報!$D$6:$M$9,IF(' 基本情報 '!E29>=8,10,' 基本情報 '!E29+3),1)+ROUNDDOWN((' 給与計算 '!K29-税額基本情報!$D$8)*税額基本情報!$E$8,0),0) -> 0 | L26: =IF(AND(' 給与計算 '!K29>=税額基本情報!$D$13,' 給与計算 '!K29<税額基本情報!$D$14),税額基本情報!$F$13+ROUNDDOWN((' 給与計算 '!K29-税額基本情報!$D$13)*税額基本情報!$E$13,0),0) -> 0 | M26: =IF(' 給与計算 '!K29>=税額基本情報!$D$14,税額基本情報!$F$14+ROUNDDOWN((' 給与計算 '!K29-税額基本情報!$D$14)*税額基本情報!$E$14,0),0) -> 0 | N26: =IF(' 賞与計算 '!D29<源泉賞与表!$D$10*1000,0,INDEX(源泉賞与表!$B:$B,MATCH(' 賞与計算 '!D29/1000,源泉賞与表!$D:$D,1))) -> 0 | O26: =IF(' 賞与計算 '!D29<源泉賞与表!$F$10*1000,0,INDEX(源泉賞与表!$B:$B,MATCH(' 賞与計算 '!D29/1000,源泉賞与表!$F:$F,1))) -> 0 | P26: =IF(' 賞与計算 '!D29<源泉賞与表!$H$10*1000,0,INDEX(源泉賞与表!$B:$B,MATCH(' 賞与計算 '!D29/1000,源泉賞与表!$H:$H,1))) -> 0 | Q26: =IF(' 賞与計算 '!D29<源泉賞与表!$J$10*1000,0,INDEX(源泉賞与表!$B:$B,MATCH(' 賞与計算 '!D29/1000,源泉賞与表!$J:$J,1))) -> 0 | R26: =IF(' 賞与計算 '!D29<源泉賞与表!$L$10*1000,0,INDEX(源泉賞与表!$B:$B,MATCH(' 賞与計算 '!D29/1000,源泉賞与表!$L:$L,1))) -> 0 | S26: =IF(' 賞与計算 '!D29<源泉賞与表!$N$10*1000,0,INDEX(源泉賞与表!$B:$B,MATCH(' 賞与計算 '!D29/1000,源泉賞与表!$N:$N,1))) -> 0 | T26: =IF(' 賞与計算 '!D29<源泉賞与表!$P$10*1000,0,INDEX(源泉賞与表!$B:$B,MATCH(' 賞与計算 '!D29/1000,源泉賞与表!$P:$P,1))) -> 0 | U26: =IF(' 賞与計算 '!D29<源泉賞与表!$R$10*1000,0,INDEX(源泉賞与表!$B:$B,MATCH(' 賞与計算 '!D29/1000,源泉賞与表!$R:$R,1))) -> 0 | V26: =IF(' 賞与計算 '!D29="","",IF(' 賞与計算 '!D29<源泉賞与表!$T$22*1000,10.21,INDEX(源泉賞与表!$B:$B,MATCH(' 賞与計算 '!D29/1000,源泉賞与表!$T:$T,1)))) ->  | W26: 0 | X26: =IF(' 基本情報 '!G29="",0,ROUND(VLOOKUP(' 基本情報 '!G29,INDIRECT(' 基本情報 '!$D$3&"!$B$12:$I$61"),6,0)-0.1,0)) -> 0 | Y26: =IF(' 基本情報 '!G29="",0,ROUND(VLOOKUP(' 基本情報 '!G29,INDIRECT(' 基本情報 '!$D$3&"!$B$12:$I$61"),8,0)-0.1,0)) -> 0 | Z26: 0 | AA26: =IF(' 基本情報 '!G29="",0,ROUND(IF(OR(' 基本情報 '!G29<税額基本情報!$E$26,' 基本情報 '!G29>税額基本情報!$E$27),AC26,VLOOKUP(' 基本情報 '!G29,INDIRECT(' 基本情報 '!$D$3&"!$B$16:$M$45"),10,0))-0.1,0)) -> 0 | AB26: =IF(' 基本情報 '!G29="",0,ROUND(IF(OR(' 基本情報 '!G29<税額基本情報!$E$26,' 基本情報 '!G29>税額基本情報!$E$27),AD26,VLOOKUP(' 基本情報 '!G29,INDIRECT(' 基本情報 '!$D$3&"!$B$16:$M$45"),12,0))-0.1,0)) -> 0 | AC26: =IF(' 基本情報 '!G29="",0,IF(' 基本情報 '!G29<税額基本情報!$E$26,税額基本情報!$F$26,IF(' 基本情報 '!G29>税額基本情報!$E$27,税額基本情報!$F$27,0))) -> 0 | AD26: =IF(' 基本情報 '!G29="",0,IF(' 基本情報 '!G29<税額基本情報!$E$26,税額基本情報!$G$26,IF(' 基本情報 '!G29>税額基本情報!$E$27,税額基本情報!$G$27,0))) -> 0 | AE26: 0 | AF26: =ROUND(IF(' 賞与計算 '!F29>税額基本情報!$D$33,税額基本情報!$D$33,ROUNDDOWN(' 賞与計算 '!F29,-3))*INDIRECT(' 基本情報 '!$D$3&"!$F$9")*0.5-0.1,0) -> 0 | AG26: =ROUND(IF(' 賞与計算 '!F29>税額基本情報!$D$33,税額基本情報!$D$33,ROUNDDOWN(' 賞与計算 '!F29,-3))*INDIRECT(' 基本情報 '!$D$3&"!$H$9")/2-0.1,0) -> 0 | AH26: 0 | AI26: =ROUND(IF(' 賞与計算 '!F29>税額基本情報!$D$30,税額基本情報!$D$30,ROUNDDOWN(' 賞与計算 '!F29,-3))*INDIRECT(' 基本情報 '!$D$3&"!$J$9")/2-0.1,0) -> 0 | AJ26: =ROUND(IF(' 賞与計算 '!F29>税額基本情報!$D$30,税額基本情報!$D$30,ROUNDDOWN(' 賞与計算 '!F29,-3))*INDIRECT(' 基本情報 '!$D$3&"!$L$9")/2-0.1,0) -> 0
C27: 23 | D27: =' 給与計算 '!C30 ->  | E27: =MAX(IF(' 給与計算 '!K30>=税額基本情報!$D$6,MAX(計算シート!H27:K27),IF(' 給与計算 '!K30<源泉月額表!$B$8,0,VLOOKUP(' 給与計算 '!K30,源泉月額表!$B:$K,IF(' 基本情報 '!E30>=8,10,' 基本情報 '!E30+3),1)))-IF(' 基本情報 '!E30>=8,(' 基本情報 '!E30-7)*税額基本情報!$D$17,0),0) -> 0 | F27: =IF(' 給与計算 '!K30<源泉月額表!$B$8,ROUNDDOWN(' 給与計算 '!K30*税額基本情報!$D$23,0),IF(' 給与計算 '!K30=0,0,IF(' 給与計算 '!K30>=税額基本情報!$D$13,MAX(L27:M27),VLOOKUP(' 給与計算 '!K30,源泉月額表!$B:$L,11,1)))) -> 0 | G27: =MAX(IF(' 給与計算 '!K30<源泉月額表!$B$8,ROUNDDOWN(' 給与計算 '!K30*3.063%,0),IF(' 給与計算 '!K30=0,0,IF(' 給与計算 '!K30>=税額基本情報!$D$13,MAX(L27:M27),VLOOKUP(' 給与計算 '!K30,源泉月額表!$B:$L,11,1))))-' 基本情報 '!E30*税額基本情報!$D$20,0) -> 0 | H27: =IF(AND(' 給与計算 '!K30>=税額基本情報!$D$6,' 給与計算 '!K30<税額基本情報!$D$7),VLOOKUP(' 給与計算 '!K30,税額基本情報!$D$6:$M$9,IF(' 基本情報 '!E30>=8,10,' 基本情報 '!E30+3),1)+ROUNDDOWN((' 給与計算 '!K30-税額基本情報!$D$6)*税額基本情報!$E$6,0),0) -> 0 | I27: =IF(AND(' 給与計算 '!K30>=税額基本情報!$D$7,' 給与計算 '!K30<税額基本情報!$D$8),VLOOKUP(' 給与計算 '!K30,税額基本情報!$D$6:$M$9,IF(' 基本情報 '!E30>=8,10,' 基本情報 '!E30+3),1)+ROUNDDOWN((' 給与計算 '!K30-税額基本情報!$D$7)*税額基本情報!$E$7,0),0) -> 0 | J27: =IF(' 給与計算 '!K30>=税額基本情報!$D$8,VLOOKUP(' 給与計算 '!K30,税額基本情報!$D$6:$M$9,IF(' 基本情報 '!E30>=8,10,' 基本情報 '!E30+3),1)+ROUNDDOWN((' 給与計算 '!K30-税額基本情報!$D$8)*税額基本情報!$E$8,0),0) -> 0 | L27: =IF(AND(' 給与計算 '!K30>=税額基本情報!$D$13,' 給与計算 '!K30<税額基本情報!$D$14),税額基本情報!$F$13+ROUNDDOWN((' 給与計算 '!K30-税額基本情報!$D$13)*税額基本情報!$E$13,0),0) -> 0 | M27: =IF(' 給与計算 '!K30>=税額基本情報!$D$14,税額基本情報!$F$14+ROUNDDOWN((' 給与計算 '!K30-税額基本情報!$D$14)*税額基本情報!$E$14,0),0) -> 0 | N27: =IF(' 賞与計算 '!D30<源泉賞与表!$D$10*1000,0,INDEX(源泉賞与表!$B:$B,MATCH(' 賞与計算 '!D30/1000,源泉賞与表!$D:$D,1))) -> 0 | O27: =IF(' 賞与計算 '!D30<源泉賞与表!$F$10*1000,0,INDEX(源泉賞与表!$B:$B,MATCH(' 賞与計算 '!D30/1000,源泉賞与表!$F:$F,1))) -> 0 | P27: =IF(' 賞与計算 '!D30<源泉賞与表!$H$10*1000,0,INDEX(源泉賞与表!$B:$B,MATCH(' 賞与計算 '!D30/1000,源泉賞与表!$H:$H,1))) -> 0 | Q27: =IF(' 賞与計算 '!D30<源泉賞与表!$J$10*1000,0,INDEX(源泉賞与表!$B:$B,MATCH(' 賞与計算 '!D30/1000,源泉賞与表!$J:$J,1))) -> 0 | R27: =IF(' 賞与計算 '!D30<源泉賞与表!$L$10*1000,0,INDEX(源泉賞与表!$B:$B,MATCH(' 賞与計算 '!D30/1000,源泉賞与表!$L:$L,1))) -> 0 | S27: =IF(' 賞与計算 '!D30<源泉賞与表!$N$10*1000,0,INDEX(源泉賞与表!$B:$B,MATCH(' 賞与計算 '!D30/1000,源泉賞与表!$N:$N,1))) -> 0 | T27: =IF(' 賞与計算 '!D30<源泉賞与表!$P$10*1000,0,INDEX(源泉賞与表!$B:$B,MATCH(' 賞与計算 '!D30/1000,源泉賞与表!$P:$P,1))) -> 0 | U27: =IF(' 賞与計算 '!D30<源泉賞与表!$R$10*1000,0,INDEX(源泉賞与表!$B:$B,MATCH(' 賞与計算 '!D30/1000,源泉賞与表!$R:$R,1))) -> 0 | V27: =IF(' 賞与計算 '!D30="","",IF(' 賞与計算 '!D30<源泉賞与表!$T$22*1000,10.21,INDEX(源泉賞与表!$B:$B,MATCH(' 賞与計算 '!D30/1000,源泉賞与表!$T:$T,1)))) ->  | W27: 0 | X27: =IF(' 基本情報 '!G30="",0,ROUND(VLOOKUP(' 基本情報 '!G30,INDIRECT(' 基本情報 '!$D$3&"!$B$12:$I$61"),6,0)-0.1,0)) -> 0 | Y27: =IF(' 基本情報 '!G30="",0,ROUND(VLOOKUP(' 基本情報 '!G30,INDIRECT(' 基本情報 '!$D$3&"!$B$12:$I$61"),8,0)-0.1,0)) -> 0 | Z27: 0 | AA27: =IF(' 基本情報 '!G30="",0,ROUND(IF(OR(' 基本情報 '!G30<税額基本情報!$E$26,' 基本情報 '!G30>税額基本情報!$E$27),AC27,VLOOKUP(' 基本情報 '!G30,INDIRECT(' 基本情報 '!$D$3&"!$B$16:$M$45"),10,0))-0.1,0)) -> 0 | AB27: =IF(' 基本情報 '!G30="",0,ROUND(IF(OR(' 基本情報 '!G30<税額基本情報!$E$26,' 基本情報 '!G30>税額基本情報!$E$27),AD27,VLOOKUP(' 基本情報 '!G30,INDIRECT(' 基本情報 '!$D$3&"!$B$16:$M$45"),12,0))-0.1,0)) -> 0 | AC27: =IF(' 基本情報 '!G30="",0,IF(' 基本情報 '!G30<税額基本情報!$E$26,税額基本情報!$F$26,IF(' 基本情報 '!G30>税額基本情報!$E$27,税額基本情報!$F$27,0))) -> 0 | AD27: =IF(' 基本情報 '!G30="",0,IF(' 基本情報 '!G30<税額基本情報!$E$26,税額基本情報!$G$26,IF(' 基本情報 '!G30>税額基本情報!$E$27,税額基本情報!$G$27,0))) -> 0 | AE27: 0 | AF27: =ROUND(IF(' 賞与計算 '!F30>税額基本情報!$D$33,税額基本情報!$D$33,ROUNDDOWN(' 賞与計算 '!F30,-3))*INDIRECT(' 基本情報 '!$D$3&"!$F$9")*0.5-0.1,0) -> 0 | AG27: =ROUND(IF(' 賞与計算 '!F30>税額基本情報!$D$33,税額基本情報!$D$33,ROUNDDOWN(' 賞与計算 '!F30,-3))*INDIRECT(' 基本情報 '!$D$3&"!$H$9")/2-0.1,0) -> 0 | AH27: 0 | AI27: =ROUND(IF(' 賞与計算 '!F30>税額基本情報!$D$30,税額基本情報!$D$30,ROUNDDOWN(' 賞与計算 '!F30,-3))*INDIRECT(' 基本情報 '!$D$3&"!$J$9")/2-0.1,0) -> 0 | AJ27: =ROUND(IF(' 賞与計算 '!F30>税額基本情報!$D$30,税額基本情報!$D$30,ROUNDDOWN(' 賞与計算 '!F30,-3))*INDIRECT(' 基本情報 '!$D$3&"!$L$9")/2-0.1,0) -> 0
C28: 24 | D28: =' 給与計算 '!C31 ->  | E28: =MAX(IF(' 給与計算 '!K31>=税額基本情報!$D$6,MAX(計算シート!H28:K28),IF(' 給与計算 '!K31<源泉月額表!$B$8,0,VLOOKUP(' 給与計算 '!K31,源泉月額表!$B:$K,IF(' 基本情報 '!E31>=8,10,' 基本情報 '!E31+3),1)))-IF(' 基本情報 '!E31>=8,(' 基本情報 '!E31-7)*税額基本情報!$D$17,0),0) -> 0 | F28: =IF(' 給与計算 '!K31<源泉月額表!$B$8,ROUNDDOWN(' 給与計算 '!K31*税額基本情報!$D$23,0),IF(' 給与計算 '!K31=0,0,IF(' 給与計算 '!K31>=税額基本情報!$D$13,MAX(L28:M28),VLOOKUP(' 給与計算 '!K31,源泉月額表!$B:$L,11,1)))) -> 0 | G28: =MAX(IF(' 給与計算 '!K31<源泉月額表!$B$8,ROUNDDOWN(' 給与計算 '!K31*3.063%,0),IF(' 給与計算 '!K31=0,0,IF(' 給与計算 '!K31>=税額基本情報!$D$13,MAX(L28:M28),VLOOKUP(' 給与計算 '!K31,源泉月額表!$B:$L,11,1))))-' 基本情報 '!E31*税額基本情報!$D$20,0) -> 0 | H28: =IF(AND(' 給与計算 '!K31>=税額基本情報!$D$6,' 給与計算 '!K31<税額基本情報!$D$7),VLOOKUP(' 給与計算 '!K31,税額基本情報!$D$6:$M$9,IF(' 基本情報 '!E31>=8,10,' 基本情報 '!E31+3),1)+ROUNDDOWN((' 給与計算 '!K31-税額基本情報!$D$6)*税額基本情報!$E$6,0),0) -> 0 | I28: =IF(AND(' 給与計算 '!K31>=税額基本情報!$D$7,' 給与計算 '!K31<税額基本情報!$D$8),VLOOKUP(' 給与計算 '!K31,税額基本情報!$D$6:$M$9,IF(' 基本情報 '!E31>=8,10,' 基本情報 '!E31+3),1)+ROUNDDOWN((' 給与計算 '!K31-税額基本情報!$D$7)*税額基本情報!$E$7,0),0) -> 0 | J28: =IF(' 給与計算 '!K31>=税額基本情報!$D$8,VLOOKUP(' 給与計算 '!K31,税額基本情報!$D$6:$M$9,IF(' 基本情報 '!E31>=8,10,' 基本情報 '!E31+3),1)+ROUNDDOWN((' 給与計算 '!K31-税額基本情報!$D$8)*税額基本情報!$E$8,0),0) -> 0 | L28: =IF(AND(' 給与計算 '!K31>=税額基本情報!$D$13,' 給与計算 '!K31<税額基本情報!$D$14),税額基本情報!$F$13+ROUNDDOWN((' 給与計算 '!K31-税額基本情報!$D$13)*税額基本情報!$E$13,0),0) -> 0 | M28: =IF(' 給与計算 '!K31>=税額基本情報!$D$14,税額基本情報!$F$14+ROUNDDOWN((' 給与計算 '!K31-税額基本情報!$D$14)*税額基本情報!$E$14,0),0) -> 0 | N28: =IF(' 賞与計算 '!D31<源泉賞与表!$D$10*1000,0,INDEX(源泉賞与表!$B:$B,MATCH(' 賞与計算 '!D31/1000,源泉賞与表!$D:$D,1))) -> 0 | O28: =IF(' 賞与計算 '!D31<源泉賞与表!$F$10*1000,0,INDEX(源泉賞与表!$B:$B,MATCH(' 賞与計算 '!D31/1000,源泉賞与表!$F:$F,1))) -> 0 | P28: =IF(' 賞与計算 '!D31<源泉賞与表!$H$10*1000,0,INDEX(源泉賞与表!$B:$B,MATCH(' 賞与計算 '!D31/1000,源泉賞与表!$H:$H,1))) -> 0 | Q28: =IF(' 賞与計算 '!D31<源泉賞与表!$J$10*1000,0,INDEX(源泉賞与表!$B:$B,MATCH(' 賞与計算 '!D31/1000,源泉賞与表!$J:$J,1))) -> 0 | R28: =IF(' 賞与計算 '!D31<源泉賞与表!$L$10*1000,0,INDEX(源泉賞与表!$B:$B,MATCH(' 賞与計算 '!D31/1000,源泉賞与表!$L:$L,1))) -> 0 | S28: =IF(' 賞与計算 '!D31<源泉賞与表!$N$10*1000,0,INDEX(源泉賞与表!$B:$B,MATCH(' 賞与計算 '!D31/1000,源泉賞与表!$N:$N,1))) -> 0 | T28: =IF(' 賞与計算 '!D31<源泉賞与表!$P$10*1000,0,INDEX(源泉賞与表!$B:$B,MATCH(' 賞与計算 '!D31/1000,源泉賞与表!$P:$P,1))) -> 0 | U28: =IF(' 賞与計算 '!D31<源泉賞与表!$R$10*1000,0,INDEX(源泉賞与表!$B:$B,MATCH(' 賞与計算 '!D31/1000,源泉賞与表!$R:$R,1))) -> 0 | V28: =IF(' 賞与計算 '!D31="","",IF(' 賞与計算 '!D31<源泉賞与表!$T$22*1000,10.21,INDEX(源泉賞与表!$B:$B,MATCH(' 賞与計算 '!D31/1000,源泉賞与表!$T:$T,1)))) ->  | W28: 0 | X28: =IF(' 基本情報 '!G31="",0,ROUND(VLOOKUP(' 基本情報 '!G31,INDIRECT(' 基本情報 '!$D$3&"!$B$12:$I$61"),6,0)-0.1,0)) -> 0 | Y28: =IF(' 基本情報 '!G31="",0,ROUND(VLOOKUP(' 基本情報 '!G31,INDIRECT(' 基本情報 '!$D$3&"!$B$12:$I$61"),8,0)-0.1,0)) -> 0 | Z28: 0 | AA28: =IF(' 基本情報 '!G31="",0,ROUND(IF(OR(' 基本情報 '!G31<税額基本情報!$E$26,' 基本情報 '!G31>税額基本情報!$E$27),AC28,VLOOKUP(' 基本情報 '!G31,INDIRECT(' 基本情報 '!$D$3&"!$B$16:$M$45"),10,0))-0.1,0)) -> 0 | AB28: =IF(' 基本情報 '!G31="",0,ROUND(IF(OR(' 基本情報 '!G31<税額基本情報!$E$26,' 基本情報 '!G31>税額基本情報!$E$27),AD28,VLOOKUP(' 基本情報 '!G31,INDIRECT(' 基本情報 '!$D$3&"!$B$16:$M$45"),12,0))-0.1,0)) -> 0 | AC28: =IF(' 基本情報 '!G31="",0,IF(' 基本情報 '!G31<税額基本情報!$E$26,税額基本情報!$F$26,IF(' 基本情報 '!G31>税額基本情報!$E$27,税額基本情報!$F$27,0))) -> 0 | AD28: =IF(' 基本情報 '!G31="",0,IF(' 基本情報 '!G31<税額基本情報!$E$26,税額基本情報!$G$26,IF(' 基本情報 '!G31>税額基本情報!$E$27,税額基本情報!$G$27,0))) -> 0 | AE28: 0 | AF28: =ROUND(IF(' 賞与計算 '!F31>税額基本情報!$D$33,税額基本情報!$D$33,ROUNDDOWN(' 賞与計算 '!F31,-3))*INDIRECT(' 基本情報 '!$D$3&"!$F$9")*0.5-0.1,0) -> 0 | AG28: =ROUND(IF(' 賞与計算 '!F31>税額基本情報!$D$33,税額基本情報!$D$33,ROUNDDOWN(' 賞与計算 '!F31,-3))*INDIRECT(' 基本情報 '!$D$3&"!$H$9")/2-0.1,0) -> 0 | AH28: 0 | AI28: =ROUND(IF(' 賞与計算 '!F31>税額基本情報!$D$30,税額基本情報!$D$30,ROUNDDOWN(' 賞与計算 '!F31,-3))*INDIRECT(' 基本情報 '!$D$3&"!$J$9")/2-0.1,0) -> 0 | AJ28: =ROUND(IF(' 賞与計算 '!F31>税額基本情報!$D$30,税額基本情報!$D$30,ROUNDDOWN(' 賞与計算 '!F31,-3))*INDIRECT(' 基本情報 '!$D$3&"!$L$9")/2-0.1,0) -> 0
C29: 25 | D29: =' 給与計算 '!C32 ->  | E29: =MAX(IF(' 給与計算 '!K32>=税額基本情報!$D$6,MAX(計算シート!H29:K29),IF(' 給与計算 '!K32<源泉月額表!$B$8,0,VLOOKUP(' 給与計算 '!K32,源泉月額表!$B:$K,IF(' 基本情報 '!E32>=8,10,' 基本情報 '!E32+3),1)))-IF(' 基本情報 '!E32>=8,(' 基本情報 '!E32-7)*税額基本情報!$D$17,0),0) -> 0 | F29: =IF(' 給与計算 '!K32<源泉月額表!$B$8,ROUNDDOWN(' 給与計算 '!K32*税額基本情報!$D$23,0),IF(' 給与計算 '!K32=0,0,IF(' 給与計算 '!K32>=税額基本情報!$D$13,MAX(L29:M29),VLOOKUP(' 給与計算 '!K32,源泉月額表!$B:$L,11,1)))) -> 0 | G29: =MAX(IF(' 給与計算 '!K32<源泉月額表!$B$8,ROUNDDOWN(' 給与計算 '!K32*3.063%,0),IF(' 給与計算 '!K32=0,0,IF(' 給与計算 '!K32>=税額基本情報!$D$13,MAX(L29:M29),VLOOKUP(' 給与計算 '!K32,源泉月額表!$B:$L,11,1))))-' 基本情報 '!E32*税額基本情報!$D$20,0) -> 0 | H29: =IF(AND(' 給与計算 '!K32>=税額基本情報!$D$6,' 給与計算 '!K32<税額基本情報!$D$7),VLOOKUP(' 給与計算 '!K32,税額基本情報!$D$6:$M$9,IF(' 基本情報 '!E32>=8,10,' 基本情報 '!E32+3),1)+ROUNDDOWN((' 給与計算 '!K32-税額基本情報!$D$6)*税額基本情報!$E$6,0),0) -> 0 | I29: =IF(AND(' 給与計算 '!K32>=税額基本情報!$D$7,' 給与計算 '!K32<税額基本情報!$D$8),VLOOKUP(' 給与計算 '!K32,税額基本情報!$D$6:$M$9,IF(' 基本情報 '!E32>=8,10,' 基本情報 '!E32+3),1)+ROUNDDOWN((' 給与計算 '!K32-税額基本情報!$D$7)*税額基本情報!$E$7,0),0) -> 0 | J29: =IF(' 給与計算 '!K32>=税額基本情報!$D$8,VLOOKUP(' 給与計算 '!K32,税額基本情報!$D$6:$M$9,IF(' 基本情報 '!E32>=8,10,' 基本情報 '!E32+3),1)+ROUNDDOWN((' 給与計算 '!K32-税額基本情報!$D$8)*税額基本情報!$E$8,0),0) -> 0 | L29: =IF(AND(' 給与計算 '!K32>=税額基本情報!$D$13,' 給与計算 '!K32<税額基本情報!$D$14),税額基本情報!$F$13+ROUNDDOWN((' 給与計算 '!K32-税額基本情報!$D$13)*税額基本情報!$E$13,0),0) -> 0 | M29: =IF(' 給与計算 '!K32>=税額基本情報!$D$14,税額基本情報!$F$14+ROUNDDOWN((' 給与計算 '!K32-税額基本情報!$D$14)*税額基本情報!$E$14,0),0) -> 0 | N29: =IF(' 賞与計算 '!D32<源泉賞与表!$D$10*1000,0,INDEX(源泉賞与表!$B:$B,MATCH(' 賞与計算 '!D32/1000,源泉賞与表!$D:$D,1))) -> 0 | O29: =IF(' 賞与計算 '!D32<源泉賞与表!$F$10*1000,0,INDEX(源泉賞与表!$B:$B,MATCH(' 賞与計算 '!D32/1000,源泉賞与表!$F:$F,1))) -> 0 | P29: =IF(' 賞与計算 '!D32<源泉賞与表!$H$10*1000,0,INDEX(源泉賞与表!$B:$B,MATCH(' 賞与計算 '!D32/1000,源泉賞与表!$H:$H,1))) -> 0 | Q29: =IF(' 賞与計算 '!D32<源泉賞与表!$J$10*1000,0,INDEX(源泉賞与表!$B:$B,MATCH(' 賞与計算 '!D32/1000,源泉賞与表!$J:$J,1))) -> 0 | R29: =IF(' 賞与計算 '!D32<源泉賞与表!$L$10*1000,0,INDEX(源泉賞与表!$B:$B,MATCH(' 賞与計算 '!D32/1000,源泉賞与表!$L:$L,1))) -> 0 | S29: =IF(' 賞与計算 '!D32<源泉賞与表!$N$10*1000,0,INDEX(源泉賞与表!$B:$B,MATCH(' 賞与計算 '!D32/1000,源泉賞与表!$N:$N,1))) -> 0 | T29: =IF(' 賞与計算 '!D32<源泉賞与表!$P$10*1000,0,INDEX(源泉賞与表!$B:$B,MATCH(' 賞与計算 '!D32/1000,源泉賞与表!$P:$P,1))) -> 0 | U29: =IF(' 賞与計算 '!D32<源泉賞与表!$R$10*1000,0,INDEX(源泉賞与表!$B:$B,MATCH(' 賞与計算 '!D32/1000,源泉賞与表!$R:$R,1))) -> 0 | V29: =IF(' 賞与計算 '!D32="","",IF(' 賞与計算 '!D32<源泉賞与表!$T$22*1000,10.21,INDEX(源泉賞与表!$B:$B,MATCH(' 賞与計算 '!D32/1000,源泉賞与表!$T:$T,1)))) ->  | W29: 0 | X29: =IF(' 基本情報 '!G32="",0,ROUND(VLOOKUP(' 基本情報 '!G32,INDIRECT(' 基本情報 '!$D$3&"!$B$12:$I$61"),6,0)-0.1,0)) -> 0 | Y29: =IF(' 基本情報 '!G32="",0,ROUND(VLOOKUP(' 基本情報 '!G32,INDIRECT(' 基本情報 '!$D$3&"!$B$12:$I$61"),8,0)-0.1,0)) -> 0 | Z29: 0 | AA29: =IF(' 基本情報 '!G32="",0,ROUND(IF(OR(' 基本情報 '!G32<税額基本情報!$E$26,' 基本情報 '!G32>税額基本情報!$E$27),AC29,VLOOKUP(' 基本情報 '!G32,INDIRECT(' 基本情報 '!$D$3&"!$B$16:$M$45"),10,0))-0.1,0)) -> 0 | AB29: =IF(' 基本情報 '!G32="",0,ROUND(IF(OR(' 基本情報 '!G32<税額基本情報!$E$26,' 基本情報 '!G32>税額基本情報!$E$27),AD29,VLOOKUP(' 基本情報 '!G32,INDIRECT(' 基本情報 '!$D$3&"!$B$16:$M$45"),12,0))-0.1,0)) -> 0 | AC29: =IF(' 基本情報 '!G32="",0,IF(' 基本情報 '!G32<税額基本情報!$E$26,税額基本情報!$F$26,IF(' 基本情報 '!G32>税額基本情報!$E$27,税額基本情報!$F$27,0))) -> 0 | AD29: =IF(' 基本情報 '!G32="",0,IF(' 基本情報 '!G32<税額基本情報!$E$26,税額基本情報!$G$26,IF(' 基本情報 '!G32>税額基本情報!$E$27,税額基本情報!$G$27,0))) -> 0 | AE29: 0 | AF29: =ROUND(IF(' 賞与計算 '!F32>税額基本情報!$D$33,税額基本情報!$D$33,ROUNDDOWN(' 賞与計算 '!F32,-3))*INDIRECT(' 基本情報 '!$D$3&"!$F$9")*0.5-0.1,0) -> 0 | AG29: =ROUND(IF(' 賞与計算 '!F32>税額基本情報!$D$33,税額基本情報!$D$33,ROUNDDOWN(' 賞与計算 '!F32,-3))*INDIRECT(' 基本情報 '!$D$3&"!$H$9")/2-0.1,0) -> 0 | AH29: 0 | AI29: =ROUND(IF(' 賞与計算 '!F32>税額基本情報!$D$30,税額基本情報!$D$30,ROUNDDOWN(' 賞与計算 '!F32,-3))*INDIRECT(' 基本情報 '!$D$3&"!$J$9")/2-0.1,0) -> 0 | AJ29: =ROUND(IF(' 賞与計算 '!F32>税額基本情報!$D$30,税額基本情報!$D$30,ROUNDDOWN(' 賞与計算 '!F32,-3))*INDIRECT(' 基本情報 '!$D$3&"!$L$9")/2-0.1,0) -> 0
C30: 26 | D30: =' 給与計算 '!C33 ->  | E30: =MAX(IF(' 給与計算 '!K33>=税額基本情報!$D$6,MAX(計算シート!H30:K30),IF(' 給与計算 '!K33<源泉月額表!$B$8,0,VLOOKUP(' 給与計算 '!K33,源泉月額表!$B:$K,IF(' 基本情報 '!E33>=8,10,' 基本情報 '!E33+3),1)))-IF(' 基本情報 '!E33>=8,(' 基本情報 '!E33-7)*税額基本情報!$D$17,0),0) -> 0 | F30: =IF(' 給与計算 '!K33<源泉月額表!$B$8,ROUNDDOWN(' 給与計算 '!K33*税額基本情報!$D$23,0),IF(' 給与計算 '!K33=0,0,IF(' 給与計算 '!K33>=税額基本情報!$D$13,MAX(L30:M30),VLOOKUP(' 給与計算 '!K33,源泉月額表!$B:$L,11,1)))) -> 0 | G30: =MAX(IF(' 給与計算 '!K33<源泉月額表!$B$8,ROUNDDOWN(' 給与計算 '!K33*3.063%,0),IF(' 給与計算 '!K33=0,0,IF(' 給与計算 '!K33>=税額基本情報!$D$13,MAX(L30:M30),VLOOKUP(' 給与計算 '!K33,源泉月額表!$B:$L,11,1))))-' 基本情報 '!E33*税額基本情報!$D$20,0) -> 0 | H30: =IF(AND(' 給与計算 '!K33>=税額基本情報!$D$6,' 給与計算 '!K33<税額基本情報!$D$7),VLOOKUP(' 給与計算 '!K33,税額基本情報!$D$6:$M$9,IF(' 基本情報 '!E33>=8,10,' 基本情報 '!E33+3),1)+ROUNDDOWN((' 給与計算 '!K33-税額基本情報!$D$6)*税額基本情報!$E$6,0),0) -> 0 | I30: =IF(AND(' 給与計算 '!K33>=税額基本情報!$D$7,' 給与計算 '!K33<税額基本情報!$D$8),VLOOKUP(' 給与計算 '!K33,税額基本情報!$D$6:$M$9,IF(' 基本情報 '!E33>=8,10,' 基本情報 '!E33+3),1)+ROUNDDOWN((' 給与計算 '!K33-税額基本情報!$D$7)*税額基本情報!$E$7,0),0) -> 0 | J30: =IF(' 給与計算 '!K33>=税額基本情報!$D$8,VLOOKUP(' 給与計算 '!K33,税額基本情報!$D$6:$M$9,IF(' 基本情報 '!E33>=8,10,' 基本情報 '!E33+3),1)+ROUNDDOWN((' 給与計算 '!K33-税額基本情報!$D$8)*税額基本情報!$E$8,0),0) -> 0 | L30: =IF(AND(' 給与計算 '!K33>=税額基本情報!$D$13,' 給与計算 '!K33<税額基本情報!$D$14),税額基本情報!$F$13+ROUNDDOWN((' 給与計算 '!K33-税額基本情報!$D$13)*税額基本情報!$E$13,0),0) -> 0 | M30: =IF(' 給与計算 '!K33>=税額基本情報!$D$14,税額基本情報!$F$14+ROUNDDOWN((' 給与計算 '!K33-税額基本情報!$D$14)*税額基本情報!$E$14,0),0) -> 0 | N30: =IF(' 賞与計算 '!D33<源泉賞与表!$D$10*1000,0,INDEX(源泉賞与表!$B:$B,MATCH(' 賞与計算 '!D33/1000,源泉賞与表!$D:$D,1))) -> 0 | O30: =IF(' 賞与計算 '!D33<源泉賞与表!$F$10*1000,0,INDEX(源泉賞与表!$B:$B,MATCH(' 賞与計算 '!D33/1000,源泉賞与表!$F:$F,1))) -> 0 | P30: =IF(' 賞与計算 '!D33<源泉賞与表!$H$10*1000,0,INDEX(源泉賞与表!$B:$B,MATCH(' 賞与計算 '!D33/1000,源泉賞与表!$H:$H,1))) -> 0 | Q30: =IF(' 賞与計算 '!D33<源泉賞与表!$J$10*1000,0,INDEX(源泉賞与表!$B:$B,MATCH(' 賞与計算 '!D33/1000,源泉賞与表!$J:$J,1))) -> 0 | R30: =IF(' 賞与計算 '!D33<源泉賞与表!$L$10*1000,0,INDEX(源泉賞与表!$B:$B,MATCH(' 賞与計算 '!D33/1000,源泉賞与表!$L:$L,1))) -> 0 | S30: =IF(' 賞与計算 '!D33<源泉賞与表!$N$10*1000,0,INDEX(源泉賞与表!$B:$B,MATCH(' 賞与計算 '!D33/1000,源泉賞与表!$N:$N,1))) -> 0 | T30: =IF(' 賞与計算 '!D33<源泉賞与表!$P$10*1000,0,INDEX(源泉賞与表!$B:$B,MATCH(' 賞与計算 '!D33/1000,源泉賞与表!$P:$P,1))) -> 0 | U30: =IF(' 賞与計算 '!D33<源泉賞与表!$R$10*1000,0,INDEX(源泉賞与表!$B:$B,MATCH(' 賞与計算 '!D33/1000,源泉賞与表!$R:$R,1))) -> 0 | V30: =IF(' 賞与計算 '!D33="","",IF(' 賞与計算 '!D33<源泉賞与表!$T$22*1000,10.21,INDEX(源泉賞与表!$B:$B,MATCH(' 賞与計算 '!D33/1000,源泉賞与表!$T:$T,1)))) ->  | W30: 0 | X30: =IF(' 基本情報 '!G33="",0,ROUND(VLOOKUP(' 基本情報 '!G33,INDIRECT(' 基本情報 '!$D$3&"!$B$12:$I$61"),6,0)-0.1,0)) -> 0 | Y30: =IF(' 基本情報 '!G33="",0,ROUND(VLOOKUP(' 基本情報 '!G33,INDIRECT(' 基本情報 '!$D$3&"!$B$12:$I$61"),8,0)-0.1,0)) -> 0 | Z30: 0 | AA30: =IF(' 基本情報 '!G33="",0,ROUND(IF(OR(' 基本情報 '!G33<税額基本情報!$E$26,' 基本情報 '!G33>税額基本情報!$E$27),AC30,VLOOKUP(' 基本情報 '!G33,INDIRECT(' 基本情報 '!$D$3&"!$B$16:$M$45"),10,0))-0.1,0)) -> 0 | AB30: =IF(' 基本情報 '!G33="",0,ROUND(IF(OR(' 基本情報 '!G33<税額基本情報!$E$26,' 基本情報 '!G33>税額基本情報!$E$27),AD30,VLOOKUP(' 基本情報 '!G33,INDIRECT(' 基本情報 '!$D$3&"!$B$16:$M$45"),12,0))-0.1,0)) -> 0 | AC30: =IF(' 基本情報 '!G33="",0,IF(' 基本情報 '!G33<税額基本情報!$E$26,税額基本情報!$F$26,IF(' 基本情報 '!G33>税額基本情報!$E$27,税額基本情報!$F$27,0))) -> 0 | AD30: =IF(' 基本情報 '!G33="",0,IF(' 基本情報 '!G33<税額基本情報!$E$26,税額基本情報!$G$26,IF(' 基本情報 '!G33>税額基本情報!$E$27,税額基本情報!$G$27,0))) -> 0 | AE30: 0 | AF30: =ROUND(IF(' 賞与計算 '!F33>税額基本情報!$D$33,税額基本情報!$D$33,ROUNDDOWN(' 賞与計算 '!F33,-3))*INDIRECT(' 基本情報 '!$D$3&"!$F$9")*0.5-0.1,0) -> 0 | AG30: =ROUND(IF(' 賞与計算 '!F33>税額基本情報!$D$33,税額基本情報!$D$33,ROUNDDOWN(' 賞与計算 '!F33,-3))*INDIRECT(' 基本情報 '!$D$3&"!$H$9")/2-0.1,0) -> 0 | AH30: 0 | AI30: =ROUND(IF(' 賞与計算 '!F33>税額基本情報!$D$30,税額基本情報!$D$30,ROUNDDOWN(' 賞与計算 '!F33,-3))*INDIRECT(' 基本情報 '!$D$3&"!$J$9")/2-0.1,0) -> 0 | AJ30: =ROUND(IF(' 賞与計算 '!F33>税額基本情報!$D$30,税額基本情報!$D$30,ROUNDDOWN(' 賞与計算 '!F33,-3))*INDIRECT(' 基本情報 '!$D$3&"!$L$9")/2-0.1,0) -> 0
C31: 27 | D31: =' 給与計算 '!C34 ->  | E31: =MAX(IF(' 給与計算 '!K34>=税額基本情報!$D$6,MAX(計算シート!H31:K31),IF(' 給与計算 '!K34<源泉月額表!$B$8,0,VLOOKUP(' 給与計算 '!K34,源泉月額表!$B:$K,IF(' 基本情報 '!E34>=8,10,' 基本情報 '!E34+3),1)))-IF(' 基本情報 '!E34>=8,(' 基本情報 '!E34-7)*税額基本情報!$D$17,0),0) -> 0 | F31: =IF(' 給与計算 '!K34<源泉月額表!$B$8,ROUNDDOWN(' 給与計算 '!K34*税額基本情報!$D$23,0),IF(' 給与計算 '!K34=0,0,IF(' 給与計算 '!K34>=税額基本情報!$D$13,MAX(L31:M31),VLOOKUP(' 給与計算 '!K34,源泉月額表!$B:$L,11,1)))) -> 0 | G31: =MAX(IF(' 給与計算 '!K34<源泉月額表!$B$8,ROUNDDOWN(' 給与計算 '!K34*3.063%,0),IF(' 給与計算 '!K34=0,0,IF(' 給与計算 '!K34>=税額基本情報!$D$13,MAX(L31:M31),VLOOKUP(' 給与計算 '!K34,源泉月額表!$B:$L,11,1))))-' 基本情報 '!E34*税額基本情報!$D$20,0) -> 0 | H31: =IF(AND(' 給与計算 '!K34>=税額基本情報!$D$6,' 給与計算 '!K34<税額基本情報!$D$7),VLOOKUP(' 給与計算 '!K34,税額基本情報!$D$6:$M$9,IF(' 基本情報 '!E34>=8,10,' 基本情報 '!E34+3),1)+ROUNDDOWN((' 給与計算 '!K34-税額基本情報!$D$6)*税額基本情報!$E$6,0),0) -> 0 | I31: =IF(AND(' 給与計算 '!K34>=税額基本情報!$D$7,' 給与計算 '!K34<税額基本情報!$D$8),VLOOKUP(' 給与計算 '!K34,税額基本情報!$D$6:$M$9,IF(' 基本情報 '!E34>=8,10,' 基本情報 '!E34+3),1)+ROUNDDOWN((' 給与計算 '!K34-税額基本情報!$D$7)*税額基本情報!$E$7,0),0) -> 0 | J31: =IF(' 給与計算 '!K34>=税額基本情報!$D$8,VLOOKUP(' 給与計算 '!K34,税額基本情報!$D$6:$M$9,IF(' 基本情報 '!E34>=8,10,' 基本情報 '!E34+3),1)+ROUNDDOWN((' 給与計算 '!K34-税額基本情報!$D$8)*税額基本情報!$E$8,0),0) -> 0 | L31: =IF(AND(' 給与計算 '!K34>=税額基本情報!$D$13,' 給与計算 '!K34<税額基本情報!$D$14),税額基本情報!$F$13+ROUNDDOWN((' 給与計算 '!K34-税額基本情報!$D$13)*税額基本情報!$E$13,0),0) -> 0 | M31: =IF(' 給与計算 '!K34>=税額基本情報!$D$14,税額基本情報!$F$14+ROUNDDOWN((' 給与計算 '!K34-税額基本情報!$D$14)*税額基本情報!$E$14,0),0) -> 0 | N31: =IF(' 賞与計算 '!D34<源泉賞与表!$D$10*1000,0,INDEX(源泉賞与表!$B:$B,MATCH(' 賞与計算 '!D34/1000,源泉賞与表!$D:$D,1))) -> 0 | O31: =IF(' 賞与計算 '!D34<源泉賞与表!$F$10*1000,0,INDEX(源泉賞与表!$B:$B,MATCH(' 賞与計算 '!D34/1000,源泉賞与表!$F:$F,1))) -> 0 | P31: =IF(' 賞与計算 '!D34<源泉賞与表!$H$10*1000,0,INDEX(源泉賞与表!$B:$B,MATCH(' 賞与計算 '!D34/1000,源泉賞与表!$H:$H,1))) -> 0 | Q31: =IF(' 賞与計算 '!D34<源泉賞与表!$J$10*1000,0,INDEX(源泉賞与表!$B:$B,MATCH(' 賞与計算 '!D34/1000,源泉賞与表!$J:$J,1))) -> 0 | R31: =IF(' 賞与計算 '!D34<源泉賞与表!$L$10*1000,0,INDEX(源泉賞与表!$B:$B,MATCH(' 賞与計算 '!D34/1000,源泉賞与表!$L:$L,1))) -> 0 | S31: =IF(' 賞与計算 '!D34<源泉賞与表!$N$10*1000,0,INDEX(源泉賞与表!$B:$B,MATCH(' 賞与計算 '!D34/1000,源泉賞与表!$N:$N,1))) -> 0 | T31: =IF(' 賞与計算 '!D34<源泉賞与表!$P$10*1000,0,INDEX(源泉賞与表!$B:$B,MATCH(' 賞与計算 '!D34/1000,源泉賞与表!$P:$P,1))) -> 0 | U31: =IF(' 賞与計算 '!D34<源泉賞与表!$R$10*1000,0,INDEX(源泉賞与表!$B:$B,MATCH(' 賞与計算 '!D34/1000,源泉賞与表!$R:$R,1))) -> 0 | V31: =IF(' 賞与計算 '!D34="","",IF(' 賞与計算 '!D34<源泉賞与表!$T$22*1000,10.21,INDEX(源泉賞与表!$B:$B,MATCH(' 賞与計算 '!D34/1000,源泉賞与表!$T:$T,1)))) ->  | W31: 0 | X31: =IF(' 基本情報 '!G34="",0,ROUND(VLOOKUP(' 基本情報 '!G34,INDIRECT(' 基本情報 '!$D$3&"!$B$12:$I$61"),6,0)-0.1,0)) -> 0 | Y31: =IF(' 基本情報 '!G34="",0,ROUND(VLOOKUP(' 基本情報 '!G34,INDIRECT(' 基本情報 '!$D$3&"!$B$12:$I$61"),8,0)-0.1,0)) -> 0 | Z31: 0 | AA31: =IF(' 基本情報 '!G34="",0,ROUND(IF(OR(' 基本情報 '!G34<税額基本情報!$E$26,' 基本情報 '!G34>税額基本情報!$E$27),AC31,VLOOKUP(' 基本情報 '!G34,INDIRECT(' 基本情報 '!$D$3&"!$B$16:$M$45"),10,0))-0.1,0)) -> 0 | AB31: =IF(' 基本情報 '!G34="",0,ROUND(IF(OR(' 基本情報 '!G34<税額基本情報!$E$26,' 基本情報 '!G34>税額基本情報!$E$27),AD31,VLOOKUP(' 基本情報 '!G34,INDIRECT(' 基本情報 '!$D$3&"!$B$16:$M$45"),12,0))-0.1,0)) -> 0 | AC31: =IF(' 基本情報 '!G34="",0,IF(' 基本情報 '!G34<税額基本情報!$E$26,税額基本情報!$F$26,IF(' 基本情報 '!G34>税額基本情報!$E$27,税額基本情報!$F$27,0))) -> 0 | AD31: =IF(' 基本情報 '!G34="",0,IF(' 基本情報 '!G34<税額基本情報!$E$26,税額基本情報!$G$26,IF(' 基本情報 '!G34>税額基本情報!$E$27,税額基本情報!$G$27,0))) -> 0 | AE31: 0 | AF31: =ROUND(IF(' 賞与計算 '!F34>税額基本情報!$D$33,税額基本情報!$D$33,ROUNDDOWN(' 賞与計算 '!F34,-3))*INDIRECT(' 基本情報 '!$D$3&"!$F$9")*0.5-0.1,0) -> 0 | AG31: =ROUND(IF(' 賞与計算 '!F34>税額基本情報!$D$33,税額基本情報!$D$33,ROUNDDOWN(' 賞与計算 '!F34,-3))*INDIRECT(' 基本情報 '!$D$3&"!$H$9")/2-0.1,0) -> 0 | AH31: 0 | AI31: =ROUND(IF(' 賞与計算 '!F34>税額基本情報!$D$30,税額基本情報!$D$30,ROUNDDOWN(' 賞与計算 '!F34,-3))*INDIRECT(' 基本情報 '!$D$3&"!$J$9")/2-0.1,0) -> 0 | AJ31: =ROUND(IF(' 賞与計算 '!F34>税額基本情報!$D$30,税額基本情報!$D$30,ROUNDDOWN(' 賞与計算 '!F34,-3))*INDIRECT(' 基本情報 '!$D$3&"!$L$9")/2-0.1,0) -> 0
C32: 28 | D32: =' 給与計算 '!C35 ->  | E32: =MAX(IF(' 給与計算 '!K35>=税額基本情報!$D$6,MAX(計算シート!H32:K32),IF(' 給与計算 '!K35<源泉月額表!$B$8,0,VLOOKUP(' 給与計算 '!K35,源泉月額表!$B:$K,IF(' 基本情報 '!E35>=8,10,' 基本情報 '!E35+3),1)))-IF(' 基本情報 '!E35>=8,(' 基本情報 '!E35-7)*税額基本情報!$D$17,0),0) -> 0 | F32: =IF(' 給与計算 '!K35<源泉月額表!$B$8,ROUNDDOWN(' 給与計算 '!K35*税額基本情報!$D$23,0),IF(' 給与計算 '!K35=0,0,IF(' 給与計算 '!K35>=税額基本情報!$D$13,MAX(L32:M32),VLOOKUP(' 給与計算 '!K35,源泉月額表!$B:$L,11,1)))) -> 0 | G32: =MAX(IF(' 給与計算 '!K35<源泉月額表!$B$8,ROUNDDOWN(' 給与計算 '!K35*3.063%,0),IF(' 給与計算 '!K35=0,0,IF(' 給与計算 '!K35>=税額基本情報!$D$13,MAX(L32:M32),VLOOKUP(' 給与計算 '!K35,源泉月額表!$B:$L,11,1))))-' 基本情報 '!E35*税額基本情報!$D$20,0) -> 0 | H32: =IF(AND(' 給与計算 '!K35>=税額基本情報!$D$6,' 給与計算 '!K35<税額基本情報!$D$7),VLOOKUP(' 給与計算 '!K35,税額基本情報!$D$6:$M$9,IF(' 基本情報 '!E35>=8,10,' 基本情報 '!E35+3),1)+ROUNDDOWN((' 給与計算 '!K35-税額基本情報!$D$6)*税額基本情報!$E$6,0),0) -> 0 | I32: =IF(AND(' 給与計算 '!K35>=税額基本情報!$D$7,' 給与計算 '!K35<税額基本情報!$D$8),VLOOKUP(' 給与計算 '!K35,税額基本情報!$D$6:$M$9,IF(' 基本情報 '!E35>=8,10,' 基本情報 '!E35+3),1)+ROUNDDOWN((' 給与計算 '!K35-税額基本情報!$D$7)*税額基本情報!$E$7,0),0) -> 0 | J32: =IF(' 給与計算 '!K35>=税額基本情報!$D$8,VLOOKUP(' 給与計算 '!K35,税額基本情報!$D$6:$M$9,IF(' 基本情報 '!E35>=8,10,' 基本情報 '!E35+3),1)+ROUNDDOWN((' 給与計算 '!K35-税額基本情報!$D$8)*税額基本情報!$E$8,0),0) -> 0 | L32: =IF(AND(' 給与計算 '!K35>=税額基本情報!$D$13,' 給与計算 '!K35<税額基本情報!$D$14),税額基本情報!$F$13+ROUNDDOWN((' 給与計算 '!K35-税額基本情報!$D$13)*税額基本情報!$E$13,0),0) -> 0 | M32: =IF(' 給与計算 '!K35>=税額基本情報!$D$14,税額基本情報!$F$14+ROUNDDOWN((' 給与計算 '!K35-税額基本情報!$D$14)*税額基本情報!$E$14,0),0) -> 0 | N32: =IF(' 賞与計算 '!D35<源泉賞与表!$D$10*1000,0,INDEX(源泉賞与表!$B:$B,MATCH(' 賞与計算 '!D35/1000,源泉賞与表!$D:$D,1))) -> 0 | O32: =IF(' 賞与計算 '!D35<源泉賞与表!$F$10*1000,0,INDEX(源泉賞与表!$B:$B,MATCH(' 賞与計算 '!D35/1000,源泉賞与表!$F:$F,1))) -> 0 | P32: =IF(' 賞与計算 '!D35<源泉賞与表!$H$10*1000,0,INDEX(源泉賞与表!$B:$B,MATCH(' 賞与計算 '!D35/1000,源泉賞与表!$H:$H,1))) -> 0 | Q32: =IF(' 賞与計算 '!D35<源泉賞与表!$J$10*1000,0,INDEX(源泉賞与表!$B:$B,MATCH(' 賞与計算 '!D35/1000,源泉賞与表!$J:$J,1))) -> 0 | R32: =IF(' 賞与計算 '!D35<源泉賞与表!$L$10*1000,0,INDEX(源泉賞与表!$B:$B,MATCH(' 賞与計算 '!D35/1000,源泉賞与表!$L:$L,1))) -> 0 | S32: =IF(' 賞与計算 '!D35<源泉賞与表!$N$10*1000,0,INDEX(源泉賞与表!$B:$B,MATCH(' 賞与計算 '!D35/1000,源泉賞与表!$N:$N,1))) -> 0 | T32: =IF(' 賞与計算 '!D35<源泉賞与表!$P$10*1000,0,INDEX(源泉賞与表!$B:$B,MATCH(' 賞与計算 '!D35/1000,源泉賞与表!$P:$P,1))) -> 0 | U32: =IF(' 賞与計算 '!D35<源泉賞与表!$R$10*1000,0,INDEX(源泉賞与表!$B:$B,MATCH(' 賞与計算 '!D35/1000,源泉賞与表!$R:$R,1))) -> 0 | V32: =IF(' 賞与計算 '!D35="","",IF(' 賞与計算 '!D35<源泉賞与表!$T$22*1000,10.21,INDEX(源泉賞与表!$B:$B,MATCH(' 賞与計算 '!D35/1000,源泉賞与表!$T:$T,1)))) ->  | W32: 0 | X32: =IF(' 基本情報 '!G35="",0,ROUND(VLOOKUP(' 基本情報 '!G35,INDIRECT(' 基本情報 '!$D$3&"!$B$12:$I$61"),6,0)-0.1,0)) -> 0 | Y32: =IF(' 基本情報 '!G35="",0,ROUND(VLOOKUP(' 基本情報 '!G35,INDIRECT(' 基本情報 '!$D$3&"!$B$12:$I$61"),8,0)-0.1,0)) -> 0 | Z32: 0 | AA32: =IF(' 基本情報 '!G35="",0,ROUND(IF(OR(' 基本情報 '!G35<税額基本情報!$E$26,' 基本情報 '!G35>税額基本情報!$E$27),AC32,VLOOKUP(' 基本情報 '!G35,INDIRECT(' 基本情報 '!$D$3&"!$B$16:$M$45"),10,0))-0.1,0)) -> 0 | AB32: =IF(' 基本情報 '!G35="",0,ROUND(IF(OR(' 基本情報 '!G35<税額基本情報!$E$26,' 基本情報 '!G35>税額基本情報!$E$27),AD32,VLOOKUP(' 基本情報 '!G35,INDIRECT(' 基本情報 '!$D$3&"!$B$16:$M$45"),12,0))-0.1,0)) -> 0 | AC32: =IF(' 基本情報 '!G35="",0,IF(' 基本情報 '!G35<税額基本情報!$E$26,税額基本情報!$F$26,IF(' 基本情報 '!G35>税額基本情報!$E$27,税額基本情報!$F$27,0))) -> 0 | AD32: =IF(' 基本情報 '!G35="",0,IF(' 基本情報 '!G35<税額基本情報!$E$26,税額基本情報!$G$26,IF(' 基本情報 '!G35>税額基本情報!$E$27,税額基本情報!$G$27,0))) -> 0 | AE32: 0 | AF32: =ROUND(IF(' 賞与計算 '!F35>税額基本情報!$D$33,税額基本情報!$D$33,ROUNDDOWN(' 賞与計算 '!F35,-3))*INDIRECT(' 基本情報 '!$D$3&"!$F$9")*0.5-0.1,0) -> 0 | AG32: =ROUND(IF(' 賞与計算 '!F35>税額基本情報!$D$33,税額基本情報!$D$33,ROUNDDOWN(' 賞与計算 '!F35,-3))*INDIRECT(' 基本情報 '!$D$3&"!$H$9")/2-0.1,0) -> 0 | AH32: 0 | AI32: =ROUND(IF(' 賞与計算 '!F35>税額基本情報!$D$30,税額基本情報!$D$30,ROUNDDOWN(' 賞与計算 '!F35,-3))*INDIRECT(' 基本情報 '!$D$3&"!$J$9")/2-0.1,0) -> 0 | AJ32: =ROUND(IF(' 賞与計算 '!F35>税額基本情報!$D$30,税額基本情報!$D$30,ROUNDDOWN(' 賞与計算 '!F35,-3))*INDIRECT(' 基本情報 '!$D$3&"!$L$9")/2-0.1,0) -> 0
C33: 29 | D33: =' 給与計算 '!C36 ->  | E33: =MAX(IF(' 給与計算 '!K36>=税額基本情報!$D$6,MAX(計算シート!H33:K33),IF(' 給与計算 '!K36<源泉月額表!$B$8,0,VLOOKUP(' 給与計算 '!K36,源泉月額表!$B:$K,IF(' 基本情報 '!E36>=8,10,' 基本情報 '!E36+3),1)))-IF(' 基本情報 '!E36>=8,(' 基本情報 '!E36-7)*税額基本情報!$D$17,0),0) -> 0 | F33: =IF(' 給与計算 '!K36<源泉月額表!$B$8,ROUNDDOWN(' 給与計算 '!K36*税額基本情報!$D$23,0),IF(' 給与計算 '!K36=0,0,IF(' 給与計算 '!K36>=税額基本情報!$D$13,MAX(L33:M33),VLOOKUP(' 給与計算 '!K36,源泉月額表!$B:$L,11,1)))) -> 0 | G33: =MAX(IF(' 給与計算 '!K36<源泉月額表!$B$8,ROUNDDOWN(' 給与計算 '!K36*3.063%,0),IF(' 給与計算 '!K36=0,0,IF(' 給与計算 '!K36>=税額基本情報!$D$13,MAX(L33:M33),VLOOKUP(' 給与計算 '!K36,源泉月額表!$B:$L,11,1))))-' 基本情報 '!E36*税額基本情報!$D$20,0) -> 0 | H33: =IF(AND(' 給与計算 '!K36>=税額基本情報!$D$6,' 給与計算 '!K36<税額基本情報!$D$7),VLOOKUP(' 給与計算 '!K36,税額基本情報!$D$6:$M$9,IF(' 基本情報 '!E36>=8,10,' 基本情報 '!E36+3),1)+ROUNDDOWN((' 給与計算 '!K36-税額基本情報!$D$6)*税額基本情報!$E$6,0),0) -> 0 | I33: =IF(AND(' 給与計算 '!K36>=税額基本情報!$D$7,' 給与計算 '!K36<税額基本情報!$D$8),VLOOKUP(' 給与計算 '!K36,税額基本情報!$D$6:$M$9,IF(' 基本情報 '!E36>=8,10,' 基本情報 '!E36+3),1)+ROUNDDOWN((' 給与計算 '!K36-税額基本情報!$D$7)*税額基本情報!$E$7,0),0) -> 0 | J33: =IF(' 給与計算 '!K36>=税額基本情報!$D$8,VLOOKUP(' 給与計算 '!K36,税額基本情報!$D$6:$M$9,IF(' 基本情報 '!E36>=8,10,' 基本情報 '!E36+3),1)+ROUNDDOWN((' 給与計算 '!K36-税額基本情報!$D$8)*税額基本情報!$E$8,0),0) -> 0 | L33: =IF(AND(' 給与計算 '!K36>=税額基本情報!$D$13,' 給与計算 '!K36<税額基本情報!$D$14),税額基本情報!$F$13+ROUNDDOWN((' 給与計算 '!K36-税額基本情報!$D$13)*税額基本情報!$E$13,0),0) -> 0 | M33: =IF(' 給与計算 '!K36>=税額基本情報!$D$14,税額基本情報!$F$14+ROUNDDOWN((' 給与計算 '!K36-税額基本情報!$D$14)*税額基本情報!$E$14,0),0) -> 0 | N33: =IF(' 賞与計算 '!D36<源泉賞与表!$D$10*1000,0,INDEX(源泉賞与表!$B:$B,MATCH(' 賞与計算 '!D36/1000,源泉賞与表!$D:$D,1))) -> 0 | O33: =IF(' 賞与計算 '!D36<源泉賞与表!$F$10*1000,0,INDEX(源泉賞与表!$B:$B,MATCH(' 賞与計算 '!D36/1000,源泉賞与表!$F:$F,1))) -> 0 | P33: =IF(' 賞与計算 '!D36<源泉賞与表!$H$10*1000,0,INDEX(源泉賞与表!$B:$B,MATCH(' 賞与計算 '!D36/1000,源泉賞与表!$H:$H,1))) -> 0 | Q33: =IF(' 賞与計算 '!D36<源泉賞与表!$J$10*1000,0,INDEX(源泉賞与表!$B:$B,MATCH(' 賞与計算 '!D36/1000,源泉賞与表!$J:$J,1))) -> 0 | R33: =IF(' 賞与計算 '!D36<源泉賞与表!$L$10*1000,0,INDEX(源泉賞与表!$B:$B,MATCH(' 賞与計算 '!D36/1000,源泉賞与表!$L:$L,1))) -> 0 | S33: =IF(' 賞与計算 '!D36<源泉賞与表!$N$10*1000,0,INDEX(源泉賞与表!$B:$B,MATCH(' 賞与計算 '!D36/1000,源泉賞与表!$N:$N,1))) -> 0 | T33: =IF(' 賞与計算 '!D36<源泉賞与表!$P$10*1000,0,INDEX(源泉賞与表!$B:$B,MATCH(' 賞与計算 '!D36/1000,源泉賞与表!$P:$P,1))) -> 0 | U33: =IF(' 賞与計算 '!D36<源泉賞与表!$R$10*1000,0,INDEX(源泉賞与表!$B:$B,MATCH(' 賞与計算 '!D36/1000,源泉賞与表!$R:$R,1))) -> 0 | V33: =IF(' 賞与計算 '!D36="","",IF(' 賞与計算 '!D36<源泉賞与表!$T$22*1000,10.21,INDEX(源泉賞与表!$B:$B,MATCH(' 賞与計算 '!D36/1000,源泉賞与表!$T:$T,1)))) ->  | W33: 0 | X33: =IF(' 基本情報 '!G36="",0,ROUND(VLOOKUP(' 基本情報 '!G36,INDIRECT(' 基本情報 '!$D$3&"!$B$12:$I$61"),6,0)-0.1,0)) -> 0 | Y33: =IF(' 基本情報 '!G36="",0,ROUND(VLOOKUP(' 基本情報 '!G36,INDIRECT(' 基本情報 '!$D$3&"!$B$12:$I$61"),8,0)-0.1,0)) -> 0 | Z33: 0 | AA33: =IF(' 基本情報 '!G36="",0,ROUND(IF(OR(' 基本情報 '!G36<税額基本情報!$E$26,' 基本情報 '!G36>税額基本情報!$E$27),AC33,VLOOKUP(' 基本情報 '!G36,INDIRECT(' 基本情報 '!$D$3&"!$B$16:$M$45"),10,0))-0.1,0)) -> 0 | AB33: =IF(' 基本情報 '!G36="",0,ROUND(IF(OR(' 基本情報 '!G36<税額基本情報!$E$26,' 基本情報 '!G36>税額基本情報!$E$27),AD33,VLOOKUP(' 基本情報 '!G36,INDIRECT(' 基本情報 '!$D$3&"!$B$16:$M$45"),12,0))-0.1,0)) -> 0 | AC33: =IF(' 基本情報 '!G36="",0,IF(' 基本情報 '!G36<税額基本情報!$E$26,税額基本情報!$F$26,IF(' 基本情報 '!G36>税額基本情報!$E$27,税額基本情報!$F$27,0))) -> 0 | AD33: =IF(' 基本情報 '!G36="",0,IF(' 基本情報 '!G36<税額基本情報!$E$26,税額基本情報!$G$26,IF(' 基本情報 '!G36>税額基本情報!$E$27,税額基本情報!$G$27,0))) -> 0 | AE33: 0 | AF33: =ROUND(IF(' 賞与計算 '!F36>税額基本情報!$D$33,税額基本情報!$D$33,ROUNDDOWN(' 賞与計算 '!F36,-3))*INDIRECT(' 基本情報 '!$D$3&"!$F$9")*0.5-0.1,0) -> 0 | AG33: =ROUND(IF(' 賞与計算 '!F36>税額基本情報!$D$33,税額基本情報!$D$33,ROUNDDOWN(' 賞与計算 '!F36,-3))*INDIRECT(' 基本情報 '!$D$3&"!$H$9")/2-0.1,0) -> 0 | AH33: 0 | AI33: =ROUND(IF(' 賞与計算 '!F36>税額基本情報!$D$30,税額基本情報!$D$30,ROUNDDOWN(' 賞与計算 '!F36,-3))*INDIRECT(' 基本情報 '!$D$3&"!$J$9")/2-0.1,0) -> 0 | AJ33: =ROUND(IF(' 賞与計算 '!F36>税額基本情報!$D$30,税額基本情報!$D$30,ROUNDDOWN(' 賞与計算 '!F36,-3))*INDIRECT(' 基本情報 '!$D$3&"!$L$9")/2-0.1,0) -> 0
C34: 30 | D34: =' 給与計算 '!C37 ->  | E34: =MAX(IF(' 給与計算 '!K37>=税額基本情報!$D$6,MAX(計算シート!H34:K34),IF(' 給与計算 '!K37<源泉月額表!$B$8,0,VLOOKUP(' 給与計算 '!K37,源泉月額表!$B:$K,IF(' 基本情報 '!E37>=8,10,' 基本情報 '!E37+3),1)))-IF(' 基本情報 '!E37>=8,(' 基本情報 '!E37-7)*税額基本情報!$D$17,0),0) -> 0 | F34: =IF(' 給与計算 '!K37<源泉月額表!$B$8,ROUNDDOWN(' 給与計算 '!K37*税額基本情報!$D$23,0),IF(' 給与計算 '!K37=0,0,IF(' 給与計算 '!K37>=税額基本情報!$D$13,MAX(L34:M34),VLOOKUP(' 給与計算 '!K37,源泉月額表!$B:$L,11,1)))) -> 0 | G34: =MAX(IF(' 給与計算 '!K37<源泉月額表!$B$8,ROUNDDOWN(' 給与計算 '!K37*3.063%,0),IF(' 給与計算 '!K37=0,0,IF(' 給与計算 '!K37>=税額基本情報!$D$13,MAX(L34:M34),VLOOKUP(' 給与計算 '!K37,源泉月額表!$B:$L,11,1))))-' 基本情報 '!E37*税額基本情報!$D$20,0) -> 0 | H34: =IF(AND(' 給与計算 '!K37>=税額基本情報!$D$6,' 給与計算 '!K37<税額基本情報!$D$7),VLOOKUP(' 給与計算 '!K37,税額基本情報!$D$6:$M$9,IF(' 基本情報 '!E37>=8,10,' 基本情報 '!E37+3),1)+ROUNDDOWN((' 給与計算 '!K37-税額基本情報!$D$6)*税額基本情報!$E$6,0),0) -> 0 | I34: =IF(AND(' 給与計算 '!K37>=税額基本情報!$D$7,' 給与計算 '!K37<税額基本情報!$D$8),VLOOKUP(' 給与計算 '!K37,税額基本情報!$D$6:$M$9,IF(' 基本情報 '!E37>=8,10,' 基本情報 '!E37+3),1)+ROUNDDOWN((' 給与計算 '!K37-税額基本情報!$D$7)*税額基本情報!$E$7,0),0) -> 0 | J34: =IF(' 給与計算 '!K37>=税額基本情報!$D$8,VLOOKUP(' 給与計算 '!K37,税額基本情報!$D$6:$M$9,IF(' 基本情報 '!E37>=8,10,' 基本情報 '!E37+3),1)+ROUNDDOWN((' 給与計算 '!K37-税額基本情報!$D$8)*税額基本情報!$E$8,0),0) -> 0 | L34: =IF(AND(' 給与計算 '!K37>=税額基本情報!$D$13,' 給与計算 '!K37<税額基本情報!$D$14),税額基本情報!$F$13+ROUNDDOWN((' 給与計算 '!K37-税額基本情報!$D$13)*税額基本情報!$E$13,0),0) -> 0 | M34: =IF(' 給与計算 '!K37>=税額基本情報!$D$14,税額基本情報!$F$14+ROUNDDOWN((' 給与計算 '!K37-税額基本情報!$D$14)*税額基本情報!$E$14,0),0) -> 0 | N34: =IF(' 賞与計算 '!D37<源泉賞与表!$D$10*1000,0,INDEX(源泉賞与表!$B:$B,MATCH(' 賞与計算 '!D37/1000,源泉賞与表!$D:$D,1))) -> 0 | O34: =IF(' 賞与計算 '!D37<源泉賞与表!$F$10*1000,0,INDEX(源泉賞与表!$B:$B,MATCH(' 賞与計算 '!D37/1000,源泉賞与表!$F:$F,1))) -> 0 | P34: =IF(' 賞与計算 '!D37<源泉賞与表!$H$10*1000,0,INDEX(源泉賞与表!$B:$B,MATCH(' 賞与計算 '!D37/1000,源泉賞与表!$H:$H,1))) -> 0 | Q34: =IF(' 賞与計算 '!D37<源泉賞与表!$J$10*1000,0,INDEX(源泉賞与表!$B:$B,MATCH(' 賞与計算 '!D37/1000,源泉賞与表!$J:$J,1))) -> 0 | R34: =IF(' 賞与計算 '!D37<源泉賞与表!$L$10*1000,0,INDEX(源泉賞与表!$B:$B,MATCH(' 賞与計算 '!D37/1000,源泉賞与表!$L:$L,1))) -> 0 | S34: =IF(' 賞与計算 '!D37<源泉賞与表!$N$10*1000,0,INDEX(源泉賞与表!$B:$B,MATCH(' 賞与計算 '!D37/1000,源泉賞与表!$N:$N,1))) -> 0 | T34: =IF(' 賞与計算 '!D37<源泉賞与表!$P$10*1000,0,INDEX(源泉賞与表!$B:$B,MATCH(' 賞与計算 '!D37/1000,源泉賞与表!$P:$P,1))) -> 0 | U34: =IF(' 賞与計算 '!D37<源泉賞与表!$R$10*1000,0,INDEX(源泉賞与表!$B:$B,MATCH(' 賞与計算 '!D37/1000,源泉賞与表!$R:$R,1))) -> 0 | V34: =IF(' 賞与計算 '!D37="","",IF(' 賞与計算 '!D37<源泉賞与表!$T$22*1000,10.21,INDEX(源泉賞与表!$B:$B,MATCH(' 賞与計算 '!D37/1000,源泉賞与表!$T:$T,1)))) ->  | W34: 0 | X34: =IF(' 基本情報 '!G37="",0,ROUND(VLOOKUP(' 基本情報 '!G37,INDIRECT(' 基本情報 '!$D$3&"!$B$12:$I$61"),6,0)-0.1,0)) -> 0 | Y34: =IF(' 基本情報 '!G37="",0,ROUND(VLOOKUP(' 基本情報 '!G37,INDIRECT(' 基本情報 '!$D$3&"!$B$12:$I$61"),8,0)-0.1,0)) -> 0 | Z34: 0 | AA34: =IF(' 基本情報 '!G37="",0,ROUND(IF(OR(' 基本情報 '!G37<税額基本情報!$E$26,' 基本情報 '!G37>税額基本情報!$E$27),AC34,VLOOKUP(' 基本情報 '!G37,INDIRECT(' 基本情報 '!$D$3&"!$B$16:$M$45"),10,0))-0.1,0)) -> 0 | AB34: =IF(' 基本情報 '!G37="",0,ROUND(IF(OR(' 基本情報 '!G37<税額基本情報!$E$26,' 基本情報 '!G37>税額基本情報!$E$27),AD34,VLOOKUP(' 基本情報 '!G37,INDIRECT(' 基本情報 '!$D$3&"!$B$16:$M$45"),12,0))-0.1,0)) -> 0 | AC34: =IF(' 基本情報 '!G37="",0,IF(' 基本情報 '!G37<税額基本情報!$E$26,税額基本情報!$F$26,IF(' 基本情報 '!G37>税額基本情報!$E$27,税額基本情報!$F$27,0))) -> 0 | AD34: =IF(' 基本情報 '!G37="",0,IF(' 基本情報 '!G37<税額基本情報!$E$26,税額基本情報!$G$26,IF(' 基本情報 '!G37>税額基本情報!$E$27,税額基本情報!$G$27,0))) -> 0 | AE34: 0 | AF34: =ROUND(IF(' 賞与計算 '!F37>税額基本情報!$D$33,税額基本情報!$D$33,ROUNDDOWN(' 賞与計算 '!F37,-3))*INDIRECT(' 基本情報 '!$D$3&"!$F$9")*0.5-0.1,0) -> 0 | AG34: =ROUND(IF(' 賞与計算 '!F37>税額基本情報!$D$33,税額基本情報!$D$33,ROUNDDOWN(' 賞与計算 '!F37,-3))*INDIRECT(' 基本情報 '!$D$3&"!$H$9")/2-0.1,0) -> 0 | AH34: 0 | AI34: =ROUND(IF(' 賞与計算 '!F37>税額基本情報!$D$30,税額基本情報!$D$30,ROUNDDOWN(' 賞与計算 '!F37,-3))*INDIRECT(' 基本情報 '!$D$3&"!$J$9")/2-0.1,0) -> 0 | AJ34: =ROUND(IF(' 賞与計算 '!F37>税額基本情報!$D$30,税額基本情報!$D$30,ROUNDDOWN(' 賞与計算 '!F37,-3))*INDIRECT(' 基本情報 '!$D$3&"!$L$9")/2-0.1,0) -> 0

Sheet リスト表 (hidden)
B2: 甲・乙区分 | C2: 雇用保険区分 | E2: 社会保険料 | G2: 場所
E3: 健康保険 | F3: 厚生年金
B4: 甲欄 | C4: 無し | D4: =INDIRECT(' 基本情報 '!$D$3&"!B12") -> 58000 | E4: 無し | F4: 無し | G4: 01北海道
B5: 乙欄 | C5: 一般の事業 | D5: =INDIRECT(' 基本情報 '!$D$3&"!B13") -> 68000 | E5: 介護保険なし | F5: 一般の被保険者 | G5: 02青森
B6: 乙欄（従たる給与についての扶養控除等申告書提出あり） | C6: 農林水産・清酒製造事業 | D6: =INDIRECT(' 基本情報 '!$D$3&"!B14") -> 78000 | E6: 介護保険あり | F6: 坑内員・船員 | G6: 03岩手
C7: 建設の事業 | D7: =INDIRECT(' 基本情報 '!$D$3&"!B15") -> 88000 | G7: 04宮城
D8: =INDIRECT(' 基本情報 '!$D$3&"!B16") -> 98000 | G8: 05秋田
C9: ○ | D9: =INDIRECT(' 基本情報 '!$D$3&"!B17") -> 104000 | G9: 06山形
C10: × | D10: =INDIRECT(' 基本情報 '!$D$3&"!B18") -> 110000 | G10: 07福島
D11: =INDIRECT(' 基本情報 '!$D$3&"!B19") -> 118000 | G11: 08茨城
D12: =INDIRECT(' 基本情報 '!$D$3&"!B20") -> 126000 | G12: 09栃木
D13: =INDIRECT(' 基本情報 '!$D$3&"!B21") -> 134000 | G13: 10群馬
D14: =INDIRECT(' 基本情報 '!$D$3&"!B22") -> 142000 | G14: 11埼玉
D15: =INDIRECT(' 基本情報 '!$D$3&"!B23") -> 150000 | G15: 12千葉
D16: =INDIRECT(' 基本情報 '!$D$3&"!B24") -> 160000 | G16: 13東京
D17: =INDIRECT(' 基本情報 '!$D$3&"!B25") -> 170000 | G17: 14神奈川
D18: =INDIRECT(' 基本情報 '!$D$3&"!B26") -> 180000 | G18: 15新潟
D19: =INDIRECT(' 基本情報 '!$D$3&"!B27") -> 190000 | G19: 16富山
D20: =INDIRECT(' 基本情報 '!$D$3&"!B28") -> 200000 | G20: 17石川
D21: =INDIRECT(' 基本情報 '!$D$3&"!B29") -> 220000 | G21: 18福井
D22: =INDIRECT(' 基本情報 '!$D$3&"!B30") -> 240000 | G22: 19山梨
D23: =INDIRECT(' 基本情報 '!$D$3&"!B31") -> 260000 | G23: 20長野
D24: =INDIRECT(' 基本情報 '!$D$3&"!B32") -> 280000 | G24: 21岐阜
D25: =INDIRECT(' 基本情報 '!$D$3&"!B33") -> 300000 | G25: 22静岡
D26: =INDIRECT(' 基本情報 '!$D$3&"!B34") -> 320000 | G26: 23愛知
D27: =INDIRECT(' 基本情報 '!$D$3&"!B35") -> 340000 | G27: 24三重
D28: =INDIRECT(' 基本情報 '!$D$3&"!B36") -> 360000 | G28: 25滋賀
D29: =INDIRECT(' 基本情報 '!$D$3&"!B37") -> 380000 | G29: 26京都
D30: =INDIRECT(' 基本情報 '!$D$3&"!B38") -> 410000 | G30: 27大阪
D31: =INDIRECT(' 基本情報 '!$D$3&"!B39") -> 440000 | G31: 28兵庫
D32: =INDIRECT(' 基本情報 '!$D$3&"!B40") -> 470000 | G32: 29奈良
D33: =INDIRECT(' 基本情報 '!$D$3&"!B41") -> 500000 | G33: 30和歌山
D34: =INDIRECT(' 基本情報 '!$D$3&"!B42") -> 530000 | G34: 31鳥取
D35: =INDIRECT(' 基本情報 '!$D$3&"!B43") -> 560000 | G35: 32島根
D36: =INDIRECT(' 基本情報 '!$D$3&"!B44") -> 590000 | G36: 33岡山
D37: =INDIRECT(' 基本情報 '!$D$3&"!B45") -> 620000 | G37: 34広島
D38: =INDIRECT(' 基本情報 '!$D$3&"!B46") -> 650000 | G38: 35山口
D39: =INDIRECT(' 基本情報 '!$D$3&"!B47") -> 680000 | G39: 36徳島
D40: =INDIRECT(' 基本情報 '!$D$3&"!B48") -> 710000 | G40: 37香川
D41: =INDIRECT(' 基本情報 '!$D$3&"!B49") -> 750000 | G41: 38愛媛
D42: =INDIRECT(' 基本情報 '!$D$3&"!B50") -> 790000 | G42: 39高知
D43: =INDIRECT(' 基本情報 '!$D$3&"!B51") -> 830000 | G43: 40福岡
D44: =INDIRECT(' 基本情報 '!$D$3&"!B52") -> 880000 | G44: 41佐賀
D45: =INDIRECT(' 基本情報 '!$D$3&"!B53") -> 930000 | G45: 42長崎
D46: =INDIRECT(' 基本情報 '!$D$3&"!B54") -> 980000 | G46: 43熊本
D47: =INDIRECT(' 基本情報 '!$D$3&"!B55") -> 1030000 | G47: 44大分
D48: =INDIRECT(' 基本情報 '!$D$3&"!B56") -> 1090000 | G48: 45宮崎
D49: =INDIRECT(' 基本情報 '!$D$3&"!B57") -> 1150000 | G49: 46鹿児島
D50: =INDIRECT(' 基本情報 '!$D$3&"!B58") -> 1210000 | G50: 47沖縄
D51: =INDIRECT(' 基本情報 '!$D$3&"!B59") -> 1270000
D52: =INDIRECT(' 基本情報 '!$D$3&"!B60") -> 1330000
D53: =INDIRECT(' 基本情報 '!$D$3&"!B61") -> 1390000

Sheet 税額基本情報 (hidden)
C3: 甲欄（月額給与101万円超の場合の税額基本情報）
C4: 社会保険料控除後の支給額 | D4: 超えた部分に乗じる税率 | F4: 加算する源泉徴収税額
F5: 0 | G5: 1 | H5: 2 | I5: 3 | J5: 4 | K5: 5 | L5: 6 | M5: 7 | N5: ←扶養人数
C6: 1,010,000円以上 1,720,000円未満 | D6: 1010000 | E6: 0.33693 | F6: =源泉月額表!D412 -> 134360 | G6: =源泉月額表!E412 -> 123690 | H6: =源泉月額表!F412 -> 115750 | I6: =源泉月額表!G412 -> 108310 | J6: =源泉月額表!H412 -> 100870 | K6: =源泉月額表!I412 -> 93440 | L6: =源泉月額表!J412 -> 86000 | M6: =源泉月額表!K412 -> 78990
C7: 1,720,000円以上 3,560,000円未満 | D7: 1720000 | E7: 0.4084 | F7: =源泉月額表!D425 -> 373580 | G7: =源泉月額表!E425 -> 362910 | H7: =源泉月額表!F425 -> 354970 | I7: =源泉月額表!G425 -> 347530 | J7: =源泉月額表!H425 -> 340100 | K7: =源泉月額表!I425 -> 332660 | L7: =源泉月額表!J425 -> 325220 | M7: =源泉月額表!K425 -> 318220
C8: 3,560,000円以上 | D8: 3560000 | E8: 0.45945 | F8: =源泉月額表!D434 -> 1125040 | G8: =源泉月額表!E434 -> 1114370 | H8: =源泉月額表!F434 -> 1106430 | I8: =源泉月額表!G434 -> 1098990 | J8: =源泉月額表!H434 -> 1091560 | K8: =源泉月額表!I434 -> 1084120 | L8: =源泉月額表!J434 -> 1076680 | M8: =源泉月額表!K434 -> 1069680
C11: 乙欄（月額給与101万円超の場合の税額基本情報）
C12: 社会保険料控除後の支給額 | D12: 超えた部分に乗じる税率 | F12: 加算する源泉税額
C13: 1,010,000円以上 1,720,000円未満 | D13: 1010000 | E13: 0.4084 | F13: 397600
C14: 1,720,000円以上 | D14: 1720000 | E14: 0.45945 | F14: 687600
C16: 甲欄（扶養人数7人超の場合控除する税額）
C17: 扶養人数一人増えるごとに控除される源泉徴収税額 | D17: 1610
C19: 乙欄（従たる給与についての扶養控除等申告書提出ありの場合、控除する税額）
C20: 扶養人数一人増えるごとに控除される源泉徴収税額 | D20: 1610
C22: 乙欄（月額給与88,000円未満だった場合に乗じる税率）
C23: 月額給与88,000円未満の場合乗じる税率 | D23: 0.03063
C25: 厚生年金（最低額と最高額） | F25: 一般の被保険者 | G25: 坑内員・船員
C26: 標準報酬月額 | D26: 最低額 | E26: =INDIRECT(' 基本情報 '!$D$3&"!B16") -> 98000 | F26: =ROUND(INDIRECT(' 基本情報 '!$D$3&"!K16")-0.1,0) -> 8736 | G26: =ROUND(INDIRECT(' 基本情報 '!$D$3&"!M16")-0.1,0) -> 8789
D27: 最高額 | E27: =INDIRECT(' 基本情報 '!$D$3&"!B45") -> 620000 | F27: =ROUND(INDIRECT(' 基本情報 '!$D$3&"!K45")-0.1,0) -> 55267 | G27: =ROUND(INDIRECT(' 基本情報 '!$D$3&"!M45")-0.1,0) -> 55602
C29: 厚生年金の計算における賞与支給額の上限
C30: 厚生年金の計算における賞与支給額の上限 | D30: 1500000
C32: 健康保険の計算における賞与支給額の上限
C33: 健康保険の計算における賞与支給額の上限 | D33: 5400000

Sheet 源泉月額表 (hidden)
B1: 給与所得の源泉徴収税額表（平成28年分）
B2: 月 額 表（平成24年３月31日財務省告示第115号別表第一（平成27年３月31日財務省告示第114号改正））
B3: その月の社会保 | D3: 甲
B4: 険料等控除後の | D4: 扶 養 親 族 等 の 数 | L4: 乙
B5: 給与等の金額 | D5: 0 人 | E5: 1 人 | F5: 2 人 | G5: 3 人 | H5: 4 人 | I5: 5 人 | J5: 6 人 | K5: 7 人
B6: 以 上 | C6: 未 満 | D6: 税 額 | L6: 税 額
B7: 円 | C7: 円 | D7: 円 | E7: 円 | F7: 円 | G7: 円 | H7: 円 | I7: 円 | J7: 円 | K7: 円 | L7: 円
B8: 88000 | C8: 円未満 | D8: 0 | E8: 0 | F8: 0 | G8: 0 | H8: 0 | I8: 0 | J8: 0 | K8: 0 | L8: その月の社会保険料等控除後の給与等の金額の3.063％に相当する金額
A10: 1 | B10: 88000 | C10: 89000 | D10: 130 | E10: 0 | F10: 0 | G10: 0 | H10: 0 | I10: 0 | J10: 0 | K10: 0 | L10: 3200
A11: 2 | B11: 89000 | C11: 90000 | D11: 180 | E11: 0 | F11: 0 | G11: 0 | H11: 0 | I11: 0 | J11: 0 | K11: 0 | L11: 3200
A12: 3 | B12: 90000 | C12: 91000 | D12: 230 | E12: 0 | F12: 0 | G12: 0 | H12: 0 | I12: 0 | J12: 0 | K12: 0 | L12: 3200
A13: 4 | B13: 91000 | C13: 92000 | D13: 290 | E13: 0 | F13: 0 | G13: 0 | H13: 0 | I13: 0 | J13: 0 | K13: 0 | L13: 3200
A14: 5 | B14: 92000 | C14: 93000 | D14: 340 | E14: 0 | F14: 0 | G14: 0 | H14: 0 | I14: 0 | J14: 0 | K14: 0 | L14: 3300
A16: 6 | B16: 93000 | C16: 94000 | D16: 390 | E16: 0 | F16: 0 | G16: 0 | H16: 0 | I16: 0 | J16: 0 | K16: 0 | L16: 3300
A17: 7 | B17: 94000 | C17: 95000 | D17: 440 | E17: 0 | F17: 0 | G17: 0 | H17: 0 | I17: 0 | J17: 0 | K17: 0 | L17: 3300
A18: 8 | B18: 95000 | C18: 96000 | D18: 490 | E18: 0 | F18: 0 | G18: 0 | H18: 0 | I18: 0 | J18: 0 | K18: 0 | L18: 3400
A19: 9 | B19: 96000 | C19: 97000 | D19: 540 | E19: 0 | F19: 0 | G19: 0 | H19: 0 | I19: 0 | J19: 0 | K19: 0 | L19: 3400
A20: 10 | B20: 97000 | C20: 98000 | D20: 590 | E20: 0 | F20: 0 | G20: 0 | H20: 0 | I20: 0 | J20: 0 | K20: 0 | L20: 3500
A22: 11 | B22: 98000 | C22: 99000 | D22: 640 | E22: 0 | F22: 0 | G22: 0 | H22: 0 | I22: 0 | J22: 0 | K22: 0 | L22: 3500
A23: 12 | B23: 99000 | C23: 101000 | D23: 720 | E23: 0 | F23: 0 | G23: 0 | H23: 0 | I23: 0 | J23: 0 | K23: 0 | L23: 3600
A24: 13 | B24: 101000 | C24: 103000 | D24: 830 | E24: 0 | F24: 0 | G24: 0 | H24: 0 | I24: 0 | J24: 0 | K24: 0 | L24: 3600
A25: 14 | B25: 103000 | C25: 105000 | D25: 930 | E25: 0 | F25: 0 | G25: 0 | H25: 0 | I25: 0 | J25: 0 | K25: 0 | L25: 3700
A26: 15 | B26: 105000 | C26: 107000 | D26: 1030 | E26: 0 | F26: 0 | G26: 0 | H26: 0 | I26: 0 | J26: 0 | K26: 0 | L26: 3800
A28: 16 | B28: 107000 | C28: 109000 | D28: 1130 | E28: 0 | F28: 0 | G28: 0 | H28: 0 | I28: 0 | J28: 0 | K28: 0 | L28: 3800
A29: 17 | B29: 109000 | C29: 111000 | D29: 1240 | E29: 0 | F29: 0 | G29: 0 | H29: 0 | I29: 0 | J29: 0 | K29: 0 | L29: 3900
A30: 18 | B30: 111000 | C30: 113000 | D30: 1340 | E30: 0 | F30: 0 | G30: 0 | H30: 0 | I30: 0 | J30: 0 | K30: 0 | L30: 4000
A31: 19 | B31: 113000 | C31: 115000 | D31: 1440 | E31: 0 | F31: 0 | G31: 0 | H31: 0 | I31: 0 | J31: 0 | K31: 0 | L31: 4100
A32: 20 | B32: 115000 | C32: 117000 | D32: 1540 | E32: 0 | F32: 0 | G32: 0 | H32: 0 | I32: 0 | J32: 0 | K32: 0 | L32: 4100
A34: 21 | B34: 117000 | C34: 119000 | D34: 1640 | E34: 0 | F34: 0 | G34: 0 | H34: 0 | I34: 0 | J34: 0 | K34: 0 | L34: 4200
A35: 22 | B35: 119000 | C35: 121000 | D35: 1750 | E35: 120 | F35: 0 | G35: 0 | H35: 0 | I35: 0 | J35: 0 | K35: 0 | L35: 4300
A36: 23 | B36: 121000 | C36: 123000 | D36: 1850 | E36: 220 | F36: 0 | G36: 0 | H36: 0 | I36: 0 | J36: 0 | K36: 0 | L36: 4500
A37: 24 | B37: 123000 | C37: 125000 | D37: 1950 | E37: 330 | F37: 0 | G37: 0 | H37: 0 | I37: 0 | J37: 0 | K37: 0 | L37: 4800
A38: 25 | B38: 125000 | C38: 127000 | D38: 2050 | E38: 430 | F38: 0 | G38: 0 | H38: 0 | I38: 0 | J38: 0 | K38: 0 | L38: 5100
A40: 26 | B40: 127000 | C40: 129000 | D40: 2150 | E40: 530 | F40: 0 | G40: 0 | H40: 0 | I40: 0 | J40: 0 | K40: 0 | L40: 5400
A41: 27 | B41: 129000 | C41: 131000 | D41: 2260 | E41: 630 | F41: 0 | G41: 0 | H41: 0 | I41: 0 | J41: 0 | K41: 0 | L41: 5700
A42: 28 | B42: 131000 | C42: 133000 | D42: 2360 | E42: 740 | F42: 0 | G42: 0 | H42: 0 | I42: 0 | J42: 0 | K42: 0 | L42: 6000
A43: 29 | B43: 133000 | C43: 135000 | D43: 2460 | E43: 840 | F43: 0 | G43: 0 | H43: 0 | I43: 0 | J43: 0 | K43: 0 | L43: 6300
A44: 30 | B44: 135000 | C44: 137000 | D44: 2550 | E44: 930 | F44: 0 | G44: 0 | H44: 0 | I44: 0 | J44: 0 | K44: 0 | L44: 6600
A46: 31 | B46: 137000 | C46: 139000 | D46: 2610 | E46: 990 | F46: 0 | G46: 0 | H46: 0 | I46: 0 | J46: 0 | K46: 0 | L46: 6800
A47: 32 | B47: 139000 | C47: 141000 | D47: 2680 | E47: 1050 | F47: 0 | G47: 0 | H47: 0 | I47: 0 | J47: 0 | K47: 0 | L47: 7100
A48: 33 | B48: 141000 | C48: 143000 | D48: 2740 | E48: 1110 | F48: 0 | G48: 0 | H48: 0 | I48: 0 | J48: 0 | K48: 0 | L48: 7500
A49: 34 | B49: 143000 | C49: 145000 | D49: 2800 | E49: 1170 | F49: 0 | G49: 0 | H49: 0 | I49: 0 | J49: 0 | K49: 0 | L49: 7800
A50: 35 | B50: 145000 | C50: 147000 | D50: 2860 | E50: 1240 | F50: 0 | G50: 0 | H50: 0 | I50: 0 | J50: 0 | K50: 0 | L50: 8100
A52: 36 | B52: 147000 | C52: 149000 | D52: 2920 | E52: 1300 | F52: 0 | G52: 0 | H52: 0 | I52: 0 | J52: 0 | K52: 0 | L52: 8400
A53: 37 | B53: 149000 | C53: 151000 | D53: 2980 | E53: 1360 | F53: 0 | G53: 0 | H53: 0 | I53: 0 | J53: 0 | K53: 0 | L53: 8700
A54: 38 | B54: 151000 | C54: 153000 | D54: 3050 | E54: 1430 | F54: 0 | G54: 0 | H54: 0 | I54: 0 | J54: 0 | K54: 0 | L54: 9000
A55: 39 | B55: 153000 | C55: 155000 | D55: 3120 | E55: 1500 | F55: 0 | G55: 0 | H55: 0 | I55: 0 | J55: 0 | K55: 0 | L55: 9300
A56: 40 | B56: 155000 | C56: 157000 | D56: 3200 | E56: 1570 | F56: 0 | G56: 0 | H56: 0 | I56: 0 | J56: 0 | K56: 0 | L56: 9600
A58: 41 | B58: 157000 | C58: 159000 | D58: 3270 | E58: 1640 | F58: 0 | G58: 0 | H58: 0 | I58: 0 | J58: 0 | K58: 0 | L58: 9900
A59: 42 | B59: 159000 | C59: 161000 | D59: 3340 | E59: 1720 | F59: 100 | G59: 0 | H59: 0 | I59: 0 | J59: 0 | K59: 0 | L59: 10200
A60: 43 | B60: 161000 | C60: 163000 | D60: 3410 | E60: 1790 | F60: 170 | G60: 0 | H60: 0 | I60: 0 | J60: 0 | K60: 0 | L60: 10500
A61: 44 | B61: 163000 | C61: 165000 | D61: 3480 | E61: 1860 | F61: 250 | G61: 0 | H61: 0 | I61: 0 | J61: 0 | K61: 0 | L61: 10800
A62: 45 | B62: 165000 | C62: 167000 | D62: 3550 | E62: 1930 | F62: 320 | G62: 0 | H62: 0 | I62: 0 | J62: 0 | K62: 0 | L62: 11100
A64: 46 | B64: 167000 | C64: 169000 | D64: 3620 | E64: 2000 | F64: 390 | G64: 0 | H64: 0 | I64: 0 | J64: 0 | K64: 0 | L64: 11400
A65: 47 | B65: 169000 | C65: 171000 | D65: 3700 | E65: 2070 | F65: 460 | G65: 0 | H65: 0 | I65: 0 | J65: 0 | K65: 0 | L65: 11700
A66: 48 | B66: 171000 | C66: 173000 | D66: 3770 | E66: 2140 | F66: 530 | G66: 0 | H66: 0 | I66: 0 | J66: 0 | K66: 0 | L66: 12000
A67: 49 | B67: 173000 | C67: 175000 | D67: 3840 | E67: 2220 | F67: 600 | G67: 0 | H67: 0 | I67: 0 | J67: 0 | K67: 0 | L67: 12400
A68: 50 | B68: 175000 | C68: 177000 | D68: 3910 | E68: 2290 | F68: 670 | G68: 0 | H68: 0 | I68: 0 | J68: 0 | K68: 0 | L68: 12700
A70: 51 | B70: 177000 | C70: 179000 | D70: 3980 | E70: 2360 | F70: 750 | G70: 0 | H70: 0 | I70: 0 | J70: 0 | K70: 0 | L70: 13200
A71: 52 | B71: 179000 | C71: 181000 | D71: 4050 | E71: 2430 | F71: 820 | G71: 0 | H71: 0 | I71: 0 | J71: 0 | K71: 0 | L71: 13900
A72: 53 | B72: 181000 | C72: 183000 | D72: 4120 | E72: 2500 | F72: 890 | G72: 0 | H72: 0 | I72: 0 | J72: 0 | K72: 0 | L72: 14600
A73: 54 | B73: 183000 | C73: 185000 | D73: 4200 | E73: 2570 | F73: 960 | G73: 0 | H73: 0 | I73: 0 | J73: 0 | K73: 0 | L73: 15300
A74: 55 | B74: 185000 | C74: 187000 | D74: 4270 | E74: 2640 | F74: 1030 | G74: 0 | H74: 0 | I74: 0 | J74: 0 | K74: 0 | L74: 16000
A76: 56 | B76: 187000 | C76: 189000 | D76: 4340 | E76: 2720 | F76: 1100 | G76: 0 | H76: 0 | I76: 0 | J76: 0 | K76: 0 | L76: 16700
A77: 57 | B77: 189000 | C77: 191000 | D77: 4410 | E77: 2790 | F77: 1170 | G77: 0 | H77: 0 | I77: 0 | J77: 0 | K77: 0 | L77: 17500
A78: 58 | B78: 191000 | C78: 193000 | D78: 4480 | E78: 2860 | F78: 1250 | G78: 0 | H78: 0 | I78: 0 | J78: 0 | K78: 0 | L78: 18100
A79: 59 | B79: 193000 | C79: 195000 | D79: 4550 | E79: 2930 | F79: 1320 | G79: 0 | H79: 0 | I79: 0 | J79: 0 | K79: 0 | L79: 18800
A80: 60 | B80: 195000 | C80: 197000 | D80: 4630 | E80: 3000 | F80: 1390 | G80: 0 | H80: 0 | I80: 0 | J80: 0 | K80: 0 | L80: 19500
A82: 61 | B82: 197000 | C82: 199000 | D82: 4700 | E82: 3070 | F82: 1460 | G82: 0 | H82: 0 | I82: 0 | J82: 0 | K82: 0 | L82: 20200
A83: 62 | B83: 199000 | C83: 201000 | D83: 4770 | E83: 3140 | F83: 1530 | G83: 0 | H83: 0 | I83: 0 | J83: 0 | K83: 0 | L83: 20900
A84: 63 | B84: 201000 | C84: 203000 | D84: 4840 | E84: 3220 | F84: 1600 | G84: 0 | H84: 0 | I84: 0 | J84: 0 | K84: 0 | L84: 21500
A85: 64 | B85: 203000 | C85: 205000 | D85: 4910 | E85: 3290 | F85: 1670 | G85: 0 | H85: 0 | I85: 0 | J85: 0 | K85: 0 | L85: 22200
A86: 65 | B86: 205000 | C86: 207000 | D86: 4980 | E86: 3360 | F86: 1750 | G86: 130 | H86: 0 | I86: 0 | J86: 0 | K86: 0 | L86: 22700
A88: 66 | B88: 207000 | C88: 209000 | D88: 5050 | E88: 3430 | F88: 1820 | G88: 200 | H88: 0 | I88: 0 | J88: 0 | K88: 0 | L88: 23300
A89: 67 | B89: 209000 | C89: 211000 | D89: 5130 | E89: 3500 | F89: 1890 | G89: 280 | H89: 0 | I89: 0 | J89: 0 | K89: 0 | L89: 23900
A90: 68 | B90: 211000 | C90: 213000 | D90: 5200 | E90: 3570 | F90: 1960 | G90: 350 | H90: 0 | I90: 0 | J90: 0 | K90: 0 | L90: 24400
A91: 69 | B91: 213000 | C91: 215000 | D91: 5270 | E91: 3640 | F91: 2030 | G91: 420 | H91: 0 | I91: 0 | J91: 0 | K91: 0 | L91: 25000
A92: 70 | B92: 215000 | C92: 217000 | D92: 5340 | E92: 3720 | F92: 2100 | G92: 490 | H92: 0 | I92: 0 | J92: 0 | K92: 0 | L92: 25500
A94: 71 | B94: 217000 | C94: 219000 | D94: 5410 | E94: 3790 | F94: 2170 | G94: 560 | H94: 0 | I94: 0 | J94: 0 | K94: 0 | L94: 26100
A95: 72 | B95: 219000 | C95: 221000 | D95: 5480 | E95: 3860 | F95: 2250 | G95: 630 | H95: 0 | I95: 0 | J95: 0 | K95: 0 | L95: 26800
A96: 73 | B96: 221000 | C96: 224000 | D96: 5560 | E96: 3950 | F96: 2340 | G96: 710 | H96: 0 | I96: 0 | J96: 0 | K96: 0 | L96: 27400
A97: 74 | B97: 224000 | C97: 227000 | D97: 5680 | E97: 4060 | F97: 2440 | G97: 830 | H97: 0 | I97: 0 | J97: 0 | K97: 0 | L97: 28400
A98: 75 | B98: 227000 | C98: 230000 | D98: 5780 | E98: 4170 | F98: 2550 | G98: 930 | H98: 0 | I98: 0 | J98: 0 | K98: 0 | L98: 29300
A100: 76 | B100: 230000 | C100: 233000 | D100: 5890 | E100: 4280 | F100: 2650 | G100: 1040 | H100: 0 | I100: 0 | J100: 0 | K100: 0 | L100: 30300
A101: 77 | B101: 233000 | C101: 236000 | D101: 5990 | E101: 4380 | F101: 2770 | G101: 1140 | H101: 0 | I101: 0 | J101: 0 | K101: 0 | L101: 31300
A102: 78 | B102: 236000 | C102: 239000 | D102: 6110 | E102: 4490 | F102: 2870 | G102: 1260 | H102: 0 | I102: 0 | J102: 0 | K102: 0 | L102: 32400
A103: 79 | B103: 239000 | C103: 242000 | D103: 6210 | E103: 4590 | F103: 2980 | G103: 1360 | H103: 0 | I103: 0 | J103: 0 | K103: 0 | L103: 33400
A104: 80 | B104: 242000 | C104: 245000 | D104: 6320 | E104: 4710 | F104: 3080 | G104: 1470 | H104: 0 | I104: 0 | J104: 0 | K104: 0 | L104: 34400
A106: 81 | B106: 245000 | C106: 248000 | D106: 6420 | E106: 4810 | F106: 3200 | G106: 1570 | H106: 0 | I106: 0 | J106: 0 | K106: 0 | L106: 35400
A107: 82 | B107: 248000 | C107: 251000 | D107: 6530 | E107: 4920 | F107: 3300 | G107: 1680 | H107: 0 | I107: 0 | J107: 0 | K107: 0 | L107: 36400
A108: 83 | B108: 251000 | C108: 254000 | D108: 6640 | E108: 5020 | F108: 3410 | G108: 1790 | H108: 170 | I108: 0 | J108: 0 | K108: 0 | L108: 37500
A109: 84 | B109: 254000 | C109: 257000 | D109: 6750 | E109: 5140 | F109: 3510 | G109: 1900 | H109: 290 | I109: 0 | J109: 0 | K109: 0 | L109: 38500
A110: 85 | B110: 257000 | C110: 260000 | D110: 6850 | E110: 5240 | F110: 3620 | G110: 2000 | H110: 390 | I110: 0 | J110: 0 | K110: 0 | L110: 39400
A112: 86 | B112: 260000 | C112: 263000 | D112: 6960 | E112: 5350 | F112: 3730 | G112: 2110 | H112: 500 | I112: 0 | J112: 0 | K112: 0 | L112: 40400
A113: 87 | B113: 263000 | C113: 266000 | D113: 7070 | E113: 5450 | F113: 3840 | G113: 2220 | H113: 600 | I113: 0 | J113: 0 | K113: 0 | L113: 41500
A114: 88 | B114: 266000 | C114: 269000 | D114: 7180 | E114: 5560 | F114: 3940 | G114: 2330 | H114: 710 | I114: 0 | J114: 0 | K114: 0 | L114: 42500
A115: 89 | B115: 269000 | C115: 272000 | D115: 7280 | E115: 5670 | F115: 4050 | G115: 2430 | H115: 820 | I115: 0 | J115: 0 | K115: 0 | L115: 43500
A116: 90 | B116: 272000 | C116: 275000 | D116: 7390 | E116: 5780 | F116: 4160 | G116: 2540 | H116: 930 | I116: 0 | J116: 0 | K116: 0 | L116: 44500
A118: 91 | B118: 275000 | C118: 278000 | D118: 7490 | E118: 5880 | F118: 4270 | G118: 2640 | H118: 1030 | I118: 0 | J118: 0 | K118: 0 | L118: 45500
A119: 92 | B119: 278000 | C119: 281000 | D119: 7610 | E119: 5990 | F119: 4370 | G119: 2760 | H119: 1140 | I119: 0 | J119: 0 | K119: 0 | L119: 46600
A120: 93 | B120: 281000 | C120: 284000 | D120: 7710 | E120: 6100 | F120: 4480 | G120: 2860 | H120: 1250 | I120: 0 | J120: 0 | K120: 0 | L120: 47600
A121: 94 | B121: 284000 | C121: 287000 | D121: 7820 | E121: 6210 | F121: 4580 | G121: 2970 | H121: 1360 | I121: 0 | J121: 0 | K121: 0 | L121: 48600
A122: 95 | B122: 287000 | C122: 290000 | D122: 7920 | E122: 6310 | F122: 4700 | G122: 3070 | H122: 1460 | I122: 0 | J122: 0 | K122: 0 | L122: 49500
A124: 96 | B124: 290000 | C124: 293000 | D124: 8040 | E124: 6420 | F124: 4800 | G124: 3190 | H124: 1570 | I124: 0 | J124: 0 | K124: 0 | L124: 50500
A125: 97 | B125: 293000 | C125: 296000 | D125: 8140 | E125: 6520 | F125: 4910 | G125: 3290 | H125: 1670 | I125: 0 | J125: 0 | K125: 0 | L125: 51600
A126: 98 | B126: 296000 | C126: 299000 | D126: 8250 | E126: 6640 | F126: 5010 | G126: 3400 | H126: 1790 | I126: 160 | J126: 0 | K126: 0 | L126: 52300
A127: 99 | B127: 299000 | C127: 302000 | D127: 8420 | E127: 6740 | F127: 5130 | G127: 3510 | H127: 1890 | I127: 280 | J127: 0 | K127: 0 | L127: 52900
A128: 100 | B128: 302000 | C128: 305000 | D128: 8670 | E128: 6860 | F128: 5250 | G128: 3630 | H128: 2010 | I128: 400 | J128: 0 | K128: 0 | L128: 53500
A130: 101 | B130: 305000 | C130: 308000 | D130: 8910 | E130: 6980 | F130: 5370 | G130: 3760 | H130: 2130 | I130: 520 | J130: 0 | K130: 0 | L130: 54200
A131: 102 | B131: 308000 | C131: 311000 | D131: 9160 | E131: 7110 | F131: 5490 | G131: 3880 | H131: 2260 | I131: 640 | J131: 0 | K131: 0 | L131: 54800
A132: 103 | B132: 311000 | C132: 314000 | D132: 9400 | E132: 7230 | F132: 5620 | G132: 4000 | H132: 2380 | I132: 770 | J132: 0 | K132: 0 | L132: 55400
A133: 104 | B133: 314000 | C133: 317000 | D133: 9650 | E133: 7350 | F133: 5740 | G133: 4120 | H133: 2500 | I133: 890 | J133: 0 | K133: 0 | L133: 56100
A134: 105 | B134: 317000 | C134: 320000 | D134: 9890 | E134: 7470 | F134: 5860 | G134: 4250 | H134: 2620 | I134: 1010 | J134: 0 | K134: 0 | L134: 56800
A136: 106 | B136: 320000 | C136: 323000 | D136: 10140 | E136: 7600 | F136: 5980 | G136: 4370 | H136: 2750 | I136: 1130 | J136: 0 | K136: 0 | L136: 57700
A137: 107 | B137: 323000 | C137: 326000 | D137: 10380 | E137: 7720 | F137: 6110 | G137: 4490 | H137: 2870 | I137: 1260 | J137: 0 | K137: 0 | L137: 58500
A138: 108 | B138: 326000 | C138: 329000 | D138: 10630 | E138: 7840 | F138: 6230 | G138: 4610 | H138: 2990 | I138: 1380 | J138: 0 | K138: 0 | L138: 59300
A139: 109 | B139: 329000 | C139: 332000 | D139: 10870 | E139: 7960 | F139: 6350 | G139: 4740 | H139: 3110 | I139: 1500 | J139: 0 | K139: 0 | L139: 60200
A140: 110 | B140: 332000 | C140: 335000 | D140: 11120 | E140: 8090 | F140: 6470 | G140: 4860 | H140: 3240 | I140: 1620 | J140: 0 | K140: 0 | L140: 61100
A142: 111 | B142: 335000 | C142: 338000 | D142: 11360 | E142: 8210 | F142: 6600 | G142: 4980 | H142: 3360 | I142: 1750 | J142: 130 | K142: 0 | L142: 62000
A143: 112 | B143: 338000 | C143: 341000 | D143: 11610 | E143: 8370 | F143: 6720 | G143: 5110 | H143: 3480 | I143: 1870 | J143: 260 | K143: 0 | L143: 62900
A144: 113 | B144: 341000 | C144: 344000 | D144: 11850 | E144: 8620 | F144: 6840 | G144: 5230 | H144: 3600 | I144: 1990 | J144: 380 | K144: 0 | L144: 63800
A145: 114 | B145: 344000 | C145: 347000 | D145: 12100 | E145: 8860 | F145: 6960 | G145: 5350 | H145: 3730 | I145: 2110 | J145: 500 | K145: 0 | L145: 64700
A146: 115 | B146: 347000 | C146: 350000 | D146: 12340 | E146: 9110 | F146: 7090 | G146: 5470 | H146: 3850 | I146: 2240 | J146: 620 | K146: 0 | L146: 65800
A148: 116 | B148: 350000 | C148: 353000 | D148: 12590 | E148: 9350 | F148: 7210 | G148: 5600 | H148: 3970 | I148: 2360 | J148: 750 | K148: 0 | L148: 66700
A149: 117 | B149: 353000 | C149: 356000 | D149: 12830 | E149: 9600 | F149: 7330 | G149: 5720 | H149: 4090 | I149: 2480 | J149: 870 | K149: 0 | L149: 67600
A150: 118 | B150: 356000 | C150: 359000 | D150: 13080 | E150: 9840 | F150: 7450 | G150: 5840 | H150: 4220 | I150: 2600 | J150: 990 | K150: 0 | L150: 68500
A151: 119 | B151: 359000 | C151: 362000 | D151: 13320 | E151: 10090 | F151: 7580 | G151: 5960 | H151: 4340 | I151: 2730 | J151: 1110 | K151: 0 | L151: 69400
A152: 120 | B152: 362000 | C152: 365000 | D152: 13570 | E152: 10330 | F152: 7700 | G152: 6090 | H152: 4460 | I152: 2850 | J152: 1240 | K152: 0 | L152: 70400
A154: 121 | B154: 365000 | C154: 368000 | D154: 13810 | E154: 10580 | F154: 7820 | G154: 6210 | H154: 4580 | I154: 2970 | J154: 1360 | K154: 0 | L154: 71400
A155: 122 | B155: 368000 | C155: 371000 | D155: 14060 | E155: 10820 | F155: 7940 | G155: 6330 | H155: 4710 | I155: 3090 | J155: 1480 | K155: 0 | L155: 72300
A156: 123 | B156: 371000 | C156: 374000 | D156: 14300 | E156: 11070 | F156: 8070 | G156: 6450 | H156: 4830 | I156: 3220 | J156: 1600 | K156: 0 | L156: 73100
A157: 124 | B157: 374000 | C157: 377000 | D157: 14550 | E157: 11310 | F157: 8190 | G157: 6580 | H157: 4950 | I157: 3340 | J157: 1730 | K157: 100 | L157: 73900
A158: 125 | B158: 377000 | C158: 380000 | D158: 14790 | E158: 11560 | F158: 8320 | G158: 6700 | H158: 5070 | I158: 3460 | J158: 1850 | K158: 220 | L158: 74700
A160: 126 | B160: 380000 | C160: 383000 | D160: 15040 | E160: 11800 | F160: 8570 | G160: 6820 | H160: 5200 | I160: 3580 | J160: 1970 | K160: 350 | L160: 75700
A161: 127 | B161: 383000 | C161: 386000 | D161: 15280 | E161: 12050 | F161: 8810 | G161: 6940 | H161: 5320 | I161: 3710 | J161: 2090 | K161: 470 | L161: 76500
A162: 128 | B162: 386000 | C162: 389000 | D162: 15530 | E162: 12290 | F162: 9060 | G162: 7070 | H162: 5440 | I162: 3830 | J162: 2220 | K162: 590 | L162: 77300
A163: 129 | B163: 389000 | C163: 392000 | D163: 15770 | E163: 12540 | F163: 9300 | G163: 7190 | H163: 5560 | I163: 3950 | J163: 2340 | K163: 710 | L163: 78200
A164: 130 | B164: 392000 | C164: 395000 | D164: 16020 | E164: 12780 | F164: 9550 | G164: 7310 | H164: 5690 | I164: 4070 | J164: 2460 | K164: 840 | L164: 79700
A166: 131 | B166: 395000 | C166: 398000 | D166: 16260 | E166: 13030 | F166: 9790 | G166: 7430 | H166: 5810 | I166: 4200 | J166: 2580 | K166: 960 | L166: 81400
A167: 132 | B167: 398000 | C167: 401000 | D167: 16510 | E167: 13270 | F167: 10040 | G167: 7560 | H167: 5930 | I167: 4320 | J167: 2710 | K167: 1080 | L167: 82900
A168: 133 | B168: 401000 | C168: 404000 | D168: 16750 | E168: 13520 | F168: 10280 | G168: 7680 | H168: 6050 | I168: 4440 | J168: 2830 | K168: 1200 | L168: 84500
A169: 134 | B169: 404000 | C169: 407000 | D169: 17000 | E169: 13760 | F169: 10530 | G169: 7800 | H169: 6180 | I169: 4560 | J169: 2950 | K169: 1330 | L169: 86300
A170: 135 | B170: 407000 | C170: 410000 | D170: 17240 | E170: 14010 | F170: 10770 | G170: 7920 | H170: 6300 | I170: 4690 | J170: 3070 | K170: 1450 | L170: 87900
A172: 136 | B172: 410000 | C172: 413000 | D172: 17490 | E172: 14250 | F172: 11020 | G172: 8050 | H172: 6420 | I172: 4810 | J172: 3200 | K172: 1570 | L172: 89600
A173: 137 | B173: 413000 | C173: 416000 | D173: 17730 | E173: 14500 | F173: 11260 | G173: 8170 | H173: 6540 | I173: 4930 | J173: 3320 | K173: 1690 | L173: 91400
A174: 138 | B174: 416000 | C174: 419000 | D174: 17980 | E174: 14740 | F174: 11510 | G174: 8290 | H174: 6670 | I174: 5050 | J174: 3440 | K174: 1820 | L174: 93000
A175: 139 | B175: 419000 | C175: 422000 | D175: 18220 | E175: 14990 | F175: 11750 | G175: 8530 | H175: 6790 | I175: 5180 | J175: 3560 | K175: 1940 | L175: 94700
A176: 140 | B176: 422000 | C176: 425000 | D176: 18470 | E176: 15230 | F176: 12000 | G176: 8770 | H176: 6910 | I176: 5300 | J176: 3690 | K176: 2060 | L176: 96500
A178: 141 | B178: 425000 | C178: 428000 | D178: 18710 | E178: 15480 | F178: 12240 | G178: 9020 | H178: 7030 | I178: 5420 | J178: 3810 | K178: 2180 | L178: 98100
A179: 142 | B179: 428000 | C179: 431000 | D179: 18960 | E179: 15720 | F179: 12490 | G179: 9260 | H179: 7160 | I179: 5540 | J179: 3930 | K179: 2310 | L179: 99900
A180: 143 | B180: 431000 | C180: 434000 | D180: 19210 | E180: 15970 | F180: 12730 | G180: 9510 | H180: 7280 | I180: 5670 | J180: 4050 | K180: 2430 | L180: 101600
A181: 144 | B181: 434000 | C181: 437000 | D181: 19450 | E181: 16210 | F181: 12980 | G181: 9750 | H181: 7400 | I181: 5790 | J181: 4180 | K181: 2550 | L181: 103200
A182: 145 | B182: 437000 | C182: 440000 | D182: 19700 | E182: 16460 | F182: 13220 | G182: 10000 | H182: 7520 | I182: 5910 | J182: 4300 | K182: 2680 | L182: 105000
A184: 146 | B184: 440000 | C184: 443000 | D184: 20090 | E184: 16700 | F184: 13470 | G184: 10240 | H184: 7650 | I184: 6030 | J184: 4420 | K184: 2800 | L184: 106700
A185: 147 | B185: 443000 | C185: 446000 | D185: 20580 | E185: 16950 | F185: 13710 | G185: 10490 | H185: 7770 | I185: 6160 | J185: 4540 | K185: 2920 | L185: 108300
A186: 148 | B186: 446000 | C186: 449000 | D186: 21070 | E186: 17190 | F186: 13960 | G186: 10730 | H186: 7890 | I186: 6280 | J186: 4670 | K186: 3040 | L186: 110100
A187: 149 | B187: 449000 | C187: 452000 | D187: 21560 | E187: 17440 | F187: 14200 | G187: 10980 | H187: 8010 | I187: 6400 | J187: 4790 | K187: 3170 | L187: 111800
A188: 150 | B188: 452000 | C188: 455000 | D188: 22050 | E188: 17680 | F188: 14450 | G188: 11220 | H188: 8140 | I188: 6520 | J188: 4910 | K188: 3290 | L188: 113400
A190: 151 | B190: 455000 | C190: 458000 | D190: 22540 | E190: 17930 | F190: 14690 | G190: 11470 | H190: 8260 | I190: 6650 | J190: 5030 | K190: 3410 | L190: 115200
A191: 152 | B191: 458000 | C191: 461000 | D191: 23030 | E191: 18170 | F191: 14940 | G191: 11710 | H191: 8470 | I191: 6770 | J191: 5160 | K191: 3530 | L191: 116800
A192: 153 | B192: 461000 | C192: 464000 | D192: 23520 | E192: 18420 | F192: 15180 | G192: 11960 | H192: 8720 | I192: 6890 | J192: 5280 | K192: 3660 | L192: 118500
A193: 154 | B193: 464000 | C193: 467000 | D193: 24010 | E193: 18660 | F193: 15430 | G193: 12200 | H193: 8960 | I193: 7010 | J193: 5400 | K193: 3780 | L193: 120300
A194: 155 | B194: 467000 | C194: 470000 | D194: 24500 | E194: 18910 | F194: 15670 | G194: 12450 | H194: 9210 | I194: 7140 | J194: 5520 | K194: 3900 | L194: 121900
A196: 156 | B196: 470000 | C196: 473000 | D196: 24990 | E196: 19150 | F196: 15920 | G196: 12690 | H196: 9450 | I196: 7260 | J196: 5650 | K196: 4020 | L196: 123600
A197: 157 | B197: 473000 | C197: 476000 | D197: 25480 | E197: 19400 | F197: 16160 | G197: 12940 | H197: 9700 | I197: 7380 | J197: 5770 | K197: 4150 | L197: 125400
A198: 158 | B198: 476000 | C198: 479000 | D198: 25970 | E198: 19640 | F198: 16410 | G198: 13180 | H198: 9940 | I198: 7500 | J198: 5890 | K198: 4270 | L198: 127000
A199: 159 | B199: 479000 | C199: 482000 | D199: 26460 | E199: 20000 | F199: 16650 | G199: 13430 | H199: 10190 | I199: 7630 | J199: 6010 | K199: 4390 | L199: 128700
A200: 160 | B200: 482000 | C200: 485000 | D200: 26950 | E200: 20490 | F200: 16900 | G200: 13670 | H200: 10430 | I200: 7750 | J200: 6140 | K200: 4510 | L200: 130500
A202: 161 | B202: 485000 | C202: 488000 | D202: 27440 | E202: 20980 | F202: 17140 | G202: 13920 | H202: 10680 | I202: 7870 | J202: 6260 | K202: 4640 | L202: 132100
A203: 162 | B203: 488000 | C203: 491000 | D203: 27930 | E203: 21470 | F203: 17390 | G203: 14160 | H203: 10920 | I203: 7990 | J203: 6380 | K203: 4760 | L203: 133900
A204: 163 | B204: 491000 | C204: 494000 | D204: 28420 | E204: 21960 | F204: 17630 | G204: 14410 | H204: 11170 | I204: 8120 | J204: 6500 | K204: 4880 | L204: 135600
A205: 164 | B205: 494000 | C205: 497000 | D205: 28910 | E205: 22450 | F205: 17880 | G205: 14650 | H205: 11410 | I205: 8240 | J205: 6630 | K205: 5000 | L205: 137200
A206: 165 | B206: 497000 | C206: 500000 | D206: 29400 | E206: 22940 | F206: 18120 | G206: 14900 | H206: 11660 | I206: 8420 | J206: 6750 | K206: 5130 | L206: 139000
A208: 166 | B208: 500000 | C208: 503000 | D208: 29890 | E208: 23430 | F208: 18370 | G208: 15140 | H208: 11900 | I208: 8670 | J208: 6870 | K208: 5250 | L208: 140700
A209: 167 | B209: 503000 | C209: 506000 | D209: 30380 | E209: 23920 | F209: 18610 | G209: 15390 | H209: 12150 | I209: 8910 | J209: 6990 | K209: 5370 | L209: 142300
A210: 168 | B210: 506000 | C210: 509000 | D210: 30880 | E210: 24410 | F210: 18860 | G210: 15630 | H210: 12390 | I210: 9160 | J210: 7120 | K210: 5490 | L210: 144100
A211: 169 | B211: 509000 | C211: 512000 | D211: 31370 | E211: 24900 | F211: 19100 | G211: 15880 | H211: 12640 | I211: 9400 | J211: 7240 | K211: 5620 | L211: 145800
A212: 170 | B212: 512000 | C212: 515000 | D212: 31860 | E212: 25390 | F212: 19350 | G212: 16120 | H212: 12890 | I212: 9650 | J212: 7360 | K212: 5740 | L212: 147400
A214: 171 | B214: 515000 | C214: 518000 | D214: 32350 | E214: 25880 | F214: 19590 | G214: 16370 | H214: 13130 | I214: 9890 | J214: 7480 | K214: 5860 | L214: 149200
A215: 172 | B215: 518000 | C215: 521000 | D215: 32840 | E215: 26370 | F215: 19900 | G215: 16610 | H215: 13380 | I215: 10140 | J215: 7610 | K215: 5980 | L215: 150800
A216: 173 | B216: 521000 | C216: 524000 | D216: 33330 | E216: 26860 | F216: 20390 | G216: 16860 | H216: 13620 | I216: 10380 | J216: 7730 | K216: 6110 | L216: 152500
A217: 174 | B217: 524000 | C217: 527000 | D217: 33820 | E217: 27350 | F217: 20880 | G217: 17100 | H217: 13870 | I217: 10630 | J217: 7850 | K217: 6230 | L217: 154300
A218: 175 | B218: 527000 | C218: 530000 | D218: 34310 | E218: 27840 | F218: 21370 | G218: 17350 | H218: 14110 | I218: 10870 | J218: 7970 | K218: 6350 | L218: 155900
A220: 176 | B220: 530000 | C220: 533000 | D220: 34800 | E220: 28330 | F220: 21860 | G220: 17590 | H220: 14360 | I220: 11120 | J220: 8100 | K220: 6470 | L220: 157500
A221: 177 | B221: 533000 | C221: 536000 | D221: 35290 | E221: 28820 | F221: 22350 | G221: 17840 | H221: 14600 | I221: 11360 | J221: 8220 | K221: 6600 | L221: 159100
A222: 178 | B222: 536000 | C222: 539000 | D222: 35780 | E222: 29310 | F222: 22840 | G222: 18080 | H222: 14850 | I222: 11610 | J222: 8380 | K222: 6720 | L222: 160700
A223: 179 | B223: 539000 | C223: 542000 | D223: 36270 | E223: 29800 | F223: 23330 | G223: 18330 | H223: 15090 | I223: 11850 | J223: 8630 | K223: 6840 | L223: 162200
A224: 180 | B224: 542000 | C224: 545000 | D224: 36760 | E224: 30290 | F224: 23820 | G224: 18570 | H224: 15340 | I224: 12100 | J224: 8870 | K224: 6960 | L224: 163800
A226: 181 | B226: 545000 | C226: 548000 | D226: 37250 | E226: 30780 | F226: 24310 | G226: 18820 | H226: 15580 | I226: 12340 | J226: 9120 | K226: 7090 | L226: 165400
A227: 182 | B227: 548000 | C227: 551000 | D227: 37740 | E227: 31270 | F227: 24800 | G227: 19060 | H227: 15830 | I227: 12590 | J227: 9360 | K227: 7210 | L227: 166900
A228: 183 | B228: 551000 | C228: 554000 | D228: 38280 | E228: 31810 | F228: 25340 | G228: 19330 | H228: 16100 | I228: 12860 | J228: 9630 | K228: 7350 | L228: 168600
A229: 184 | B229: 554000 | C229: 557000 | D229: 38830 | E229: 32370 | F229: 25890 | G229: 19600 | H229: 16380 | I229: 13140 | J229: 9900 | K229: 7480 | L229: 170100
A230: 185 | B230: 557000 | C230: 560000 | D230: 39380 | E230: 32920 | F230: 26440 | G230: 19980 | H230: 16650 | I230: 13420 | J230: 10180 | K230: 7630 | L230: 171600
A232: 186 | B232: 560000 | C232: 563000 | D232: 39930 | E232: 33470 | F232: 27000 | G232: 20530 | H232: 16930 | I232: 13690 | J232: 10460 | K232: 7760 | L232: 173200
A233: 187 | B233: 563000 | C233: 566000 | D233: 40480 | E233: 34020 | F233: 27550 | G233: 21080 | H233: 17200 | I233: 13970 | J233: 10730 | K233: 7900 | L233: 174700
A234: 188 | B234: 566000 | C234: 569000 | D234: 41030 | E234: 34570 | F234: 28100 | G234: 21630 | H234: 17480 | I234: 14240 | J234: 11010 | K234: 8040 | L234: 176200
A235: 189 | B235: 569000 | C235: 572000 | D235: 41590 | E235: 35120 | F235: 28650 | G235: 22190 | H235: 17760 | I235: 14520 | J235: 11280 | K235: 8180 | L235: 177800
A236: 190 | B236: 572000 | C236: 575000 | D236: 42140 | E236: 35670 | F236: 29200 | G236: 22740 | H236: 18030 | I236: 14790 | J236: 11560 | K236: 8330 | L236: 179300
A238: 191 | B238: 575000 | C238: 578000 | D238: 42690 | E238: 36230 | F238: 29750 | G238: 23290 | H238: 18310 | I238: 15070 | J238: 11830 | K238: 8610 | L238: 180800
A239: 192 | B239: 578000 | C239: 581000 | D239: 43240 | E239: 36780 | F239: 30300 | G239: 23840 | H239: 18580 | I239: 15350 | J239: 12110 | K239: 8880 | L239: 182400
... 182 more rows

Sheet 源泉賞与表 (hidden)
B1: 賞与に対する源泉徴収税額の算出率の表（平成28年分）
B2: （平成24年３月31日財務省告示第115号別表第三（平成27年３月31日財務省告示第114号改正））
B3: 賞与の金額に乗ずべき率 | D3: 甲 | T3: 乙
D4: 扶 養 親 族 等 の 数
D5: 0 人 | F5: 1 人 | H5: 2 人 | J5: 3 人 | L5: 4 人 | N5: 5 人 | P5: 6 人 | R5: 7 人 以 上
D6: 前 月 の 社 会 保 険 料 等 控 除 後 の 給 与 等 の 金 額 | T6: 前月の社会保険料等控除後の給与等の金額
D7: 以上 | E7: 未満 | F7: 以上 | G7: 未満 | H7: 以上 | I7: 未満 | J7: 以上 | K7: 未満 | L7: 以上 | M7: 未満 | N7: 以上 | O7: 未満 | P7: 以上 | Q7: 未満 | R7: 以上 | S7: 未満 | T7: 以上 | U7: 未満
B8: % | D8: 千円 | E8: 千円 | F8: 千円 | G8: 千円 | H8: 千円 | I8: 千円 | J8: 千円 | K8: 千円 | L8: 千円 | M8: 千円 | N8: 千円 | O8: 千円 | P8: 千円 | Q8: 千円 | R8: 千円 | S8: 千円 | T8: 千円 | U8: 千円
B9: 0 | D9: 68千円未満 | F9: 94千円未満 | H9: 133千円未満 | J9: 171千円未満 | L9: 210千円未満 | N9: 243千円未満 | P9: 275千円未満 | R9: 308千円未満
B10: 2.042 | D10: 68 | E10: 79 | F10: 94 | G10: 243 | H10: 133 | I10: 269 | J10: 171 | K10: 295 | L10: 210 | M10: 300 | N10: 243 | O10: 300 | P10: 275 | Q10: 333 | R10: 308 | S10: 372
B11: 4.084 | D11: 79 | E11: 252 | F11: 243 | G11: 282 | H11: 269 | I11: 312 | J11: 295 | K11: 345 | L11: 300 | M11: 378 | N11: 300 | O11: 406 | P11: 333 | Q11: 431 | R11: 372 | S11: 456
B12: 6.126 | D12: 252 | E12: 300 | F12: 282 | G12: 338 | H12: 312 | I12: 369 | J12: 345 | K12: 398 | L12: 378 | M12: 424 | N12: 406 | O12: 450 | P12: 431 | Q12: 476 | R12: 456 | S12: 502
B14: 8.168 | D14: 300 | E14: 334 | F14: 338 | G14: 365 | H14: 369 | I14: 393 | J14: 398 | K14: 417 | L14: 424 | M14: 444 | N14: 450 | O14: 472 | P14: 476 | Q14: 499 | R14: 502 | S14: 527
B15: 10.21 | D15: 334 | E15: 363 | F15: 365 | G15: 394 | H15: 393 | I15: 420 | J15: 417 | K15: 445 | L15: 444 | M15: 470 | N15: 472 | O15: 496 | P15: 499 | Q15: 525 | R15: 527 | S15: 553 | U15: 241
B16: 12.252 | D16: 363 | E16: 395 | F16: 394 | G16: 422 | H16: 420 | I16: 450 | J16: 445 | K16: 477 | L16: 470 | M16: 504 | N16: 496 | O16: 531 | P16: 525 | Q16: 559 | R16: 553 | S16: 588
B18: 14.294 | D18: 395 | E18: 426 | F18: 422 | G18: 455 | H18: 450 | I18: 484 | J18: 477 | K18: 513 | L18: 504 | M18: 543 | N18: 531 | O18: 574 | P18: 559 | Q18: 604 | R18: 588 | S18: 632
B19: 16.336 | D19: 426 | E19: 550 | F19: 455 | G19: 550 | H19: 484 | I19: 550 | J19: 513 | K19: 557 | L19: 543 | M19: 592 | N19: 574 | O19: 622 | P19: 604 | Q19: 652 | R19: 632 | S19: 683
B20: 18.378 | D20: 550 | E20: 668 | F20: 550 | G20: 689 | H20: 550 | I20: 708 | J20: 557 | K20: 724 | L20: 592 | M20: 739 | N20: 622 | O20: 754 | P20: 652 | Q20: 769 | R20: 683 | S20: 784
B22: 20.42 | D22: 668 | E22: 713 | F22: 689 | G22: 734 | H22: 708 | I22: 755 | J22: 724 | K22: 776 | L22: 739 | M22: 797 | N22: 754 | O22: 818 | P22: 769 | Q22: 840 | R22: 784 | S22: 862 | T22: 241 | U22: 301
B23: 22.462 | D23: 713 | E23: 745 | F23: 734 | G23: 767 | H23: 755 | I23: 789 | J23: 776 | K23: 811 | L23: 797 | M23: 833 | N23: 818 | O23: 856 | P23: 840 | Q23: 879 | R23: 862 | S23: 902
B24: 24.504 | D24: 745 | E24: 779 | F24: 767 | G24: 802 | H24: 789 | I24: 825 | J24: 811 | K24: 849 | L24: 833 | M24: 874 | N24: 856 | O24: 898 | P24: 879 | Q24: 922 | R24: 902 | S24: 947
B26: 26.546 | D26: 779 | E26: 823 | F26: 802 | G26: 846 | H26: 825 | I26: 870 | J26: 849 | K26: 894 | L26: 874 | M26: 919 | N26: 898 | O26: 945 | P26: 922 | Q26: 970 | R26: 947 | S26: 996
B27: 28.588 | D27: 823 | E27: 877 | F27: 846 | G27: 903 | H27: 870 | I27: 928 | J27: 894 | K27: 954 | L27: 919 | M27: 979 | N27: 945 | O27: 1005 | P27: 970 | Q27: 1034 | R27: 996 | S27: 1062
B28: 30.63 | D28: 877 | E28: 940 | F28: 903 | G28: 968 | H28: 928 | I28: 995 | J28: 954 | K28: 1025 | L28: 979 | M28: 1056 | N28: 1005 | O28: 1086 | P28: 1034 | Q28: 1116 | R28: 1062 | S28: 1147 | T28: 301 | U28: 531
B30: 32.672 | D30: 940 | E30: 1328 | F30: 968 | G30: 1352 | H30: 995 | I30: 1376 | J30: 1025 | K30: 1401 | L30: 1056 | M30: 1425 | N30: 1086 | O30: 1450 | P30: 1116 | Q30: 1474 | R30: 1147 | S30: 1498
B31: 35.735 | D31: 1328 | E31: 1540 | F31: 1352 | G31: 1568 | H31: 1376 | I31: 1596 | J31: 1401 | K31: 1624 | L31: 1425 | M31: 1653 | N31: 1450 | O31: 1681 | P31: 1474 | Q31: 1709 | R31: 1498 | S31: 1738
B32: 38.798 | D32: 1540 | E32: 2667 | F32: 1568 | G32: 2691 | H32: 1596 | I32: 2715 | J32: 1624 | K32: 2738 | L32: 1653 | M32: 2762 | N32: 1681 | O32: 2786 | P32: 1709 | Q32: 2810 | R32: 1738 | S32: 2833 | T32: 531 | U32: 1138
B34: 41.861 | D34: 2667 | E34: 3556 | F34: 2691 | G34: 3588 | H34: 2715 | I34: 3620 | J34: 2738 | K34: 3651 | L34: 2762 | M34: 3683 | N34: 2786 | O34: 3715 | P34: 2810 | Q34: 3746 | R34: 2833 | S34: 3778
B36: 45.945 | D36: 3556 | E36: 千円以上 | F36: 3588 | G36: 千円以上 | H36: 3620 | I36: 千円以上 | J36: 3651 | K36: 千円以上 | L36: 3683 | M36: 千円以上 | N36: 3715 | O36: 千円以上 | P36: 3746 | Q36: 千円以上 | R36: 3778 | S36: 千円以上 | T36: 1138 | U36: 千円以上
B37: (注) この表において「扶養親族等」とは、控除対象配偶者及び控除対象扶養親族をいいます。
B38: また、「賞与の金額に乗ずべき率」の賞与の金額とは、賞与の金額から控除される社会保険料等の金額がある場合には、その社会保険料等控除後の金額をいいます。
B39: (備考） 賞与の金額に乗ずべき率の求め方は、次のとおりです。
B40: 1 「給与所得者の扶養控除等申告書」(以下この表において「扶養控除等申告書」といいます。)の提出があった人(４に該当する場合を除きます。）
B41: (1) まず、その人の前月中の給与等（賞与を除きます。以下この表において同じ。)の金額から、その給与等の金額から控除される社会保険料等の金額（以下この表において「前月中の社会保険料等の金額」といいます。)を控除した金額を求めます。
B42: (2) 次に、扶養控除等申告書により申告された扶養親族等（扶養親族等が国外居住親族である場合には、親族に該当する旨を証する書類が扶養控除等申告書等に添付され、又は当該書類が扶養控除等申告書の提出の際に提示された扶養親族等に限りま
B43: す。）の数と(1)により求めた金額とに応じて甲欄の「前月の社会保険料等控除後の給与等の金額」欄の該当する行を求めます。
B44: (3) (2)により求めた行と「賞与の金額に乗ずべき率」欄との交わるところに記載されている率を求めます。これが求める率です。
B45: 2 １の場合において、扶養控除等申告書にその人が障害者(特別障害者を含みます。)、寡婦(特別の寡婦を含みます。)、寡夫又は勤労学生に該当する旨の記載があるときは、扶養親族等の数にこれらの一に該当するごとに１人を加算した数を、扶養控除
B46: 等申告書にその人の控除対象配偶者又は扶養親族のうちに障害者(特別障害者を含みます。)又は同居特別障害者（障害者（特別障害者を含みます。）又は同居特別障害者が国外居住親族である場合には、親族に該当する旨を証する書類が扶養控除等申告
B47: 書に添付され、又は当該書類が扶養控除等申告書の提出の際に提示された障害者（特別障害者を含みます。）又は同居特別障害者に限ります。）に該当する人がいる旨の記載があるときは、扶養親族等の数にこれらの一に該当するごとに１人を加算した
B48: 数を、それぞれ扶養親族等の数とします。
B49: 3 扶養控除等申告書の提出がない人(「従たる給与についての扶養控除等申告書」の提出があった人を含み、４に該当する場合を除きます。）
B50: (1) その人の前月中の給与等の金額から前月中の社会保険料等の金額を控除した金額を求めます。
B51: (2) (1)により求めた金額に応じて乙欄の「前月の社会保険料等控除後の給与等の金額」欄の該当する行を求めます。
B52: (3) (2)により求めた行と「賞与の金額に乗ずべき率」欄との交わるところに記載されている率を求めます。これが求める率です。
B53: 4 前月中の給与等の金額がない場合や前月中の給与等の金額が前月中の社会保険料等の金額以下である場合又はその賞与の金額（その金額から控除される社会保険料等の金額がある場合には、その控除後の金額)が前月中の給与等の金額から前月中の社
B54: 会保険料等の金額を控除した金額の10倍に相当する金額を超える場合には、この表によらず、平成24年３月31日財務省告示第115号（平成27年３月31日財務省告示第114号改正）第３項第１号イ(2)若しくはロ（2）又は第２号の規定により、月額表を
B55: 使って税額を計算します。
B56: 5 １から４までの場合において、その人の受ける給与等の支給期が月の整数倍の期間ごとと定められているときは、その賞与の支払の直前に支払を受けた若しくは支払を受けるべき給与等の金額又はその給与等の金額から控除される社会保険料等の金額
B57: をその倍数で除して計算した金額を、それぞれ前月中の給与等の金額又はその金額から控除される社会保険料等の金額とみなします。

Sheet 雇用保険料率 (hidden)
C3: 雇用保険料率 | D3: 労働者負担分
D4: 0
C5: =リスト表!C5 -> 一般の事業 | D5: 0.005
C6: =リスト表!C6 -> 農林水産・清酒製造事業 | D6: 0.006
C7: =リスト表!C7 -> 建設の事業 | D7: 0.006
C9: 雇用保険料の対象となる賃金は、総支給額に交通費を加算した額です。

Sheet 01北海道 (hidden)
A1: 平成28年3月分（4月納付分）からの健康保険・厚生年金保険の保険料額表
B3: ・健康保険料率：平成28年3月分～ 適用 ・厚生年金保険料率：平成27年9月分～平成28年8月分 適用
B4: ・介護保険料率：平成27年4月分～ 適用
A6: （北海道） | M6: （単位：円）
A7: 標 準 報 酬 | C7: 報 酬 月 額 | F7: 全国健康保険協会管掌健康保険料 | J7: 厚生年金保険料（厚生年金基金加入員を除く）
F8: 介護保険第２号被保険者 に該当しない場合 | H8: 介護保険第２号被保険者 に該当する場合 | J8: 一般の被保険者 | L8: 坑内員・船員
A9: 等級 | B9: 月 額 | F9: 0.1015 | H9: 0.1173 | J9: 0.17828 | L9: 0.17936
F10: 全 額 | G10: 折半額 | H10: 全 額 | I10: 折半額 | J10: 全 額 | K10: 折半額 | L10: 全 額 | M10: 折半額
C11: 円以上 | E11: 円未満
A12: 1 | B12: 58000 | D12: ～ | E12: 63000 | F12: 5887 | G12: 2943.5 | H12: 6803.4 | I12: 3401.7
A13: 2 | B13: 68000 | C13: 63000 | D13: ～ | E13: 73000 | F13: 6902 | G13: 3451 | H13: 7976.4 | I13: 3988.2
A14: 3 | B14: 78000 | C14: 73000 | D14: ～ | E14: 83000 | F14: 7917 | G14: 3958.5 | H14: 9149.4 | I14: 4574.7
A15: 4 | B15: 88000 | C15: 83000 | D15: ～ | E15: 93000 | F15: 8932 | G15: 4466 | H15: 10322.4 | I15: 5161.2
A16: 5（1） | B16: 98000 | C16: 93000 | D16: ～ | E16: 101000 | F16: 9947 | G16: 4973.5 | H16: 11495.4 | I16: 5747.7 | J16: 17471.44 | K16: 8735.72 | L16: 17577.28 | M16: 8788.64
A17: 6（2） | B17: 104000 | C17: 101000 | D17: ～ | E17: 107000 | F17: 10556 | G17: 5278 | H17: 12199.2 | I17: 6099.6 | J17: 18541.12 | K17: 9270.56 | L17: 18653.44 | M17: 9326.72
A18: 7（3） | B18: 110000 | C18: 107000 | D18: ～ | E18: 114000 | F18: 11165 | G18: 5582.5 | H18: 12903 | I18: 6451.5 | J18: 19610.8 | K18: 9805.4 | L18: 19729.6 | M18: 9864.8
A19: 8（4） | B19: 118000 | C19: 114000 | D19: ～ | E19: 122000 | F19: 11977 | G19: 5988.5 | H19: 13841.4 | I19: 6920.7 | J19: 21037.04 | K19: 10518.52 | L19: 21164.48 | M19: 10582.24
A20: 9（5） | B20: 126000 | C20: 122000 | D20: ～ | E20: 130000 | F20: 12789 | G20: 6394.5 | H20: 14779.8 | I20: 7389.9 | J20: 22463.28 | K20: 11231.64 | L20: 22599.36 | M20: 11299.68
A21: 10（6） | B21: 134000 | C21: 130000 | D21: ～ | E21: 138000 | F21: 13601 | G21: 6800.5 | H21: 15718.2 | I21: 7859.1 | J21: 23889.52 | K21: 11944.76 | L21: 24034.24 | M21: 12017.12
A22: 11（7） | B22: 142000 | C22: 138000 | D22: ～ | E22: 146000 | F22: 14413 | G22: 7206.5 | H22: 16656.6 | I22: 8328.3 | J22: 25315.76 | K22: 12657.88 | L22: 25469.12 | M22: 12734.56
A23: 12（8） | B23: 150000 | C23: 146000 | D23: ～ | E23: 155000 | F23: 15225 | G23: 7612.5 | H23: 17595 | I23: 8797.5 | J23: 26742 | K23: 13371 | L23: 26904 | M23: 13452
A24: 13（9） | B24: 160000 | C24: 155000 | D24: ～ | E24: 165000 | F24: 16240 | G24: 8120 | H24: 18768 | I24: 9384 | J24: 28524.8 | K24: 14262.4 | L24: 28697.6 | M24: 14348.8
A25: 14（10） | B25: 170000 | C25: 165000 | D25: ～ | E25: 175000 | F25: 17255 | G25: 8627.5 | H25: 19941 | I25: 9970.5 | J25: 30307.6 | K25: 15153.8 | L25: 30491.2 | M25: 15245.6
A26: 15（11） | B26: 180000 | C26: 175000 | D26: ～ | E26: 185000 | F26: 18270 | G26: 9135 | H26: 21114 | I26: 10557 | J26: 32090.4 | K26: 16045.2 | L26: 32284.8 | M26: 16142.4
A27: 16（12） | B27: 190000 | C27: 185000 | D27: ～ | E27: 195000 | F27: 19285 | G27: 9642.5 | H27: 22287 | I27: 11143.5 | J27: 33873.2 | K27: 16936.6 | L27: 34078.4 | M27: 17039.2
A28: 17（13） | B28: 200000 | C28: 195000 | D28: ～ | E28: 210000 | F28: 20300 | G28: 10150 | H28: 23460 | I28: 11730 | J28: 35656 | K28: 17828 | L28: 35872 | M28: 17936
A29: 18（14） | B29: 220000 | C29: 210000 | D29: ～ | E29: 230000 | F29: 22330 | G29: 11165 | H29: 25806 | I29: 12903 | J29: 39221.6 | K29: 19610.8 | L29: 39459.2 | M29: 19729.6
A30: 19（15） | B30: 240000 | C30: 230000 | D30: ～ | E30: 250000 | F30: 24360 | G30: 12180 | H30: 28152 | I30: 14076 | J30: 42787.2 | K30: 21393.6 | L30: 43046.4 | M30: 21523.2
A31: 20（16） | B31: 260000 | C31: 250000 | D31: ～ | E31: 270000 | F31: 26390 | G31: 13195 | H31: 30498 | I31: 15249 | J31: 46352.8 | K31: 23176.4 | L31: 46633.6 | M31: 23316.8
A32: 21（17） | B32: 280000 | C32: 270000 | D32: ～ | E32: 290000 | F32: 28420 | G32: 14210 | H32: 32844 | I32: 16422 | J32: 49918.4 | K32: 24959.2 | L32: 50220.8 | M32: 25110.4
A33: 22（18） | B33: 300000 | C33: 290000 | D33: ～ | E33: 310000 | F33: 30450 | G33: 15225 | H33: 35190 | I33: 17595 | J33: 53484 | K33: 26742 | L33: 53808 | M33: 26904
A34: 23（19） | B34: 320000 | C34: 310000 | D34: ～ | E34: 330000 | F34: 32480 | G34: 16240 | H34: 37536 | I34: 18768 | J34: 57049.6 | K34: 28524.8 | L34: 57395.2 | M34: 28697.6
A35: 24（20） | B35: 340000 | C35: 330000 | D35: ～ | E35: 350000 | F35: 34510 | G35: 17255 | H35: 39882 | I35: 19941 | J35: 60615.2 | K35: 30307.6 | L35: 60982.4 | M35: 30491.2
A36: 25（21） | B36: 360000 | C36: 350000 | D36: ～ | E36: 370000 | F36: 36540 | G36: 18270 | H36: 42228 | I36: 21114 | J36: 64180.8 | K36: 32090.4 | L36: 64569.6 | M36: 32284.8
A37: 26（22） | B37: 380000 | C37: 370000 | D37: ～ | E37: 395000 | F37: 38570 | G37: 19285 | H37: 44574 | I37: 22287 | J37: 67746.4 | K37: 33873.2 | L37: 68156.8 | M37: 34078.4
A38: 27（23） | B38: 410000 | C38: 395000 | D38: ～ | E38: 425000 | F38: 41615 | G38: 20807.5 | H38: 48093 | I38: 24046.5 | J38: 73094.8 | K38: 36547.4 | L38: 73537.6 | M38: 36768.8
A39: 28（24） | B39: 440000 | C39: 425000 | D39: ～ | E39: 455000 | F39: 44660 | G39: 22330 | H39: 51612 | I39: 25806 | J39: 78443.2 | K39: 39221.6 | L39: 78918.4 | M39: 39459.2
A40: 29（25） | B40: 470000 | C40: 455000 | D40: ～ | E40: 485000 | F40: 47705 | G40: 23852.5 | H40: 55131 | I40: 27565.5 | J40: 83791.6 | K40: 41895.8 | L40: 84299.2 | M40: 42149.6
A41: 30（26） | B41: 500000 | C41: 485000 | D41: ～ | E41: 515000 | F41: 50750 | G41: 25375 | H41: 58650 | I41: 29325 | J41: 89140 | K41: 44570 | L41: 89680 | M41: 44840
A42: 31（27） | B42: 530000 | C42: 515000 | D42: ～ | E42: 545000 | F42: 53795 | G42: 26897.5 | H42: 62169 | I42: 31084.5 | J42: 94488.4 | K42: 47244.2 | L42: 95060.8 | M42: 47530.4
A43: 32（28） | B43: 560000 | C43: 545000 | D43: ～ | E43: 575000 | F43: 56840 | G43: 28420 | H43: 65688 | I43: 32844 | J43: 99836.8 | K43: 49918.4 | L43: 100441.6 | M43: 50220.8
A44: 33（29） | B44: 590000 | C44: 575000 | D44: ～ | E44: 605000 | F44: 59885 | G44: 29942.5 | H44: 69207 | I44: 34603.5 | J44: 105185.2 | K44: 52592.6 | L44: 105822.4 | M44: 52911.2
A45: 34（30） | B45: 620000 | C45: 605000 | D45: ～ | E45: 635000 | F45: 62930 | G45: 31465 | H45: 72726 | I45: 36363 | J45: 110533.6 | K45: 55266.8 | L45: 111203.2 | M45: 55601.6
A46: 35 | B46: 650000 | C46: 635000 | D46: ～ | E46: 665000 | F46: 65975 | G46: 32987.5 | H46: 76245 | I46: 38122.5
A47: 36 | B47: 680000 | C47: 665000 | D47: ～ | E47: 695000 | F47: 69020 | G47: 34510 | H47: 79764 | I47: 39882 | J47: ※厚生年金基金に加入している方の厚生年金保険
A48: 37 | B48: 710000 | C48: 695000 | D48: ～ | E48: 730000 | F48: 72065 | G48: 36032.5 | H48: 83283 | I48: 41641.5 | J48: 料率は、基金ごとに定められている免除保険料率
A49: 38 | B49: 750000 | C49: 730000 | D49: ～ | E49: 770000 | F49: 76125 | G49: 38062.5 | H49: 87975 | I49: 43987.5 | J49: （2.4％～5.0％）を控除した率となります。
A50: 39 | B50: 790000 | C50: 770000 | D50: ～ | E50: 810000 | F50: 80185 | G50: 40092.5 | H50: 92667 | I50: 46333.5
A51: 40 | B51: 830000 | C51: 810000 | D51: ～ | E51: 855000 | F51: 84245 | G51: 42122.5 | H51: 97359 | I51: 48679.5 | J51: ●一般の被保険者の方 …12.828％～15.428％
A52: 41 | B52: 880000 | C52: 855000 | D52: ～ | E52: 905000 | F52: 89320 | G52: 44660 | H52: 103224 | I52: 51612 | J52: ●坑内員の被保険者の方 …12.936％～15.536％
A53: 42 | B53: 930000 | C53: 905000 | D53: ～ | E53: 955000 | F53: 94395 | G53: 47197.5 | H53: 109089 | I53: 54544.5
A54: 43 | B54: 980000 | C54: 955000 | D54: ～ | E54: 1005000 | F54: 99470 | G54: 49735 | H54: 114954 | I54: 57477 | J54: 加入する基金ごとに異なりますので、免除保険料
A55: 44 | B55: 1030000 | C55: 1005000 | D55: ～ | E55: 1055000 | F55: 104545 | G55: 52272.5 | H55: 120819 | I55: 60409.5 | J55: 率および厚生年金基金の掛金については、加入
A56: 45 | B56: 1090000 | C56: 1055000 | D56: ～ | E56: 1115000 | F56: 110635 | G56: 55317.5 | H56: 127857 | I56: 63928.5 | J56: する厚生年金基金にお問い合わせください。
A57: 46 | B57: 1150000 | C57: 1115000 | D57: ～ | E57: 1175000 | F57: 116725 | G57: 58362.5 | H57: 134895 | I57: 67447.5
A58: 47 | B58: 1210000 | C58: 1175000 | D58: ～ | E58: 1235000 | F58: 122815 | G58: 61407.5 | H58: 141933 | I58: 70966.5
A59: 48 | B59: 1270000 | C59: 1235000 | D59: ～ | E59: 1295000 | F59: 128905 | G59: 64452.5 | H59: 148971 | I59: 74485.5 | J59: ◆48～50等級は、平成28年4月分から新設されます。
A60: 49 | B60: 1330000 | C60: 1295000 | D60: ～ | E60: 1355000 | F60: 134995 | G60: 67497.5 | H60: 156009 | I60: 78004.5 | J60: 3月分は47等級までとなり、48～50等級の方は
A61: 50 | B61: 1390000 | C61: 1355000 | D61: ～ | F61: 141085 | G61: 70542.5 | H61: 163047 | I61: 81523.5 | J61: 47等級の保険料となります。
A63: 0.1015
A64: ◆等級欄の（ ）内の数字は、厚生年金保険の標準報酬月額等級です。
A65: 5（1）等級の「報酬月額」欄は、厚生年金保険の場合「101,000円未満」と読み替えてください。
A66: 34（30）等級の「報酬月額」欄は、厚生年金保険の場合「605,000円以上」と読み替えてください。
A67: ◆平成28年度における全国健康保険協会の任意継続被保険者について、標準報酬月額の上限は、280,000円です。
A70: ○被保険者負担分（表の折半額の欄）に円未満の端数がある場合
A71: ①事業主が、給与から被保険者負担分を控除する場合、被保険者負担分の端数が50銭以下の場合は切り捨て、50銭を超える場合は切り上げて1円となります。
A72: ②被保険者が、被保険者負担分を事業主へ現金で支払う場合、被保険者負担分の端数が50銭未満の場合は切り捨て、50銭以上の場合は切り上げて1円となります。
A73: （注）①、②にかかわらず、事業主と被保険者の間で特約がある場合には、特約に基づき端数処理をすることができます。
A75: ○納入告知書の保険料額
A76: 納入告知書の保険料額は、被保険者個々の保険料額を合算した金額になります。ただし、合算した金額に円未満の端数がある場合は、その端数を切り捨てた額となります。
A78: ○賞与にかかる保険料
A79: 賞与に係る保険料額は、賞与額から1,000円未満の端数を切り捨てた額（標準賞与額)に、保険料率を乗じた額となります。
A80: また、標準賞与額の上限は、健康保険は年間540万円（毎年4月1日から翌年3月31日までの累計額。平成28年4月1日からは年間573万円。）となり、厚生年金保険と子ども・
A81: 子育て拠出金の場合は月間150万円となります。

Sheet 02青森 (hidden)
A1: 平成28年3月分（4月納付分）からの健康保険・厚生年金保険の保険料額表
B3: ・健康保険料率：平成28年3月分～ 適用 ・厚生年金保険料率：平成27年9月分～平成28年8月分 適用
B4: ・介護保険料率：平成27年4月分～ 適用
A6: （青森県） | M6: （単位：円）
A7: 標 準 報 酬 | C7: 報 酬 月 額 | F7: 全国健康保険協会管掌健康保険料 | J7: 厚生年金保険料（厚生年金基金加入員を除く）
F8: 介護保険第２号被保険者 に該当しない場合 | H8: 介護保険第２号被保険者 に該当する場合 | J8: 一般の被保険者 | L8: 坑内員・船員
A9: 等級 | B9: 月 額 | F9: 0.0997 | H9: 0.1155 | J9: 0.17828 | L9: 0.17936
F10: 全 額 | G10: 折半額 | H10: 全 額 | I10: 折半額 | J10: 全 額 | K10: 折半額 | L10: 全 額 | M10: 折半額
C11: 円以上 | E11: 円未満
A12: 1 | B12: 58000 | D12: ～ | E12: 63000 | F12: 5782.6 | G12: 2891.3 | H12: 6699 | I12: 3349.5
A13: 2 | B13: 68000 | C13: 63000 | D13: ～ | E13: 73000 | F13: 6779.6 | G13: 3389.8 | H13: 7854 | I13: 3927
A14: 3 | B14: 78000 | C14: 73000 | D14: ～ | E14: 83000 | F14: 7776.6 | G14: 3888.3 | H14: 9009 | I14: 4504.5
A15: 4 | B15: 88000 | C15: 83000 | D15: ～ | E15: 93000 | F15: 8773.6 | G15: 4386.8 | H15: 10164 | I15: 5082
A16: 5（1） | B16: 98000 | C16: 93000 | D16: ～ | E16: 101000 | F16: 9770.6 | G16: 4885.3 | H16: 11319 | I16: 5659.5 | J16: 17471.44 | K16: 8735.72 | L16: 17577.28 | M16: 8788.64
A17: 6（2） | B17: 104000 | C17: 101000 | D17: ～ | E17: 107000 | F17: 10368.8 | G17: 5184.4 | H17: 12012 | I17: 6006 | J17: 18541.12 | K17: 9270.56 | L17: 18653.44 | M17: 9326.72
A18: 7（3） | B18: 110000 | C18: 107000 | D18: ～ | E18: 114000 | F18: 10967 | G18: 5483.5 | H18: 12705 | I18: 6352.5 | J18: 19610.8 | K18: 9805.4 | L18: 19729.6 | M18: 9864.8
A19: 8（4） | B19: 118000 | C19: 114000 | D19: ～ | E19: 122000 | F19: 11764.6 | G19: 5882.3 | H19: 13629 | I19: 6814.5 | J19: 21037.04 | K19: 10518.52 | L19: 21164.48 | M19: 10582.24
A20: 9（5） | B20: 126000 | C20: 122000 | D20: ～ | E20: 130000 | F20: 12562.2 | G20: 6281.1 | H20: 14553 | I20: 7276.5 | J20: 22463.28 | K20: 11231.64 | L20: 22599.36 | M20: 11299.68
A21: 10（6） | B21: 134000 | C21: 130000 | D21: ～ | E21: 138000 | F21: 13359.8 | G21: 6679.9 | H21: 15477 | I21: 7738.5 | J21: 23889.52 | K21: 11944.76 | L21: 24034.24 | M21: 12017.12
A22: 11（7） | B22: 142000 | C22: 138000 | D22: ～ | E22: 146000 | F22: 14157.4 | G22: 7078.7 | H22: 16401 | I22: 8200.5 | J22: 25315.76 | K22: 12657.88 | L22: 25469.12 | M22: 12734.56
A23: 12（8） | B23: 150000 | C23: 146000 | D23: ～ | E23: 155000 | F23: 14955 | G23: 7477.5 | H23: 17325 | I23: 8662.5 | J23: 26742 | K23: 13371 | L23: 26904 | M23: 13452
A24: 13（9） | B24: 160000 | C24: 155000 | D24: ～ | E24: 165000 | F24: 15952 | G24: 7976 | H24: 18480 | I24: 9240 | J24: 28524.8 | K24: 14262.4 | L24: 28697.6 | M24: 14348.8
A25: 14（10） | B25: 170000 | C25: 165000 | D25: ～ | E25: 175000 | F25: 16949 | G25: 8474.5 | H25: 19635 | I25: 9817.5 | J25: 30307.6 | K25: 15153.8 | L25: 30491.2 | M25: 15245.6
A26: 15（11） | B26: 180000 | C26: 175000 | D26: ～ | E26: 185000 | F26: 17946 | G26: 8973 | H26: 20790 | I26: 10395 | J26: 32090.4 | K26: 16045.2 | L26: 32284.8 | M26: 16142.4
A27: 16（12） | B27: 190000 | C27: 185000 | D27: ～ | E27: 195000 | F27: 18943 | G27: 9471.5 | H27: 21945 | I27: 10972.5 | J27: 33873.2 | K27: 16936.6 | L27: 34078.4 | M27: 17039.2
A28: 17（13） | B28: 200000 | C28: 195000 | D28: ～ | E28: 210000 | F28: 19940 | G28: 9970 | H28: 23100 | I28: 11550 | J28: 35656 | K28: 17828 | L28: 35872 | M28: 17936
A29: 18（14） | B29: 220000 | C29: 210000 | D29: ～ | E29: 230000 | F29: 21934 | G29: 10967 | H29: 25410 | I29: 12705 | J29: 39221.6 | K29: 19610.8 | L29: 39459.2 | M29: 19729.6
A30: 19（15） | B30: 240000 | C30: 230000 | D30: ～ | E30: 250000 | F30: 23928 | G30: 11964 | H30: 27720 | I30: 13860 | J30: 42787.2 | K30: 21393.6 | L30: 43046.4 | M30: 21523.2
A31: 20（16） | B31: 260000 | C31: 250000 | D31: ～ | E31: 270000 | F31: 25922 | G31: 12961 | H31: 30030 | I31: 15015 | J31: 46352.8 | K31: 23176.4 | L31: 46633.6 | M31: 23316.8
A32: 21（17） | B32: 280000 | C32: 270000 | D32: ～ | E32: 290000 | F32: 27916 | G32: 13958 | H32: 32340 | I32: 16170 | J32: 49918.4 | K32: 24959.2 | L32: 50220.8 | M32: 25110.4
A33: 22（18） | B33: 300000 | C33: 290000 | D33: ～ | E33: 310000 | F33: 29910 | G33: 14955 | H33: 34650 | I33: 17325 | J33: 53484 | K33: 26742 | L33: 53808 | M33: 26904
A34: 23（19） | B34: 320000 | C34: 310000 | D34: ～ | E34: 330000 | F34: 31904 | G34: 15952 | H34: 36960 | I34: 18480 | J34: 57049.6 | K34: 28524.8 | L34: 57395.2 | M34: 28697.6
A35: 24（20） | B35: 340000 | C35: 330000 | D35: ～ | E35: 350000 | F35: 33898 | G35: 16949 | H35: 39270 | I35: 19635 | J35: 60615.2 | K35: 30307.6 | L35: 60982.4 | M35: 30491.2
A36: 25（21） | B36: 360000 | C36: 350000 | D36: ～ | E36: 370000 | F36: 35892 | G36: 17946 | H36: 41580 | I36: 20790 | J36: 64180.8 | K36: 32090.4 | L36: 64569.6 | M36: 32284.8
A37: 26（22） | B37: 380000 | C37: 370000 | D37: ～ | E37: 395000 | F37: 37886 | G37: 18943 | H37: 43890 | I37: 21945 | J37: 67746.4 | K37: 33873.2 | L37: 68156.8 | M37: 34078.4
A38: 27（23） | B38: 410000 | C38: 395000 | D38: ～ | E38: 425000 | F38: 40877 | G38: 20438.5 | H38: 47355 | I38: 23677.5 | J38: 73094.8 | K38: 36547.4 | L38: 73537.6 | M38: 36768.8
A39: 28（24） | B39: 440000 | C39: 425000 | D39: ～ | E39: 455000 | F39: 43868 | G39: 21934 | H39: 50820 | I39: 25410 | J39: 78443.2 | K39: 39221.6 | L39: 78918.4 | M39: 39459.2
A40: 29（25） | B40: 470000 | C40: 455000 | D40: ～ | E40: 485000 | F40: 46859 | G40: 23429.5 | H40: 54285 | I40: 27142.5 | J40: 83791.6 | K40: 41895.8 | L40: 84299.2 | M40: 42149.6
A41: 30（26） | B41: 500000 | C41: 485000 | D41: ～ | E41: 515000 | F41: 49850 | G41: 24925 | H41: 57750 | I41: 28875 | J41: 89140 | K41: 44570 | L41: 89680 | M41: 44840
A42: 31（27） | B42: 530000 | C42: 515000 | D42: ～ | E42: 545000 | F42: 52841 | G42: 26420.5 | H42: 61215 | I42: 30607.5 | J42: 94488.4 | K42: 47244.2 | L42: 95060.8 | M42: 47530.4
A43: 32（28） | B43: 560000 | C43: 545000 | D43: ～ | E43: 575000 | F43: 55832 | G43: 27916 | H43: 64680 | I43: 32340 | J43: 99836.8 | K43: 49918.4 | L43: 100441.6 | M43: 50220.8
A44: 33（29） | B44: 590000 | C44: 575000 | D44: ～ | E44: 605000 | F44: 58823 | G44: 29411.5 | H44: 68145 | I44: 34072.5 | J44: 105185.2 | K44: 52592.6 | L44: 105822.4 | M44: 52911.2
A45: 34（30） | B45: 620000 | C45: 605000 | D45: ～ | E45: 635000 | F45: 61814 | G45: 30907 | H45: 71610 | I45: 35805 | J45: 110533.6 | K45: 55266.8 | L45: 111203.2 | M45: 55601.6
A46: 35 | B46: 650000 | C46: 635000 | D46: ～ | E46: 665000 | F46: 64805 | G46: 32402.5 | H46: 75075 | I46: 37537.5
A47: 36 | B47: 680000 | C47: 665000 | D47: ～ | E47: 695000 | F47: 67796 | G47: 33898 | H47: 78540 | I47: 39270 | J47: ※厚生年金基金に加入している方の厚生年金保険
A48: 37 | B48: 710000 | C48: 695000 | D48: ～ | E48: 730000 | F48: 70787 | G48: 35393.5 | H48: 82005 | I48: 41002.5 | J48: 料率は、基金ごとに定められている免除保険料率
A49: 38 | B49: 750000 | C49: 730000 | D49: ～ | E49: 770000 | F49: 74775 | G49: 37387.5 | H49: 86625 | I49: 43312.5 | J49: （2.4％～5.0％）を控除した率となります。
A50: 39 | B50: 790000 | C50: 770000 | D50: ～ | E50: 810000 | F50: 78763 | G50: 39381.5 | H50: 91245 | I50: 45622.5
A51: 40 | B51: 830000 | C51: 810000 | D51: ～ | E51: 855000 | F51: 82751 | G51: 41375.5 | H51: 95865 | I51: 47932.5 | J51: ●一般の被保険者の方 …12.828％～15.428％
A52: 41 | B52: 880000 | C52: 855000 | D52: ～ | E52: 905000 | F52: 87736 | G52: 43868 | H52: 101640 | I52: 50820 | J52: ●坑内員の被保険者の方 …12.936％～15.536％
A53: 42 | B53: 930000 | C53: 905000 | D53: ～ | E53: 955000 | F53: 92721 | G53: 46360.5 | H53: 107415 | I53: 53707.5
A54: 43 | B54: 980000 | C54: 955000 | D54: ～ | E54: 1005000 | F54: 97706 | G54: 48853 | H54: 113190 | I54: 56595 | J54: 加入する基金ごとに異なりますので、免除保険料
A55: 44 | B55: 1030000 | C55: 1005000 | D55: ～ | E55: 1055000 | F55: 102691 | G55: 51345.5 | H55: 118965 | I55: 59482.5 | J55: 率および厚生年金基金の掛金については、加入
A56: 45 | B56: 1090000 | C56: 1055000 | D56: ～ | E56: 1115000 | F56: 108673 | G56: 54336.5 | H56: 125895 | I56: 62947.5 | J56: する厚生年金基金にお問い合わせください。
A57: 46 | B57: 1150000 | C57: 1115000 | D57: ～ | E57: 1175000 | F57: 114655 | G57: 57327.5 | H57: 132825 | I57: 66412.5
A58: 47 | B58: 1210000 | C58: 1175000 | D58: ～ | E58: 1235000 | F58: 120637 | G58: 60318.5 | H58: 139755 | I58: 69877.5
A59: 48 | B59: 1270000 | C59: 1235000 | D59: ～ | E59: 1295000 | F59: 126619 | G59: 63309.5 | H59: 146685 | I59: 73342.5 | J59: ◆48～50等級は、平成28年4月分から新設されます。
A60: 49 | B60: 1330000 | C60: 1295000 | D60: ～ | E60: 1355000 | F60: 132601 | G60: 66300.5 | H60: 153615 | I60: 76807.5 | J60: 3月分は47等級までとなり、48～50等級の方は
A61: 50 | B61: 1390000 | C61: 1355000 | D61: ～ | F61: 138583 | G61: 69291.5 | H61: 160545 | I61: 80272.5 | J61: 47等級の保険料となります。
A63: 0.0997
A64: ◆等級欄の（ ）内の数字は、厚生年金保険の標準報酬月額等級です。
A65: 5（1）等級の「報酬月額」欄は、厚生年金保険の場合「101,000円未満」と読み替えてください。
A66: 34（30）等級の「報酬月額」欄は、厚生年金保険の場合「605,000円以上」と読み替えてください。
A67: ◆平成28年度における全国健康保険協会の任意継続被保険者について、標準報酬月額の上限は、280,000円です。
A70: ○被保険者負担分（表の折半額の欄）に円未満の端数がある場合
A71: ①事業主が、給与から被保険者負担分を控除する場合、被保険者負担分の端数が50銭以下の場合は切り捨て、50銭を超える場合は切り上げて1円となります。
A72: ②被保険者が、被保険者負担分を事業主へ現金で支払う場合、被保険者負担分の端数が50銭未満の場合は切り捨て、50銭以上の場合は切り上げて1円となります。
A73: （注）①、②にかかわらず、事業主と被保険者の間で特約がある場合には、特約に基づき端数処理をすることができます。
A75: ○納入告知書の保険料額
A76: 納入告知書の保険料額は、被保険者個々の保険料額を合算した金額になります。ただし、合算した金額に円未満の端数がある場合は、その端数を切り捨てた額となります。
A78: ○賞与にかかる保険料
A79: 賞与に係る保険料額は、賞与額から1,000円未満の端数を切り捨てた額（標準賞与額)に、保険料率を乗じた額となります。
A80: また、標準賞与額の上限は、健康保険は年間540万円（毎年4月1日から翌年3月31日までの累計額。平成28年4月1日からは年間573万円。）となり、厚生年金保険と子ども・
A81: 子育て拠出金の場合は月間150万円となります。

Sheet 03岩手 (hidden)
A1: 平成28年3月分（4月納付分）からの健康保険・厚生年金保険の保険料額表
B3: ・健康保険料率：平成28年3月分～ 適用 ・厚生年金保険料率：平成27年9月分～平成28年8月分 適用
B4: ・介護保険料率：平成27年4月分～ 適用
A6: （岩手県） | M6: （単位：円）
A7: 標 準 報 酬 | C7: 報 酬 月 額 | F7: 全国健康保険協会管掌健康保険料 | J7: 厚生年金保険料（厚生年金基金加入員を除く）
F8: 介護保険第２号被保険者 に該当しない場合 | H8: 介護保険第２号被保険者 に該当する場合 | J8: 一般の被保険者 | L8: 坑内員・船員
A9: 等級 | B9: 月 額 | F9: 0.0993 | H9: 0.1151 | J9: 0.17828 | L9: 0.17936
F10: 全 額 | G10: 折半額 | H10: 全 額 | I10: 折半額 | J10: 全 額 | K10: 折半額 | L10: 全 額 | M10: 折半額
C11: 円以上 | E11: 円未満
A12: 1 | B12: 58000 | D12: ～ | E12: 63000 | F12: 5759.4 | G12: 2879.7 | H12: 6675.8 | I12: 3337.9
A13: 2 | B13: 68000 | C13: 63000 | D13: ～ | E13: 73000 | F13: 6752.4 | G13: 3376.2 | H13: 7826.8 | I13: 3913.4
A14: 3 | B14: 78000 | C14: 73000 | D14: ～ | E14: 83000 | F14: 7745.4 | G14: 3872.7 | H14: 8977.8 | I14: 4488.9
A15: 4 | B15: 88000 | C15: 83000 | D15: ～ | E15: 93000 | F15: 8738.4 | G15: 4369.2 | H15: 10128.8 | I15: 5064.4
A16: 5（1） | B16: 98000 | C16: 93000 | D16: ～ | E16: 101000 | F16: 9731.4 | G16: 4865.7 | H16: 11279.8 | I16: 5639.9 | J16: 17471.44 | K16: 8735.72 | L16: 17577.28 | M16: 8788.64
A17: 6（2） | B17: 104000 | C17: 101000 | D17: ～ | E17: 107000 | F17: 10327.2 | G17: 5163.6 | H17: 11970.4 | I17: 5985.2 | J17: 18541.12 | K17: 9270.56 | L17: 18653.44 | M17: 9326.72
A18: 7（3） | B18: 110000 | C18: 107000 | D18: ～ | E18: 114000 | F18: 10923 | G18: 5461.5 | H18: 12661 | I18: 6330.5 | J18: 19610.8 | K18: 9805.4 | L18: 19729.6 | M18: 9864.8
A19: 8（4） | B19: 118000 | C19: 114000 | D19: ～ | E19: 122000 | F19: 11717.4 | G19: 5858.7 | H19: 13581.8 | I19: 6790.9 | J19: 21037.04 | K19: 10518.52 | L19: 21164.48 | M19: 10582.24
A20: 9（5） | B20: 126000 | C20: 122000 | D20: ～ | E20: 130000 | F20: 12511.8 | G20: 6255.9 | H20: 14502.6 | I20: 7251.3 | J20: 22463.28 | K20: 11231.64 | L20: 22599.36 | M20: 11299.68
A21: 10（6） | B21: 134000 | C21: 130000 | D21: ～ | E21: 138000 | F21: 13306.2 | G21: 6653.1 | H21: 15423.4 | I21: 7711.7 | J21: 23889.52 | K21: 11944.76 | L21: 24034.24 | M21: 12017.12
A22: 11（7） | B22: 142000 | C22: 138000 | D22: ～ | E22: 146000 | F22: 14100.6 | G22: 7050.3 | H22: 16344.2 | I22: 8172.1 | J22: 25315.76 | K22: 12657.88 | L22: 25469.12 | M22: 12734.56
A23: 12（8） | B23: 150000 | C23: 146000 | D23: ～ | E23: 155000 | F23: 14895 | G23: 7447.5 | H23: 17265 | I23: 8632.5 | J23: 26742 | K23: 13371 | L23: 26904 | M23: 13452
A24: 13（9） | B24: 160000 | C24: 155000 | D24: ～ | E24: 165000 | F24: 15888 | G24: 7944 | H24: 18416 | I24: 9208 | J24: 28524.8 | K24: 14262.4 | L24: 28697.6 | M24: 14348.8
A25: 14（10） | B25: 170000 | C25: 165000 | D25: ～ | E25: 175000 | F25: 16881 | G25: 8440.5 | H25: 19567 | I25: 9783.5 | J25: 30307.6 | K25: 15153.8 | L25: 30491.2 | M25: 15245.6
A26: 15（11） | B26: 180000 | C26: 175000 | D26: ～ | E26: 185000 | F26: 17874 | G26: 8937 | H26: 20718 | I26: 10359 | J26: 32090.4 | K26: 16045.2 | L26: 32284.8 | M26: 16142.4
A27: 16（12） | B27: 190000 | C27: 185000 | D27: ～ | E27: 195000 | F27: 18867 | G27: 9433.5 | H27: 21869 | I27: 10934.5 | J27: 33873.2 | K27: 16936.6 | L27: 34078.4 | M27: 17039.2
A28: 17（13） | B28: 200000 | C28: 195000 | D28: ～ | E28: 210000 | F28: 19860 | G28: 9930 | H28: 23020 | I28: 11510 | J28: 35656 | K28: 17828 | L28: 35872 | M28: 17936
A29: 18（14） | B29: 220000 | C29: 210000 | D29: ～ | E29: 230000 | F29: 21846 | G29: 10923 | H29: 25322 | I29: 12661 | J29: 39221.6 | K29: 19610.8 | L29: 39459.2 | M29: 19729.6
A30: 19（15） | B30: 240000 | C30: 230000 | D30: ～ | E30: 250000 | F30: 23832 | G30: 11916 | H30: 27624 | I30: 13812 | J30: 42787.2 | K30: 21393.6 | L30: 43046.4 | M30: 21523.2
A31: 20（16） | B31: 260000 | C31: 250000 | D31: ～ | E31: 270000 | F31: 25818 | G31: 12909 | H31: 29926 | I31: 14963 | J31: 46352.8 | K31: 23176.4 | L31: 46633.6 | M31: 23316.8
A32: 21（17） | B32: 280000 | C32: 270000 | D32: ～ | E32: 290000 | F32: 27804 | G32: 13902 | H32: 32228 | I32: 16114 | J32: 49918.4 | K32: 24959.2 | L32: 50220.8 | M32: 25110.4
A33: 22（18） | B33: 300000 | C33: 290000 | D33: ～ | E33: 310000 | F33: 29790 | G33: 14895 | H33: 34530 | I33: 17265 | J33: 53484 | K33: 26742 | L33: 53808 | M33: 26904
A34: 23（19） | B34: 320000 | C34: 310000 | D34: ～ | E34: 330000 | F34: 31776 | G34: 15888 | H34: 36832 | I34: 18416 | J34: 57049.6 | K34: 28524.8 | L34: 57395.2 | M34: 28697.6
A35: 24（20） | B35: 340000 | C35: 330000 | D35: ～ | E35: 350000 | F35: 33762 | G35: 16881 | H35: 39134 | I35: 19567 | J35: 60615.2 | K35: 30307.6 | L35: 60982.4 | M35: 30491.2
A36: 25（21） | B36: 360000 | C36: 350000 | D36: ～ | E36: 370000 | F36: 35748 | G36: 17874 | H36: 41436 | I36: 20718 | J36: 64180.8 | K36: 32090.4 | L36: 64569.6 | M36: 32284.8
A37: 26（22） | B37: 380000 | C37: 370000 | D37: ～ | E37: 395000 | F37: 37734 | G37: 18867 | H37: 43738 | I37: 21869 | J37: 67746.4 | K37: 33873.2 | L37: 68156.8 | M37: 34078.4
A38: 27（23） | B38: 410000 | C38: 395000 | D38: ～ | E38: 425000 | F38: 40713 | G38: 20356.5 | H38: 47191 | I38: 23595.5 | J38: 73094.8 | K38: 36547.4 | L38: 73537.6 | M38: 36768.8
A39: 28（24） | B39: 440000 | C39: 425000 | D39: ～ | E39: 455000 | F39: 43692 | G39: 21846 | H39: 50644 | I39: 25322 | J39: 78443.2 | K39: 39221.6 | L39: 78918.4 | M39: 39459.2
A40: 29（25） | B40: 470000 | C40: 455000 | D40: ～ | E40: 485000 | F40: 46671 | G40: 23335.5 | H40: 54097 | I40: 27048.5 | J40: 83791.6 | K40: 41895.8 | L40: 84299.2 | M40: 42149.6
A41: 30（26） | B41: 500000 | C41: 485000 | D41: ～ | E41: 515000 | F41: 49650 | G41: 24825 | H41: 57550 | I41: 28775 | J41: 89140 | K41: 44570 | L41: 89680 | M41: 44840
A42: 31（27） | B42: 530000 | C42: 515000 | D42: ～ | E42: 545000 | F42: 52629 | G42: 26314.5 | H42: 61003 | I42: 30501.5 | J42: 94488.4 | K42: 47244.2 | L42: 95060.8 | M42: 47530.4
A43: 32（28） | B43: 560000 | C43: 545000 | D43: ～ | E43: 575000 | F43: 55608 | G43: 27804 | H43: 64456 | I43: 32228 | J43: 99836.8 | K43: 49918.4 | L43: 100441.6 | M43: 50220.8
A44: 33（29） | B44: 590000 | C44: 575000 | D44: ～ | E44: 605000 | F44: 58587 | G44: 29293.5 | H44: 67909 | I44: 33954.5 | J44: 105185.2 | K44: 52592.6 | L44: 105822.4 | M44: 52911.2
A45: 34（30） | B45: 620000 | C45: 605000 | D45: ～ | E45: 635000 | F45: 61566 | G45: 30783 | H45: 71362 | I45: 35681 | J45: 110533.6 | K45: 55266.8 | L45: 111203.2 | M45: 55601.6
A46: 35 | B46: 650000 | C46: 635000 | D46: ～ | E46: 665000 | F46: 64545 | G46: 32272.5 | H46: 74815 | I46: 37407.5
A47: 36 | B47: 680000 | C47: 665000 | D47: ～ | E47: 695000 | F47: 67524 | G47: 33762 | H47: 78268 | I47: 39134 | J47: ※厚生年金基金に加入している方の厚生年金保険
A48: 37 | B48: 710000 | C48: 695000 | D48: ～ | E48: 730000 | F48: 70503 | G48: 35251.5 | H48: 81721 | I48: 40860.5 | J48: 料率は、基金ごとに定められている免除保険料率
A49: 38 | B49: 750000 | C49: 730000 | D49: ～ | E49: 770000 | F49: 74475 | G49: 37237.5 | H49: 86325 | I49: 43162.5 | J49: （2.4％～5.0％）を控除した率となります。
A50: 39 | B50: 790000 | C50: 770000 | D50: ～ | E50: 810000 | F50: 78447 | G50: 39223.5 | H50: 90929 | I50: 45464.5
A51: 40 | B51: 830000 | C51: 810000 | D51: ～ | E51: 855000 | F51: 82419 | G51: 41209.5 | H51: 95533 | I51: 47766.5 | J51: ●一般の被保険者の方 …12.828％～15.428％
A52: 41 | B52: 880000 | C52: 855000 | D52: ～ | E52: 905000 | F52: 87384 | G52: 43692 | H52: 101288 | I52: 50644 | J52: ●坑内員の被保険者の方 …12.936％～15.536％
A53: 42 | B53: 930000 | C53: 905000 | D53: ～ | E53: 955000 | F53: 92349 | G53: 46174.5 | H53: 107043 | I53: 53521.5
A54: 43 | B54: 980000 | C54: 955000 | D54: ～ | E54: 1005000 | F54: 97314 | G54: 48657 | H54: 112798 | I54: 56399 | J54: 加入する基金ごとに異なりますので、免除保険料
A55: 44 | B55: 1030000 | C55: 1005000 | D55: ～ | E55: 1055000 | F55: 102279 | G55: 51139.5 | H55: 118553 | I55: 59276.5 | J55: 率および厚生年金基金の掛金については、加入
A56: 45 | B56: 1090000 | C56: 1055000 | D56: ～ | E56: 1115000 | F56: 108237 | G56: 54118.5 | H56: 125459 | I56: 62729.5 | J56: する厚生年金基金にお問い合わせください。
A57: 46 | B57: 1150000 | C57: 1115000 | D57: ～ | E57: 1175000 | F57: 114195 | G57: 57097.5 | H57: 132365 | I57: 66182.5
A58: 47 | B58: 1210000 | C58: 1175000 | D58: ～ | E58: 1235000 | F58: 120153 | G58: 60076.5 | H58: 139271 | I58: 69635.5
A59: 48 | B59: 1270000 | C59: 1235000 | D59: ～ | E59: 1295000 | F59: 126111 | G59: 63055.5 | H59: 146177 | I59: 73088.5 | J59: ◆48～50等級は、平成28年4月分から新設されます。
A60: 49 | B60: 1330000 | C60: 1295000 | D60: ～ | E60: 1355000 | F60: 132069 | G60: 66034.5 | H60: 153083 | I60: 76541.5 | J60: 3月分は47等級までとなり、48～50等級の方は
A61: 50 | B61: 1390000 | C61: 1355000 | D61: ～ | F61: 138027 | G61: 69013.5 | H61: 159989 | I61: 79994.5 | J61: 47等級の保険料となります。
A63: 0.0993
A64: ◆等級欄の（ ）内の数字は、厚生年金保険の標準報酬月額等級です。
A65: 5（1）等級の「報酬月額」欄は、厚生年金保険の場合「101,000円未満」と読み替えてください。
A66: 34（30）等級の「報酬月額」欄は、厚生年金保険の場合「605,000円以上」と読み替えてください。
A67: ◆平成28年度における全国健康保険協会の任意継続被保険者について、標準報酬月額の上限は、280,000円です。
A70: ○被保険者負担分（表の折半額の欄）に円未満の端数がある場合
A71: ①事業主が、給与から被保険者負担分を控除する場合、被保険者負担分の端数が50銭以下の場合は切り捨て、50銭を超える場合は切り上げて1円となります。
A72: ②被保険者が、被保険者負担分を事業主へ現金で支払う場合、被保険者負担分の端数が50銭未満の場合は切り捨て、50銭以上の場合は切り上げて1円となります。
A73: （注）①、②にかかわらず、事業主と被保険者の間で特約がある場合には、特約に基づき端数処理をすることができます。
A75: ○納入告知書の保険料額
A76: 納入告知書の保険料額は、被保険者個々の保険料額を合算した金額になります。ただし、合算した金額に円未満の端数がある場合は、その端数を切り捨てた額となります。
A78: ○賞与にかかる保険料
A79: 賞与に係る保険料額は、賞与額から1,000円未満の端数を切り捨てた額（標準賞与額)に、保険料率を乗じた額となります。
A80: また、標準賞与額の上限は、健康保険は年間540万円（毎年4月1日から翌年3月31日までの累計額。平成28年4月1日からは年間573万円。）となり、厚生年金保険と子ども・
A81: 子育て拠出金の場合は月間150万円となります。

Sheet 04宮城 (hidden)
A1: 平成28年3月分（4月納付分）からの健康保険・厚生年金保険の保険料額表
B3: ・健康保険料率：平成27年4月分～ 適用 ・厚生年金保険料率：平成27年9月分～平成28年8月分 適用
B4: ・介護保険料率：平成27年4月分～ 適用
A6: （宮城県） | M6: （単位：円）
A7: 標 準 報 酬 | C7: 報 酬 月 額 | F7: 全国健康保険協会管掌健康保険料 | J7: 厚生年金保険料（厚生年金基金加入員を除く）
F8: 介護保険第２号被保険者 に該当しない場合 | H8: 介護保険第２号被保険者 に該当する場合 | J8: 一般の被保険者 | L8: 坑内員・船員
A9: 等級 | B9: 月 額 | F9: 0.0996 | H9: 0.1154 | J9: 0.17828 | L9: 0.17936
F10: 全 額 | G10: 折半額 | H10: 全 額 | I10: 折半額 | J10: 全 額 | K10: 折半額 | L10: 全 額 | M10: 折半額
C11: 円以上 | E11: 円未満
A12: 1 | B12: 58000 | D12: ～ | E12: 63000 | F12: 5776.8 | G12: 2888.4 | H12: 6693.2 | I12: 3346.6
A13: 2 | B13: 68000 | C13: 63000 | D13: ～ | E13: 73000 | F13: 6772.8 | G13: 3386.4 | H13: 7847.2 | I13: 3923.6
A14: 3 | B14: 78000 | C14: 73000 | D14: ～ | E14: 83000 | F14: 7768.8 | G14: 3884.4 | H14: 9001.2 | I14: 4500.6
A15: 4 | B15: 88000 | C15: 83000 | D15: ～ | E15: 93000 | F15: 8764.8 | G15: 4382.4 | H15: 10155.2 | I15: 5077.6
A16: 5（1） | B16: 98000 | C16: 93000 | D16: ～ | E16: 101000 | F16: 9760.8 | G16: 4880.4 | H16: 11309.2 | I16: 5654.6 | J16: 17471.44 | K16: 8735.72 | L16: 17577.28 | M16: 8788.64
A17: 6（2） | B17: 104000 | C17: 101000 | D17: ～ | E17: 107000 | F17: 10358.4 | G17: 5179.2 | H17: 12001.6 | I17: 6000.8 | J17: 18541.12 | K17: 9270.56 | L17: 18653.44 | M17: 9326.72
A18: 7（3） | B18: 110000 | C18: 107000 | D18: ～ | E18: 114000 | F18: 10956 | G18: 5478 | H18: 12694 | I18: 6347 | J18: 19610.8 | K18: 9805.4 | L18: 19729.6 | M18: 9864.8
A19: 8（4） | B19: 118000 | C19: 114000 | D19: ～ | E19: 122000 | F19: 11752.8 | G19: 5876.4 | H19: 13617.2 | I19: 6808.6 | J19: 21037.04 | K19: 10518.52 | L19: 21164.48 | M19: 10582.24
A20: 9（5） | B20: 126000 | C20: 122000 | D20: ～ | E20: 130000 | F20: 12549.6 | G20: 6274.8 | H20: 14540.4 | I20: 7270.2 | J20: 22463.28 | K20: 11231.64 | L20: 22599.36 | M20: 11299.68
A21: 10（6） | B21: 134000 | C21: 130000 | D21: ～ | E21: 138000 | F21: 13346.4 | G21: 6673.2 | H21: 15463.6 | I21: 7731.8 | J21: 23889.52 | K21: 11944.76 | L21: 24034.24 | M21: 12017.12
A22: 11（7） | B22: 142000 | C22: 138000 | D22: ～ | E22: 146000 | F22: 14143.2 | G22: 7071.6 | H22: 16386.8 | I22: 8193.4 | J22: 25315.76 | K22: 12657.88 | L22: 25469.12 | M22: 12734.56
A23: 12（8） | B23: 150000 | C23: 146000 | D23: ～ | E23: 155000 | F23: 14940 | G23: 7470 | H23: 17310 | I23: 8655 | J23: 26742 | K23: 13371 | L23: 26904 | M23: 13452
A24: 13（9） | B24: 160000 | C24: 155000 | D24: ～ | E24: 165000 | F24: 15936 | G24: 7968 | H24: 18464 | I24: 9232 | J24: 28524.8 | K24: 14262.4 | L24: 28697.6 | M24: 14348.8
A25: 14（10） | B25: 170000 | C25: 165000 | D25: ～ | E25: 175000 | F25: 16932 | G25: 8466 | H25: 19618 | I25: 9809 | J25: 30307.6 | K25: 15153.8 | L25: 30491.2 | M25: 15245.6
A26: 15（11） | B26: 180000 | C26: 175000 | D26: ～ | E26: 185000 | F26: 17928 | G26: 8964 | H26: 20772 | I26: 10386 | J26: 32090.4 | K26: 16045.2 | L26: 32284.8 | M26: 16142.4
A27: 16（12） | B27: 190000 | C27: 185000 | D27: ～ | E27: 195000 | F27: 18924 | G27: 9462 | H27: 21926 | I27: 10963 | J27: 33873.2 | K27: 16936.6 | L27: 34078.4 | M27: 17039.2
A28: 17（13） | B28: 200000 | C28: 195000 | D28: ～ | E28: 210000 | F28: 19920 | G28: 9960 | H28: 23080 | I28: 11540 | J28: 35656 | K28: 17828 | L28: 35872 | M28: 17936
A29: 18（14） | B29: 220000 | C29: 210000 | D29: ～ | E29: 230000 | F29: 21912 | G29: 10956 | H29: 25388 | I29: 12694 | J29: 39221.6 | K29: 19610.8 | L29: 39459.2 | M29: 19729.6
A30: 19（15） | B30: 240000 | C30: 230000 | D30: ～ | E30: 250000 | F30: 23904 | G30: 11952 | H30: 27696 | I30: 13848 | J30: 42787.2 | K30: 21393.6 | L30: 43046.4 | M30: 21523.2
A31: 20（16） | B31: 260000 | C31: 250000 | D31: ～ | E31: 270000 | F31: 25896 | G31: 12948 | H31: 30004 | I31: 15002 | J31: 46352.8 | K31: 23176.4 | L31: 46633.6 | M31: 23316.8
A32: 21（17） | B32: 280000 | C32: 270000 | D32: ～ | E32: 290000 | F32: 27888 | G32: 13944 | H32: 32312 | I32: 16156 | J32: 49918.4 | K32: 24959.2 | L32: 50220.8 | M32: 25110.4
A33: 22（18） | B33: 300000 | C33: 290000 | D33: ～ | E33: 310000 | F33: 29880 | G33: 14940 | H33: 34620 | I33: 17310 | J33: 53484 | K33: 26742 | L33: 53808 | M33: 26904
A34: 23（19） | B34: 320000 | C34: 310000 | D34: ～ | E34: 330000 | F34: 31872 | G34: 15936 | H34: 36928 | I34: 18464 | J34: 57049.6 | K34: 28524.8 | L34: 57395.2 | M34: 28697.6
A35: 24（20） | B35: 340000 | C35: 330000 | D35: ～ | E35: 350000 | F35: 33864 | G35: 16932 | H35: 39236 | I35: 19618 | J35: 60615.2 | K35: 30307.6 | L35: 60982.4 | M35: 30491.2
A36: 25（21） | B36: 360000 | C36: 350000 | D36: ～ | E36: 370000 | F36: 35856 | G36: 17928 | H36: 41544 | I36: 20772 | J36: 64180.8 | K36: 32090.4 | L36: 64569.6 | M36: 32284.8
A37: 26（22） | B37: 380000 | C37: 370000 | D37: ～ | E37: 395000 | F37: 37848 | G37: 18924 | H37: 43852 | I37: 21926 | J37: 67746.4 | K37: 33873.2 | L37: 68156.8 | M37: 34078.4
A38: 27（23） | B38: 410000 | C38: 395000 | D38: ～ | E38: 425000 | F38: 40836 | G38: 20418 | H38: 47314 | I38: 23657 | J38: 73094.8 | K38: 36547.4 | L38: 73537.6 | M38: 36768.8
A39: 28（24） | B39: 440000 | C39: 425000 | D39: ～ | E39: 455000 | F39: 43824 | G39: 21912 | H39: 50776 | I39: 25388 | J39: 78443.2 | K39: 39221.6 | L39: 78918.4 | M39: 39459.2
A40: 29（25） | B40: 470000 | C40: 455000 | D40: ～ | E40: 485000 | F40: 46812 | G40: 23406 | H40: 54238 | I40: 27119 | J40: 83791.6 | K40: 41895.8 | L40: 84299.2 | M40: 42149.6
A41: 30（26） | B41: 500000 | C41: 485000 | D41: ～ | E41: 515000 | F41: 49800 | G41: 24900 | H41: 57700 | I41: 28850 | J41: 89140 | K41: 44570 | L41: 89680 | M41: 44840
A42: 31（27） | B42: 530000 | C42: 515000 | D42: ～ | E42: 545000 | F42: 52788 | G42: 26394 | H42: 61162 | I42: 30581 | J42: 94488.4 | K42: 47244.2 | L42: 95060.8 | M42: 47530.4
A43: 32（28） | B43: 560000 | C43: 545000 | D43: ～ | E43: 575000 | F43: 55776 | G43: 27888 | H43: 64624 | I43: 32312 | J43: 99836.8 | K43: 49918.4 | L43: 100441.6 | M43: 50220.8
A44: 33（29） | B44: 590000 | C44: 575000 | D44: ～ | E44: 605000 | F44: 58764 | G44: 29382 | H44: 68086 | I44: 34043 | J44: 105185.2 | K44: 52592.6 | L44: 105822.4 | M44: 52911.2
A45: 34（30） | B45: 620000 | C45: 605000 | D45: ～ | E45: 635000 | F45: 61752 | G45: 30876 | H45: 71548 | I45: 35774 | J45: 110533.6 | K45: 55266.8 | L45: 111203.2 | M45: 55601.6
A46: 35 | B46: 650000 | C46: 635000 | D46: ～ | E46: 665000 | F46: 64740 | G46: 32370 | H46: 75010 | I46: 37505
A47: 36 | B47: 680000 | C47: 665000 | D47: ～ | E47: 695000 | F47: 67728 | G47: 33864 | H47: 78472 | I47: 39236 | J47: ※厚生年金基金に加入している方の厚生年金保険
A48: 37 | B48: 710000 | C48: 695000 | D48: ～ | E48: 730000 | F48: 70716 | G48: 35358 | H48: 81934 | I48: 40967 | J48: 料率は、基金ごとに定められている免除保険料率
A49: 38 | B49: 750000 | C49: 730000 | D49: ～ | E49: 770000 | F49: 74700 | G49: 37350 | H49: 86550 | I49: 43275 | J49: （2.4％～5.0％）を控除した率となります。
A50: 39 | B50: 790000 | C50: 770000 | D50: ～ | E50: 810000 | F50: 78684 | G50: 39342 | H50: 91166 | I50: 45583
A51: 40 | B51: 830000 | C51: 810000 | D51: ～ | E51: 855000 | F51: 82668 | G51: 41334 | H51: 95782 | I51: 47891 | J51: ●一般の被保険者の方 …12.828％～15.428％
A52: 41 | B52: 880000 | C52: 855000 | D52: ～ | E52: 905000 | F52: 87648 | G52: 43824 | H52: 101552 | I52: 50776 | J52: ●坑内員の被保険者の方 …12.936％～15.536％
A53: 42 | B53: 930000 | C53: 905000 | D53: ～ | E53: 955000 | F53: 92628 | G53: 46314 | H53: 107322 | I53: 53661
A54: 43 | B54: 980000 | C54: 955000 | D54: ～ | E54: 1005000 | F54: 97608 | G54: 48804 | H54: 113092 | I54: 56546 | J54: 加入する基金ごとに異なりますので、免除保険料
A55: 44 | B55: 1030000 | C55: 1005000 | D55: ～ | E55: 1055000 | F55: 102588 | G55: 51294 | H55: 118862 | I55: 59431 | J55: 率および厚生年金基金の掛金については、加入
A56: 45 | B56: 1090000 | C56: 1055000 | D56: ～ | E56: 1115000 | F56: 108564 | G56: 54282 | H56: 125786 | I56: 62893 | J56: する厚生年金基金にお問い合わせください。
A57: 46 | B57: 1150000 | C57: 1115000 | D57: ～ | E57: 1175000 | F57: 114540 | G57: 57270 | H57: 132710 | I57: 66355
A58: 47 | B58: 1210000 | C58: 1175000 | D58: ～ | E58: 1235000 | F58: 120516 | G58: 60258 | H58: 139634 | I58: 69817
A59: 48 | B59: 1270000 | C59: 1235000 | D59: ～ | E59: 1295000 | F59: 126492 | G59: 63246 | H59: 146558 | I59: 73279 | J59: ◆48～50等級は、平成28年4月分から新設されます。
A60: 49 | B60: 1330000 | C60: 1295000 | D60: ～ | E60: 1355000 | F60: 132468 | G60: 66234 | H60: 153482 | I60: 76741 | J60: 3月分は47等級までとなり、48～50等級の方は
A61: 50 | B61: 1390000 | C61: 1355000 | D61: ～ | F61: 138444 | G61: 69222 | H61: 160406 | I61: 80203 | J61: 47等級の保険料となります。
A63: 0.0996
A64: ◆等級欄の（ ）内の数字は、厚生年金保険の標準報酬月額等級です。
A65: 5（1）等級の「報酬月額」欄は、厚生年金保険の場合「101,000円未満」と読み替えてください。
A66: 34（30）等級の「報酬月額」欄は、厚生年金保険の場合「605,000円以上」と読み替えてください。
A67: ◆平成28年度における全国健康保険協会の任意継続被保険者について、標準報酬月額の上限は、280,000円です。
A70: ○被保険者負担分（表の折半額の欄）に円未満の端数がある場合
A71: ①事業主が、給与から被保険者負担分を控除する場合、被保険者負担分の端数が50銭以下の場合は切り捨て、50銭を超える場合は切り上げて1円となります。
A72: ②被保険者が、被保険者負担分を事業主へ現金で支払う場合、被保険者負担分の端数が50銭未満の場合は切り捨て、50銭以上の場合は切り上げて1円となります。
A73: （注）①、②にかかわらず、事業主と被保険者の間で特約がある場合には、特約に基づき端数処理をすることができます。
A75: ○納入告知書の保険料額
A76: 納入告知書の保険料額は、被保険者個々の保険料額を合算した金額になります。ただし、合算した金額に円未満の端数がある場合は、その端数を切り捨てた額となります。
A78: ○賞与にかかる保険料
A79: 賞与に係る保険料額は、賞与額から1,000円未満の端数を切り捨てた額（標準賞与額)に、保険料率を乗じた額となります。
A80: また、標準賞与額の上限は、健康保険は年間540万円（毎年4月1日から翌年3月31日までの累計額。平成28年4月1日からは年間573万円。）となり、厚生年金保険と子ども・
A81: 子育て拠出金の場合は月間150万円となります。

Sheet 05秋田 (hidden)
A1: 平成28年3月分（4月納付分）からの健康保険・厚生年金保険の保険料額表
B3: ・健康保険料率：平成28年3月分～ 適用 ・厚生年金保険料率：平成27年9月分～平成28年8月分 適用
B4: ・介護保険料率：平成27年4月分～ 適用
A6: （秋田県） | M6: （単位：円）
A7: 標 準 報 酬 | C7: 報 酬 月 額 | F7: 全国健康保険協会管掌健康保険料 | J7: 厚生年金保険料（厚生年金基金加入員を除く）
F8: 介護保険第２号被保険者 に該当しない場合 | H8: 介護保険第２号被保険者 に該当する場合 | J8: 一般の被保険者 | L8: 坑内員・船員
A9: 等級 | B9: 月 額 | F9: 0.1011 | H9: 0.1169 | J9: 0.17828 | L9: 0.17936
F10: 全 額 | G10: 折半額 | H10: 全 額 | I10: 折半額 | J10: 全 額 | K10: 折半額 | L10: 全 額 | M10: 折半額
C11: 円以上 | E11: 円未満
A12: 1 | B12: 58000 | D12: ～ | E12: 63000 | F12: 5863.8 | G12: 2931.9 | H12: 6780.2 | I12: 3390.1
A13: 2 | B13: 68000 | C13: 63000 | D13: ～ | E13: 73000 | F13: 6874.8 | G13: 3437.4 | H13: 7949.2 | I13: 3974.6
A14: 3 | B14: 78000 | C14: 73000 | D14: ～ | E14: 83000 | F14: 7885.8 | G14: 3942.9 | H14: 9118.2 | I14: 4559.1
A15: 4 | B15: 88000 | C15: 83000 | D15: ～ | E15: 93000 | F15: 8896.8 | G15: 4448.4 | H15: 10287.2 | I15: 5143.6
A16: 5（1） | B16: 98000 | C16: 93000 | D16: ～ | E16: 101000 | F16: 9907.8 | G16: 4953.9 | H16: 11456.2 | I16: 5728.1 | J16: 17471.44 | K16: 8735.72 | L16: 17577.28 | M16: 8788.64
A17: 6（2） | B17: 104000 | C17: 101000 | D17: ～ | E17: 107000 | F17: 10514.4 | G17: 5257.2 | H17: 12157.6 | I17: 6078.8 | J17: 18541.12 | K17: 9270.56 | L17: 18653.44 | M17: 9326.72
A18: 7（3） | B18: 110000 | C18: 107000 | D18: ～ | E18: 114000 | F18: 11121 | G18: 5560.5 | H18: 12859 | I18: 6429.5 | J18: 19610.8 | K18: 9805.4 | L18: 19729.6 | M18: 9864.8
A19: 8（4） | B19: 118000 | C19: 114000 | D19: ～ | E19: 122000 | F19: 11929.8 | G19: 5964.9 | H19: 13794.2 | I19: 6897.1 | J19: 21037.04 | K19: 10518.52 | L19: 21164.48 | M19: 10582.24
A20: 9（5） | B20: 126000 | C20: 122000 | D20: ～ | E20: 130000 | F20: 12738.6 | G20: 6369.3 | H20: 14729.4 | I20: 7364.7 | J20: 22463.28 | K20: 11231.64 | L20: 22599.36 | M20: 11299.68
A21: 10（6） | B21: 134000 | C21: 130000 | D21: ～ | E21: 138000 | F21: 13547.4 | G21: 6773.7 | H21: 15664.6 | I21: 7832.3 | J21: 23889.52 | K21: 11944.76 | L21: 24034.24 | M21: 12017.12
A22: 11（7） | B22: 142000 | C22: 138000 | D22: ～ | E22: 146000 | F22: 14356.2 | G22: 7178.1 | H22: 16599.8 | I22: 8299.9 | J22: 25315.76 | K22: 12657.88 | L22: 25469.12 | M22: 12734.56
A23: 12（8） | B23: 150000 | C23: 146000 | D23: ～ | E23: 155000 | F23: 15165 | G23: 7582.5 | H23: 17535 | I23: 8767.5 | J23: 26742 | K23: 13371 | L23: 26904 | M23: 13452
A24: 13（9） | B24: 160000 | C24: 155000 | D24: ～ | E24: 165000 | F24: 16176 | G24: 8088 | H24: 18704 | I24: 9352 | J24: 28524.8 | K24: 14262.4 | L24: 28697.6 | M24: 14348.8
A25: 14（10） | B25: 170000 | C25: 165000 | D25: ～ | E25: 175000 | F25: 17187 | G25: 8593.5 | H25: 19873 | I25: 9936.5 | J25: 30307.6 | K25: 15153.8 | L25: 30491.2 | M25: 15245.6
A26: 15（11） | B26: 180000 | C26: 175000 | D26: ～ | E26: 185000 | F26: 18198 | G26: 9099 | H26: 21042 | I26: 10521 | J26: 32090.4 | K26: 16045.2 | L26: 32284.8 | M26: 16142.4
A27: 16（12） | B27: 190000 | C27: 185000 | D27: ～ | E27: 195000 | F27: 19209 | G27: 9604.5 | H27: 22211 | I27: 11105.5 | J27: 33873.2 | K27: 16936.6 | L27: 34078.4 | M27: 17039.2
A28: 17（13） | B28: 200000 | C28: 195000 | D28: ～ | E28: 210000 | F28: 20220 | G28: 10110 | H28: 23380 | I28: 11690 | J28: 35656 | K28: 17828 | L28: 35872 | M28: 17936
A29: 18（14） | B29: 220000 | C29: 210000 | D29: ～ | E29: 230000 | F29: 22242 | G29: 11121 | H29: 25718 | I29: 12859 | J29: 39221.6 | K29: 19610.8 | L29: 39459.2 | M29: 19729.6
A30: 19（15） | B30: 240000 | C30: 230000 | D30: ～ | E30: 250000 | F30: 24264 | G30: 12132 | H30: 28056 | I30: 14028 | J30: 42787.2 | K30: 21393.6 | L30: 43046.4 | M30: 21523.2
A31: 20（16） | B31: 260000 | C31: 250000 | D31: ～ | E31: 270000 | F31: 26286 | G31: 13143 | H31: 30394 | I31: 15197 | J31: 46352.8 | K31: 23176.4 | L31: 46633.6 | M31: 23316.8
A32: 21（17） | B32: 280000 | C32: 270000 | D32: ～ | E32: 290000 | F32: 28308 | G32: 14154 | H32: 32732 | I32: 16366 | J32: 49918.4 | K32: 24959.2 | L32: 50220.8 | M32: 25110.4
A33: 22（18） | B33: 300000 | C33: 290000 | D33: ～ | E33: 310000 | F33: 30330 | G33: 15165 | H33: 35070 | I33: 17535 | J33: 53484 | K33: 26742 | L33: 53808 | M33: 26904
A34: 23（19） | B34: 320000 | C34: 310000 | D34: ～ | E34: 330000 | F34: 32352 | G34: 16176 | H34: 37408 | I34: 18704 | J34: 57049.6 | K34: 28524.8 | L34: 57395.2 | M34: 28697.6
A35: 24（20） | B35: 340000 | C35: 330000 | D35: ～ | E35: 350000 | F35: 34374 | G35: 17187 | H35: 39746 | I35: 19873 | J35: 60615.2 | K35: 30307.6 | L35: 60982.4 | M35: 30491.2
A36: 25（21） | B36: 360000 | C36: 350000 | D36: ～ | E36: 370000 | F36: 36396 | G36: 18198 | H36: 42084 | I36: 21042 | J36: 64180.8 | K36: 32090.4 | L36: 64569.6 | M36: 32284.8
A37: 26（22） | B37: 380000 | C37: 370000 | D37: ～ | E37: 395000 | F37: 38418 | G37: 19209 | H37: 44422 | I37: 22211 | J37: 67746.4 | K37: 33873.2 | L37: 68156.8 | M37: 34078.4
A38: 27（23） | B38: 410000 | C38: 395000 | D38: ～ | E38: 425000 | F38: 41451 | G38: 20725.5 | H38: 47929 | I38: 23964.5 | J38: 73094.8 | K38: 36547.4 | L38: 73537.6 | M38: 36768.8
A39: 28（24） | B39: 440000 | C39: 425000 | D39: ～ | E39: 455000 | F39: 44484 | G39: 22242 | H39: 51436 | I39: 25718 | J39: 78443.2 | K39: 39221.6 | L39: 78918.4 | M39: 39459.2
A40: 29（25） | B40: 470000 | C40: 455000 | D40: ～ | E40: 485000 | F40: 47517 | G40: 23758.5 | H40: 54943 | I40: 27471.5 | J40: 83791.6 | K40: 41895.8 | L40: 84299.2 | M40: 42149.6
A41: 30（26） | B41: 500000 | C41: 485000 | D41: ～ | E41: 515000 | F41: 50550 | G41: 25275 | H41: 58450 | I41: 29225 | J41: 89140 | K41: 44570 | L41: 89680 | M41: 44840
A42: 31（27） | B42: 530000 | C42: 515000 | D42: ～ | E42: 545000 | F42: 53583 | G42: 26791.5 | H42: 61957 | I42: 30978.5 | J42: 94488.4 | K42: 47244.2 | L42: 95060.8 | M42: 47530.4
A43: 32（28） | B43: 560000 | C43: 545000 | D43: ～ | E43: 575000 | F43: 56616 | G43: 28308 | H43: 65464 | I43: 32732 | J43: 99836.8 | K43: 49918.4 | L43: 100441.6 | M43: 50220.8
A44: 33（29） | B44: 590000 | C44: 575000 | D44: ～ | E44: 605000 | F44: 59649 | G44: 29824.5 | H44: 68971 | I44: 34485.5 | J44: 105185.2 | K44: 52592.6 | L44: 105822.4 | M44: 52911.2
A45: 34（30） | B45: 620000 | C45: 605000 | D45: ～ | E45: 635000 | F45: 62682 | G45: 31341 | H45: 72478 | I45: 36239 | J45: 110533.6 | K45: 55266.8 | L45: 111203.2 | M45: 55601.6
A46: 35 | B46: 650000 | C46: 635000 | D46: ～ | E46: 665000 | F46: 65715 | G46: 32857.5 | H46: 75985 | I46: 37992.5
A47: 36 | B47: 680000 | C47: 665000 | D47: ～ | E47: 695000 | F47: 68748 | G47: 34374 | H47: 79492 | I47: 39746 | J47: ※厚生年金基金に加入している方の厚生年金保険
A48: 37 | B48: 710000 | C48: 695000 | D48: ～ | E48: 730000 | F48: 71781 | G48: 35890.5 | H48: 82999 | I48: 41499.5 | J48: 料率は、基金ごとに定められている免除保険料率
A49: 38 | B49: 750000 | C49: 730000 | D49: ～ | E49: 770000 | F49: 75825 | G49: 37912.5 | H49: 87675 | I49: 43837.5 | J49: （2.4％～5.0％）を控除した率となります。
A50: 39 | B50: 790000 | C50: 770000 | D50: ～ | E50: 810000 | F50: 79869 | G50: 39934.5 | H50: 92351 | I50: 46175.5
A51: 40 | B51: 830000 | C51: 810000 | D51: ～ | E51: 855000 | F51: 83913 | G51: 41956.5 | H51: 97027 | I51: 48513.5 | J51: ●一般の被保険者の方 …12.828％～15.428％
A52: 41 | B52: 880000 | C52: 855000 | D52: ～ | E52: 905000 | F52: 88968 | G52: 44484 | H52: 102872 | I52: 51436 | J52: ●坑内員の被保険者の方 …12.936％～15.536％
A53: 42 | B53: 930000 | C53: 905000 | D53: ～ | E53: 955000 | F53: 94023 | G53: 47011.5 | H53: 108717 | I53: 54358.5
A54: 43 | B54: 980000 | C54: 955000 | D54: ～ | E54: 1005000 | F54: 99078 | G54: 49539 | H54: 114562 | I54: 57281 | J54: 加入する基金ごとに異なりますので、免除保険料
A55: 44 | B55: 1030000 | C55: 1005000 | D55: ～ | E55: 1055000 | F55: 104133 | G55: 52066.5 | H55: 120407 | I55: 60203.5 | J55: 率および厚生年金基金の掛金については、加入
A56: 45 | B56: 1090000 | C56: 1055000 | D56: ～ | E56: 1115000 | F56: 110199 | G56: 55099.5 | H56: 127421 | I56: 63710.5 | J56: する厚生年金基金にお問い合わせください。
A57: 46 | B57: 1150000 | C57: 1115000 | D57: ～ | E57: 1175000 | F57: 116265 | G57: 58132.5 | H57: 134435 | I57: 67217.5
A58: 47 | B58: 1210000 | C58: 1175000 | D58: ～ | E58: 1235000 | F58: 122331 | G58: 61165.5 | H58: 141449 | I58: 70724.5
A59: 48 | B59: 1270000 | C59: 1235000 | D59: ～ | E59: 1295000 | F59: 128397 | G59: 64198.5 | H59: 148463 | I59: 74231.5 | J59: ◆48～50等級は、平成28年4月分から新設されます。
A60: 49 | B60: 1330000 | C60: 1295000 | D60: ～ | E60: 1355000 | F60: 134463 | G60: 67231.5 | H60: 155477 | I60: 77738.5 | J60: 3月分は47等級までとなり、48～50等級の方は
A61: 50 | B61: 1390000 | C61: 1355000 | D61: ～ | F61: 140529 | G61: 70264.5 | H61: 162491 | I61: 81245.5 | J61: 47等級の保険料となります。
A63: 0.1011
A64: ◆等級欄の（ ）内の数字は、厚生年金保険の標準報酬月額等級です。
A65: 5（1）等級の「報酬月額」欄は、厚生年金保険の場合「101,000円未満」と読み替えてください。
A66: 34（30）等級の「報酬月額」欄は、厚生年金保険の場合「605,000円以上」と読み替えてください。
A67: ◆平成28年度における全国健康保険協会の任意継続被保険者について、標準報酬月額の上限は、280,000円です。
A70: ○被保険者負担分（表の折半額の欄）に円未満の端数がある場合
A71: ①事業主が、給与から被保険者負担分を控除する場合、被保険者負担分の端数が50銭以下の場合は切り捨て、50銭を超える場合は切り上げて1円となります。
A72: ②被保険者が、被保険者負担分を事業主へ現金で支払う場合、被保険者負担分の端数が50銭未満の場合は切り捨て、50銭以上の場合は切り上げて1円となります。
A73: （注）①、②にかかわらず、事業主と被保険者の間で特約がある場合には、特約に基づき端数処理をすることができます。
A75: ○納入告知書の保険料額
A76: 納入告知書の保険料額は、被保険者個々の保険料額を合算した金額になります。ただし、合算した金額に円未満の端数がある場合は、その端数を切り捨てた額となります。
A78: ○賞与にかかる保険料
A79: 賞与に係る保険料額は、賞与額から1,000円未満の端数を切り捨てた額（標準賞与額)に、保険料率を乗じた額となります。
A80: また、標準賞与額の上限は、健康保険は年間540万円（毎年4月1日から翌年3月31日までの累計額。平成28年4月1日からは年間573万円。）となり、厚生年金保険と子ども・
A81: 子育て拠出金の場合は月間150万円となります。

Sheet 06山形 (hidden)
A1: 平成28年3月分（4月納付分）からの健康保険・厚生年金保険の保険料額表
B3: ・健康保険料率：平成28年3月分～ 適用 ・厚生年金保険料率：平成27年9月分～平成28年8月分 適用
B4: ・介護保険料率：平成27年4月分～ 適用
A6: （山形県） | M6: （単位：円）
A7: 標 準 報 酬 | C7: 報 酬 月 額 | F7: 全国健康保険協会管掌健康保険料 | J7: 厚生年金保険料（厚生年金基金加入員を除く）
F8: 介護保険第２号被保険者 に該当しない場合 | H8: 介護保険第２号被保険者 に該当する場合 | J8: 一般の被保険者 | L8: 坑内員・船員
A9: 等級 | B9: 月 額 | F9: 0.1 | H9: 0.1158 | J9: 0.17828 | L9: 0.17936
F10: 全 額 | G10: 折半額 | H10: 全 額 | I10: 折半額 | J10: 全 額 | K10: 折半額 | L10: 全 額 | M10: 折半額
C11: 円以上 | E11: 円未満
A12: 1 | B12: 58000 | D12: ～ | E12: 63000 | F12: 5800 | G12: 2900 | H12: 6716.4 | I12: 3358.2
A13: 2 | B13: 68000 | C13: 63000 | D13: ～ | E13: 73000 | F13: 6800 | G13: 3400 | H13: 7874.4 | I13: 3937.2
A14: 3 | B14: 78000 | C14: 73000 | D14: ～ | E14: 83000 | F14: 7800 | G14: 3900 | H14: 9032.4 | I14: 4516.2
A15: 4 | B15: 88000 | C15: 83000 | D15: ～ | E15: 93000 | F15: 8800 | G15: 4400 | H15: 10190.4 | I15: 5095.2
A16: 5（1） | B16: 98000 | C16: 93000 | D16: ～ | E16: 101000 | F16: 9800 | G16: 4900 | H16: 11348.4 | I16: 5674.2 | J16: 17471.44 | K16: 8735.72 | L16: 17577.28 | M16: 8788.64
A17: 6（2） | B17: 104000 | C17: 101000 | D17: ～ | E17: 107000 | F17: 10400 | G17: 5200 | H17: 12043.2 | I17: 6021.6 | J17: 18541.12 | K17: 9270.56 | L17: 18653.44 | M17: 9326.72
A18: 7（3） | B18: 110000 | C18: 107000 | D18: ～ | E18: 114000 | F18: 11000 | G18: 5500 | H18: 12738 | I18: 6369 | J18: 19610.8 | K18: 9805.4 | L18: 19729.6 | M18: 9864.8
A19: 8（4） | B19: 118000 | C19: 114000 | D19: ～ | E19: 122000 | F19: 11800 | G19: 5900 | H19: 13664.4 | I19: 6832.2 | J19: 21037.04 | K19: 10518.52 | L19: 21164.48 | M19: 10582.24
A20: 9（5） | B20: 126000 | C20: 122000 | D20: ～ | E20: 130000 | F20: 12600 | G20: 6300 | H20: 14590.8 | I20: 7295.4 | J20: 22463.28 | K20: 11231.64 | L20: 22599.36 | M20: 11299.68
A21: 10（6） | B21: 134000 | C21: 130000 | D21: ～ | E21: 138000 | F21: 13400 | G21: 6700 | H21: 15517.2 | I21: 7758.6 | J21: 23889.52 | K21: 11944.76 | L21: 24034.24 | M21: 12017.12
A22: 11（7） | B22: 142000 | C22: 138000 | D22: ～ | E22: 146000 | F22: 14200 | G22: 7100 | H22: 16443.6 | I22: 8221.8 | J22: 25315.76 | K22: 12657.88 | L22: 25469.12 | M22: 12734.56
A23: 12（8） | B23: 150000 | C23: 146000 | D23: ～ | E23: 155000 | F23: 15000 | G23: 7500 | H23: 17370 | I23: 8685 | J23: 26742 | K23: 13371 | L23: 26904 | M23: 13452
A24: 13（9） | B24: 160000 | C24: 155000 | D24: ～ | E24: 165000 | F24: 16000 | G24: 8000 | H24: 18528 | I24: 9264 | J24: 28524.8 | K24: 14262.4 | L24: 28697.6 | M24: 14348.8
A25: 14（10） | B25: 170000 | C25: 165000 | D25: ～ | E25: 175000 | F25: 17000 | G25: 8500 | H25: 19686 | I25: 9843 | J25: 30307.6 | K25: 15153.8 | L25: 30491.2 | M25: 15245.6
A26: 15（11） | B26: 180000 | C26: 175000 | D26: ～ | E26: 185000 | F26: 18000 | G26: 9000 | H26: 20844 | I26: 10422 | J26: 32090.4 | K26: 16045.2 | L26: 32284.8 | M26: 16142.4
A27: 16（12） | B27: 190000 | C27: 185000 | D27: ～ | E27: 195000 | F27: 19000 | G27: 9500 | H27: 22002 | I27: 11001 | J27: 33873.2 | K27: 16936.6 | L27: 34078.4 | M27: 17039.2
A28: 17（13） | B28: 200000 | C28: 195000 | D28: ～ | E28: 210000 | F28: 20000 | G28: 10000 | H28: 23160 | I28: 11580 | J28: 35656 | K28: 17828 | L28: 35872 | M28: 17936
A29: 18（14） | B29: 220000 | C29: 210000 | D29: ～ | E29: 230000 | F29: 22000 | G29: 11000 | H29: 25476 | I29: 12738 | J29: 39221.6 | K29: 19610.8 | L29: 39459.2 | M29: 19729.6
A30: 19（15） | B30: 240000 | C30: 230000 | D30: ～ | E30: 250000 | F30: 24000 | G30: 12000 | H30: 27792 | I30: 13896 | J30: 42787.2 | K30: 21393.6 | L30: 43046.4 | M30: 21523.2
A31: 20（16） | B31: 260000 | C31: 250000 | D31: ～ | E31: 270000 | F31: 26000 | G31: 13000 | H31: 30108 | I31: 15054 | J31: 46352.8 | K31: 23176.4 | L31: 46633.6 | M31: 23316.8
A32: 21（17） | B32: 280000 | C32: 270000 | D32: ～ | E32: 290000 | F32: 28000 | G32: 14000 | H32: 32424 | I32: 16212 | J32: 49918.4 | K32: 24959.2 | L32: 50220.8 | M32: 25110.4
A33: 22（18） | B33: 300000 | C33: 290000 | D33: ～ | E33: 310000 | F33: 30000 | G33: 15000 | H33: 34740 | I33: 17370 | J33: 53484 | K33: 26742 | L33: 53808 | M33: 26904
A34: 23（19） | B34: 320000 | C34: 310000 | D34: ～ | E34: 330000 | F34: 32000 | G34: 16000 | H34: 37056 | I34: 18528 | J34: 57049.6 | K34: 28524.8 | L34: 57395.2 | M34: 28697.6
A35: 24（20） | B35: 340000 | C35: 330000 | D35: ～ | E35: 350000 | F35: 34000 | G35: 17000 | H35: 39372 | I35: 19686 | J35: 60615.2 | K35: 30307.6 | L35: 60982.4 | M35: 30491.2
A36: 25（21） | B36: 360000 | C36: 350000 | D36: ～ | E36: 370000 | F36: 36000 | G36: 18000 | H36: 41688 | I36: 20844 | J36: 64180.8 | K36: 32090.4 | L36: 64569.6 | M36: 32284.8
A37: 26（22） | B37: 380000 | C37: 370000 | D37: ～ | E37: 395000 | F37: 38000 | G37: 19000 | H37: 44004 | I37: 22002 | J37: 67746.4 | K37: 33873.2 | L37: 68156.8 | M37: 34078.4
A38: 27（23） | B38: 410000 | C38: 395000 | D38: ～ | E38: 425000 | F38: 41000 | G38: 20500 | H38: 47478 | I38: 23739 | J38: 73094.8 | K38: 36547.4 | L38: 73537.6 | M38: 36768.8
A39: 28（24） | B39: 440000 | C39: 425000 | D39: ～ | E39: 455000 | F39: 44000 | G39: 22000 | H39: 50952 | I39: 25476 | J39: 78443.2 | K39: 39221.6 | L39: 78918.4 | M39: 39459.2
A40: 29（25） | B40: 470000 | C40: 455000 | D40: ～ | E40: 485000 | F40: 47000 | G40: 23500 | H40: 54426 | I40: 27213 | J40: 83791.6 | K40: 41895.8 | L40: 84299.2 | M40: 42149.6
A41: 30（26） | B41: 500000 | C41: 485000 | D41: ～ | E41: 515000 | F41: 50000 | G41: 25000 | H41: 57900 | I41: 28950 | J41: 89140 | K41: 44570 | L41: 89680 | M41: 44840
A42: 31（27） | B42: 530000 | C42: 515000 | D42: ～ | E42: 545000 | F42: 53000 | G42: 26500 | H42: 61374 | I42: 30687 | J42: 94488.4 | K42: 47244.2 | L42: 95060.8 | M42: 47530.4
A43: 32（28） | B43: 560000 | C43: 545000 | D43: ～ | E43: 575000 | F43: 56000 | G43: 28000 | H43: 64848 | I43: 32424 | J43: 99836.8 | K43: 49918.4 | L43: 100441.6 | M43: 50220.8
A44: 33（29） | B44: 590000 | C44: 575000 | D44: ～ | E44: 605000 | F44: 59000 | G44: 29500 | H44: 68322 | I44: 34161 | J44: 105185.2 | K44: 52592.6 | L44: 105822.4 | M44: 52911.2
A45: 34（30） | B45: 620000 | C45: 605000 | D45: ～ | E45: 635000 | F45: 62000 | G45: 31000 | H45: 71796 | I45: 35898 | J45: 110533.6 | K45: 55266.8 | L45: 111203.2 | M45: 55601.6
A46: 35 | B46: 650000 | C46: 635000 | D46: ～ | E46: 665000 | F46: 65000 | G46: 32500 | H46: 75270 | I46: 37635
A47: 36 | B47: 680000 | C47: 665000 | D47: ～ | E47: 695000 | F47: 68000 | G47: 34000 | H47: 78744 | I47: 39372 | J47: ※厚生年金基金に加入している方の厚生年金保険
A48: 37 | B48: 710000 | C48: 695000 | D48: ～ | E48: 730000 | F48: 71000 | G48: 35500 | H48: 82218 | I48: 41109 | J48: 料率は、基金ごとに定められている免除保険料率
A49: 38 | B49: 750000 | C49: 730000 | D49: ～ | E49: 770000 | F49: 75000 | G49: 37500 | H49: 86850 | I49: 43425 | J49: （2.4％～5.0％）を控除した率となります。
A50: 39 | B50: 790000 | C50: 770000 | D50: ～ | E50: 810000 | F50: 79000 | G50: 39500 | H50: 91482 | I50: 45741
A51: 40 | B51: 830000 | C51: 810000 | D51: ～ | E51: 855000 | F51: 83000 | G51: 41500 | H51: 96114 | I51: 48057 | J51: ●一般の被保険者の方 …12.828％～15.428％
A52: 41 | B52: 880000 | C52: 855000 | D52: ～ | E52: 905000 | F52: 88000 | G52: 44000 | H52: 101904 | I52: 50952 | J52: ●坑内員の被保険者の方 …12.936％～15.536％
A53: 42 | B53: 930000 | C53: 905000 | D53: ～ | E53: 955000 | F53: 93000 | G53: 46500 | H53: 107694 | I53: 53847
A54: 43 | B54: 980000 | C54: 955000 | D54: ～ | E54: 1005000 | F54: 98000 | G54: 49000 | H54: 113484 | I54: 56742 | J54: 加入する基金ごとに異なりますので、免除保険料
A55: 44 | B55: 1030000 | C55: 1005000 | D55: ～ | E55: 1055000 | F55: 103000 | G55: 51500 | H55: 119274 | I55: 59637 | J55: 率および厚生年金基金の掛金については、加入
A56: 45 | B56: 1090000 | C56: 1055000 | D56: ～ | E56: 1115000 | F56: 109000 | G56: 54500 | H56: 126222 | I56: 63111 | J56: する厚生年金基金にお問い合わせください。
A57: 46 | B57: 1150000 | C57: 1115000 | D57: ～ | E57: 1175000 | F57: 115000 | G57: 57500 | H57: 133170 | I57: 66585
A58: 47 | B58: 1210000 | C58: 1175000 | D58: ～ | E58: 1235000 | F58: 121000 | G58: 60500 | H58: 140118 | I58: 70059
A59: 48 | B59: 1270000 | C59: 1235000 | D59: ～ | E59: 1295000 | F59: 127000 | G59: 63500 | H59: 147066 | I59: 73533 | J59: ◆48～50等級は、平成28年4月分から新設されます。
A60: 49 | B60: 1330000 | C60: 1295000 | D60: ～ | E60: 1355000 | F60: 133000 | G60: 66500 | H60: 154014 | I60: 77007 | J60: 3月分は47等級までとなり、48～50等級の方は
A61: 50 | B61: 1390000 | C61: 1355000 | D61: ～ | F61: 139000 | G61: 69500 | H61: 160962 | I61: 80481 | J61: 47等級の保険料となります。
A63: 0.1
A64: ◆等級欄の（ ）内の数字は、厚生年金保険の標準報酬月額等級です。
A65: 5（1）等級の「報酬月額」欄は、厚生年金保険の場合「101,000円未満」と読み替えてください。
A66: 34（30）等級の「報酬月額」欄は、厚生年金保険の場合「605,000円以上」と読み替えてください。
A67: ◆平成28年度における全国健康保険協会の任意継続被保険者について、標準報酬月額の上限は、280,000円です。
A70: ○被保険者負担分（表の折半額の欄）に円未満の端数がある場合
A71: ①事業主が、給与から被保険者負担分を控除する場合、被保険者負担分の端数が50銭以下の場合は切り捨て、50銭を超える場合は切り上げて1円となります。
A72: ②被保険者が、被保険者負担分を事業主へ現金で支払う場合、被保険者負担分の端数が50銭未満の場合は切り捨て、50銭以上の場合は切り上げて1円となります。
A73: （注）①、②にかかわらず、事業主と被保険者の間で特約がある場合には、特約に基づき端数処理をすることができます。
A75: ○納入告知書の保険料額
A76: 納入告知書の保険料額は、被保険者個々の保険料額を合算した金額になります。ただし、合算した金額に円未満の端数がある場合は、その端数を切り捨てた額となります。
A78: ○賞与にかかる保険料
A79: 賞与に係る保険料額は、賞与額から1,000円未満の端数を切り捨てた額（標準賞与額)に、保険料率を乗じた額となります。
A80: また、標準賞与額の上限は、健康保険は年間540万円（毎年4月1日から翌年3月31日までの累計額。平成28年4月1日からは年間573万円。）となり、厚生年金保険と子ども・
A81: 子育て拠出金の場合は月間150万円となります。

Sheet 07福島 (hidden)
A1: 平成28年3月分（4月納付分）からの健康保険・厚生年金保険の保険料額表
B3: ・健康保険料率：平成28年3月分～ 適用 ・厚生年金保険料率：平成27年9月分～平成28年8月分 適用
B4: ・介護保険料率：平成27年4月分～ 適用
A6: （福島県） | M6: （単位：円）
A7: 標 準 報 酬 | C7: 報 酬 月 額 | F7: 全国健康保険協会管掌健康保険料 | J7: 厚生年金保険料（厚生年金基金加入員を除く）
F8: 介護保険第２号被保険者 に該当しない場合 | H8: 介護保険第２号被保険者 に該当する場合 | J8: 一般の被保険者 | L8: 坑内員・船員
A9: 等級 | B9: 月 額 | F9: 0.099 | H9: 0.1148 | J9: 0.17828 | L9: 0.17936
F10: 全 額 | G10: 折半額 | H10: 全 額 | I10: 折半額 | J10: 全 額 | K10: 折半額 | L10: 全 額 | M10: 折半額
C11: 円以上 | E11: 円未満
A12: 1 | B12: 58000 | D12: ～ | E12: 63000 | F12: 5742 | G12: 2871 | H12: 6658.4 | I12: 3329.2
A13: 2 | B13: 68000 | C13: 63000 | D13: ～ | E13: 73000 | F13: 6732 | G13: 3366 | H13: 7806.4 | I13: 3903.2
A14: 3 | B14: 78000 | C14: 73000 | D14: ～ | E14: 83000 | F14: 7722 | G14: 3861 | H14: 8954.4 | I14: 4477.2
A15: 4 | B15: 88000 | C15: 83000 | D15: ～ | E15: 93000 | F15: 8712 | G15: 4356 | H15: 10102.4 | I15: 5051.2
A16: 5（1） | B16: 98000 | C16: 93000 | D16: ～ | E16: 101000 | F16: 9702 | G16: 4851 | H16: 11250.4 | I16: 5625.2 | J16: 17471.44 | K16: 8735.72 | L16: 17577.28 | M16: 8788.64
A17: 6（2） | B17: 104000 | C17: 101000 | D17: ～ | E17: 107000 | F17: 10296 | G17: 5148 | H17: 11939.2 | I17: 5969.6 | J17: 18541.12 | K17: 9270.56 | L17: 18653.44 | M17: 9326.72
A18: 7（3） | B18: 110000 | C18: 107000 | D18: ～ | E18: 114000 | F18: 10890 | G18: 5445 | H18: 12628 | I18: 6314 | J18: 19610.8 | K18: 9805.4 | L18: 19729.6 | M18: 9864.8
A19: 8（4） | B19: 118000 | C19: 114000 | D19: ～ | E19: 122000 | F19: 11682 | G19: 5841 | H19: 13546.4 | I19: 6773.2 | J19: 21037.04 | K19: 10518.52 | L19: 21164.48 | M19: 10582.24
A20: 9（5） | B20: 126000 | C20: 122000 | D20: ～ | E20: 130000 | F20: 12474 | G20: 6237 | H20: 14464.8 | I20: 7232.4 | J20: 22463.28 | K20: 11231.64 | L20: 22599.36 | M20: 11299.68
A21: 10（6） | B21: 134000 | C21: 130000 | D21: ～ | E21: 138000 | F21: 13266 | G21: 6633 | H21: 15383.2 | I21: 7691.6 | J21: 23889.52 | K21: 11944.76 | L21: 24034.24 | M21: 12017.12
A22: 11（7） | B22: 142000 | C22: 138000 | D22: ～ | E22: 146000 | F22: 14058 | G22: 7029 | H22: 16301.6 | I22: 8150.8 | J22: 25315.76 | K22: 12657.88 | L22: 25469.12 | M22: 12734.56
A23: 12（8） | B23: 150000 | C23: 146000 | D23: ～ | E23: 155000 | F23: 14850 | G23: 7425 | H23: 17220 | I23: 8610 | J23: 26742 | K23: 13371 | L23: 26904 | M23: 13452
A24: 13（9） | B24: 160000 | C24: 155000 | D24: ～ | E24: 165000 | F24: 15840 | G24: 7920 | H24: 18368 | I24: 9184 | J24: 28524.8 | K24: 14262.4 | L24: 28697.6 | M24: 14348.8
A25: 14（10） | B25: 170000 | C25: 165000 | D25: ～ | E25: 175000 | F25: 16830 | G25: 8415 | H25: 19516 | I25: 9758 | J25: 30307.6 | K25: 15153.8 | L25: 30491.2 | M25: 15245.6
A26: 15（11） | B26: 180000 | C26: 175000 | D26: ～ | E26: 185000 | F26: 17820 | G26: 8910 | H26: 20664 | I26: 10332 | J26: 32090.4 | K26: 16045.2 | L26: 32284.8 | M26: 16142.4
A27: 16（12） | B27: 190000 | C27: 185000 | D27: ～ | E27: 195000 | F27: 18810 | G27: 9405 | H27: 21812 | I27: 10906 | J27: 33873.2 | K27: 16936.6 | L27: 34078.4 | M27: 17039.2
A28: 17（13） | B28: 200000 | C28: 195000 | D28: ～ | E28: 210000 | F28: 19800 | G28: 9900 | H28: 22960 | I28: 11480 | J28: 35656 | K28: 17828 | L28: 35872 | M28: 17936
A29: 18（14） | B29: 220000 | C29: 210000 | D29: ～ | E29: 230000 | F29: 21780 | G29: 10890 | H29: 25256 | I29: 12628 | J29: 39221.6 | K29: 19610.8 | L29: 39459.2 | M29: 19729.6
A30: 19（15） | B30: 240000 | C30: 230000 | D30: ～ | E30: 250000 | F30: 23760 | G30: 11880 | H30: 27552 | I30: 13776 | J30: 42787.2 | K30: 21393.6 | L30: 43046.4 | M30: 21523.2
A31: 20（16） | B31: 260000 | C31: 250000 | D31: ～ | E31: 270000 | F31: 25740 | G31: 12870 | H31: 29848 | I31: 14924 | J31: 46352.8 | K31: 23176.4 | L31: 46633.6 | M31: 23316.8
A32: 21（17） | B32: 280000 | C32: 270000 | D32: ～ | E32: 290000 | F32: 27720 | G32: 13860 | H32: 32144 | I32: 16072 | J32: 49918.4 | K32: 24959.2 | L32: 50220.8 | M32: 25110.4
A33: 22（18） | B33: 300000 | C33: 290000 | D33: ～ | E33: 310000 | F33: 29700 | G33: 14850 | H33: 34440 | I33: 17220 | J33: 53484 | K33: 26742 | L33: 53808 | M33: 26904
A34: 23（19） | B34: 320000 | C34: 310000 | D34: ～ | E34: 330000 | F34: 31680 | G34: 15840 | H34: 36736 | I34: 18368 | J34: 57049.6 | K34: 28524.8 | L34: 57395.2 | M34: 28697.6
A35: 24（20） | B35: 340000 | C35: 330000 | D35: ～ | E35: 350000 | F35: 33660 | G35: 16830 | H35: 39032 | I35: 19516 | J35: 60615.2 | K35: 30307.6 | L35: 60982.4 | M35: 30491.2
A36: 25（21） | B36: 360000 | C36: 350000 | D36: ～ | E36: 370000 | F36: 35640 | G36: 17820 | H36: 41328 | I36: 20664 | J36: 64180.8 | K36: 32090.4 | L36: 64569.6 | M36: 32284.8
A37: 26（22） | B37: 380000 | C37: 370000 | D37: ～ | E37: 395000 | F37: 37620 | G37: 18810 | H37: 43624 | I37: 21812 | J37: 67746.4 | K37: 33873.2 | L37: 68156.8 | M37: 34078.4
A38: 27（23） | B38: 410000 | C38: 395000 | D38: ～ | E38: 425000 | F38: 40590 | G38: 20295 | H38: 47068 | I38: 23534 | J38: 73094.8 | K38: 36547.4 | L38: 73537.6 | M38: 36768.8
A39: 28（24） | B39: 440000 | C39: 425000 | D39: ～ | E39: 455000 | F39: 43560 | G39: 21780 | H39: 50512 | I39: 25256 | J39: 78443.2 | K39: 39221.6 | L39: 78918.4 | M39: 39459.2
A40: 29（25） | B40: 470000 | C40: 455000 | D40: ～ | E40: 485000 | F40: 46530 | G40: 23265 | H40: 53956 | I40: 26978 | J40: 83791.6 | K40: 41895.8 | L40: 84299.2 | M40: 42149.6
A41: 30（26） | B41: 500000 | C41: 485000 | D41: ～ | E41: 515000 | F41: 49500 | G41: 24750 | H41: 57400 | I41: 28700 | J41: 89140 | K41: 44570 | L41: 89680 | M41: 44840
A42: 31（27） | B42: 530000 | C42: 515000 | D42: ～ | E42: 545000 | F42: 52470 | G42: 26235 | H42: 60844 | I42: 30422 | J42: 94488.4 | K42: 47244.2 | L42: 95060.8 | M42: 47530.4
A43: 32（28） | B43: 560000 | C43: 545000 | D43: ～ | E43: 575000 | F43: 55440 | G43: 27720 | H43: 64288 | I43: 32144 | J43: 99836.8 | K43: 49918.4 | L43: 100441.6 | M43: 50220.8
A44: 33（29） | B44: 590000 | C44: 575000 | D44: ～ | E44: 605000 | F44: 58410 | G44: 29205 | H44: 67732 | I44: 33866 | J44: 105185.2 | K44: 52592.6 | L44: 105822.4 | M44: 52911.2
A45: 34（30） | B45: 620000 | C45: 605000 | D45: ～ | E45: 635000 | F45: 61380 | G45: 30690 | H45: 71176 | I45: 35588 | J45: 110533.6 | K45: 55266.8 | L45: 111203.2 | M45: 55601.6
A46: 35 | B46: 650000 | C46: 635000 | D46: ～ | E46: 665000 | F46: 64350 | G46: 32175 | H46: 74620 | I46: 37310
A47: 36 | B47: 680000 | C47: 665000 | D47: ～ | E47: 695000 | F47: 67320 | G47: 33660 | H47: 78064 | I47: 39032 | J47: ※厚生年金基金に加入している方の厚生年金保険
A48: 37 | B48: 710000 | C48: 695000 | D48: ～ | E48: 730000 | F48: 70290 | G48: 35145 | H48: 81508 | I48: 40754 | J48: 料率は、基金ごとに定められている免除保険料率
A49: 38 | B49: 750000 | C49: 730000 | D49: ～ | E49: 770000 | F49: 74250 | G49: 37125 | H49: 86100 | I49: 43050 | J49: （2.4％～5.0％）を控除した率となります。
A50: 39 | B50: 790000 | C50: 770000 | D50: ～ | E50: 810000 | F50: 78210 | G50: 39105 | H50: 90692 | I50: 45346
A51: 40 | B51: 830000 | C51: 810000 | D51: ～ | E51: 855000 | F51: 82170 | G51: 41085 | H51: 95284 | I51: 47642 | J51: ●一般の被保険者の方 …12.828％～15.428％
A52: 41 | B52: 880000 | C52: 855000 | D52: ～ | E52: 905000 | F52: 87120 | G52: 43560 | H52: 101024 | I52: 50512 | J52: ●坑内員の被保険者の方 …12.936％～15.536％
A53: 42 | B53: 930000 | C53: 905000 | D53: ～ | E53: 955000 | F53: 92070 | G53: 46035 | H53: 106764 | I53: 53382
A54: 43 | B54: 980000 | C54: 955000 | D54: ～ | E54: 1005000 | F54: 97020 | G54: 48510 | H54: 112504 | I54: 56252 | J54: 加入する基金ごとに異なりますので、免除保険料
A55: 44 | B55: 1030000 | C55: 1005000 | D55: ～ | E55: 1055000 | F55: 101970 | G55: 50985 | H55: 118244 | I55: 59122 | J55: 率および厚生年金基金の掛金については、加入
A56: 45 | B56: 1090000 | C56: 1055000 | D56: ～ | E56: 1115000 | F56: 107910 | G56: 53955 | H56: 125132 | I56: 62566 | J56: する厚生年金基金にお問い合わせください。
A57: 46 | B57: 1150000 | C57: 1115000 | D57: ～ | E57: 1175000 | F57: 113850 | G57: 56925 | H57: 132020 | I57: 66010
A58: 47 | B58: 1210000 | C58: 1175000 | D58: ～ | E58: 1235000 | F58: 119790 | G58: 59895 | H58: 138908 | I58: 69454
A59: 48 | B59: 1270000 | C59: 1235000 | D59: ～ | E59: 1295000 | F59: 125730 | G59: 62865 | H59: 145796 | I59: 72898 | J59: ◆48～50等級は、平成28年4月分から新設されます。
A60: 49 | B60: 1330000 | C60: 1295000 | D60: ～ | E60: 1355000 | F60: 131670 | G60: 65835 | H60: 152684 | I60: 76342 | J60: 3月分は47等級までとなり、48～50等級の方は
A61: 50 | B61: 1390000 | C61: 1355000 | D61: ～ | F61: 137610 | G61: 68805 | H61: 159572 | I61: 79786 | J61: 47等級の保険料となります。
A63: 0.099
A64: ◆等級欄の（ ）内の数字は、厚生年金保険の標準報酬月額等級です。
A65: 5（1）等級の「報酬月額」欄は、厚生年金保険の場合「101,000円未満」と読み替えてください。
A66: 34（30）等級の「報酬月額」欄は、厚生年金保険の場合「605,000円以上」と読み替えてください。
A67: ◆平成28年度における全国健康保険協会の任意継続被保険者について、標準報酬月額の上限は、280,000円です。
A70: ○被保険者負担分（表の折半額の欄）に円未満の端数がある場合
A71: ①事業主が、給与から被保険者負担分を控除する場合、被保険者負担分の端数が50銭以下の場合は切り捨て、50銭を超える場合は切り上げて1円となります。
A72: ②被保険者が、被保険者負担分を事業主へ現金で支払う場合、被保険者負担分の端数が50銭未満の場合は切り捨て、50銭以上の場合は切り上げて1円となります。
A73: （注）①、②にかかわらず、事業主と被保険者の間で特約がある場合には、特約に基づき端数処理をすることができます。
A75: ○納入告知書の保険料額
A76: 納入告知書の保険料額は、被保険者個々の保険料額を合算した金額になります。ただし、合算した金額に円未満の端数がある場合は、その端数を切り捨てた額となります。
A78: ○賞与にかかる保険料
A79: 賞与に係る保険料額は、賞与額から1,000円未満の端数を切り捨てた額（標準賞与額)に、保険料率を乗じた額となります。
A80: また、標準賞与額の上限は、健康保険は年間540万円（毎年4月1日から翌年3月31日までの累計額。平成28年4月1日からは年間573万円。）となり、厚生年金保険と子ども・
A81: 子育て拠出金の場合は月間150万円となります。

Sheet 08茨城 (hidden)
A1: 平成28年3月分（4月納付分）からの健康保険・厚生年金保険の保険料額表
B3: ・健康保険料率：平成27年4月分～ 適用 ・厚生年金保険料率：平成27年9月分～平成28年8月分 適用
B4: ・介護保険料率：平成27年4月分～ 適用
A6: （茨城県） | M6: （単位：円）
A7: 標 準 報 酬 | C7: 報 酬 月 額 | F7: 全国健康保険協会管掌健康保険料 | J7: 厚生年金保険料（厚生年金基金加入員を除く）
F8: 介護保険第２号被保険者 に該当しない場合 | H8: 介護保険第２号被保険者 に該当する場合 | J8: 一般の被保険者 | L8: 坑内員・船員
A9: 等級 | B9: 月 額 | F9: 0.0992 | H9: 0.115 | J9: 0.17828 | L9: 0.17936
F10: 全 額 | G10: 折半額 | H10: 全 額 | I10: 折半額 | J10: 全 額 | K10: 折半額 | L10: 全 額 | M10: 折半額
C11: 円以上 | E11: 円未満
A12: 1 | B12: 58000 | D12: ～ | E12: 63000 | F12: 5753.6 | G12: 2876.8 | H12: 6670 | I12: 3335
A13: 2 | B13: 68000 | C13: 63000 | D13: ～ | E13: 73000 | F13: 6745.6 | G13: 3372.8 | H13: 7820 | I13: 3910
A14: 3 | B14: 78000 | C14: 73000 | D14: ～ | E14: 83000 | F14: 7737.6 | G14: 3868.8 | H14: 8970 | I14: 4485
A15: 4 | B15: 88000 | C15: 83000 | D15: ～ | E15: 93000 | F15: 8729.6 | G15: 4364.8 | H15: 10120 | I15: 5060
A16: 5（1） | B16: 98000 | C16: 93000 | D16: ～ | E16: 101000 | F16: 9721.6 | G16: 4860.8 | H16: 11270 | I16: 5635 | J16: 17471.44 | K16: 8735.72 | L16: 17577.28 | M16: 8788.64
A17: 6（2） | B17: 104000 | C17: 101000 | D17: ～ | E17: 107000 | F17: 10316.8 | G17: 5158.4 | H17: 11960 | I17: 5980 | J17: 18541.12 | K17: 9270.56 | L17: 18653.44 | M17: 9326.72
A18: 7（3） | B18: 110000 | C18: 107000 | D18: ～ | E18: 114000 | F18: 10912 | G18: 5456 | H18: 12650 | I18: 6325 | J18: 19610.8 | K18: 9805.4 | L18: 19729.6 | M18: 9864.8
A19: 8（4） | B19: 118000 | C19: 114000 | D19: ～ | E19: 122000 | F19: 11705.6 | G19: 5852.8 | H19: 13570 | I19: 6785 | J19: 21037.04 | K19: 10518.52 | L19: 21164.48 | M19: 10582.24
A20: 9（5） | B20: 126000 | C20: 122000 | D20: ～ | E20: 130000 | F20: 12499.2 | G20: 6249.6 | H20: 14490 | I20: 7245 | J20: 22463.28 | K20: 11231.64 | L20: 22599.36 | M20: 11299.68
A21: 10（6） | B21: 134000 | C21: 130000 | D21: ～ | E21: 138000 | F21: 13292.8 | G21: 6646.4 | H21: 15410 | I21: 7705 | J21: 23889.52 | K21: 11944.76 | L21: 24034.24 | M21: 12017.12
A22: 11（7） | B22: 142000 | C22: 138000 | D22: ～ | E22: 146000 | F22: 14086.4 | G22: 7043.2 | H22: 16330 | I22: 8165 | J22: 25315.76 | K22: 12657.88 | L22: 25469.12 | M22: 12734.56
A23: 12（8） | B23: 150000 | C23: 146000 | D23: ～ | E23: 155000 | F23: 14880 | G23: 7440 | H23: 17250 | I23: 8625 | J23: 26742 | K23: 13371 | L23: 26904 | M23: 13452
A24: 13（9） | B24: 160000 | C24: 155000 | D24: ～ | E24: 165000 | F24: 15872 | G24: 7936 | H24: 18400 | I24: 9200 | J24: 28524.8 | K24: 14262.4 | L24: 28697.6 | M24: 14348.8
A25: 14（10） | B25: 170000 | C25: 165000 | D25: ～ | E25: 175000 | F25: 16864 | G25: 8432 | H25: 19550 | I25: 9775 | J25: 30307.6 | K25: 15153.8 | L25: 30491.2 | M25: 15245.6
A26: 15（11） | B26: 180000 | C26: 175000 | D26: ～ | E26: 185000 | F26: 17856 | G26: 8928 | H26: 20700 | I26: 10350 | J26: 32090.4 | K26: 16045.2 | L26: 32284.8 | M26: 16142.4
A27: 16（12） | B27: 190000 | C27: 185000 | D27: ～ | E27: 195000 | F27: 18848 | G27: 9424 | H27: 21850 | I27: 10925 | J27: 33873.2 | K27: 16936.6 | L27: 34078.4 | M27: 17039.2
A28: 17（13） | B28: 200000 | C28: 195000 | D28: ～ | E28: 210000 | F28: 19840 | G28: 9920 | H28: 23000 | I28: 11500 | J28: 35656 | K28: 17828 | L28: 35872 | M28: 17936
A29: 18（14） | B29: 220000 | C29: 210000 | D29: ～ | E29: 230000 | F29: 21824 | G29: 10912 | H29: 25300 | I29: 12650 | J29: 39221.6 | K29: 19610.8 | L29: 39459.2 | M29: 19729.6
A30: 19（15） | B30: 240000 | C30: 230000 | D30: ～ | E30: 250000 | F30: 23808 | G30: 11904 | H30: 27600 | I30: 13800 | J30: 42787.2 | K30: 21393.6 | L30: 43046.4 | M30: 21523.2
A31: 20（16） | B31: 260000 | C31: 250000 | D31: ～ | E31: 270000 | F31: 25792 | G31: 12896 | H31: 29900 | I31: 14950 | J31: 46352.8 | K31: 23176.4 | L31: 46633.6 | M31: 23316.8
A32: 21（17） | B32: 280000 | C32: 270000 | D32: ～ | E32: 290000 | F32: 27776 | G32: 13888 | H32: 32200 | I32: 16100 | J32: 49918.4 | K32: 24959.2 | L32: 50220.8 | M32: 25110.4
A33: 22（18） | B33: 300000 | C33: 290000 | D33: ～ | E33: 310000 | F33: 29760 | G33: 14880 | H33: 34500 | I33: 17250 | J33: 53484 | K33: 26742 | L33: 53808 | M33: 26904
A34: 23（19） | B34: 320000 | C34: 310000 | D34: ～ | E34: 330000 | F34: 31744 | G34: 15872 | H34: 36800 | I34: 18400 | J34: 57049.6 | K34: 28524.8 | L34: 57395.2 | M34: 28697.6
A35: 24（20） | B35: 340000 | C35: 330000 | D35: ～ | E35: 350000 | F35: 33728 | G35: 16864 | H35: 39100 | I35: 19550 | J35: 60615.2 | K35: 30307.6 | L35: 60982.4 | M35: 30491.2
A36: 25（21） | B36: 360000 | C36: 350000 | D36: ～ | E36: 370000 | F36: 35712 | G36: 17856 | H36: 41400 | I36: 20700 | J36: 64180.8 | K36: 32090.4 | L36: 64569.6 | M36: 32284.8
A37: 26（22） | B37: 380000 | C37: 370000 | D37: ～ | E37: 395000 | F37: 37696 | G37: 18848 | H37: 43700 | I37: 21850 | J37: 67746.4 | K37: 33873.2 | L37: 68156.8 | M37: 34078.4
A38: 27（23） | B38: 410000 | C38: 395000 | D38: ～ | E38: 425000 | F38: 40672 | G38: 20336 | H38: 47150 | I38: 23575 | J38: 73094.8 | K38: 36547.4 | L38: 73537.6 | M38: 36768.8
A39: 28（24） | B39: 440000 | C39: 425000 | D39: ～ | E39: 455000 | F39: 43648 | G39: 21824 | H39: 50600 | I39: 25300 | J39: 78443.2 | K39: 39221.6 | L39: 78918.4 | M39: 39459.2
A40: 29（25） | B40: 470000 | C40: 455000 | D40: ～ | E40: 485000 | F40: 46624 | G40: 23312 | H40: 54050 | I40: 27025 | J40: 83791.6 | K40: 41895.8 | L40: 84299.2 | M40: 42149.6
A41: 30（26） | B41: 500000 | C41: 485000 | D41: ～ | E41: 515000 | F41: 49600 | G41: 24800 | H41: 57500 | I41: 28750 | J41: 89140 | K41: 44570 | L41: 89680 | M41: 44840
A42: 31（27） | B42: 530000 | C42: 515000 | D42: ～ | E42: 545000 | F42: 52576 | G42: 26288 | H42: 60950 | I42: 30475 | J42: 94488.4 | K42: 47244.2 | L42: 95060.8 | M42: 47530.4
A43: 32（28） | B43: 560000 | C43: 545000 | D43: ～ | E43: 575000 | F43: 55552 | G43: 27776 | H43: 64400 | I43: 32200 | J43: 99836.8 | K43: 49918.4 | L43: 100441.6 | M43: 50220.8
A44: 33（29） | B44: 590000 | C44: 575000 | D44: ～ | E44: 605000 | F44: 58528 | G44: 29264 | H44: 67850 | I44: 33925 | J44: 105185.2 | K44: 52592.6 | L44: 105822.4 | M44: 52911.2
A45: 34（30） | B45: 620000 | C45: 605000 | D45: ～ | E45: 635000 | F45: 61504 | G45: 30752 | H45: 71300 | I45: 35650 | J45: 110533.6 | K45: 55266.8 | L45: 111203.2 | M45: 55601.6
A46: 35 | B46: 650000 | C46: 635000 | D46: ～ | E46: 665000 | F46: 64480 | G46: 32240 | H46: 74750 | I46: 37375
A47: 36 | B47: 680000 | C47: 665000 | D47: ～ | E47: 695000 | F47: 67456 | G47: 33728 | H47: 78200 | I47: 39100 | J47: ※厚生年金基金に加入している方の厚生年金保険
A48: 37 | B48: 710000 | C48: 695000 | D48: ～ | E48: 730000 | F48: 70432 | G48: 35216 | H48: 81650 | I48: 40825 | J48: 料率は、基金ごとに定められている免除保険料率
A49: 38 | B49: 750000 | C49: 730000 | D49: ～ | E49: 770000 | F49: 74400 | G49: 37200 | H49: 86250 | I49: 43125 | J49: （2.4％～5.0％）を控除した率となります。
A50: 39 | B50: 790000 | C50: 770000 | D50: ～ | E50: 810000 | F50: 78368 | G50: 39184 | H50: 90850 | I50: 45425
A51: 40 | B51: 830000 | C51: 810000 | D51: ～ | E51: 855000 | F51: 82336 | G51: 41168 | H51: 95450 | I51: 47725 | J51: ●一般の被保険者の方 …12.828％～15.428％
A52: 41 | B52: 880000 | C52: 855000 | D52: ～ | E52: 905000 | F52: 87296 | G52: 43648 | H52: 101200 | I52: 50600 | J52: ●坑内員の被保険者の方 …12.936％～15.536％
A53: 42 | B53: 930000 | C53: 905000 | D53: ～ | E53: 955000 | F53: 92256 | G53: 46128 | H53: 106950 | I53: 53475
A54: 43 | B54: 980000 | C54: 955000 | D54: ～ | E54: 1005000 | F54: 97216 | G54: 48608 | H54: 112700 | I54: 56350 | J54: 加入する基金ごとに異なりますので、免除保険料
A55: 44 | B55: 1030000 | C55: 1005000 | D55: ～ | E55: 1055000 | F55: 102176 | G55: 51088 | H55: 118450 | I55: 59225 | J55: 率および厚生年金基金の掛金については、加入
A56: 45 | B56: 1090000 | C56: 1055000 | D56: ～ | E56: 1115000 | F56: 108128 | G56: 54064 | H56: 125350 | I56: 62675 | J56: する厚生年金基金にお問い合わせください。
A57: 46 | B57: 1150000 | C57: 1115000 | D57: ～ | E57: 1175000 | F57: 114080 | G57: 57040 | H57: 132250 | I57: 66125
A58: 47 | B58: 1210000 | C58: 1175000 | D58: ～ | E58: 1235000 | F58: 120032 | G58: 60016 | H58: 139150 | I58: 69575
A59: 48 | B59: 1270000 | C59: 1235000 | D59: ～ | E59: 1295000 | F59: 125984 | G59: 62992 | H59: 146050 | I59: 73025 | J59: ◆48～50等級は、平成28年4月分から新設されます。
A60: 49 | B60: 1330000 | C60: 1295000 | D60: ～ | E60: 1355000 | F60: 131936 | G60: 65968 | H60: 152950 | I60: 76475 | J60: 3月分は47等級までとなり、48～50等級の方は
A61: 50 | B61: 1390000 | C61: 1355000 | D61: ～ | F61: 137888 | G61: 68944 | H61: 159850 | I61: 79925 | J61: 47等級の保険料となります。
A63: 0.0992
A64: ◆等級欄の（ ）内の数字は、厚生年金保険の標準報酬月額等級です。
A65: 5（1）等級の「報酬月額」欄は、厚生年金保険の場合「101,000円未満」と読み替えてください。
A66: 34（30）等級の「報酬月額」欄は、厚生年金保険の場合「605,000円以上」と読み替えてください。
A67: ◆平成28年度における全国健康保険協会の任意継続被保険者について、標準報酬月額の上限は、280,000円です。
A70: ○被保険者負担分（表の折半額の欄）に円未満の端数がある場合
A71: ①事業主が、給与から被保険者負担分を控除する場合、被保険者負担分の端数が50銭以下の場合は切り捨て、50銭を超える場合は切り上げて1円となります。
A72: ②被保険者が、被保険者負担分を事業主へ現金で支払う場合、被保険者負担分の端数が50銭未満の場合は切り捨て、50銭以上の場合は切り上げて1円となります。
A73: （注）①、②にかかわらず、事業主と被保険者の間で特約がある場合には、特約に基づき端数処理をすることができます。
A75: ○納入告知書の保険料額
A76: 納入告知書の保険料額は、被保険者個々の保険料額を合算した金額になります。ただし、合算した金額に円未満の端数がある場合は、その端数を切り捨てた額となります。
A78: ○賞与にかかる保険料
A79: 賞与に係る保険料額は、賞与額から1,000円未満の端数を切り捨てた額（標準賞与額)に、保険料率を乗じた額となります。
A80: また、標準賞与額の上限は、健康保険は年間540万円（毎年4月1日から翌年3月31日までの累計額。平成28年4月1日からは年間573万円。）となり、厚生年金保険と子ども・
A81: 子育て拠出金の場合は月間150万円となります。

Sheet 09栃木 (hidden)
A1: 平成28年3月分（4月納付分）からの健康保険・厚生年金保険の保険料額表
B3: ・健康保険料率：平成28年3月分～ 適用 ・厚生年金保険料率：平成27年9月分～平成28年8月分 適用
B4: ・介護保険料率：平成27年4月分～ 適用
A6: （栃木県） | M6: （単位：円）
A7: 標 準 報 酬 | C7: 報 酬 月 額 | F7: 全国健康保険協会管掌健康保険料 | J7: 厚生年金保険料（厚生年金基金加入員を除く）
F8: 介護保険第２号被保険者 に該当しない場合 | H8: 介護保険第２号被保険者 に該当する場合 | J8: 一般の被保険者 | L8: 坑内員・船員
A9: 等級 | B9: 月 額 | F9: 0.0994 | H9: 0.1152 | J9: 0.17828 | L9: 0.17936
F10: 全 額 | G10: 折半額 | H10: 全 額 | I10: 折半額 | J10: 全 額 | K10: 折半額 | L10: 全 額 | M10: 折半額
C11: 円以上 | E11: 円未満
A12: 1 | B12: 58000 | D12: ～ | E12: 63000 | F12: 5765.2 | G12: 2882.6 | H12: 6681.6 | I12: 3340.8
A13: 2 | B13: 68000 | C13: 63000 | D13: ～ | E13: 73000 | F13: 6759.2 | G13: 3379.6 | H13: 7833.6 | I13: 3916.8
A14: 3 | B14: 78000 | C14: 73000 | D14: ～ | E14: 83000 | F14: 7753.2 | G14: 3876.6 | H14: 8985.6 | I14: 4492.8
A15: 4 | B15: 88000 | C15: 83000 | D15: ～ | E15: 93000 | F15: 8747.2 | G15: 4373.6 | H15: 10137.6 | I15: 5068.8
A16: 5（1） | B16: 98000 | C16: 93000 | D16: ～ | E16: 101000 | F16: 9741.2 | G16: 4870.6 | H16: 11289.6 | I16: 5644.8 | J16: 17471.44 | K16: 8735.72 | L16: 17577.28 | M16: 8788.64
A17: 6（2） | B17: 104000 | C17: 101000 | D17: ～ | E17: 107000 | F17: 10337.6 | G17: 5168.8 | H17: 11980.8 | I17: 5990.4 | J17: 18541.12 | K17: 9270.56 | L17: 18653.44 | M17: 9326.72
A18: 7（3） | B18: 110000 | C18: 107000 | D18: ～ | E18: 114000 | F18: 10934 | G18: 5467 | H18: 12672 | I18: 6336 | J18: 19610.8 | K18: 9805.4 | L18: 19729.6 | M18: 9864.8
A19: 8（4） | B19: 118000 | C19: 114000 | D19: ～ | E19: 122000 | F19: 11729.2 | G19: 5864.6 | H19: 13593.6 | I19: 6796.8 | J19: 21037.04 | K19: 10518.52 | L19: 21164.48 | M19: 10582.24
A20: 9（5） | B20: 126000 | C20: 122000 | D20: ～ | E20: 130000 | F20: 12524.4 | G20: 6262.2 | H20: 14515.2 | I20: 7257.6 | J20: 22463.28 | K20: 11231.64 | L20: 22599.36 | M20: 11299.68
A21: 10（6） | B21: 134000 | C21: 130000 | D21: ～ | E21: 138000 | F21: 13319.6 | G21: 6659.8 | H21: 15436.8 | I21: 7718.4 | J21: 23889.52 | K21: 11944.76 | L21: 24034.24 | M21: 12017.12
A22: 11（7） | B22: 142000 | C22: 138000 | D22: ～ | E22: 146000 | F22: 14114.8 | G22: 7057.4 | H22: 16358.4 | I22: 8179.2 | J22: 25315.76 | K22: 12657.88 | L22: 25469.12 | M22: 12734.56
A23: 12（8） | B23: 150000 | C23: 146000 | D23: ～ | E23: 155000 | F23: 14910 | G23: 7455 | H23: 17280 | I23: 8640 | J23: 26742 | K23: 13371 | L23: 26904 | M23: 13452
A24: 13（9） | B24: 160000 | C24: 155000 | D24: ～ | E24: 165000 | F24: 15904 | G24: 7952 | H24: 18432 | I24: 9216 | J24: 28524.8 | K24: 14262.4 | L24: 28697.6 | M24: 14348.8
A25: 14（10） | B25: 170000 | C25: 165000 | D25: ～ | E25: 175000 | F25: 16898 | G25: 8449 | H25: 19584 | I25: 9792 | J25: 30307.6 | K25: 15153.8 | L25: 30491.2 | M25: 15245.6
A26: 15（11） | B26: 180000 | C26: 175000 | D26: ～ | E26: 185000 | F26: 17892 | G26: 8946 | H26: 20736 | I26: 10368 | J26: 32090.4 | K26: 16045.2 | L26: 32284.8 | M26: 16142.4
A27: 16（12） | B27: 190000 | C27: 185000 | D27: ～ | E27: 195000 | F27: 18886 | G27: 9443 | H27: 21888 | I27: 10944 | J27: 33873.2 | K27: 16936.6 | L27: 34078.4 | M27: 17039.2
A28: 17（13） | B28: 200000 | C28: 195000 | D28: ～ | E28: 210000 | F28: 19880 | G28: 9940 | H28: 23040 | I28: 11520 | J28: 35656 | K28: 17828 | L28: 35872 | M28: 17936
A29: 18（14） | B29: 220000 | C29: 210000 | D29: ～ | E29: 230000 | F29: 21868 | G29: 10934 | H29: 25344 | I29: 12672 | J29: 39221.6 | K29: 19610.8 | L29: 39459.2 | M29: 19729.6
A30: 19（15） | B30: 240000 | C30: 230000 | D30: ～ | E30: 250000 | F30: 23856 | G30: 11928 | H30: 27648 | I30: 13824 | J30: 42787.2 | K30: 21393.6 | L30: 43046.4 | M30: 21523.2
A31: 20（16） | B31: 260000 | C31: 250000 | D31: ～ | E31: 270000 | F31: 25844 | G31: 12922 | H31: 29952 | I31: 14976 | J31: 46352.8 | K31: 23176.4 | L31: 46633.6 | M31: 23316.8
A32: 21（17） | B32: 280000 | C32: 270000 | D32: ～ | E32: 290000 | F32: 27832 | G32: 13916 | H32: 32256 | I32: 16128 | J32: 49918.4 | K32: 24959.2 | L32: 50220.8 | M32: 25110.4
A33: 22（18） | B33: 300000 | C33: 290000 | D33: ～ | E33: 310000 | F33: 29820 | G33: 14910 | H33: 34560 | I33: 17280 | J33: 53484 | K33: 26742 | L33: 53808 | M33: 26904
A34: 23（19） | B34: 320000 | C34: 310000 | D34: ～ | E34: 330000 | F34: 31808 | G34: 15904 | H34: 36864 | I34: 18432 | J34: 57049.6 | K34: 28524.8 | L34: 57395.2 | M34: 28697.6
A35: 24（20） | B35: 340000 | C35: 330000 | D35: ～ | E35: 350000 | F35: 33796 | G35: 16898 | H35: 39168 | I35: 19584 | J35: 60615.2 | K35: 30307.6 | L35: 60982.4 | M35: 30491.2
A36: 25（21） | B36: 360000 | C36: 350000 | D36: ～ | E36: 370000 | F36: 35784 | G36: 17892 | H36: 41472 | I36: 20736 | J36: 64180.8 | K36: 32090.4 | L36: 64569.6 | M36: 32284.8
A37: 26（22） | B37: 380000 | C37: 370000 | D37: ～ | E37: 395000 | F37: 37772 | G37: 18886 | H37: 43776 | I37: 21888 | J37: 67746.4 | K37: 33873.2 | L37: 68156.8 | M37: 34078.4
A38: 27（23） | B38: 410000 | C38: 395000 | D38: ～ | E38: 425000 | F38: 40754 | G38: 20377 | H38: 47232 | I38: 23616 | J38: 73094.8 | K38: 36547.4 | L38: 73537.6 | M38: 36768.8
A39: 28（24） | B39: 440000 | C39: 425000 | D39: ～ | E39: 455000 | F39: 43736 | G39: 21868 | H39: 50688 | I39: 25344 | J39: 78443.2 | K39: 39221.6 | L39: 78918.4 | M39: 39459.2
A40: 29（25） | B40: 470000 | C40: 455000 | D40: ～ | E40: 485000 | F40: 46718 | G40: 23359 | H40: 54144 | I40: 27072 | J40: 83791.6 | K40: 41895.8 | L40: 84299.2 | M40: 42149.6
A41: 30（26） | B41: 500000 | C41: 485000 | D41: ～ | E41: 515000 | F41: 49700 | G41: 24850 | H41: 57600 | I41: 28800 | J41: 89140 | K41: 44570 | L41: 89680 | M41: 44840
A42: 31（27） | B42: 530000 | C42: 515000 | D42: ～ | E42: 545000 | F42: 52682 | G42: 26341 | H42: 61056 | I42: 30528 | J42: 94488.4 | K42: 47244.2 | L42: 95060.8 | M42: 47530.4
A43: 32（28） | B43: 560000 | C43: 545000 | D43: ～ | E43: 575000 | F43: 55664 | G43: 27832 | H43: 64512 | I43: 32256 | J43: 99836.8 | K43: 49918.4 | L43: 100441.6 | M43: 50220.8
A44: 33（29） | B44: 590000 | C44: 575000 | D44: ～ | E44: 605000 | F44: 58646 | G44: 29323 | H44: 67968 | I44: 33984 | J44: 105185.2 | K44: 52592.6 | L44: 105822.4 | M44: 52911.2
A45: 34（30） | B45: 620000 | C45: 605000 | D45: ～ | E45: 635000 | F45: 61628 | G45: 30814 | H45: 71424 | I45: 35712 | J45: 110533.6 | K45: 55266.8 | L45: 111203.2 | M45: 55601.6
A46: 35 | B46: 650000 | C46: 635000 | D46: ～ | E46: 665000 | F46: 64610 | G46: 32305 | H46: 74880 | I46: 37440
A47: 36 | B47: 680000 | C47: 665000 | D47: ～ | E47: 695000 | F47: 67592 | G47: 33796 | H47: 78336 | I47: 39168 | J47: ※厚生年金基金に加入している方の厚生年金保険
A48: 37 | B48: 710000 | C48: 695000 | D48: ～ | E48: 730000 | F48: 70574 | G48: 35287 | H48: 81792 | I48: 40896 | J48: 料率は、基金ごとに定められている免除保険料率
A49: 38 | B49: 750000 | C49: 730000 | D49: ～ | E49: 770000 | F49: 74550 | G49: 37275 | H49: 86400 | I49: 43200 | J49: （2.4％～5.0％）を控除した率となります。
A50: 39 | B50: 790000 | C50: 770000 | D50: ～ | E50: 810000 | F50: 78526 | G50: 39263 | H50: 91008 | I50: 45504
A51: 40 | B51: 830000 | C51: 810000 | D51: ～ | E51: 855000 | F51: 82502 | G51: 41251 | H51: 95616 | I51: 47808 | J51: ●一般の被保険者の方 …12.828％～15.428％
A52: 41 | B52: 880000 | C52: 855000 | D52: ～ | E52: 905000 | F52: 87472 | G52: 43736 | H52: 101376 | I52: 50688 | J52: ●坑内員の被保険者の方 …12.936％～15.536％
A53: 42 | B53: 930000 | C53: 905000 | D53: ～ | E53: 955000 | F53: 92442 | G53: 46221 | H53: 107136 | I53: 53568
A54: 43 | B54: 980000 | C54: 955000 | D54: ～ | E54: 1005000 | F54: 97412 | G54: 48706 | H54: 112896 | I54: 56448 | J54: 加入する基金ごとに異なりますので、免除保険料
A55: 44 | B55: 1030000 | C55: 1005000 | D55: ～ | E55: 1055000 | F55: 102382 | G55: 51191 | H55: 118656 | I55: 59328 | J55: 率および厚生年金基金の掛金については、加入
A56: 45 | B56: 1090000 | C56: 1055000 | D56: ～ | E56: 1115000 | F56: 108346 | G56: 54173 | H56: 125568 | I56: 62784 | J56: する厚生年金基金にお問い合わせください。
A57: 46 | B57: 1150000 | C57: 1115000 | D57: ～ | E57: 1175000 | F57: 114310 | G57: 57155 | H57: 132480 | I57: 66240
A58: 47 | B58: 1210000 | C58: 1175000 | D58: ～ | E58: 1235000 | F58: 120274 | G58: 60137 | H58: 139392 | I58: 69696
A59: 48 | B59: 1270000 | C59: 1235000 | D59: ～ | E59: 1295000 | F59: 126238 | G59: 63119 | H59: 146304 | I59: 73152 | J59: ◆48～50等級は、平成28年4月分から新設されます。
A60: 49 | B60: 1330000 | C60: 1295000 | D60: ～ | E60: 1355000 | F60: 132202 | G60: 66101 | H60: 153216 | I60: 76608 | J60: 3月分は47等級までとなり、48～50等級の方は
A61: 50 | B61: 1390000 | C61: 1355000 | D61: ～ | F61: 138166 | G61: 69083 | H61: 160128 | I61: 80064 | J61: 47等級の保険料となります。
A63: 0.0994
A64: ◆等級欄の（ ）内の数字は、厚生年金保険の標準報酬月額等級です。
A65: 5（1）等級の「報酬月額」欄は、厚生年金保険の場合「101,000円未満」と読み替えてください。
A66: 34（30）等級の「報酬月額」欄は、厚生年金保険の場合「605,000円以上」と読み替えてください。
A67: ◆平成28年度における全国健康保険協会の任意継続被保険者について、標準報酬月額の上限は、280,000円です。
A70: ○被保険者負担分（表の折半額の欄）に円未満の端数がある場合
A71: ①事業主が、給与から被保険者負担分を控除する場合、被保険者負担分の端数が50銭以下の場合は切り捨て、50銭を超える場合は切り上げて1円となります。
A72: ②被保険者が、被保険者負担分を事業主へ現金で支払う場合、被保険者負担分の端数が50銭未満の場合は切り捨て、50銭以上の場合は切り上げて1円となります。
A73: （注）①、②にかかわらず、事業主と被保険者の間で特約がある場合には、特約に基づき端数処理をすることができます。
A75: ○納入告知書の保険料額
A76: 納入告知書の保険料額は、被保険者個々の保険料額を合算した金額になります。ただし、合算した金額に円未満の端数がある場合は、その端数を切り捨てた額となります。
A78: ○賞与にかかる保険料
A79: 賞与に係る保険料額は、賞与額から1,000円未満の端数を切り捨てた額（標準賞与額)に、保険料率を乗じた額となります。
A80: また、標準賞与額の上限は、健康保険は年間540万円（毎年4月1日から翌年3月31日までの累計額。平成28年4月1日からは年間573万円。）となり、厚生年金保険と子ども・
A81: 子育て拠出金の場合は月間150万円となります。

Sheet 10群馬 (hidden)
A1: 平成28年3月分（4月納付分）からの健康保険・厚生年金保険の保険料額表
B3: ・健康保険料率：平成28年3月分～ 適用 ・厚生年金保険料率：平成27年9月分～平成28年8月分 適用
B4: ・介護保険料率：平成27年4月分～ 適用
A6: （群馬県） | M6: （単位：円）
A7: 標 準 報 酬 | C7: 報 酬 月 額 | F7: 全国健康保険協会管掌健康保険料 | J7: 厚生年金保険料（厚生年金基金加入員を除く）
F8: 介護保険第２号被保険者 に該当しない場合 | H8: 介護保険第２号被保険者 に該当する場合 | J8: 一般の被保険者 | L8: 坑内員・船員
A9: 等級 | B9: 月 額 | F9: 0.0994 | H9: 0.1152 | J9: 0.17828 | L9: 0.17936
F10: 全 額 | G10: 折半額 | H10: 全 額 | I10: 折半額 | J10: 全 額 | K10: 折半額 | L10: 全 額 | M10: 折半額
C11: 円以上 | E11: 円未満
A12: 1 | B12: 58000 | D12: ～ | E12: 63000 | F12: 5765.2 | G12: 2882.6 | H12: 6681.6 | I12: 3340.8
A13: 2 | B13: 68000 | C13: 63000 | D13: ～ | E13: 73000 | F13: 6759.2 | G13: 3379.6 | H13: 7833.6 | I13: 3916.8
A14: 3 | B14: 78000 | C14: 73000 | D14: ～ | E14: 83000 | F14: 7753.2 | G14: 3876.6 | H14: 8985.6 | I14: 4492.8
A15: 4 | B15: 88000 | C15: 83000 | D15: ～ | E15: 93000 | F15: 8747.2 | G15: 4373.6 | H15: 10137.6 | I15: 5068.8
A16: 5（1） | B16: 98000 | C16: 93000 | D16: ～ | E16: 101000 | F16: 9741.2 | G16: 4870.6 | H16: 11289.6 | I16: 5644.8 | J16: 17471.44 | K16: 8735.72 | L16: 17577.28 | M16: 8788.64
A17: 6（2） | B17: 104000 | C17: 101000 | D17: ～ | E17: 107000 | F17: 10337.6 | G17: 5168.8 | H17: 11980.8 | I17: 5990.4 | J17: 18541.12 | K17: 9270.56 | L17: 18653.44 | M17: 9326.72
A18: 7（3） | B18: 110000 | C18: 107000 | D18: ～ | E18: 114000 | F18: 10934 | G18: 5467 | H18: 12672 | I18: 6336 | J18: 19610.8 | K18: 9805.4 | L18: 19729.6 | M18: 9864.8
A19: 8（4） | B19: 118000 | C19: 114000 | D19: ～ | E19: 122000 | F19: 11729.2 | G19: 5864.6 | H19: 13593.6 | I19: 6796.8 | J19: 21037.04 | K19: 10518.52 | L19: 21164.48 | M19: 10582.24
A20: 9（5） | B20: 126000 | C20: 122000 | D20: ～ | E20: 130000 | F20: 12524.4 | G20: 6262.2 | H20: 14515.2 | I20: 7257.6 | J20: 22463.28 | K20: 11231.64 | L20: 22599.36 | M20: 11299.68
A21: 10（6） | B21: 134000 | C21: 130000 | D21: ～ | E21: 138000 | F21: 13319.6 | G21: 6659.8 | H21: 15436.8 | I21: 7718.4 | J21: 23889.52 | K21: 11944.76 | L21: 24034.24 | M21: 12017.12
A22: 11（7） | B22: 142000 | C22: 138000 | D22: ～ | E22: 146000 | F22: 14114.8 | G22: 7057.4 | H22: 16358.4 | I22: 8179.2 | J22: 25315.76 | K22: 12657.88 | L22: 25469.12 | M22: 12734.56
A23: 12（8） | B23: 150000 | C23: 146000 | D23: ～ | E23: 155000 | F23: 14910 | G23: 7455 | H23: 17280 | I23: 8640 | J23: 26742 | K23: 13371 | L23: 26904 | M23: 13452
A24: 13（9） | B24: 160000 | C24: 155000 | D24: ～ | E24: 165000 | F24: 15904 | G24: 7952 | H24: 18432 | I24: 9216 | J24: 28524.8 | K24: 14262.4 | L24: 28697.6 | M24: 14348.8
A25: 14（10） | B25: 170000 | C25: 165000 | D25: ～ | E25: 175000 | F25: 16898 | G25: 8449 | H25: 19584 | I25: 9792 | J25: 30307.6 | K25: 15153.8 | L25: 30491.2 | M25: 15245.6
A26: 15（11） | B26: 180000 | C26: 175000 | D26: ～ | E26: 185000 | F26: 17892 | G26: 8946 | H26: 20736 | I26: 10368 | J26: 32090.4 | K26: 16045.2 | L26: 32284.8 | M26: 16142.4
A27: 16（12） | B27: 190000 | C27: 185000 | D27: ～ | E27: 195000 | F27: 18886 | G27: 9443 | H27: 21888 | I27: 10944 | J27: 33873.2 | K27: 16936.6 | L27: 34078.4 | M27: 17039.2
A28: 17（13） | B28: 200000 | C28: 195000 | D28: ～ | E28: 210000 | F28: 19880 | G28: 9940 | H28: 23040 | I28: 11520 | J28: 35656 | K28: 17828 | L28: 35872 | M28: 17936
A29: 18（14） | B29: 220000 | C29: 210000 | D29: ～ | E29: 230000 | F29: 21868 | G29: 10934 | H29: 25344 | I29: 12672 | J29: 39221.6 | K29: 19610.8 | L29: 39459.2 | M29: 19729.6
A30: 19（15） | B30: 240000 | C30: 230000 | D30: ～ | E30: 250000 | F30: 23856 | G30: 11928 | H30: 27648 | I30: 13824 | J30: 42787.2 | K30: 21393.6 | L30: 43046.4 | M30: 21523.2
A31: 20（16） | B31: 260000 | C31: 250000 | D31: ～ | E31: 270000 | F31: 25844 | G31: 12922 | H31: 29952 | I31: 14976 | J31: 46352.8 | K31: 23176.4 | L31: 46633.6 | M31: 23316.8
A32: 21（17） | B32: 280000 | C32: 270000 | D32: ～ | E32: 290000 | F32: 27832 | G32: 13916 | H32: 32256 | I32: 16128 | J32: 49918.4 | K32: 24959.2 | L32: 50220.8 | M32: 25110.4
A33: 22（18） | B33: 300000 | C33: 290000 | D33: ～ | E33: 310000 | F33: 29820 | G33: 14910 | H33: 34560 | I33: 17280 | J33: 53484 | K33: 26742 | L33: 53808 | M33: 26904
A34: 23（19） | B34: 320000 | C34: 310000 | D34: ～ | E34: 330000 | F34: 31808 | G34: 15904 | H34: 36864 | I34: 18432 | J34: 57049.6 | K34: 28524.8 | L34: 57395.2 | M34: 28697.6
A35: 24（20） | B35: 340000 | C35: 330000 | D35: ～ | E35: 350000 | F35: 33796 | G35: 16898 | H35: 39168 | I35: 19584 | J35: 60615.2 | K35: 30307.6 | L35: 60982.4 | M35: 30491.2
A36: 25（21） | B36: 360000 | C36: 350000 | D36: ～ | E36: 370000 | F36: 35784 | G36: 17892 | H36: 41472 | I36: 20736 | J36: 64180.8 | K36: 32090.4 | L36: 64569.6 | M36: 32284.8
A37: 26（22） | B37: 380000 | C37: 370000 | D37: ～ | E37: 395000 | F37: 37772 | G37: 18886 | H37: 43776 | I37: 21888 | J37: 67746.4 | K37: 33873.2 | L37: 68156.8 | M37: 34078.4
A38: 27（23） | B38: 410000 | C38: 395000 | D38: ～ | E38: 425000 | F38: 40754 | G38: 20377 | H38: 47232 | I38: 23616 | J38: 73094.8 | K38: 36547.4 | L38: 73537.6 | M38: 36768.8
A39: 28（24） | B39: 440000 | C39: 425000 | D39: ～ | E39: 455000 | F39: 43736 | G39: 21868 | H39: 50688 | I39: 25344 | J39: 78443.2 | K39: 39221.6 | L39: 78918.4 | M39: 39459.2
A40: 29（25） | B40: 470000 | C40: 455000 | D40: ～ | E40: 485000 | F40: 46718 | G40: 23359 | H40: 54144 | I40: 27072 | J40: 83791.6 | K40: 41895.8 | L40: 84299.2 | M40: 42149.6
A41: 30（26） | B41: 500000 | C41: 485000 | D41: ～ | E41: 515000 | F41: 49700 | G41: 24850 | H41: 57600 | I41: 28800 | J41: 89140 | K41: 44570 | L41: 89680 | M41: 44840
A42: 31（27） | B42: 530000 | C42: 515000 | D42: ～ | E42: 545000 | F42: 52682 | G42: 26341 | H42: 61056 | I42: 30528 | J42: 94488.4 | K42: 47244.2 | L42: 95060.8 | M42: 47530.4
A43: 32（28） | B43: 560000 | C43: 545000 | D43: ～ | E43: 575000 | F43: 55664 | G43: 27832 | H43: 64512 | I43: 32256 | J43: 99836.8 | K43: 49918.4 | L43: 100441.6 | M43: 50220.8
A44: 33（29） | B44: 590000 | C44: 575000 | D44: ～ | E44: 605000 | F44: 58646 | G44: 29323 | H44: 67968 | I44: 33984 | J44: 105185.2 | K44: 52592.6 | L44: 105822.4 | M44: 52911.2
A45: 34（30） | B45: 620000 | C45: 605000 | D45: ～ | E45: 635000 | F45: 61628 | G45: 30814 | H45: 71424 | I45: 35712 | J45: 110533.6 | K45: 55266.8 | L45: 111203.2 | M45: 55601.6
A46: 35 | B46: 650000 | C46: 635000 | D46: ～ | E46: 665000 | F46: 64610 | G46: 32305 | H46: 74880 | I46: 37440
A47: 36 | B47: 680000 | C47: 665000 | D47: ～ | E47: 695000 | F47: 67592 | G47: 33796 | H47: 78336 | I47: 39168 | J47: ※厚生年金基金に加入している方の厚生年金保険
A48: 37 | B48: 710000 | C48: 695000 | D48: ～ | E48: 730000 | F48: 70574 | G48: 35287 | H48: 81792 | I48: 40896 | J48: 料率は、基金ごとに定められている免除保険料率
A49: 38 | B49: 750000 | C49: 730000 | D49: ～ | E49: 770000 | F49: 74550 | G49: 37275 | H49: 86400 | I49: 43200 | J49: （2.4％～5.0％）を控除した率となります。
A50: 39 | B50: 790000 | C50: 770000 | D50: ～ | E50: 810000 | F50: 78526 | G50: 39263 | H50: 91008 | I50: 45504
A51: 40 | B51: 830000 | C51: 810000 | D51: ～ | E51: 855000 | F51: 82502 | G51: 41251 | H51: 95616 | I51: 47808 | J51: ●一般の被保険者の方 …12.828％～15.428％
A52: 41 | B52: 880000 | C52: 855000 | D52: ～ | E52: 905000 | F52: 87472 | G52: 43736 | H52: 101376 | I52: 50688 | J52: ●坑内員の被保険者の方 …12.936％～15.536％
A53: 42 | B53: 930000 | C53: 905000 | D53: ～ | E53: 955000 | F53: 92442 | G53: 46221 | H53: 107136 | I53: 53568
A54: 43 | B54: 980000 | C54: 955000 | D54: ～ | E54: 1005000 | F54: 97412 | G54: 48706 | H54: 112896 | I54: 56448 | J54: 加入する基金ごとに異なりますので、免除保険料
A55: 44 | B55: 1030000 | C55: 1005000 | D55: ～ | E55: 1055000 | F55: 102382 | G55: 51191 | H55: 118656 | I55: 59328 | J55: 率および厚生年金基金の掛金については、加入
A56: 45 | B56: 1090000 | C56: 1055000 | D56: ～ | E56: 1115000 | F56: 108346 | G56: 54173 | H56: 125568 | I56: 62784 | J56: する厚生年金基金にお問い合わせください。
A57: 46 | B57: 1150000 | C57: 1115000 | D57: ～ | E57: 1175000 | F57: 114310 | G57: 57155 | H57: 132480 | I57: 66240
A58: 47 | B58: 1210000 | C58: 1175000 | D58: ～ | E58: 1235000 | F58: 120274 | G58: 60137 | H58: 139392 | I58: 69696
A59: 48 | B59: 1270000 | C59: 1235000 | D59: ～ | E59: 1295000 | F59: 126238 | G59: 63119 | H59: 146304 | I59: 73152 | J59: ◆48～50等級は、平成28年4月分から新設されます。
A60: 49 | B60: 1330000 | C60: 1295000 | D60: ～ | E60: 1355000 | F60: 132202 | G60: 66101 | H60: 153216 | I60: 76608 | J60: 3月分は47等級までとなり、48～50等級の方は
A61: 50 | B61: 1390000 | C61: 1355000 | D61: ～ | F61: 138166 | G61: 69083 | H61: 160128 | I61: 80064 | J61: 47等級の保険料となります。
A63: 0.0994
A64: ◆等級欄の（ ）内の数字は、厚生年金保険の標準報酬月額等級です。
A65: 5（1）等級の「報酬月額」欄は、厚生年金保険の場合「101,000円未満」と読み替えてください。
A66: 34（30）等級の「報酬月額」欄は、厚生年金保険の場合「605,000円以上」と読み替えてください。
A67: ◆平成28年度における全国健康保険協会の任意継続被保険者について、標準報酬月額の上限は、280,000円です。
A70: ○被保険者負担分（表の折半額の欄）に円未満の端数がある場合
A71: ①事業主が、給与から被保険者負担分を控除する場合、被保険者負担分の端数が50銭以下の場合は切り捨て、50銭を超える場合は切り上げて1円となります。
A72: ②被保険者が、被保険者負担分を事業主へ現金で支払う場合、被保険者負担分の端数が50銭未満の場合は切り捨て、50銭以上の場合は切り上げて1円となります。
A73: （注）①、②にかかわらず、事業主と被保険者の間で特約がある場合には、特約に基づき端数処理をすることができます。
A75: ○納入告知書の保険料額
A76: 納入告知書の保険料額は、被保険者個々の保険料額を合算した金額になります。ただし、合算した金額に円未満の端数がある場合は、その端数を切り捨てた額となります。
A78: ○賞与にかかる保険料
A79: 賞与に係る保険料額は、賞与額から1,000円未満の端数を切り捨てた額（標準賞与額)に、保険料率を乗じた額となります。
A80: また、標準賞与額の上限は、健康保険は年間540万円（毎年4月1日から翌年3月31日までの累計額。平成28年4月1日からは年間573万円。）となり、厚生年金保険と子ども・
A81: 子育て拠出金の場合は月間150万円となります。

Sheet 11埼玉 (hidden)
A1: 平成28年3月分（4月納付分）からの健康保険・厚生年金保険の保険料額表
B3: ・健康保険料率：平成28年3月分～ 適用 ・厚生年金保険料率：平成27年9月分～平成28年8月分 適用
B4: ・介護保険料率：平成27年4月分～ 適用
A6: （埼玉県） | M6: （単位：円）
A7: 標 準 報 酬 | C7: 報 酬 月 額 | F7: 全国健康保険協会管掌健康保険料 | J7: 厚生年金保険料（厚生年金基金加入員を除く）
F8: 介護保険第２号被保険者 に該当しない場合 | H8: 介護保険第２号被保険者 に該当する場合 | J8: 一般の被保険者 | L8: 坑内員・船員
A9: 等級 | B9: 月 額 | F9: 0.0991 | H9: 0.1149 | J9: 0.17828 | L9: 0.17936
F10: 全 額 | G10: 折半額 | H10: 全 額 | I10: 折半額 | J10: 全 額 | K10: 折半額 | L10: 全 額 | M10: 折半額
C11: 円以上 | E11: 円未満
A12: 1 | B12: 58000 | D12: ～ | E12: 63000 | F12: 5747.8 | G12: 2873.9 | H12: 6664.2 | I12: 3332.1
A13: 2 | B13: 68000 | C13: 63000 | D13: ～ | E13: 73000 | F13: 6738.8 | G13: 3369.4 | H13: 7813.2 | I13: 3906.6
A14: 3 | B14: 78000 | C14: 73000 | D14: ～ | E14: 83000 | F14: 7729.8 | G14: 3864.9 | H14: 8962.2 | I14: 4481.1
A15: 4 | B15: 88000 | C15: 83000 | D15: ～ | E15: 93000 | F15: 8720.8 | G15: 4360.4 | H15: 10111.2 | I15: 5055.6
A16: 5（1） | B16: 98000 | C16: 93000 | D16: ～ | E16: 101000 | F16: 9711.8 | G16: 4855.9 | H16: 11260.2 | I16: 5630.1 | J16: 17471.44 | K16: 8735.72 | L16: 17577.28 | M16: 8788.64
A17: 6（2） | B17: 104000 | C17: 101000 | D17: ～ | E17: 107000 | F17: 10306.4 | G17: 5153.2 | H17: 11949.6 | I17: 5974.8 | J17: 18541.12 | K17: 9270.56 | L17: 18653.44 | M17: 9326.72
A18: 7（3） | B18: 110000 | C18: 107000 | D18: ～ | E18: 114000 | F18: 10901 | G18: 5450.5 | H18: 12639 | I18: 6319.5 | J18: 19610.8 | K18: 9805.4 | L18: 19729.6 | M18: 9864.8
A19: 8（4） | B19: 118000 | C19: 114000 | D19: ～ | E19: 122000 | F19: 11693.8 | G19: 5846.9 | H19: 13558.2 | I19: 6779.1 | J19: 21037.04 | K19: 10518.52 | L19: 21164.48 | M19: 10582.24
A20: 9（5） | B20: 126000 | C20: 122000 | D20: ～ | E20: 130000 | F20: 12486.6 | G20: 6243.3 | H20: 14477.4 | I20: 7238.7 | J20: 22463.28 | K20: 11231.64 | L20: 22599.36 | M20: 11299.68
A21: 10（6） | B21: 134000 | C21: 130000 | D21: ～ | E21: 138000 | F21: 13279.4 | G21: 6639.7 | H21: 15396.6 | I21: 7698.3 | J21: 23889.52 | K21: 11944.76 | L21: 24034.24 | M21: 12017.12
A22: 11（7） | B22: 142000 | C22: 138000 | D22: ～ | E22: 146000 | F22: 14072.2 | G22: 7036.1 | H22: 16315.8 | I22: 8157.9 | J22: 25315.76 | K22: 12657.88 | L22: 25469.12 | M22: 12734.56
A23: 12（8） | B23: 150000 | C23: 146000 | D23: ～ | E23: 155000 | F23: 14865 | G23: 7432.5 | H23: 17235 | I23: 8617.5 | J23: 26742 | K23: 13371 | L23: 26904 | M23: 13452
A24: 13（9） | B24: 160000 | C24: 155000 | D24: ～ | E24: 165000 | F24: 15856 | G24: 7928 | H24: 18384 | I24: 9192 | J24: 28524.8 | K24: 14262.4 | L24: 28697.6 | M24: 14348.8
A25: 14（10） | B25: 170000 | C25: 165000 | D25: ～ | E25: 175000 | F25: 16847 | G25: 8423.5 | H25: 19533 | I25: 9766.5 | J25: 30307.6 | K25: 15153.8 | L25: 30491.2 | M25: 15245.6
A26: 15（11） | B26: 180000 | C26: 175000 | D26: ～ | E26: 185000 | F26: 17838 | G26: 8919 | H26: 20682 | I26: 10341 | J26: 32090.4 | K26: 16045.2 | L26: 32284.8 | M26: 16142.4
A27: 16（12） | B27: 190000 | C27: 185000 | D27: ～ | E27: 195000 | F27: 18829 | G27: 9414.5 | H27: 21831 | I27: 10915.5 | J27: 33873.2 | K27: 16936.6 | L27: 34078.4 | M27: 17039.2
A28: 17（13） | B28: 200000 | C28: 195000 | D28: ～ | E28: 210000 | F28: 19820 | G28: 9910 | H28: 22980 | I28: 11490 | J28: 35656 | K28: 17828 | L28: 35872 | M28: 17936
A29: 18（14） | B29: 220000 | C29: 210000 | D29: ～ | E29: 230000 | F29: 21802 | G29: 10901 | H29: 25278 | I29: 12639 | J29: 39221.6 | K29: 19610.8 | L29: 39459.2 | M29: 19729.6
A30: 19（15） | B30: 240000 | C30: 230000 | D30: ～ | E30: 250000 | F30: 23784 | G30: 11892 | H30: 27576 | I30: 13788 | J30: 42787.2 | K30: 21393.6 | L30: 43046.4 | M30: 21523.2
A31: 20（16） | B31: 260000 | C31: 250000 | D31: ～ | E31: 270000 | F31: 25766 | G31: 12883 | H31: 29874 | I31: 14937 | J31: 46352.8 | K31: 23176.4 | L31: 46633.6 | M31: 23316.8
A32: 21（17） | B32: 280000 | C32: 270000 | D32: ～ | E32: 290000 | F32: 27748 | G32: 13874 | H32: 32172 | I32: 16086 | J32: 49918.4 | K32: 24959.2 | L32: 50220.8 | M32: 25110.4
A33: 22（18） | B33: 300000 | C33: 290000 | D33: ～ | E33: 310000 | F33: 29730 | G33: 14865 | H33: 34470 | I33: 17235 | J33: 53484 | K33: 26742 | L33: 53808 | M33: 26904
A34: 23（19） | B34: 320000 | C34: 310000 | D34: ～ | E34: 330000 | F34: 31712 | G34: 15856 | H34: 36768 | I34: 18384 | J34: 57049.6 | K34: 28524.8 | L34: 57395.2 | M34: 28697.6
A35: 24（20） | B35: 340000 | C35: 330000 | D35: ～ | E35: 350000 | F35: 33694 | G35: 16847 | H35: 39066 | I35: 19533 | J35: 60615.2 | K35: 30307.6 | L35: 60982.4 | M35: 30491.2
A36: 25（21） | B36: 360000 | C36: 350000 | D36: ～ | E36: 370000 | F36: 35676 | G36: 17838 | H36: 41364 | I36: 20682 | J36: 64180.8 | K36: 32090.4 | L36: 64569.6 | M36: 32284.8
A37: 26（22） | B37: 380000 | C37: 370000 | D37: ～ | E37: 395000 | F37: 37658 | G37: 18829 | H37: 43662 | I37: 21831 | J37: 67746.4 | K37: 33873.2 | L37: 68156.8 | M37: 34078.4
A38: 27（23） | B38: 410000 | C38: 395000 | D38: ～ | E38: 425000 | F38: 40631 | G38: 20315.5 | H38: 47109 | I38: 23554.5 | J38: 73094.8 | K38: 36547.4 | L38: 73537.6 | M38: 36768.8
A39: 28（24） | B39: 440000 | C39: 425000 | D39: ～ | E39: 455000 | F39: 43604 | G39: 21802 | H39: 50556 | I39: 25278 | J39: 78443.2 | K39: 39221.6 | L39: 78918.4 | M39: 39459.2
A40: 29（25） | B40: 470000 | C40: 455000 | D40: ～ | E40: 485000 | F40: 46577 | G40: 23288.5 | H40: 54003 | I40: 27001.5 | J40: 83791.6 | K40: 41895.8 | L40: 84299.2 | M40: 42149.6
A41: 30（26） | B41: 500000 | C41: 485000 | D41: ～ | E41: 515000 | F41: 49550 | G41: 24775 | H41: 57450 | I41: 28725 | J41: 89140 | K41: 44570 | L41: 89680 | M41: 44840
A42: 31（27） | B42: 530000 | C42: 515000 | D42: ～ | E42: 545000 | F42: 52523 | G42: 26261.5 | H42: 60897 | I42: 30448.5 | J42: 94488.4 | K42: 47244.2 | L42: 95060.8 | M42: 47530.4
